Workbook

Sheet Contents
A1: 80 | M1: ESC USE ONLY
D2: ESSENTIAL SERVICES COMMISSION
D3: Water Price Review - 2023
D4: Financial Model Template
B7: Table of Contents | F7: Water Business: | H7: =+N24 -> Goulburn Valley Water | I7: =+O24 -> GVW
B8: Section & Sheet Titles | F8: Regulatory Period: | H8: 2023-24 to 2027-28 (Fifth) | N8: [Decision] | O8: [Month] | P8: [Year] | Q8: [Version]
F9: Model Name: | H9: =I7&"_Price Review Template_"&O9&P9&Q9 -> GVW_Price Review Template_Oct2021 - v1 | N9: Draft | O9: Oct | P9: 2021 | Q9: - v1 | R9: << Select
B10: 1 | C10: Model Quality Check | F10: Decision type: | H10: =+N9&" Decision" -> Draft Decision | N10: Draft | O10: Jan | P10: 2016 | Q10: - v1
B11: 2 | C11: =+KeyAssumptionsPriceControl_FO!B1 -> Key Assumptions Price Control | N11: Final | O11: Feb | P11: 2017
B12: 3 | C12: =+Expenditure_Detail!B1 -> Expenditure - Detail | F12: Model Key: | O12: Mar | P12: 2018
B13: 4 | C13: =Opex_FO!B1 -> Operating Expenditure - Forecast | O13: Apr | P13: 2019
B14: 5 | C14: =Opex_Breakdown!B1 -> Operating Expenditure - Breakdown | G14: BLUE | H14: =+I7&" - DATA INPUT CELL" -> GVW - DATA INPUT CELL | O14: May | P14: 2020
B15: 6 | C15: =+'Capex_FO input'!B1 -> Capital Expenditure - Forecast Input | O15: Jun | P15: 2021
B16: 7 | C16: =Capex_FO_AC!B1 -> Capital Expenditure - Asset Category Breakdown | G16: PURPLE | H16: NOTES / INSTRUCTIONS | O16: Jul | P16: 2022
B17: 8 | C17: =ExpSummary_FO!B1 -> Expenditure Summary | O17: Aug | P17: 2023
B18: 9 | C18: =RollForward_FO!B1 -> Rolled forward regulatory asset base (RAB) | G18: GREY | H18: MODEL PARAMETERS / ASSUMPTIONS | O18: Sep
B19: 10 | C19: =PrevPerAdj_FO!B1 -> Previous period adjustments | O19: Oct
B20: 11 | C20: =RevenuePriceCap_FO!C1 -> Revenue forecast (price caps) | G20: WHITE | H20: FORMULA / HARDCODED VALUES | O20: Nov
B21: 12 | C21: Revenue forecast (tariff basket) | O21: Dec
B22: 13 | C22: =NotPres_FO!B1 -> Non Prescribed Services | G22: ORANGE | H22: FORMULA DIFFERENT TO ADJACENT CELL
B23: 14 | C23: ='Finance&Tax_FO'!B1 -> Cash, debt and tax assumptions | N23: [Business]
B24: 15 | C24: ='Rev&RAV_FO'!B1 -> Revenue requirement detail | G24: GREEN | H24: DATA FROM 2018 DECISION OR PERFORMANCE REPORT | N24: Goulburn Valley Water | O24: =+VLOOKUP(N24,N25:O42,2,FALSE) -> GVW
B25: 16 | C25: =Indicators_FO!B1 -> Financial indicators | N25: Barwon Water | O25: BW
B26: 17 | C26: =Outcomes!B1 -> Outcomes | G26: RED | H26: ERROR CHECK | N26: Central Highlands Water | O26: CHW
B27: 18 | C27: =GSL!B1 -> Guaranteed Service Levels (GSL) | N27: Greater Western Water | O27: GWW
B28: 19 | C28: Dashboard - Pricing | N28: Coliban Water | O28: CW
B29: 20 | C29: Dashboard - Opex | N29: East Gippsland Water | O29: EGW
B30: 21 | C30: Dashboard - Capex | N30: Gippsland Water | O30: CGW
B31: 22 | C31: Dashboard - Data | N31: Goulburn Valley Water | O31: GVW
B32: 23 | C32: Household Bill | N32: GWM Water | O32: GWMW | P32: diff model
N33: Lower Murray Water - Urban | O33: LMW-U | P33: diff model
N34: Lower Murray Water - Rural | O34: LMW-R
N35: North East Water | O35: NEW
N36: South East Water | O36: SEW
N37: South Gippsland Water | O37: SGW
N38: Southern Rural Water | O38: SRW | P38: diff model
N39: Wannon Water | O39: WNW
N40: Westernport Water | O40: WPW
N41: Yarra Valley Water | O41: YVW

Sheet Adjustments log (hidden)
A3: 1 | B3: Operating expenditure
B4: $m 2022-23
C6: 2023-24 | D6: 2024-25 | E6: 2025-26 | F6: 2026-27 | G6: 2027-28 | H6: Total
B7: Proposed - controllable operating expenditure | H7: =SUM(C7:G7) -> 0
B8: DD adjustments
B9: xx | H9: =SUM(C9:G9) -> 0
B10: xx | H10: =SUM(C10:G10) -> 0
B11: xx | H11: =SUM(C11:G11) -> 0
B12: xx | H12: =SUM(C12:G12) -> 0
B13: xx | H13: =SUM(C13:G13) -> 0
B14: FD adjustments
B15: xx | H15: =SUM(C15:G15) -> 0
B16: xx | H16: =SUM(C16:G16) -> 0
B17: xx | H17: =SUM(C17:G17) -> 0
B18: xx | H18: =SUM(C18:G18) -> 0
B19: xx | H19: 0
B20: Total adjustments | C20: =SUM(C8:C19) -> 0 | D20: 0 | E20: 0 | F20: 0 | G20: 0 | H20: 0
B21: Final decision - controllable operating expenditure | C21: =C7+C20 -> 0 | D21: 0 | E21: 0 | F21: 0 | G21: 0 | H21: 0
B23: Proposed - non-controllable operating expenditure | H23: =SUM(C23:G23) -> 0
B24: DD adjustments
B25: xx | H25: =SUM(C25:G25) -> 0
B26: xx | H26: =SUM(C26:G26) -> 0
B27: xx | H27: =SUM(C27:G27) -> 0
B28: xx | H28: =SUM(C28:G28) -> 0
B29: FD adjustments
B30: xx | H30: =SUM(C30:G30) -> 0
B31: xx | H31: =SUM(C31:G31) -> 0
B32: Total adjustments | C32: =SUM(C24:C31) -> 0 | D32: 0 | E32: 0 | F32: 0 | G32: 0 | H32: 0
B33: Final decision - non-controllable operating expenditure | C33: =C23+C32 -> 0 | D33: 0 | E33: 0 | F33: 0 | G33: 0 | H33: 0
B35: Proposed - total operating expenditure | C35: =C7+C23 -> 0 | D35: 0 | E35: 0 | F35: 0 | G35: 0 | H35: 0
B36: Total adjustments | C36: =C20+C32 -> 0 | D36: 0 | E36: 0 | F36: 0 | G36: 0 | H36: 0
B37: Final decision - total operating expenditure | C37: =SUM(C35:C36) -> 0 | D37: 0 | E37: 0 | F37: 0 | G37: 0 | H37: 0
B39: Check
A42: 2 | B42: Capital expenditure
B43: $m 2022-23
C45: 2023-24 | D45: 2024-25 | E45: 2025-26 | F45: 2026-27 | G45: 2027-28 | H45: Total
B46: Proposed - capital expenditure | H46: =SUM(C46:G46) -> 0
B47: DD adjustments
B48: xx | H48: =SUM(C48:G48) -> 0
B49: xx | H49: =SUM(C49:G49) -> 0
B50: xx | H50: =SUM(C50:G50) -> 0
B51: xx | H51: =SUM(C51:G51) -> 0
B52: FD adjustments
B53: xx | H53: =SUM(C53:G53) -> 0
B54: xx
B55: Total adjustments | C55: =SUM(C47:C54) -> 0 | D55: 0 | E55: 0 | F55: 0 | G55: 0 | H55: 0
B56: Draft decision - capital expenditure | C56: =C46+C55 -> 0 | D56: 0 | E56: 0 | F56: 0 | G56: 0 | H56: 0
B58: Check

Sheet Model Quality Check
A1: 80 | B1: Model Quality Check
B2: =+Contents!H7 -> Goulburn Valley Water
B3: Go to Table of Contents
K4: FIRST REG PERIOD | O4: SECOND REG PERIOD | T4: THIRD REG PERIOD | Y4: FOURTH REG PERIOD | AD4: FIFTH REG PERIOD | AI4: SIXTH REG PERIOD
F6: Straight Line | J6: 2006 | K6: 2007 | L6: 2008 | M6: 2009 | N6: 2010 | O6: 2011 | P6: 2012 | Q6: 2013 | R6: 2014 | S6: 2015 | T6: 2016 | U6: 2017 | V6: 2018 | W6: 2019 | X6: 2020 | Y6: 2021 | Z6: 2022 | AA6: 2023 | AB6: 2024 | AC6: 2025 | AD6: 2026 | AE6: 2027 | AF6: 2028 | AG6: 2029 | AH6: 2030 | AI6: 2031 | AJ6: 2032 | AK6: 2033
F7: Declining Balance | J7: =+CONCATENATE(J6-1,"-",RIGHT(J6,2)) -> 2005-06 | K7: 2006-07 | L7: 2007-08 | M7: 2008-09 | N7: 2009-10 | O7: 2010-11 | P7: 2011-12 | Q7: 2012-13 | R7: 2013-14 | S7: 2014-15 | T7: 2015-16 | U7: 2016-17 | V7: 2017-18 | W7: =+CONCATENATE(W6-1,"-",RIGHT(W6,2)) -> 2018-19 | X7: 2019-20 | Y7: 2020-21 | Z7: 2021-22 | AA7: 2022-23 | AB7: 2023-24 | AC7: 2024-25 | AD7: 2025-26 | AE7: 2026-27 | AF7: =+CONCATENATE(AF6-1,"-",RIGHT(AF6,2)) -> 2027-28 | AG7: 2028-29 | AH7: 2029-30 | AI7: 2030-31 | AJ7: 2031-32 | AK7: 2032-33
D9: Model ready for submission: | I9: =SUM(AA15:AK49) -> 0 | R9: (If No, please ensure that the error check is corrected at the source)
D11: All financial indicators satisfied: | I11: =SUM(AB54:AK59) -> 8
E14: 1. | F14: Opex_FO
G15: Reconciliation to 'Opex_Breakdown' tab row 37 | AB15: =Opex_FO!AC100 -> 0 | AC15: =Opex_FO!AD100 -> 0 | AD15: =Opex_FO!AE100 -> 0 | AE15: =Opex_FO!AF100 -> 0 | AF15: =Opex_FO!AG100 -> 0 | AG15: =Opex_FO!AH100 -> 0 | AH15: =Opex_FO!AI100 -> 0 | AI15: =Opex_FO!AJ100 -> 0 | AJ15: =Opex_FO!AK100 -> 0 | AK15: =Opex_FO!AL100 -> 0
E17: 2. | F17: Opex_Breakdown
G18: Reconciliation to 'Opex_FO' tab row 95 | AB18: =Opex_Breakdown!AC42 -> 0 | AC18: =Opex_Breakdown!AD42 -> 0 | AD18: =Opex_Breakdown!AE42 -> 0 | AE18: =Opex_Breakdown!AF42 -> 0 | AF18: =Opex_Breakdown!AG42 -> 0 | AG18: =Opex_Breakdown!AH42 -> 0 | AH18: =Opex_Breakdown!AI42 -> 0 | AI18: =Opex_Breakdown!AJ42 -> 0 | AJ18: =Opex_Breakdown!AK42 -> 0 | AK18: =Opex_Breakdown!AL42 -> 0
G20: Reconciliation of Opex by service and function | AB20: =Opex_Breakdown!AC27 -> 0 | AC20: =Opex_Breakdown!AD27 -> 0 | AD20: =Opex_Breakdown!AE27 -> 0 | AE20: =Opex_Breakdown!AF27 -> 0 | AF20: =Opex_Breakdown!AG27 -> 0 | AG20: =Opex_Breakdown!AH27 -> 0 | AH20: =Opex_Breakdown!AI27 -> 0 | AI20: =Opex_Breakdown!AJ27 -> 0 | AJ20: =Opex_Breakdown!AK27 -> 0 | AK20: =Opex_Breakdown!AL27 -> 0
E22: 3. | F22: Capex_FO input
G23: Reconciliation of total prescribed capex between cost driver and capital type | AB23: ='Capex_FO input'!D26 -> 0 | AC23: ='Capex_FO input'!E26 -> 0 | AD23: ='Capex_FO input'!F26 -> 0 | AE23: ='Capex_FO input'!G26 -> 0 | AF23: ='Capex_FO input'!H26 -> 0 | AG23: ='Capex_FO input'!I26 -> 0 | AH23: ='Capex_FO input'!J26 -> 0 | AI23: ='Capex_FO input'!K26 -> 0 | AJ23: ='Capex_FO input'!L26 -> 0 | AK23: ='Capex_FO input'!M26 -> 0
E25: 4. | F25: Capex_FO_AC
G26: Reconciliation to 'Capex_FO input' tab row 29 | AA26: =Capex_FO_AC!AB30 -> 0 | AB26: =Capex_FO_AC!AC30 -> 0 | AC26: =Capex_FO_AC!AD30 -> 0 | AD26: =Capex_FO_AC!AE30 -> 0 | AE26: =Capex_FO_AC!AF30 -> 0 | AF26: =Capex_FO_AC!AG30 -> 0 | AG26: =Capex_FO_AC!AH30 -> 0 | AH26: =Capex_FO_AC!AI30 -> 0 | AI26: =Capex_FO_AC!AJ30 -> 0 | AJ26: =Capex_FO_AC!AK30 -> 0 | AK26: =Capex_FO_AC!AL30 -> 0
E28: 5. | F28: RollForward_FO
G29: Reconciliation of existing assets book value to RAB | AB29: =IF(ROUND(RollForward_FO!G84,2)=ROUND(RollForward_FO!G82,2),0,1) -> 0
E31: 6. | F31: RevenuePriceCap_FO
G32: Price control - Fifth period | AB32: =IF(KeyAssumptionsPriceControl_FO!I48=1,IF(RevenuePriceCap_FO!AD34="PRICE CONTROL OK",0,1),0) -> 0 | AC32: =IF(KeyAssumptionsPriceControl_FO!I48=1,RevenuePriceCap_FO!AD34,"") -> PRICE CONTROL OK
G34: Price control - Sixth period | AB34: =IF(KeyAssumptionsPriceControl_FO!I48=1,IF(RevenuePriceCap_FO!AI34="PRICE CONTROL OK",0,1),0) -> 0 | AC34: =IF(KeyAssumptionsPriceControl_FO!I48=1,RevenuePriceCap_FO!AI34,"") -> PRICE CONTROL OK
G36: Tariff revenue reconciliation | AB36: =RevenuePriceCap_FO!AC458 -> 0 | AC36: =RevenuePriceCap_FO!AD458 -> 0 | AD36: =RevenuePriceCap_FO!AE458 -> 0 | AE36: =RevenuePriceCap_FO!AF458 -> 0 | AF36: =RevenuePriceCap_FO!AG458 -> 0 | AG36: =RevenuePriceCap_FO!AH458 -> 0 | AH36: =RevenuePriceCap_FO!AI458 -> 0 | AI36: =RevenuePriceCap_FO!AJ458 -> 0 | AJ36: =RevenuePriceCap_FO!AK458 -> 0 | AK36: =RevenuePriceCap_FO!AL458 -> 0
E38: 7. | F38: RevenueTariffBasket_FO
G39: Price control - Fifth period | AB39: =IF(KeyAssumptionsPriceControl_FO!I48=2,IF(RevenueTariffBasket_FO!AD34="PRICE CONTROL OK",0,1),0) -> 0 | AC39: =IF(KeyAssumptionsPriceControl_FO!I48=2,RevenueTariffBasket_FO!AD34,"") -> 
G41: Price control - Sixth period | AB41: =IF(KeyAssumptionsPriceControl_FO!I48=2,IF(RevenueTariffBasket_FO!AI41="PRICE CONTROL OK",0,1),0) -> 0 | AC41: =IF(KeyAssumptionsPriceControl_FO!I48=2,RevenueTariffBasket_FO!AI34,"") -> 
G43: Tariff revenue reconciliation | AB43: =RevenueTariffBasket_FO!AC458 -> 0 | AC43: =RevenueTariffBasket_FO!AD458 -> 0 | AD43: =RevenueTariffBasket_FO!AE458 -> 0 | AE43: =RevenueTariffBasket_FO!AF458 -> 0 | AF43: =RevenueTariffBasket_FO!AG458 -> 0 | AG43: =RevenueTariffBasket_FO!AH458 -> 0 | AH43: =RevenueTariffBasket_FO!AI458 -> 0 | AI43: =RevenueTariffBasket_FO!AJ458 -> 0 | AJ43: =RevenueTariffBasket_FO!AK458 -> 0 | AK43: =RevenueTariffBasket_FO!AL458 -> 0
E45: 8. | F45: Rev&RAV_FO
G46: Rolled forward RAV reconciliation | AB46: ='Rev&RAV_FO'!AC80 -> 0 | AC46: ='Rev&RAV_FO'!AD80 -> 0 | AD46: ='Rev&RAV_FO'!AE80 -> 0 | AE46: ='Rev&RAV_FO'!AF80 -> 0 | AF46: ='Rev&RAV_FO'!AG80 -> 0 | AG46: ='Rev&RAV_FO'!AH80 -> 0 | AH46: ='Rev&RAV_FO'!AI80 -> 0 | AI46: ='Rev&RAV_FO'!AJ80 -> 0 | AJ46: ='Rev&RAV_FO'!AK80 -> 0 | AK46: ='Rev&RAV_FO'!AL80 -> 0
E48: 9. | F48: GSL
G49: Reconciliation to 'Opex_Breakdown' tab row 23 | AB49: =IF(ROUND(GSL!AC40,2)=ROUND(GSL!AC39,2),0,1) -> 0 | AC49: =IF(ROUND(GSL!AD40,2)=ROUND(GSL!AD39,2),0,1) -> 0 | AD49: =IF(ROUND(GSL!AE40,2)=ROUND(GSL!AE39,2),0,1) -> 0 | AE49: =IF(ROUND(GSL!AF40,2)=ROUND(GSL!AF39,2),0,1) -> 0 | AF49: =IF(ROUND(GSL!AG40,2)=ROUND(GSL!AG39,2),0,1) -> 0 | AG49: =IF(ROUND(GSL!AH40,2)=ROUND(GSL!AH39,2),0,1) -> 0 | AH49: =IF(ROUND(GSL!AI40,2)=ROUND(GSL!AI39,2),0,1) -> 0 | AI49: =IF(ROUND(GSL!AJ40,2)=ROUND(GSL!AJ39,2),0,1) -> 0 | AJ49: =IF(ROUND(GSL!AK40,2)=ROUND(GSL!AK39,2),0,1) -> 0 | AK49: =IF(ROUND(GSL!AL40,2)=ROUND(GSL!AL39,2),0,1) -> 0
E53: 1. | F53: Primary Indicator
G54: FFO interest cover | AB54: =Indicators_FO!AC$226 -> 0 | AC54: =Indicators_FO!AD$226 -> 0 | AD54: =Indicators_FO!AE$226 -> 0 | AE54: =Indicators_FO!AF$226 -> 0 | AF54: =Indicators_FO!AG$226 -> 0 | AG54: =Indicators_FO!AH$226 -> 0 | AH54: =Indicators_FO!AI$226 -> 0 | AI54: =Indicators_FO!AJ$226 -> 0 | AJ54: =Indicators_FO!AK$226 -> 0 | AK54: =Indicators_FO!AL$226 -> 0
E56: 2. | F56: Secondary indicators
G57: Net debt / RAV | AB57: =Indicators_FO!AC$235 -> 0 | AC57: =Indicators_FO!AD$235 -> 0 | AD57: =Indicators_FO!AE$235 -> 0 | AE57: =Indicators_FO!AF$235 -> 0 | AF57: =Indicators_FO!AG$235 -> 0 | AG57: =Indicators_FO!AH$235 -> 0 | AH57: =Indicators_FO!AI$235 -> 0 | AI57: =Indicators_FO!AJ$235 -> 0 | AJ57: =Indicators_FO!AK$235 -> 0 | AK57: =Indicators_FO!AL$235 -> 0
G58: FFO / Net debt | AB58: =Indicators_FO!AC$243 -> 0 | AC58: =Indicators_FO!AD$243 -> 0 | AD58: =Indicators_FO!AE$243 -> 1 | AE58: =Indicators_FO!AF$243 -> 1 | AF58: =Indicators_FO!AG$243 -> 1 | AG58: =Indicators_FO!AH$243 -> 1 | AH58: =Indicators_FO!AI$243 -> 1 | AI58: =Indicators_FO!AJ$243 -> 1 | AJ58: =Indicators_FO!AK$243 -> 1 | AK58: =Indicators_FO!AL$243 -> 1
G59: Internal financing ratio | AB59: =Indicators_FO!AC$252 -> 0 | AC59: =Indicators_FO!AD$252 -> 0 | AD59: =Indicators_FO!AE$252 -> 0 | AE59: =Indicators_FO!AF$252 -> 0 | AF59: =Indicators_FO!AG$252 -> 0 | AG59: =Indicators_FO!AH$252 -> 0 | AH59: =Indicators_FO!AI$252 -> 0 | AI59: =Indicators_FO!AJ$252 -> 0 | AJ59: =Indicators_FO!AK$252 -> 0 | AK59: =Indicators_FO!AL$252 -> 0

Sheet KeyAssumptionsPriceControl_FO
A1: 80 | B1: Key Assumptions Price Control
B2: =+Contents!H7 -> Goulburn Valley Water
B3: Go to Table of Contents
L4: FIRST REG PERIOD | P4: SECOND REG PERIOD | U4: THIRD REG PERIOD | Z4: FOURTH REG PERIOD | AE4: FIFTH REG PERIOD | AJ4: SIXTH REG PERIOD
F6: Straight Line | K6: 2006 | L6: 2007 | M6: 2008 | N6: 2009 | O6: 2010 | P6: 2011 | Q6: 2012 | R6: 2013 | S6: 2014 | T6: 2015 | U6: 2016 | V6: 2017 | W6: 2018 | X6: 2019 | Y6: 2020 | Z6: 2021 | AA6: 2022 | AB6: 2023 | AC6: 2024 | AD6: 2025 | AE6: 2026 | AF6: 2027 | AG6: 2028 | AH6: 2029 | AI6: 2030 | AJ6: 2031 | AK6: 2032 | AL6: 2033
F7: Declining Balance | I7: 2003-04 | J7: 2004-05 | K7: =+CONCATENATE(K6-1,"-",RIGHT(K6,2)) -> 2005-06 | L7: =+CONCATENATE(L6-1,"-",RIGHT(L6,2)) -> 2006-07 | M7: 2007-08 | N7: 2008-09 | O7: 2009-10 | P7: 2010-11 | Q7: 2011-12 | R7: 2012-13 | S7: 2013-14 | T7: 2014-15 | U7: 2015-16 | V7: 2016-17 | W7: 2017-18 | X7: 2018-19 | Y7: 2019-20 | Z7: 2020-21 | AA7: 2021-22 | AB7: 2022-23 | AC7: 2023-24 | AD7: 2024-25 | AE7: 2025-26 | AF7: 2026-27 | AG7: 2027-28 | AH7: =+CONCATENATE(AH6-1,"-",RIGHT(AH6,2)) -> 2028-29 | AI7: =+CONCATENATE(AI6-1,"-",RIGHT(AI6,2)) -> 2029-30 | AJ7: =+CONCATENATE(AJ6-1,"-",RIGHT(AJ6,2)) -> 2030-31 | AK7: =+CONCATENATE(AK6-1,"-",RIGHT(AK6,2)) -> 2031-32 | AL7: =+CONCATENATE(AL6-1,"-",RIGHT(AL6,2)) -> 2032-33
E11: Inflation assumptions
AB12: Estimate
F13: March quarter annual CPI | I13: 141.3 | J13: 144.1 | K13: 147.5 | L13: 151.9 | M13: 155.6 | N13: 162.2 | O13: 166.2 | P13: 171 | Q13: 176.7 | R13: 99.9 | S13: 102.4 | T13: 105.4 | U13: 106.8 | V13: 108.2 | W13: 110.5 | X13: 112.6 | Y13: 114.1 | Z13: 116.6 | AA13: 117.9 | AB13: 123.9
F14: Inflation | J14: =+J13/I13-1 -> 0.01981599434 | K14: 0.02359472588 | L14: 0.02983050847 | M14: 0.02435813035 | N14: 0.04241645244 | O14: 0.02466091245 | P14: 0.02888086643 | Q14: 0.03333333333 | R14: 0.01584606678 | S14: =+IF(S13=0,$Z$44,S13/R13-1) -> 0.02502502503 | T14: 0.029296875 | U14: 0.01328273245 | V14: 0.01310861423 | W14: 0.02125693161 | X14: 0.01900452489 | Y14: 0.01332149201 | Z14: 0.02191060473 | AA14: 0.01114922813 | AB14: 0.05089058524 | AC14: =+IF(AC13=0,$AC$44,AC13/AB13-1) -> 0.03 | AD14: 0.03 | AE14: 0.03 | AF14: 0.03 | AG14: 0.03 | AH14: 0.03 | AI14: 0.03 | AJ14: 0.03 | AK14: 0.03 | AL14: 0.03
F15: Inflation factor | I15: 0.7871866295 | J15: 0.8027855153 | K15: 0.8217270195 | L15: 0.8462395543 | M15: 0.8668523677 | N15: 0.9036211699 | O15: 0.9259052925 | P15: 0.9526462396 | Q15: 0.9844011142 | R15: =+R13/$AB$13 -> 0.8062953995 | S15: 0.8264729621 | T15: 0.8506860371 | U15: 0.8619854722 | V15: 0.8732849072 | W15: 0.8918482647 | X15: 0.9087974173 | Y15: 0.9209039548 | Z15: 0.9410815174 | AA15: 0.9515738499 | AB15: 1 | AC15: =+AB15*(1+AC14) -> 1.03 | AD15: 1.0609 | AE15: 1.092727 | AF15: 1.12550881 | AG15: 1.159274074 | AH15: 1.194052297 | AI15: 1.229873865 | AJ15: 1.266770081 | AK15: 1.304773184 | AL15: 1.343916379
I16: CPI index re-referenced in 2012-13, shaded values have been hardcoded to lock in RAB value.
E21: Cost of debt - 10 year trailing average (Nominal)
AA22: Estimate | AB22: Estimate | AC22: Estimate | AD22: Estimate | AE22: Estimate | AF22: Estimate | AG22: Estimate | AH22: Estimate | AI22: Estimate | AJ22: Estimate | AK22: Estimate | AL22: Estimate
E23: Cost of debt | L23: 0.06981666667 | M23: 0.07414 | N23: 0.0691525788 | O23: 0.07361870984 | P23: 0.07046784142 | Q23: 0.06308887941 | R23: 0.0526945046 | S23: 0.070525 | T23: 0.05360833333 | U23: 0.05270138413 | V23: 0.04908333333 | W23: 0.045283 | X23: 0.046133 | Y23: 0.03305833333 | Z23: 0.03045 | AA23: 0.037533 | AB23: =AA23 -> 0.037533 | AC23: =AB23 -> 0.037533 | AD23: =AC23 -> 0.037533 | AE23: =AD23 -> 0.037533 | AF23: =AE23 -> 0.037533 | AG23: =AF23 -> 0.037533 | AH23: =AG23 -> 0.037533 | AI23: =AH23 -> 0.037533 | AJ23: =AI23 -> 0.037533 | AK23: =AJ23 -> 0.037533 | AL23: =AK23 -> 0.037533
E24: Re-financing weightings - average 10 yrs | L24: =1/10 -> 0.1 | M24: =1/10 -> 0.1 | N24: =1/10 -> 0.1 | O24: =1/10 -> 0.1 | P24: =1/10 -> 0.1 | Q24: 0.1 | R24: 0.1 | S24: 0.1 | T24: 0.1 | U24: 0.1 | V24: 0.1 | W24: 0.1 | X24: 0.1 | Y24: 0.1 | Z24: 0.1 | AA24: 0.1 | AB24: 0.1 | AC24: 0.1 | AD24: 0.1 | AE24: 0.1 | AF24: 0.1 | AG24: 0.1 | AH24: 0.1 | AI24: 0.1 | AJ24: 0.1 | AK24: 0.1 | AL24: 0.1
E26: Cost of debt - 10 year trailing average | V26: =IF(U23<>"",SUMPRODUCT(L23:U23,L24:U24),"") -> 0.06498138982 | W26: 0.06290805649 | X26: 0.06002235649 | Y26: 0.05772039861 | Z26: 0.05366436096 | AA26: 0.04966257681 | AB26: =IF(AA23<>"",SUMPRODUCT(R23:AA23,R24:AA24),"") -> 0.04710698887 | AC26: =IF(AB23<>"",SUMPRODUCT(S23:AB23,S24:AB24),"") -> 0.04559083841 | AD26: =IF(AC23<>"",SUMPRODUCT(T23:AC23,T24:AC24),"") -> 0.04229163841 | AE26: 0.04068410508 | AF26: 0.03916726667 | AG26: 0.03801223333 | AH26: 0.03723723333 | AI26: 0.03637723333 | AJ26: 0.0368247 | AK26: 0.037533 | AL26: 0.037533
E30: WACC assumptions (retained for historical purposes only) | Z30: Regulatory Rate of Return (RRR) - Nominal
K32: 1st period | M32: 2nd period | O32: 3rd period | Z32: Cost of Debt | AC32: =+AC26 -> 0.04559083841 | AD32: =+AD26 -> 0.04229163841 | AE32: 0.04068410508 | AF32: 0.03916726667 | AG32: 0.03801223333 | AH32: 0.03723723333 | AI32: 0.03637723333 | AJ32: 0.0368247 | AK32: 0.037533 | AL32: 0.037533
E33: Parameters
F34: Risk Free Rate (Real) | K34: =Determination_Lookup!W8 -> 0.0267 | M34: =Determination_Lookup!X8 -> 0.0323 | O34: =Determination_Lookup!Y8 -> 0.005959
F35: Debt Premium | K35: =Determination_Lookup!W9 -> 0.0116 | M35: =Determination_Lookup!X9 -> 0.0175 | O35: =Determination_Lookup!Y9 -> 0.0399
F36: Equity Premium | K36: =Determination_Lookup!W10 -> 0.06 | M36: =Determination_Lookup!X10 -> 0.06 | O36: =Determination_Lookup!Y10 -> 0.06 | Z36: Regulatory Rate of Return (RRR) - Real
F37: Equity Beta | K37: =Determination_Lookup!W11 -> 0.75 | M37: =Determination_Lookup!X11 -> 0.65 | O37: =Determination_Lookup!Y11 -> 0.65
F38: Gearing (Debt/Assets) | K38: =Determination_Lookup!W12 -> 0.6 | M38: =Determination_Lookup!X12 -> 0.6 | O38: =Determination_Lookup!Y12 -> 0.6 | Z38: Cost of Debt | AC38: =(1+AC32)/(1+AC44)-1 -> 0.01513673632 | AD38: =(1+AD32)/(1+AD44)-1 -> 0.01193362953 | AE38: 0.01037291755 | AF38: 0.0089002589 | AG38: 0.007778867314 | AH38: 0.007026440129 | AI38: 0.006191488673 | AJ38: 0.00662592233 | AK38: 0.007313592233 | AL38: 0.007313592233
F39: Forecast Inflation | K39: =Determination_Lookup!W13 -> 0.0255 | M39: =Determination_Lookup!X13 -> 0.029 | O39: =Determination_Lookup!Y13 -> 0.0275
F40: Franking credit value | K40: =Determination_Lookup!W14 -> 0.5 | M40: =Determination_Lookup!X14 -> 0.5 | O40: =Determination_Lookup!Y14 -> 0.5 | Z40: Return on Equity | AC40: =IF(AE64<>0,(AE64/100),IF(AE62<>0,(AE62/100),(AE60/100))) -> 0.045 | AD40: =+$AC$40 -> 0.045 | AE40: 0.045 | AF40: 0.045 | AG40: 0.045 | AH40: 0.045 | AI40: 0.045 | AJ40: 0.045 | AK40: 0.045 | AL40: 0.045
E42: 'Vanilla' After Tax WACC (Real) | K42: =ROUND(((K34+K36*K37)*(1-K38))+((K34+K35)*K38),3) -> 0.052 | M42: =ROUND(((M34+M36*M37)*(1-M38))+((M34+M35)*M38),3) -> 0.058 | O42: =ROUND(((O34+O36*O37)*(1-O38))+((O34+O35)*O38),3) -> 0.045 | Z42: RRR (real) | AC42: =ROUND((AC40*(1-AC43)+AC38*AC43),4) -> 0.0271 | AD42: 0.0252 | AE42: 0.0242 | AF42: 0.0233 | AG42: 0.0227 | AH42: 0.0222 | AI42: 0.0217 | AJ42: 0.022 | AK42: 0.0224 | AL42: 0.0224
Z43: Gearing | AC43: 0.6 | AD43: =+AC43 -> 0.6 | AE43: 0.6 | AF43: 0.6 | AG43: 0.6 | AH43: 0.6 | AI43: 0.6 | AJ43: 0.6 | AK43: 0.6 | AL43: 0.6
Z44: Forecast Inflation | AC44: 0.03 | AD44: =+AC44 -> 0.03 | AE44: 0.03 | AF44: 0.03 | AG44: 0.03 | AH44: 0.03 | AI44: 0.03 | AJ44: 0.03 | AK44: 0.03 | AL44: 0.03
L45: Regulatory Rate of Return (RRR) [retained for historical purposes only]
E46: Form of price control selected
O47: 4th period
E48: Price caps | I48: 1 | L48: Cost of Debt | O48: =Determination_Lookup!W25 -> 0.03619161598 | Z48: PREMO Assessment Matrix (linked to Regulatory Rate of Return calculation above)
L49: Return on Equity | O49: =Determination_Lookup!W26 -> 0.053 | U49: PREMO Graded Scoring System (for reference only)
E50: Revenue cap / Hybrid Tariff Basket | L50: Gearing | O50: =Determination_Lookup!W27 -> 0.6
L51: Forecast Inflation | O51: =Determination_Lookup!W28 -> 0.023 | AB51: Water business self-assessment
L52: RRR (real) | O52: =Determination_Lookup!W29 -> 0.0429
AB53: Leading | AC53: Advanced | AD53: Standard | AE53: Basic
Z54: ESC assessment of submission | AA54: Leading | AB54: 4.9
U55: Risk | AA55: Advanced | AB55: 4.3 | AC55: 4.5
U56: Engagement | V56: [Select] | AA56: Standard | AB56: 3.7 | AC56: 3.9 | AD56: 4.1
U57: Management | V57: [Select] | AA57: Basic | AD57: 3.5 | AE57: 3.7
U58: Outcomes | V58: [Select]
U60: Total Score | Z60: Water business self-assessment (Maximum allowable ROE) | AD60: Advanced | AE60: =+VLOOKUP(AD60,$AD$71:$AE$75,2,FALSE) -> 4.5
Z62: ROE Override (Must be less than Maximum allowable ROE) | AE62: =+IF(AD62<=AE60,AD62,"CHECK") -> 0
U64: Rating | Z64: ESC assessment of submission | AD64: [Select] | AE64: =IFERROR(IF(AD64=AD60,AE60,VLOOKUP(AD60&AD64,AD78:AE82,2,FALSE)),0) -> 0
AD66: Difference | AE66: =IFERROR(IF(AE64=0,"",AE64-AE60),"") -> 
U70: ESC USE ONLY | AD70: Business self assessment
AD71: [Select]
AD72: Leading | AE72: =+AB54 -> 4.9
AD73: Advanced | AE73: =+AC55 -> 4.5
AD74: Standard | AE74: =+AD56 -> 4.1
AD75: Basic | AE75: =+AE57 -> 3.7
AD77: downgrading
AD78: =AD53&AA57 -> StandardBasic | AE78: =+AD57 -> 3.5
AD79: =+AC53&AA56 -> AdvancedStandard | AE79: =+AC56 -> 3.9
AD80: =+AB53&AA55 -> LeadingAdvanced | AE80: =+AB55 -> 4.3
AD81: =+AB53&AA56 -> LeadingStandard | AE81: =+AB56 -> 3.7
AD82: =+AD60&"Basic" -> AdvancedBasic | AE82: CHECK

Sheet Expenditure_Detail
A1: 80 | B1: Expenditure - Detail
B2: =Model_Name -> Goulburn Valley Water
B3: Go to Table of Contents
L4: FIRST REG PERIOD | P4: SECOND REG PERIOD | U4: THIRD REG PERIOD | Z4: FOURTH REG PERIOD | AE4: FIFTH REG PERIOD | AJ4: SIXTH REG PERIOD
K5: 2006 | L5: 2007 | M5: 2008 | N5: 2009 | O5: 2010 | P5: 2011 | Q5: 2012 | R5: 2013 | S5: 2014 | T5: 2015 | U5: 2016 | V5: 2017 | W5: 2018 | X5: 2019 | Y5: 2020 | Z5: 2021 | AA5: 2022 | AB5: 2023 | AC5: 2024 | AD5: 2025 | AE5: 2026 | AF5: 2027 | AG5: 2028 | AH5: 2029 | AI5: 2030 | AJ5: 2031 | AK5: 2032 | AL5: 2033
B6: $m, 01/01/23 | K6: =+CONCATENATE(K5-1,"-",RIGHT(K5,2)) -> 2005-06 | L6: =+CONCATENATE(L5-1,"-",RIGHT(L5,2)) -> 2006-07 | M6: 2007-08 | N6: 2008-09 | O6: 2009-10 | P6: 2010-11 | Q6: 2011-12 | R6: 2012-13 | S6: 2013-14 | T6: 2014-15 | U6: 2015-16 | V6: 2016-17 | W6: 2017-18 | X6: 2018-19 | Y6: 2019-20 | Z6: 2020-21 | AA6: 2021-22 | AB6: 2022-23 | AC6: 2023-24 | AD6: 2024-25 | AE6: 2025-26 | AF6: 2026-27 | AG6: 2027-28 | AH6: =+CONCATENATE(AH5-1,"-",RIGHT(AH5,2)) -> 2028-29 | AI6: =+CONCATENATE(AI5-1,"-",RIGHT(AI5,2)) -> 2029-30 | AJ6: =+CONCATENATE(AJ5-1,"-",RIGHT(AJ5,2)) -> 2030-31 | AK6: =+CONCATENATE(AK5-1,"-",RIGHT(AK5,2)) -> 2031-32 | AL6: =+CONCATENATE(AL5-1,"-",RIGHT(AL5,2)) -> 2032-33
B8: This worksheet outlines the key cost drivers of operating expenditure - capitalised costs are excluded. This tab does not link to the Rev&RAV_FO worksheet
C11: Expenditure Summary
D13: Total Labour costs | W13: =W34 -> 25.11413756 | X13: 25.49853197 | Y13: 27.05059509 | Z13: 26.33671955 | AA13: 26.39942239 | AB13: 25.927 | AC13: 25.91064574 | AD13: 26.18265765 | AE13: 26.58362336 | AF13: 26.98237771 | AG13: 27.38711338 | AH13: =AH34 -> 27.79792008 | AI13: =AI34 -> 28.21488888 | AJ13: =AJ34 -> 28.63811221 | AK13: =AK34 -> 29.0676839 | AL13: =AL34 -> 29.50369915
D14: Total Energy costs | W14: =W92 -> 5.48541771 | X14: 6.414646301 | Y14: 5.946696348 | Z14: 4.459106558 | AA14: 4.795723583 | AB14: 4.141739491 | AC14: 4.247185942 | AD14: 4.35577732 | AE14: 4.493213325 | AF14: =AF92 -> 4.657890564 | AG14: 4.669261274 | AH14: =AH92 -> 4.739300193 | AI14: =AI92 -> 4.810389696 | AJ14: =AJ92 -> 4.882545542 | AK14: =AK92 -> 4.955783725 | AL14: =AL92 -> 5.030120481
D15: Total IT costs | W15: =W103 -> 4.364347408 | X15: 4.14661003 | Y15: 4.692860898 | Z15: 5.963717248 | AA15: 4.5219501 | AB15: 4.409514008 | AC15: 4.40673257 | AD15: 4.452994781 | AE15: 4.521188706 | AF15: 4.589006537 | AG15: 4.657841635 | AH15: =AH103 -> 4.727709259 | AI15: =AI103 -> 4.798624898 | AJ15: =AJ103 -> 4.870604272 | AK15: =AK103 -> 4.943663336 | AL15: =AL103 -> 5.017818286
D16: Total Chemical costs | W16: =W114 -> 2.675342986 | X16: 1.780374778 | Y16: 2.117484663 | Z16: 2.534318182 | AA16: 3.947145038 | AB16: 2.691 | AC16: 2.689302569 | AD16: 2.71753507 | AE16: 2.759151867 | AF16: 2.800539145 | AG16: 2.842547233 | AH16: =AH114 -> 2.885185441 | AI16: =AI114 -> 2.928463223 | AJ16: =AJ114 -> 2.972390171 | AK16: =AK114 -> 3.016976024 | AL16: =AL114 -> 3.062230664
C21: Labour assumptions
D23: Current FTEs (at 30 June) | W23: 221 | X23: 221.3 | Y23: 228.17 | Z23: 237.51 | AA23: 228.39
D24: Actual and forecast labour costs for current FTEs ($m) | W24: 25.11413756 | X24: 25.49853197 | Y24: 27.05059509 | Z24: 26.33671955 | AA24: 26.39942239 | AB24: 25.927 | AC24: 25.91064574 | AD24: 26.18265765 | AE24: 26.58362336 | AF24: 26.98237771 | AG24: 27.38711338 | AH24: 27.79792008 | AI24: 28.21488888 | AJ24: 28.63811221 | AK24: 29.0676839 | AL24: 29.50369915
D25: Cost per FTE ($000) | W25: =+W24/W23*10^3 -> 113.6386315 | X25: =+X24/X23*10^3 -> 115.2215634 | Y25: =+Y24/Y23*10^3 -> 118.554565 | Z25: =+Z24/Z23*10^3 -> 110.8867818 | AA25: =+AA24/AA23*10^3 -> 115.5892219 | AB25: =+AB24/$AA$23*10^3 -> 113.5207321 | AC25: 113.4491254 | AD25: 114.6401228 | AE25: 116.3957413 | AF25: 118.1416774 | AG25: 119.9138026 | AH25: 121.7125096 | AI25: 123.5381973 | AJ25: 125.3912703 | AK25: 127.2721393 | AL25: 129.1812214
D26: Annual growth in labour costs for current FTEs | X26: =+X25/W25-1 -> 0.01392952257 | Y26: 0.02892689116 | Z26: -0.06467724922 | AA26: 0.04240758001 | AB26: -0.0178951791 | AC26: -0.0006307809083 | AD26: 0.01049807535 | AE26: 0.01531417138 | AF26: 0.015 | AG26: 0.015 | AH26: =+AH25/AG25-1 -> 0.015 | AI26: =+AI25/AH25-1 -> 0.015 | AJ26: =+AJ25/AI25-1 -> 0.015 | AK26: =+AK25/AJ25-1 -> 0.015 | AL26: =+AL25/AK25-1 -> 0.015
D28: Change in FTEs in future periods (net no. annual change)
D29: Increase or decrease in labour costs ($m)
D33: Total FTEs | W33: =+W23 -> 221 | X33: 221.3 | Y33: 228.17 | Z33: 237.51 | AA33: 228.39 | AB33: =+$AA$23+SUM($AB28:AB28) -> 228.39 | AC33: =+$AA$23+SUM($AB28:AC28) -> 228.39 | AD33: =+$AA$23+SUM($AB28:AD28) -> 228.39 | AE33: =+$AA$23+SUM($AB28:AE28) -> 228.39 | AF33: =+$AA$23+SUM($AB28:AF28) -> 228.39 | AG33: =+$AA$23+SUM($AB28:AG28) -> 228.39 | AH33: =+$AA$23+SUM($AB28:AH28) -> 228.39 | AI33: =+$AA$23+SUM($AB28:AI28) -> 228.39 | AJ33: =+$AA$23+SUM($AB28:AJ28) -> 228.39 | AK33: =+$AA$23+SUM($AB28:AK28) -> 228.39 | AL33: =+$AA$23+SUM($AB28:AL28) -> 228.39
D34: Total labour costs ($m) | W34: 25.11413756 | X34: 25.49853197 | Y34: 27.05059509 | Z34: 26.33671955 | AA34: 26.39942239 | AB34: =+AB29+AB24 -> 25.927 | AC34: 25.91064574 | AD34: 26.18265765 | AE34: 26.58362336 | AF34: 26.98237771 | AG34: 27.38711338 | AH34: 27.79792008 | AI34: 28.21488888 | AJ34: 28.63811221 | AK34: 29.0676839 | AL34: 29.50369915
D35: Cost per FTE | W35: =+W34/W33 -> 0.1136386315 | X35: 0.1152215634 | Y35: 0.118554565 | Z35: 0.1108867818 | AA35: 0.1155892219 | AB35: 0.1135207321 | AC35: 0.1134491254 | AD35: 0.1146401228 | AE35: 0.1163957413 | AF35: 0.1181416774 | AG35: 0.1199138026 | AH35: =+AH34/AH33 -> 0.1217125096 | AI35: =+AI34/AI33 -> 0.1235381973 | AJ35: =+AJ34/AJ33 -> 0.1253912703 | AK35: =+AK34/AK33 -> 0.1272721393 | AL35: =+AL34/AL33 -> 0.1291812214
D36: Annual growth in total labour costs | X36: =+X34/W34-1 -> 0.01530589749 | Y36: 0.06086872461 | Z36: -0.02639038201 | AA36: 0.002380814273 | AB36: -0.0178951791 | AC36: -0.0006307809083 | AD36: 0.01049807535 | AE36: 0.01531417138 | AF36: 0.015 | AG36: 0.015 | AH36: =+AH34/AG34-1 -> 0.015 | AI36: 0.015 | AJ36: 0.015 | AK36: 0.015 | AL36: 0.015
D37: Annual growth in total labour costs per FTE | X37: =+X35/W35-1 -> 0.01392952257 | Y37: 0.02892689116 | Z37: -0.06467724922 | AA37: 0.04240758001 | AB37: -0.0178951791 | AC37: -0.0006307809083 | AD37: 0.01049807535 | AE37: 0.01531417138 | AF37: 0.015 | AG37: 0.015 | AH37: 0.015 | AI37: 0.015 | AJ37: 0.015 | AK37: 0.015 | AL37: 0.015
C42: Energy assumptions
D44: Electricity - traditional sources
D46: BASE LOAD
D48: Large sites
D49: Total kWh | W49: 21417392.79 | X49: 21938830.84 | Y49: 22296084.88 | Z49: 18445224.14 | AA49: 18221165.92 | AB49: 18891490.22 | AC49: 19174862.58 | AD49: 19462485.51 | AE49: 19754422.8 | AF49: 20050739.14 | AG49: 20351500.23 | AH49: 20656772.73 | AI49: 20966624.32 | AJ49: 21281123.69 | AK49: 21600340.54 | AL49: 21924345.65
D50: Total electricity costs ($m) | W50: 4.767494031 | X50: 5.607596409 | Y50: 5.223678008 | Z50: 3.822958982 | AA50: 4.272040634 | AB50: 3.636802833 | AC50: 3.729273875 | AD50: 3.824499074 | AE50: 3.945045338 | AF50: 4.089504337 | AG50: 4.099334203 | AH50: 4.160824216 | AI50: 4.223236579 | AJ50: 4.286585128 | AK50: 4.350883905 | AL50: 4.416147163
D51: Average c/kWh | W51: =+W50/W49*100*10^6 -> 22.2599178 | X51: 25.56014242 | Y51: 23.42867834 | Z51: 20.7260099 | AA51: 23.44548452 | AB51: 19.25101085 | AC51: =+AC50/AC49*100*10^6 -> 19.44876455 | AD51: 19.65062001 | AE51: 19.97044094 | AF51: 20.39577847 | AG51: 20.14266348 | AH51: 20.14266348 | AI51: 20.14266348 | AJ51: 20.14266348 | AK51: 20.14266348 | AL51: 20.14266348
D52: % increase p.a. | X52: =+X51/W51-1 -> 0.1482586165 | Y52: =+Y51/X51-1 -> -0.08339014877 | Z52: =+Z51/Y51-1 -> -0.1153572728 | AA52: =+AA51/Z51-1 -> 0.1312107168 | AB52: =+AB51/AA51-1 -> -0.1789032623 | AC52: =+AC51/AB51-1 -> 0.01027237992 | AD52: 0.01037883234 | AE52: 0.01627536053 | AF52: 0.02129835467 | AG52: -0.01241016608 | AH52: 0 | AI52: 0 | AJ52: 0 | AK52: 0 | AL52: 0
D54: Medium sites
D55: Total kWh
D56: Total electricity costs ($m)
D57: Average c/kWh | W57: =+W56/W55*100*10^6 ->  | AC57: =+AC56/AC55*100*10^6 -> 
D58: % increase p.a. | X58: =+X57/W57-1 ->  | Y58: =+Y57/X57-1 ->  | Z58: =+Z57/Y57-1 ->  | AA58: =+AA57/Z57-1 ->  | AB58: =+AB57/AA57-1 ->  | AC58: =+AC57/AB57-1 -> 
D60: Small sites
D61: Total kWh | W61: 2833409.033 | X61: 2733180.348 | Y61: 2678794.99 | Z61: 2607217.659 | AA61: 2339880.399 | AB61: 2223194.291 | AC61: 2256542.205 | AD61: 2290390.338 | AE61: 2324746.194 | AF61: 2359617.386 | AG61: 2395011.647 | AH61: 2430936.822 | AI61: 2467400.874 | AJ61: 2504411.887 | AK61: 2541978.066 | AL61: 2580107.737
D62: Total electricity costs ($m) | W62: 0.7179236784 | X62: 0.807049892 | Y62: 0.72301834 | Z62: 0.6361475763 | AA62: 0.5236829491 | AB62: 0.5049366583 | AC62: 0.517912067 | AD62: 0.5312782463 | AE62: 0.5481679874 | AF62: 0.568386227 | AG62: 0.5699270714 | AH62: 0.5784759774 | AI62: 0.5871531171 | AJ62: 0.5959604138 | AK62: 0.60489982 | AL62: 0.6139733173
D63: Average c/kWh | W63: =+W62/W61*100*10^6 -> 25.3378058 | X63: 29.52786824 | Y63: 26.99043199 | Z63: 24.39948096 | AA63: 22.38075712 | AB63: 22.7122146 | AC63: =+AC62/AC61*100*10^6 -> 22.951579 | AD63: 23.19596959 | AE63: 23.57969179 | AF63: 24.08806743 | AG63: 23.7964217 | AH63: 23.7964217 | AI63: 23.7964217 | AJ63: 23.7964217 | AK63: 23.7964217 | AL63: 23.7964217
D64: % increase p.a. | X64: =+X63/W63-1 -> 0.1653680066 | Y64: =+Y63/X63-1 -> -0.08593360777 | Z64: =+Z63/Y63-1 -> -0.09599516708 | AA64: =+AA63/Z63-1 -> -0.08273634365 | AB64: =+AB63/AA63-1 -> 0.0148099314 | AC64: =+AC63/AB63-1 -> 0.01053901652 | AD64: 0.01064809458 | AE64: 0.01654262413 | AF64: 0.02155989303 | AG64: -0.01210747711 | AH64: 0 | AI64: 0 | AJ64: 0 | AK64: 0 | AL64: 0
D67: NEW PROJECTS
D69: Large sites
D70: Total kWh
D71: Total electricity costs ($m)
D72: Average c/kWh | W72: =+W71/W70*100*10^6 ->  | AC72: =+AC71/AC70*100*10^6 -> 
D73: % increase p.a. | X73: =+X72/W72-1 ->  | Y73: =+Y72/X72-1 ->  | Z73: =+Z72/Y72-1 ->  | AA73: =+AA72/Z72-1 ->  | AB73: =+AB72/AA72-1 ->  | AC73: =+AC72/AB72-1 -> 
D75: Medium sites
D76: Total kWh
D77: Total electricity costs ($m)
D78: Average c/kWh | W78: =+W77/W76*100*10^6 ->  | AC78: =+AC77/AC76*100*10^6 -> 
D79: % increase p.a. | X79: =+X78/W78-1 ->  | Y79: =+Y78/X78-1 ->  | Z79: =+Z78/Y78-1 ->  | AA79: =+AA78/Z78-1 ->  | AB79: =+AB78/AA78-1 ->  | AC79: =+AC78/AB78-1 -> 
D81: Small sites
D82: Total kWh
D83: Total electricity costs ($m)
D84: Average c/kWh | W84: =+W83/W82*100*10^6 ->  | X84: =+X83/X82*100*10^6 ->  | AH84: =+AH83/AH82*100*10^6 ->  | AI84: =+AI83/AI82*100*10^6 ->  | AJ84: =+AJ83/AJ82*100*10^6 ->  | AK84: =+AK83/AK82*100*10^6 ->  | AL84: =+AL83/AL82*100*10^6 -> 
D85: % increase p.a. | X85: =+X84/W84-1 ->  | Y85: =+Y84/X84-1 ->  | Z85: =+Z84/Y84-1 ->  | AA85: =+AA84/Z84-1 ->  | AB85: =+AB84/AA84-1 ->  | AC85: =+AC84/AB84-1 -> 
D88: Greenhouse Gas Offsets
D89: % increase p.a. | X89: =X88/W88-1 ->  | AH89: =AH88/AG88-1 ->  | AI89: =AI88/AH88-1 ->  | AJ89: =AJ88/AI88-1 ->  | AK89: =AK88/AJ88-1 ->  | AL89: =AL88/AK88-1 -> 
D92: TOTAL ENERGY COSTS | W92: =+SUM(W50,W56,W62,W71,W77,W83,W88) -> 5.48541771 | X92: 6.414646301 | Y92: 5.946696348 | Z92: 4.459106558 | AA92: 4.795723583 | AB92: 4.141739491 | AC92: 4.247185942 | AD92: 4.35577732 | AE92: 4.493213325 | AF92: 4.657890564 | AG92: =+SUM(AG50,AG56,AG62,AG71,AG77,AG83,AG88) -> 4.669261274 | AH92: 4.739300193 | AI92: 4.810389696 | AJ92: 4.882545542 | AK92: 4.955783725 | AL92: 5.030120481
D93: % increase p.a. | W93: =W92/V92-1 ->  | X93: 0.1693997869 | Y93: -0.0729502346 | Z93: -0.2501539852 | AA93: 0.07548979158 | AB93: -0.136368179 | AC93: 0.02545946 | AD93: 0.02556784182 | AE93: 0.0315525783 | AF93: 0.03665021605 | AG93: 0.002441171552 | AH93: =AH92/AG92-1 -> 0.015 | AI93: =AI92/AH92-1 -> 0.015 | AJ93: =AJ92/AI92-1 -> 0.015 | AK93: =AK92/AJ92-1 -> 0.015 | AL93: =AL92/AK92-1 -> 0.015
C98: IT cost assumptions
D100: Water related IT costs
D101: Sewerage and trade waste related IT costs
D102: Other IT costs | W102: 4.364347408 | X102: 4.14661003 | Y102: 4.692860898 | Z102: 5.963717248 | AA102: 4.5219501 | AB102: 4.409514008 | AC102: 4.40673257 | AD102: 4.452994781 | AE102: 4.521188706 | AF102: 4.589006537 | AG102: 4.657841635 | AH102: 4.727709259 | AI102: 4.798624898 | AJ102: 4.870604272 | AK102: 4.943663336 | AL102: 5.017818286
D103: Total IT costs | W103: =SUM(W100:W102) -> 4.364347408 | X103: 4.14661003 | Y103: 4.692860898 | Z103: 5.963717248 | AA103: 4.5219501 | AB103: 4.409514008 | AC103: =SUM(AC100:AC102) -> 4.40673257 | AD103: 4.452994781 | AE103: 4.521188706 | AF103: 4.589006537 | AG103: 4.657841635 | AH103: 4.727709259 | AI103: 4.798624898 | AJ103: 4.870604272 | AK103: 4.943663336 | AL103: 5.017818286
D104: % increase p.a. | X104: =X103/W103-1 -> -0.04989001963 | Y104: 0.1317343238 | Z104: 0.2708063113 | AA104: -0.2417564562 | AB104: -0.02486451418 | AC104: -0.0006307809083 | AD104: 0.01049807535 | AE104: 0.01531417138 | AF104: 0.015 | AG104: 0.015 | AH104: =AH103/AG103-1 -> 0.015 | AI104: =AI103/AH103-1 -> 0.015 | AJ104: =AJ103/AI103-1 -> 0.015 | AK104: =AK103/AJ103-1 -> 0.015 | AL104: =AL103/AK103-1 -> 0.015
C109: Chemical cost assumptions
D111: Water related chemical costs | W111: 2.675342986 | X111: 1.780374778 | Y111: 2.117484663 | Z111: 2.534318182 | AA111: 3.947145038 | AB111: 2.691 | AC111: 2.689302569 | AD111: 2.71753507 | AE111: 2.759151867 | AF111: 2.800539145 | AG111: 2.842547233 | AH111: 2.885185441 | AI111: 2.928463223 | AJ111: 2.972390171 | AK111: 3.016976024 | AL111: 3.062230664
D112: Sewerage and trade waste related chemical costs
D113: Other chemical costs
D114: Total chemical costs | W114: =SUM(W111:W113) -> 2.675342986 | X114: 1.780374778 | Y114: 2.117484663 | Z114: 2.534318182 | AA114: 3.947145038 | AB114: 2.691 | AC114: =SUM(AC111:AC113) -> 2.689302569 | AD114: 2.71753507 | AE114: 2.759151867 | AF114: 2.800539145 | AG114: 2.842547233 | AH114: 2.885185441 | AI114: 2.928463223 | AJ114: 2.972390171 | AK114: 3.016976024 | AL114: 3.062230664
D115: % increase p.a. | X115: =X114/W114-1 -> -0.3345246621 | Y115: 0.1893477086 | Z115: 0.1968531469 | AA115: 0.5574780888 | AB115: -0.3182414191 | AC115: -0.0006307809083 | AD115: 0.01049807535 | AE115: 0.01531417138 | AF115: 0.015 | AG115: 0.015 | AH115: =AH114/AG114-1 -> 0.015 | AI115: =AI114/AH114-1 -> 0.015 | AJ115: =AJ114/AI114-1 -> 0.015 | AK115: =AK114/AJ114-1 -> 0.015 | AL115: =AL114/AK114-1 -> 0.015

Sheet Opex_FO
A1: 80 | B1: Operating Expenditure - Forecast
B2: =Model_Name -> Goulburn Valley Water
B3: Go to Table of Contents
L4: FIRST REG PERIOD | P4: SECOND REG PERIOD | U4: THIRD REG PERIOD | Z4: FOURTH REG PERIOD | AE4: FIFTH REG PERIOD | AJ4: SIXTH REG PERIOD
K5: 2006 | L5: 2007 | M5: 2008 | N5: 2009 | O5: 2010 | P5: 2011 | Q5: 2012 | R5: 2013 | S5: 2014 | T5: 2015 | U5: 2016 | V5: 2017 | W5: 2018 | X5: 2019 | Y5: 2020 | Z5: 2021 | AA5: 2022 | AB5: 2023 | AC5: 2024 | AD5: 2025 | AE5: 2026 | AF5: 2027 | AG5: 2028 | AH5: 2029 | AI5: 2030 | AJ5: 2031 | AK5: 2032 | AL5: 2033
B6: =Expenditure_Detail!$B$6 -> $m, 01/01/23 | K6: =+CONCATENATE(K5-1,"-",RIGHT(K5,2)) -> 2005-06 | L6: =+CONCATENATE(L5-1,"-",RIGHT(L5,2)) -> 2006-07 | M6: 2007-08 | N6: 2008-09 | O6: 2009-10 | P6: 2010-11 | Q6: 2011-12 | R6: 2012-13 | S6: 2013-14 | T6: 2014-15 | U6: 2015-16 | V6: 2016-17 | W6: 2017-18 | X6: 2018-19 | Y6: 2019-20 | Z6: 2020-21 | AA6: 2021-22 | AB6: 2022-23 | AC6: 2023-24 | AD6: 2024-25 | AE6: 2025-26 | AF6: 2026-27 | AG6: 2027-28 | AH6: =+CONCATENATE(AH5-1,"-",RIGHT(AH5,2)) -> 2028-29 | AI6: =+CONCATENATE(AI5-1,"-",RIGHT(AI5,2)) -> 2029-30 | AJ6: =+CONCATENATE(AJ5-1,"-",RIGHT(AJ5,2)) -> 2030-31 | AK6: =+CONCATENATE(AK5-1,"-",RIGHT(AK5,2)) -> 2031-32 | AL6: =+CONCATENATE(AL5-1,"-",RIGHT(AL5,2)) -> 2032-33
C9: Parameters | G9: 4th period | I9: 5th period
D11: Cost efficiency improvement rate (% per annum) | G11: =Determination_Lookup!X33 -> 0.031 | I11: =IFERROR(AVERAGE(AC11:AG11),"-") -> 0.003963706835 | AC11: 0.01563078091 | AD11: 0.004501924647 | AE11: -0.0003141713802 | AF11: 0 | AG11: 0 | AH11: 0 | AI11: 0 | AJ11: 0 | AK11: 0 | AL11: 0
D13: Customer growth forecast (% per annum) | G13: =Determination_Lookup!X34 -> 0.0132 | I13: =IFERROR(AVERAGE(AC13:AG13),"-") -> 0.015 | Y13: =IF(Y15="","",Y15/X15-1) -> 0.01310946402 | Z13: =IF(Z15="","",Z15/Y15-1) -> 0.003666285108 | AA13: =IF(AA15="","",AA15/Z15-1) -> 0.02912396694 | AB13: 0.015 | AC13: 0.015 | AD13: 0.015 | AE13: 0.015 | AF13: 0.015 | AG13: 0.015 | AH13: 0.015 | AI13: 0.015 | AJ13: 0.015 | AK13: 0.015 | AL13: 0.015
F14: Net baseline opex growth | G14: =IFERROR(G13-G11,"-") -> -0.0178 | I14: =IFERROR(I13-I11,"-") -> 0.01103629316
D15: Water customers (No.) - Residential & Non-Residential - [BED 1] | W15: =+Determination_Lookup!M20 -> 58662 | X15: =+Determination_Lookup!N20 -> 59499 | Y15: =+Determination_Lookup!O20 -> 60279 | Z15: 60500 | AA15: 62262 | AB15: =+AA$15*(1+AB$13) -> 63195.93 | AC15: 64143.86895 | AD15: 65106.02698 | AE15: 66082.61739 | AF15: 67073.85665 | AG15: 68079.9645 | AH15: =+AG$15*(1+AH$13) -> 69101.16397 | AI15: =+AH$15*(1+AI$13) -> 70137.68143 | AJ15: =+AI$15*(1+AJ$13) -> 71189.74665 | AK15: =+AJ$15*(1+AK$13) -> 72257.59285 | AL15: =+AK$15*(1+AL$13) -> 73341.45674
D17: Sewer customers (No.) - Residential & Non-Residential - [BED 2] | W17: =+Determination_Lookup!M21 -> 51667 | X17: =+Determination_Lookup!N21 -> 52492 | Y17: =+Determination_Lookup!O21 -> 53206 | Z17: 53600 | AA17: 55021 | AB17: =+AA$17*(1+AB$13) -> 55846.315 | AC17: 56684.00972 | AD17: 57534.26987 | AE17: 58397.28392 | AF17: 59273.24318 | AG17: 60162.34183 | AH17: =+AG$17*(1+AH$13) -> 61064.77695 | AI17: =+AH$17*(1+AI$13) -> 61980.74861 | AJ17: =+AI$17*(1+AJ$13) -> 62910.45984 | AK17: =+AJ$17*(1+AK$13) -> 63854.11673 | AL17: =+AK$17*(1+AL$13) -> 64811.92848
D19: Total metered volume of water delivered to customers (ML) - [BED 10] | W19: =+Determination_Lookup!M22 -> 24037 | X19: =+Determination_Lookup!N22 -> 26296 | Y19: =+Determination_Lookup!O22 -> 25546 | Z19: 25639.65892 | AA19: 24409.58846 | AB19: 24188.58282 | AC19: 26419.12727 | AD19: 26627.95843 | AE19: 26840.00847 | AF19: 27057.08719 | AG19: 27279.5294 | AH19: 27506.39904 | AI19: 27737.81909 | AJ19: 27973.91677 | AK19: 28210.57365 | AL19: 28460.20208
D20: Residential, Non-Residential & Recycled (Residential & Non-Residential)
C24: Baseline Forecast
D26: Baseline year - total prescribed operating expenditure in 2021-22: | AA26: =+Opex_Breakdown!AA37 -> 61.96664784
D28: Less non-controllable expenditure items incurred in 2021-22:
E29: External bulk water charges (excl. temporary purchases) | AA29: =+Opex_Breakdown!AA29 -> 1.070512877
E30: External temporary water purchases | AA30: =+Opex_Breakdown!AA30 -> 0 | AC30: Comparison with approved 2021-22 total controllable opex
E31: Licence fees | AA31: =+Opex_Breakdown!AA31 -> 0.2512626845 | AC31: per 2018 determination model
E32: Environment Contribution | AA32: =+Opex_Breakdown!AA32 -> 3.940839695
E33: Other non-controllable | AA33: =+Opex_Breakdown!AA33 -> 0
AA34: =SUM(AA29:AA33) -> 5.262615256 | AD34: 2021-22 | AE34: Difference | AF34: %
D36: Baseline year - total controllable operating expenditure in 2021-22: | AA36: =+AA26-AA34 -> 56.70403258 | AD36: =Determination_Lookup!Q18 -> 46.80420776 | AE36: =+AA52-AD36 -> 5.329824824 | AF36: =+AE36/AD36 -> 0.1138749074
D38: Adjustments for non-recurring expenditure items incurred in 2021-22 and any efficiency savings to be realised from 2021-22: | AC38: ($, 2022-23)
D40: 1 | E40: Labour | AA40: -0.56
D41: 2 | E41: Maintenance | AA41: -0.16
D42: 3 | E42: Chemicals | AA42: 1.05
D43: 4 | E43: Pricing Submission & UWS | AA43: 1
D44: 5 | E44: Capital write off | AA44: 0.24
D45: 6 | E45: Software as a Service write off | AA45: 3
D46: 7
D47: 8
D48: 9
D49: 10
AA50: =SUM(AA40:AA49) -> 4.57
D52: Adjusted baseline controllable operating expenditure (2021-22) | AA52: =+AA36-AA50 -> 52.13403258
D54: Adjusted baseline controllable operating expenditure (Forecast) | AB54: =+AA52*(1+$AB$13-$G$11) -> 51.29988806 | AC54: =+AB$54*(1+AC$13-AC$11) -> 51.26752907 | AD54: 51.80573946 | AE54: 52.59910143 | AF54: 53.38808795 | AG54: 54.18890927 | AH54: 55.00174291 | AI54: 55.82676905 | AJ54: 56.66417059 | AK54: 57.51413315 | AL54: 58.37684514
C58: Operating expenditure - reconciliation
D61: Adjusted baseline controllable operating expenditure (Forecast) | AC61: =+AC54 -> 51.26752907 | AD61: 51.80573946 | AE61: 52.59910143 | AF61: 53.38808795 | AG61: 54.18890927 | AH61: 55.00174291 | AI61: 55.82676905 | AJ61: 56.66417059 | AK61: 57.51413315 | AL61: 58.37684514
H62: Controllable
D63: Forecast variations to baseline operating expenditure (above or below baseline) | H63: only
D65: 1 | E65: Pricing Submission & UWS | H65: Water | AE65: 0.125 | AF65: 0.4 | AJ65: 0.125 | AK65: 0.4
D66: 2 | E66: Pricing Submission & UWS | H66: Sewerage | AE66: 0.125 | AF66: 0.4 | AJ66: 0.125 | AK66: 0.4
D67: 3 | E67: Sludge management | H67: Sewerage | AC67: 0.12 | AD67: 0.155 | AE67: 0.17 | AF67: 1.04 | AG67: 0.382 | AH67: 0.16 | AI67: 0.15 | AJ67: 0.16 | AK67: 0.15 | AL67: 0.15
D68: 4 | E68: Planning Climate Resilience Strategy | H68: Water | AC68: 0.0465 | AD68: 0.0145 | AE68: 0.0605 | AF68: 0.0485 | AG68: 0.072 | AH68: 0.0475 | AI68: 0.0475 | AJ68: 0.0475 | AK68: 0.0475 | AL68: 0.0475
D69: 5 | E69: Planning Climate Resilience Strategy | H69: Sewerage | AC69: 0.0465 | AD69: 0.0145 | AE69: 0.0605 | AF69: 0.0485 | AG69: 0.072 | AH69: 0.0475 | AI69: 0.0475 | AJ69: 0.0475 | AK69: 0.0475 | AL69: 0.0475
D70: 6 | E70: Digital Strategy (including benefits) | H70: Water | AC70: 0.266 | AD70: 0.3655 | AE70: 0.154 | AF70: 0.3075 | AG70: 0.2925 | AH70: 0.3175 | AI70: 0.3175 | AJ70: 0.2825 | AK70: 0.042 | AL70: 0.4425
D71: 7 | E71: Digital Strategy (including benefits) | H71: Sewerage | AC71: 0.266 | AD71: 0.3655 | AE71: 0.154 | AF71: 0.3075 | AG71: 0.2925 | AH71: 0.3175 | AI71: 0.3175 | AJ71: 0.2825 | AK71: 0.042 | AL71: 0.4425
D72: 8 | E72: Power & Energy | H72: Water | AC72: -0.3465 | AD72: -0.3015 | AE72: -0.2425 | AF72: -0.171 | AG72: -0.1755 | AH72: -0.1755 | AI72: -0.1755 | AJ72: -0.1755 | AK72: -0.1755 | AL72: -0.1755
D73: 9 | E73: Power & Energy | H73: Sewerage | AC73: -0.3465 | AD73: -0.3015 | AE73: -0.2425 | AF73: -0.171 | AG73: -0.1755 | AH73: -0.1755 | AI73: -0.1755 | AJ73: -0.1755 | AK73: -0.1755 | AL73: -0.1755
D74: 10 | E74: Solar program | H74: Water | AE74: 0.1875 | AF74: 0.1875 | AG74: 0.1875 | AH74: 0.1875 | AI74: 0.1875 | AJ74: 0.1875 | AK74: 0.1875 | AL74: 0.1875
D75: 11 | E75: Solar program | H75: Sewerage | AE75: 0.1875 | AF75: 0.1875 | AG75: 0.1875 | AH75: 0.1875 | AI75: 0.1875 | AJ75: 0.1875 | AK75: 0.1875 | AL75: 0.1875
D76: 12 | E76: Customer Willingness to Pay Projects | H76: Water | AC76: 0.9 | AD76: 0.9 | AE76: 0.9 | AF76: 0.9 | AG76: 0.9 | AH76: 0.9 | AI76: 0.9 | AJ76: 0.9 | AK76: 0.9 | AL76: 0.9
D77: 13 | E77: Customer Willingness to Pay Projects | H77: Sewerage | AC77: 0.9 | AD77: 0.9 | AE77: 0.9 | AF77: 0.9 | AG77: 0.9 | AH77: 0.9 | AI77: 0.9 | AJ77: 0.9 | AK77: 0.9 | AL77: 0.9
D78: 14 | H78: [Service]
D79: 15 | H79: [Service]
D81: Total changes required to baseline operating expenditure | AC81: =SUM(AC65:AC80) -> 1.852 | AD81: 2.112 | AE81: 2.539 | AF81: 4.385 | AG81: 2.935 | AH81: 2.714 | AI81: 2.704 | AJ81: 2.894 | AK81: 2.953 | AL81: 2.954
D84: Total controllable operating expenditure | AC84: =+AC81+AC61 -> 53.11952907 | AD84: 53.91773946 | AE84: 55.13810143 | AF84: 57.77308795 | AG84: 57.12390927 | AH84: 57.71574291 | AI84: 58.53076905 | AJ84: 59.55817059 | AK84: 60.46713315 | AL84: 61.33084514
D86: Non-controllable operating expenditure
D87: External bulk water charges (excl. temporary purchases) | AC87: =+Opex_Breakdown!AC29 -> 1.055333775 | AD87: =+Opex_Breakdown!AD29 -> 1.066412749 | AE87: =+Opex_Breakdown!AE29 -> 1.082743977 | AF87: =+Opex_Breakdown!AF29 -> 1.098985136 | AG87: =+Opex_Breakdown!AG29 -> 1.115469913 | AH87: =+Opex_Breakdown!AH29 -> 1.132201962 | AI87: =+Opex_Breakdown!AI29 -> 1.149184991 | AJ87: =+Opex_Breakdown!AJ29 -> 1.166422766 | AK87: =+Opex_Breakdown!AK29 -> 1.183919108 | AL87: =+Opex_Breakdown!AL29 -> 1.201677894
D88: External temporary water purchases | AC88: =+Opex_Breakdown!AC30 -> 0 | AD88: =+Opex_Breakdown!AD30 -> 0 | AE88: =+Opex_Breakdown!AE30 -> 0 | AF88: =+Opex_Breakdown!AF30 -> 0 | AG88: =+Opex_Breakdown!AG30 -> 0 | AH88: =+Opex_Breakdown!AH30 -> 0 | AI88: =+Opex_Breakdown!AI30 -> 0 | AJ88: =+Opex_Breakdown!AJ30 -> 0 | AK88: =+Opex_Breakdown!AK30 -> 0 | AL88: =+Opex_Breakdown!AL30 -> 0
D89: Licence fees | AC89: =+Opex_Breakdown!AC31 -> 0.18699996 | AD89: =+Opex_Breakdown!AD31 -> 0.18699996 | AE89: =+Opex_Breakdown!AE31 -> 0.18699996 | AF89: =+Opex_Breakdown!AF31 -> 0.18699996 | AG89: =+Opex_Breakdown!AG31 -> 0.18699996 | AH89: =+Opex_Breakdown!AH31 -> 0.18699996 | AI89: =+Opex_Breakdown!AI31 -> 0.18699996 | AJ89: =+Opex_Breakdown!AJ31 -> 0.18699996 | AK89: =+Opex_Breakdown!AK31 -> 0.18699996 | AL89: =+Opex_Breakdown!AL31 -> 0.18699996
D90: Environment Contribution | AC90: =+Opex_Breakdown!AC32 -> 3.75 | AD90: =+Opex_Breakdown!AD32 -> 3.75 | AE90: =+Opex_Breakdown!AE32 -> 3.75 | AF90: =+Opex_Breakdown!AF32 -> 3.75 | AG90: =+Opex_Breakdown!AG32 -> 3.75 | AH90: =+Opex_Breakdown!AH32 -> 3.75 | AI90: =+Opex_Breakdown!AI32 -> 3.75 | AJ90: =+Opex_Breakdown!AJ32 -> 3.75 | AK90: =+Opex_Breakdown!AK32 -> 3.75 | AL90: =+Opex_Breakdown!AL32 -> 3.75
D91: Other non-controllable | AC91: =+Opex_Breakdown!AC33 -> 0 | AD91: =+Opex_Breakdown!AD33 -> 0 | AE91: =+Opex_Breakdown!AE33 -> 0 | AF91: =+Opex_Breakdown!AF33 -> 0 | AG91: =+Opex_Breakdown!AG33 -> 0 | AH91: =+Opex_Breakdown!AH33 -> 0 | AI91: =+Opex_Breakdown!AI33 -> 0 | AJ91: =+Opex_Breakdown!AJ33 -> 0 | AK91: =+Opex_Breakdown!AK33 -> 0 | AL91: =+Opex_Breakdown!AL33 -> 0
D92: Total non-controllable operating expenditure | AC92: =SUM(AC87:AC91) -> 4.992333735 | AD92: 5.003412709 | AE92: 5.019743937 | AF92: 5.035985096 | AG92: 5.052469873 | AH92: =SUM(AH87:AH91) -> 5.069201922 | AI92: =SUM(AI87:AI91) -> 5.086184951 | AJ92: =SUM(AJ87:AJ91) -> 5.103422726 | AK92: =SUM(AK87:AK91) -> 5.120919068 | AL92: =SUM(AL87:AL91) -> 5.138677854
D95: Total prescribed operating expenditure | AC95: =+AC92+AC84 -> 58.11186281 | AD95: 58.92115217 | AE95: 60.15784537 | AF95: 62.80907305 | AG95: 62.17637914 | AH95: 62.78494483 | AI95: 63.616954 | AJ95: 64.66159331 | AK95: 65.58805221 | AL95: 66.469523
AB98: To reconcile to 'Opex_Breakdown' tab row 37 >> | AC98: =+Opex_Breakdown!AC37 -> 58.10515925 | AD98: =+Opex_Breakdown!AD37 -> 58.92448322 | AE98: =+Opex_Breakdown!AE37 -> 60.15822743 | AF98: =+Opex_Breakdown!AF37 -> 62.80650584 | AG98: =+Opex_Breakdown!AG37 -> 62.17986343 | AH98: =+Opex_Breakdown!AH37 -> 62.77848138 | AI98: =+Opex_Breakdown!AI37 -> 63.6205436 | AJ98: =+Opex_Breakdown!AJ37 -> 64.65523676 | AK98: =+Opex_Breakdown!AK37 -> 65.59175031 | AL98: =+Opex_Breakdown!AL37 -> 66.47327656
AB99: Difference | AC99: =+AC98-AC95 -> -0.006703556033 | AD99: 0.003331050285 | AE99: 0.0003820625595 | AF99: -0.002567206502 | AG99: 0.0034842854 | AH99: -0.006463450319 | AI99: 0.003589597927 | AJ99: -0.006356558105 | AK99: 0.003698093524 | AL99: 0.003753564927
AB100: Test | AC100: =IF(ROUND(AC98,2)=ROUND(AC95,2),0,1) -> 0 | AD100: =IF(ROUND(AD98,2)=ROUND(AD95,2),0,1) -> 0 | AE100: 0 | AF100: 0 | AG100: 0 | AH100: 0 | AI100: 0 | AJ100: 0 | AK100: 0 | AL100: 0
AC139: =+AC$160 -> 2023-24 | AD139: 2024-25 | AE139: 2025-26 | AF139: 2026-27 | AG139: 2027-28 | AH139: 2028-29 | AI139: 2029-30 | AJ139: 2030-31 | AK139: 2031-32 | AL139: 2032-33
AB140: Total controllable opex | AC140: =+AC84 -> 53.11952907 | AD140: 53.91773946 | AE140: 55.13810143 | AF140: 57.77308795 | AG140: 57.12390927 | AH140: 57.71574291 | AI140: 58.53076905 | AJ140: 59.55817059 | AK140: 60.46713315 | AL140: 61.33084514
AB141: Change - $ | AD141: =+AD140-AC140 -> 0.7982103834 | AE141: 1.220361973 | AF141: 2.634986521 | AG141: -0.6491786807 | AH141: 0.591833639 | AI141: 0.8150261436 | AJ141: 1.027401536 | AK141: 0.9089625588 | AL141: 0.8637119972
AB142: Change - % | AC142: =IFERROR(AC141/AB140,"") ->  | AD142: 0.01502668411 | AE142: 0.0226337748 | AF142: 0.04778885114 | AG142: -0.01123669694 | AH142: 0.01036052411 | AI142: 0.01412138357 | AJ142: 0.01755318702 | AK142: 0.01526176089 | AL142: 0.01428399119
AC144: =+AC$160 -> 2023-24 | AD144: 2024-25 | AE144: 2025-26 | AF144: 2026-27 | AG144: 2027-28 | AH144: 2028-29 | AI144: 2029-30 | AJ144: 2030-31 | AK144: 2031-32 | AL144: 2032-33
AB145: Total non-controllable opex | AC145: =+AC92 -> 4.992333735 | AD145: 5.003412709 | AE145: 5.019743937 | AF145: 5.035985096 | AG145: 5.052469873 | AH145: 5.069201922 | AI145: 5.086184951 | AJ145: 5.103422726 | AK145: 5.120919068 | AL145: 5.138677854
AB146: Change - $ | AD146: =+AD145-AC145 -> 0.0110789735 | AE146: 0.0163312276 | AF146: 0.01624115965 | AG146: 0.01648477704 | AH146: 0.0167320487 | AI146: 0.01698302943 | AJ146: 0.01723777487 | AK146: 0.01749634149 | AL146: 0.01775878662
AB147: Change - % | AC147: =IFERROR(AC146/AB145,"") ->  | AD147: 0.00221919729 | AE147: 0.003264017691 | AF147: 0.003235455803 | AG147: 0.003273396709 | AH147: 0.003311657292 | AI147: 0.003350237314 | AJ147: 0.003389136462 | AK147: 0.003428354348 | AL147: 0.003467890506
AC149: =+AC$160 -> 2023-24 | AD149: 2024-25 | AE149: 2025-26 | AF149: 2026-27 | AG149: 2027-28 | AH149: 2028-29 | AI149: 2029-30 | AJ149: 2030-31 | AK149: 2031-32 | AL149: 2032-33
AB150: Total prescribed opex | AC150: =+AC140+AC145 -> 58.11186281 | AD150: 58.92115217 | AE150: 60.15784537 | AF150: 62.80907305 | AG150: 62.17637914 | AH150: 62.78494483 | AI150: 63.616954 | AJ150: 64.66159331 | AK150: 65.58805221 | AL150: 66.469523
AB151: Change - $ | AD151: =+AD150-AC150 -> 0.8092893569 | AE151: 1.2366932 | AF151: 2.651227681 | AG151: -0.6326939037 | AH151: 0.6085656877 | AI151: 0.8320091731 | AJ151: 1.044639311 | AK151: 0.9264589003 | AL151: 0.8814707838
AB152: Change - % | AC152: =IFERROR(AC151/AB150,"") ->  | AD152: 0.01392640535 | AE152: 0.02098895141 | AF152: 0.04407118747 | AG152: -0.01007328835 | AH152: 0.009787731227 | AI152: 0.01325173057 | AJ152: 0.01642076907 | AK152: 0.0143278081 | AL152: 0.01343950238
AB155: Controllable vs. Non-controllable opex - % | AC155: =+AC$160 -> 2023-24 | AD155: 2024-25 | AE155: 2025-26 | AF155: 2026-27 | AG155: 2027-28 | AH155: 2028-29 | AI155: 2029-30 | AJ155: 2030-31 | AK155: 2031-32 | AL155: 2032-33
AB156: Controllable opex - % | AC156: =+AC84/AC95 -> 0.9140909705 | AD156: 0.9150829112 | AE156: 0.9165571189 | AF156: 0.9198207384 | AG156: 0.9187397217 | AH156: 0.9192608684 | AI156: 0.920049851 | AJ156: 0.9210748999 | AK156: 0.9219229891 | AL156: 0.9226912181
AB157: Non-controllable opex - % | AC157: =+AC92/AC95 -> 0.08590902948 | AD157: 0.08491708877 | AE157: 0.08344288107 | AF157: 0.08017926156 | AG157: 0.08126027831 | AH157: 0.08073913158 | AI157: 0.079950149 | AJ157: 0.07892510012 | AK157: 0.0780770109 | AL157: 0.07730878187
AC158: =SUM(AC156:AC157) -> 1 | AD158: 1 | AE158: 1 | AF158: 1 | AG158: 1 | AH158: 1 | AI158: 1 | AJ158: 1 | AK158: 1 | AL158: 1
AA160: =+AA6 -> 2021-22 | AB160: 2022-23 | AC160: 2023-24 | AD160: 2024-25 | AE160: 2025-26 | AF160: 2026-27 | AG160: 2027-28 | AH160: =+AH6 -> 2028-29 | AI160: =+AI6 -> 2029-30 | AJ160: =+AJ6 -> 2030-31 | AK160: =+AK6 -> 2031-32 | AL160: =+AL6 -> 2032-33
Y161: Fourth reg period opex | Z161: Third Reg period Opex | AA161: =+AA169-SUM(AA162:AA168) -> 61.96664784 | AB161: =+AB169-SUM(AB162:AB168) -> 57.34815337
Z162: Adjusted baseline opex | AC162: =+AC61 -> 51.26752907 | AD162: 51.80573946 | AE162: 52.59910143 | AF162: 53.38808795 | AG162: 54.18890927 | AH162: 55.00174291 | AI162: 55.82676905 | AJ162: 56.66417059 | AK162: 57.51413315 | AL162: 58.37684514
Z163: Forecast variations to baseline operating expenditure | AC163: =+AC81 -> 1.852 | AD163: 2.112 | AE163: 2.539 | AF163: 4.385 | AG163: 2.935 | AH163: 2.714 | AI163: 2.704 | AJ163: 2.894 | AK163: 2.953 | AL163: 2.954
Z164: Licence fees | AA164: =+AA193 -> 0 | AB164: =+AB193 -> 0 | AC164: =+AC89 -> 0.18699996 | AD164: 0.18699996 | AE164: 0.18699996 | AF164: 0.18699996 | AG164: 0.18699996 | AH164: =+AH89 -> 0.18699996 | AI164: 0.18699996 | AJ164: 0.18699996 | AK164: 0.18699996 | AL164: 0.18699996
Z165: Environment Contribution | AA165: =+AA194 -> 0 | AB165: =+AB194 -> 0 | AC165: =+AC90 -> 3.75 | AD165: 3.75 | AE165: 3.75 | AF165: 3.75 | AG165: 3.75 | AH165: 3.75 | AI165: 3.75 | AJ165: 3.75 | AK165: 3.75 | AL165: 3.75
Z166: External bulk water charges | AA166: =+AA191 -> 0 | AB166: =+AB191 -> 0 | AC166: =+AC87 -> 1.055333775 | AD166: 1.066412749 | AE166: 1.082743977 | AF166: 1.098985136 | AG166: 1.115469913 | AH166: =+AH87 -> 1.132201962 | AI166: 1.149184991 | AJ166: 1.166422766 | AK166: 1.183919108 | AL166: 1.201677894
Z167: External temporary water purchases | AA167: =+AA192 -> 0 | AB167: =+AB192 -> 0 | AC167: =+AC88 -> 0 | AD167: 0 | AE167: 0 | AF167: 0 | AG167: 0 | AH167: 0 | AI167: 0 | AJ167: 0 | AK167: 0 | AL167: 0
Z168: Other non-controllable | AA168: =+AA195 -> 0 | AB168: =+AB195 -> 0 | AC168: =+AC91 -> 0 | AD168: 0 | AE168: 0 | AF168: 0 | AG168: 0 | AH168: =+AH91 -> 0 | AI168: =+AI91 -> 0 | AJ168: =+AJ91 -> 0 | AK168: =+AK91 -> 0 | AL168: =+AL91 -> 0
Z169: Total prescribed opex | AA169: =+Opex_Breakdown!AA37 -> 61.96664784 | AB169: =+Opex_Breakdown!AB37 -> 57.34815337 | AC169: =SUM(AC162:AC168) -> 58.11186281 | AD169: 58.92115217 | AE169: 60.15784537 | AF169: 62.80907305 | AG169: 62.17637914 | AH169: =SUM(AH162:AH168) -> 62.78494483 | AI169: =SUM(AI162:AI168) -> 63.616954 | AJ169: =SUM(AJ162:AJ168) -> 64.66159331 | AK169: =SUM(AK162:AK168) -> 65.58805221 | AL169: =SUM(AL162:AL168) -> 66.469523
AC171: =+AC$160 -> 2023-24 | AD171: 2024-25 | AE171: 2025-26 | AF171: 2026-27 | AG171: 2027-28 | AH171: 2028-29 | AI171: 2029-30 | AJ171: 2030-31 | AK171: 2031-32 | AL171: 2032-33
AB172: Adjusted baseline opex | AC172: =+AC162/AC$169 -> 0.8822214019 | AD172: 0.8792383983 | AE172: 0.874351485 | AF172: 0.8500059842 | AG172: 0.8715353003 | AH172: 0.876033945 | AI172: 0.8775454582 | AJ172: 0.8763188113 | AK172: 0.876899545 | AL172: 0.878249798
AB173: Forecast variations to baseline operating expenditure | AC173: =+AC163/AC$169 -> 0.03186956863 | AD173: 0.03584451292 | AE173: 0.04220563394 | AF173: 0.06981475426 | AG173: 0.04720442136 | AH173: 0.04322692339 | AI173: 0.04250439277 | AJ173: 0.04475608861 | AK173: 0.04502344406 | AL173: 0.04444142017
AB174: Licence fees | AC174: =+AC164/AC$169 -> 0.003217930917 | AD174: 0.003173732236 | AE174: 0.003108488325 | AF174: 0.002977276227 | AG174: 0.00300757237 | AH174: 0.002978420392 | AI174: 0.002939467363 | AJ174: 0.002891978846 | AK174: 0.002851128425 | AL174: 0.00281331882
AB175: Environment Contribution | AC175: =+AC165/AC$169 -> 0.06453071402 | AD175: 0.06364437663 | AE175: 0.06233600916 | AF175: 0.05970474994 | AG175: 0.06031229306 | AH175: 0.05972769444 | AI175: 0.05894655063 | AJ175: 0.0579942406 | AK175: 0.05717504749 | AL175: 0.05641683332
AB176: External bulk water charges (excl. temporary purchases) | AC176: =+AC166/AC$169 -> 0.01816038455 | AD176: 0.0180989799 | AE176: 0.01799838358 | AF176: 0.0174972354 | AG176: 0.01794041288 | AH176: 0.01803301675 | AI176: 0.01806413101 | AJ176: 0.01803888068 | AK176: 0.01805083499 | AL176: 0.01807862973
AB177: External temporary water purchases | AC177: =+AC167/AC$169 -> 0 | AD177: 0 | AE177: 0 | AF177: 0 | AG177: 0 | AH177: 0 | AI177: 0 | AJ177: 0 | AK177: 0 | AL177: 0
AB178: Other non-controllable | AC178: =+AC168/AC$169 -> 0 | AD178: 0 | AE178: 0 | AF178: 0 | AG178: 0 | AH178: 0 | AI178: 0 | AJ178: 0 | AK178: 0 | AL178: 0
AB179: Total prescribed opex | AC179: =+AC169/AC$169 -> 1 | AD179: 1 | AE179: 1 | AF179: 1 | AG179: 1 | AH179: 1 | AI179: 1 | AJ179: 1 | AK179: 1 | AL179: 1
AC181: =+AC$160 -> 2023-24 | AD181: 2024-25 | AE181: 2025-26 | AF181: 2026-27 | AG181: 2027-28 | AH181: 2028-29 | AI181: 2029-30 | AJ181: 2030-31 | AK181: 2031-32 | AL181: 2032-33
AB182: Water | AC182: =+SUMIF($H$65:$H$80,$AB182,AC$65:AC$80) -> 0.866 | AD182: =+SUMIF($H$65:$H$80,$AB182,AD$65:AD$80) -> 0.9785 | AE182: 1.1845 | AF182: 1.6725 | AG182: 1.2765 | AH182: 1.277 | AI182: 1.277 | AJ182: 1.367 | AK182: 1.4015 | AL182: 1.402
AB183: Sewerage | AC183: 0.986 | AD183: 1.1335 | AE183: 1.3545 | AF183: 2.7125 | AG183: 1.6585 | AH183: 1.437 | AI183: 1.427 | AJ183: 1.527 | AK183: 1.5515 | AL183: 1.552
AB184: Recycled Water | AC184: 0 | AD184: 0 | AE184: 0 | AF184: 0 | AG184: 0 | AH184: 0 | AI184: 0 | AJ184: 0 | AK184: 0 | AL184: 0
AB185: Rural water | AC185: 0 | AD185: 0 | AE185: 0 | AF185: 0 | AG185: 0 | AH185: 0 | AI185: 0 | AJ185: 0 | AK185: 0 | AL185: 0
AB186: Bulk Water | AC186: 0 | AD186: 0 | AE186: 0 | AF186: 0 | AG186: 0 | AH186: 0 | AI186: 0 | AJ186: 0 | AK186: 0 | AL186: 0
AB187: Forecast variations to baseline operating expenditure | AC187: =SUM(AC182:AC186) -> 1.852 | AD187: 2.112 | AE187: 2.539 | AF187: 4.385 | AG187: 2.935 | AH187: 2.714 | AI187: 2.704 | AJ187: 2.894 | AK187: 2.953 | AL187: 2.954
AA190: =+AA6 -> 2021-22 | AB190: 2022-23 | AC190: 2023-24 | AD190: 2024-25 | AE190: 2025-26 | AF190: 2026-27 | AG190: 2027-28 | AH190: =+AH6 -> 2028-29 | AI190: =+AI6 -> 2029-30 | AJ190: =+AJ6 -> 2030-31 | AK190: =+AK6 -> 2031-32 | AL190: =+AL6 -> 2032-33
Z191: External bulk water charges (excl. temporary purchases) | AA191: =+AA87 -> 0 | AB191: 0 | AC191: 1.055333775 | AD191: 1.066412749 | AE191: 1.082743977 | AF191: 1.098985136 | AG191: 1.115469913 | AH191: =+AH87 -> 1.132201962 | AI191: 1.149184991 | AJ191: 1.166422766 | AK191: 1.183919108 | AL191: 1.201677894
Z192: External temporary water purchases | AA192: =+AA88 -> 0 | AB192: 0 | AC192: 0 | AD192: 0 | AE192: 0 | AF192: 0 | AG192: 0 | AH192: 0 | AI192: 0 | AJ192: 0 | AK192: 0 | AL192: 0
Z193: Licence fees | AA193: =+AA89 -> 0 | AB193: 0 | AC193: 0.18699996 | AD193: 0.18699996 | AE193: 0.18699996 | AF193: 0.18699996 | AG193: 0.18699996 | AH193: 0.18699996 | AI193: 0.18699996 | AJ193: 0.18699996 | AK193: 0.18699996 | AL193: 0.18699996
Z194: Environment Contribution | AA194: =+AA90 -> 0 | AB194: 0 | AC194: 3.75 | AD194: 3.75 | AE194: 3.75 | AF194: 3.75 | AG194: 3.75 | AH194: 3.75 | AI194: 3.75 | AJ194: 3.75 | AK194: 3.75 | AL194: 3.75
Z195: Other non-controllable | AA195: =+AA91 -> 0 | AB195: 0 | AC195: 0 | AD195: 0 | AE195: 0 | AF195: 0 | AG195: 0 | AH195: 0 | AI195: 0 | AJ195: 0 | AK195: 0 | AL195: 0
Z196: Total Non-controllable operating expenditure | AA196: =SUM(AA191:AA195) -> 0 | AB196: 0 | AC196: 4.992333735 | AD196: 5.003412709 | AE196: 5.019743937 | AF196: 5.035985096 | AG196: 5.052469873 | AH196: =SUM(AH191:AH195) -> 5.069201922 | AI196: =SUM(AI191:AI195) -> 5.086184951 | AJ196: =SUM(AJ191:AJ195) -> 5.103422726 | AK196: =SUM(AK191:AK195) -> 5.120919068 | AL196: =SUM(AL191:AL195) -> 5.138677854
AB198: Check | AC198: =IF(ROUND(AC169,2)=ROUND(AC95,2),0,1) -> 0 | AD198: =IF(ROUND(AD169,2)=ROUND(AD95,2),0,1) -> 0 | AE198: 0 | AF198: 0 | AG198: 0 | AH198: 0 | AI198: 0 | AJ198: 0 | AK198: 0 | AL198: 0
AC199: =IF(ROUND(AC187,2)=ROUND(AC163,2),0,1) -> 0 | AD199: =IF(ROUND(AD187,2)=ROUND(AD163,2),0,1) -> 0 | AE199: 0 | AF199: 0 | AG199: 0 | AH199: 0 | AI199: 0 | AJ199: 0 | AK199: 0 | AL199: 0
AC200: =IF(ROUND(AC150,2)=ROUND(AC169,2),0,1) -> 0 | AD200: =IF(ROUND(AD150,2)=ROUND(AD169,2),0,1) -> 0 | AE200: 0 | AF200: 0 | AG200: 0 | AH200: 0 | AI200: 0 | AJ200: 0 | AK200: 0 | AL200: 0
AC201: =IF(ROUND(AC196,2)=ROUND(AC145,2),0,1) -> 0 | AD201: =IF(ROUND(AD196,2)=ROUND(AD145,2),0,1) -> 0 | AE201: 0 | AF201: 0 | AG201: 0 | AH201: 0 | AI201: 0 | AJ201: 0 | AK201: 0 | AL201: 0

Sheet Opex_Breakdown
A1: 80 | B1: Operating Expenditure - Breakdown
B2: =+Contents!H7 -> Goulburn Valley Water
B3: Go to Table of Contents
L4: FIRST REG PERIOD | P4: SECOND REG PERIOD | U4: THIRD REG PERIOD | Z4: FOURTH REG PERIOD | AE4: FIFTH REG PERIOD | AJ4: SIXTH REG PERIOD
K6: 2006 | L6: 2007 | M6: 2008 | N6: 2009 | O6: 2010 | P6: 2011 | Q6: 2012 | R6: 2013 | S6: 2014 | T6: 2015 | U6: 2016 | V6: 2017 | W6: 2018 | X6: 2019 | Y6: 2020 | Z6: 2021 | AA6: 2022 | AB6: 2023 | AC6: 2024 | AD6: 2025 | AE6: 2026 | AF6: 2027 | AG6: 2028 | AH6: 2029 | AI6: 2030 | AJ6: 2031 | AK6: 2032 | AL6: 2033
B7: =Expenditure_Detail!$B$6 -> $m, 01/01/23 | K7: =+CONCATENATE(K6-1,"-",RIGHT(K6,2)) -> 2005-06 | L7: =+CONCATENATE(L6-1,"-",RIGHT(L6,2)) -> 2006-07 | M7: 2007-08 | N7: 2008-09 | O7: 2009-10 | P7: 2010-11 | Q7: 2011-12 | R7: 2012-13 | S7: 2013-14 | T7: 2014-15 | U7: 2015-16 | V7: 2016-17 | W7: 2017-18 | X7: =+CONCATENATE(X6-1,"-",RIGHT(X6,2)) -> 2018-19 | Y7: 2019-20 | Z7: 2020-21 | AA7: 2021-22 | AB7: 2022-23 | AC7: 2023-24 | AD7: 2024-25 | AE7: 2025-26 | AF7: 2026-27 | AG7: 2027-28 | AH7: =+CONCATENATE(AH6-1,"-",RIGHT(AH6,2)) -> 2028-29 | AI7: =+CONCATENATE(AI6-1,"-",RIGHT(AI6,2)) -> 2029-30 | AJ7: =+CONCATENATE(AJ6-1,"-",RIGHT(AJ6,2)) -> 2030-31 | AK7: =+CONCATENATE(AK6-1,"-",RIGHT(AK6,2)) -> 2031-32 | AL7: =+CONCATENATE(AL6-1,"-",RIGHT(AL6,2)) -> 2032-33
D10: Operating Expenditure Summary
E12: =C48 -> Water | W12: =+W57-W50-W54 -> 29.51398914 | X12: 29.86364121 | Y12: 30.78822699 | Z12: 28.43643139 | AA12: 31.00821921 | AB12: 28.63781039 | AC12: =+AC57-AC50-AC54 -> 29.47576074 | AD12: 29.78542441 | AE12: 30.24133493 | AF12: 30.69517983 | AG12: 31.15537903 | AH12: 31.62293459 | AI12: 32.09705011 | AJ12: 32.57873074 | AK12: 33.06718321 | AL12: 33.56341583
E13: =C59 -> Sewerage | W13: =W68-W61-W65 -> 20.99684525 | X13: 20.13980195 | Y13: 23.38680368 | Z13: 21.49760635 | AA13: 25.51292478 | AB13: 23.5143431 | AC13: =AC68-AC61-AC65 -> 23.45917706 | AD13: 23.9558909 | AE13: 24.71464056 | AF13: 26.89009529 | AG13: 25.78399022 | AH13: 25.89550019 | AI13: 26.24360119 | AJ13: 26.77647034 | AK13: 27.20408589 | AL13: 27.5686273
E14: =C70 -> Recycled Water | W14: =W79-W72-W76 -> 0.3565628959 | X14: 0.4027300178 | Y14: 0.3290245399 | Z14: 0.3347212693 | AA14: 0.1828885903 | AB14: 0.18 | AC14: =AC79-AC72-AC76 -> 0.177887721 | AD14: 0.1797551997 | AE14: 0.1825080016 | AF14: 0.1852456217 | AG14: 0.188024306 | AH14: 0.1908446706 | AI14: 0.1937073406 | AJ14: 0.1966129507 | AK14: 0.199562145 | AL14: 0.2025555772
E15: =C81 -> Rural Water | W15: =W90-W83-W87 -> 0 | X15: 0 | Y15: 0 | Z15: 0 | AA15: 0 | AB15: 0 | AC15: =AC90-AC83-AC87 -> 0 | AD15: 0 | AE15: 0 | AF15: 0 | AG15: 0 | AH15: 0 | AI15: 0 | AJ15: 0 | AK15: 0 | AL15: 0
E16: Bulk Water | W16: =W100-W97 -> 0 | X16: 0 | Y16: 0 | Z16: 0 | AA16: 0 | AB16: 0 | AC16: =AC100-AC97 -> 0 | AD16: 0 | AE16: 0 | AF16: 0 | AG16: 0 | AH16: 0 | AI16: 0 | AJ16: 0 | AK16: 0 | AL16: 0
E17: Total controllable operating expenditure | W17: =SUM(W12:W16) -> 50.86739729 | X17: 50.40617318 | Y17: 54.50405521 | Z17: 50.26875901 | AA17: 56.70403258 | AB17: 52.33215349 | AC17: 53.11282552 | AD17: 53.92107051 | AE17: 55.13848349 | AF17: 57.77052074 | AG17: 57.12739356 | AH17: =SUM(AH12:AH16) -> 57.70927946 | AI17: =SUM(AI12:AI16) -> 58.53435865 | AJ17: =SUM(AJ12:AJ16) -> 59.55181403 | AK17: =SUM(AK12:AK16) -> 60.47083124 | AL17: =SUM(AL12:AL16) -> 61.33459871
E20: Operations & Maintenance | W20: =W49+W60+W71+W82+W93 -> 11.01084163 | X20: 11.03766341 | Y20: 11.41921472 | Z20: 11.89269983 | AA20: 12.11950448 | AB20: 16.13824571 | AC20: 16.12806601 | AD20: 16.29737967 | AE20: 16.54696053 | AF20: 16.79516494 | AG20: 17.04709241 | AH20: =AH49+AH60+AH71+AH82+AH93 -> 17.3027988 | AI20: =AI49+AI60+AI71+AI82+AI93 -> 17.56234078 | AJ20: =AJ49+AJ60+AJ71+AJ82+AJ93 -> 17.82577589 | AK20: =AK49+AK60+AK71+AK82+AK93 -> 18.09316253 | AL20: =AL49+AL60+AL71+AL82+AL93 -> 18.36455997
E21: Treatment | W21: =W51+W62+W73+W84+W94 -> 18.90343982 | X21: 18.60150533 | Y21: 20.72420245 | Z21: 16.44278388 | AA21: 17.10041861 | AB21: 13.654479 | AC21: 13.06286602 | AD21: 13.20000097 | AE21: 13.40214804 | AF21: 13.60318026 | AG21: 13.80722797 | AH21: =AH51+AH62+AH73+AH84+AH94 -> 14.01433639 | AI21: 14.22455143 | AJ21: 14.43791971 | AK21: 14.6544885 | AL21: 14.87430583
E22: Customer Service and billing | W22: =W52+W63+W74+W85+W95 -> 3.960314932 | X22: 3.408900533 | Y22: 3.432496933 | Z22: 3.155943396 | AA22: 3.381431615 | AB22: 3.99442882 | AC22: 3.989910472 | AD22: 4.031796853 | AE22: 4.093540481 | AF22: 4.154943588 | AG22: 4.217267742 | AH22: 4.280526758 | AI22: 4.344734659 | AJ22: 4.409905679 | AK22: 4.476054265 | AL22: 4.543195078
E23: GSL Payments | W23: =W53+W64+W75+W86+W96 -> 0.002242533937 | X23: 0.004401420959 | Y23: 0.02171779141 | Z23: 0.01168867925 | AA23: 0.02598852417 | AB23: 0.00999996 | AC23: 8.18175e-06 | AD23: 0.00023318175 | AE23: 8.18175e-06 | AF23: 0.00023318175 | AG23: 8.18175e-06 | AH23: 0.00023318175 | AI23: 8.18175e-06 | AJ23: 0.00023318175 | AK23: 8.18175e-06 | AL23: 0.00023318175
E24: Corporate | W24: =W55+W66+W77+W88+W98 -> 16.97822443 | X24: 17.35370249 | Y24: 18.90642331 | Z24: 18.76564322 | AA24: 24.07668935 | AB24: 18.535 | AC24: 19.93197484 | AD24: 20.39165984 | AE24: 21.09582625 | AF24: 23.21699877 | AG24: 22.05579725 | AH24: =AH55+AH66+AH77+AH88+AH98 -> 22.11138433 | AI24: 22.40272359 | AJ24: 22.87797957 | AK24: 23.24711776 | AL24: 23.55230465
E25: Other operating expenditure | W25: =W56+W67+W78+W89+W99 -> 0.01233393665 | X25: 0 | Y25: 0 | Z25: 0 | AA25: 0 | AB25: 0 | AC25: 0 | AD25: 0 | AE25: 0 | AF25: 0 | AG25: 0 | AH25: 0 | AI25: 0 | AJ25: 0 | AK25: 0 | AL25: 0
E26: Total controllable operating expenditure | W26: =SUM(W20:W25) -> 50.86739729 | X26: 50.40617318 | Y26: 54.50405521 | Z26: 50.26875901 | AA26: 56.70403258 | AB26: 52.33215349 | AC26: 53.11282552 | AD26: 53.92107051 | AE26: 55.13848349 | AF26: 57.77052074 | AG26: 57.12739356 | AH26: =SUM(AH20:AH25) -> 57.70927946 | AI26: =SUM(AI20:AI25) -> 58.53435865 | AJ26: =SUM(AJ20:AJ25) -> 59.55181403 | AK26: =SUM(AK20:AK25) -> 60.47083124 | AL26: =SUM(AL20:AL25) -> 61.33459871
AC27: =IF(ROUND(AC26,2)=ROUND(AC17,2),0,1) -> 0 | AD27: =IF(ROUND(AD26,2)=ROUND(AD17,2),0,1) -> 0 | AE27: 0 | AF27: 0 | AG27: 0 | AH27: 0 | AI27: 0 | AJ27: 0 | AK27: 0 | AL27: 0
E29: External bulk water charges (excl. temporary purchases) | W29: =W50+W61+W72+W83 -> 1.121266968 | X29: =X50+X61+X72+X83 -> 1.137767318 | Y29: =Y50+Y61+Y72+Y83 -> 1.102177914 | Z29: 1.038167238 | AA29: 1.070512877 | AB29: 1.05599988 | AC29: 1.055333775 | AD29: 1.066412749 | AE29: 1.082743977 | AF29: 1.098985136 | AG29: 1.115469913 | AH29: =AH50+AH61+AH72+AH83 -> 1.132201962 | AI29: =AI50+AI61+AI72+AI83 -> 1.149184991 | AJ29: =AJ50+AJ61+AJ72+AJ83 -> 1.166422766 | AK29: =AK50+AK61+AK72+AK83 -> 1.183919108 | AL29: =AL50+AL61+AL72+AL83 -> 1.201677894
E30: External temporary water purchases | W30: =+W102 -> 0 | X30: 0 | Y30: 0 | Z30: 0 | AA30: 0 | AB30: 0 | AC30: 0 | AD30: 0 | AE30: 0 | AF30: 0 | AG30: 0 | AH30: =+AH102 -> 0 | AI30: =+AI102 -> 0 | AJ30: =+AJ102 -> 0 | AK30: =+AK102 -> 0 | AL30: =+AL102 -> 0
E31: Licence fees | W31: =+W109 -> 0.1749176471 | X31: 0.1914618117 | Y31: 0.1704846626 | Z31: 0.1891440823 | AA31: 0.2512626845 | AB31: 0.21 | AC31: 0.18699996 | AD31: 0.18699996 | AE31: 0.18699996 | AF31: 0.18699996 | AG31: 0.18699996 | AH31: =+AH109 -> 0.18699996 | AI31: =+AI109 -> 0.18699996 | AJ31: =+AJ109 -> 0.18699996 | AK31: =+AK109 -> 0.18699996 | AL31: =+AL109 -> 0.18699996
E32: Environment Contribution | W32: =W111 -> 2.715708597 | X32: 3.828135879 | Y32: 3.777809816 | Z32: 3.984777015 | AA32: 3.940839695 | AB32: 3.75 | AC32: 3.75 | AD32: 3.75 | AE32: 3.75 | AF32: 3.75 | AG32: 3.75 | AH32: =AH111 -> 3.75 | AI32: =AI111 -> 3.75 | AJ32: =AJ111 -> 3.75 | AK32: =AK111 -> 3.75 | AL32: =AL111 -> 3.75
E33: Other non-controllable | W33: =+W124 -> 0 | X33: 0 | Y33: 0 | Z33: 0 | AA33: 0 | AB33: 0 | AC33: 0 | AD33: 0 | AE33: 0 | AF33: 0 | AG33: =+AG124 -> 0 | AH33: 0 | AI33: 0 | AJ33: 0 | AK33: 0 | AL33: 0
E34: Total non-controllable operating expenditure | W34: =SUM(W29:W33) -> 4.011893213 | X34: 5.157365009 | Y34: 5.050472393 | Z34: 5.212088336 | AA34: 5.262615256 | AB34: 5.01599988 | AC34: 4.992333735 | AD34: 5.003412709 | AE34: 5.019743937 | AF34: 5.035985096 | AG34: 5.052469873 | AH34: =SUM(AH29:AH33) -> 5.069201922 | AI34: =SUM(AI29:AI33) -> 5.086184951 | AJ34: =SUM(AJ29:AJ33) -> 5.103422726 | AK34: =SUM(AK29:AK33) -> 5.120919068 | AL34: =SUM(AL29:AL33) -> 5.138677854
E37: Total prescribed operating expenditure | W37: =+W34+W17 -> 54.8792905 | X37: 55.56353819 | Y37: 59.55452761 | Z37: 55.48084734 | AA37: 61.96664784 | AB37: 57.34815337 | AC37: 58.10515925 | AD37: 58.92448322 | AE37: 60.15822743 | AF37: 62.80650584 | AG37: 62.17986343 | AH37: =+AH34+AH17 -> 62.77848138 | AI37: =+AI34+AI17 -> 63.6205436 | AJ37: =+AJ34+AJ17 -> 64.65523676 | AK37: =+AK34+AK17 -> 65.59175031 | AL37: =+AL34+AL17 -> 66.47327656
AB40: To reconcile to 'Opex_FO' tab row 95>> | AC40: =+Opex_FO!AC95 -> 58.11186281 | AD40: =+Opex_FO!AD95 -> 58.92115217 | AE40: =+Opex_FO!AE95 -> 60.15784537 | AF40: =+Opex_FO!AF95 -> 62.80907305 | AG40: =+Opex_FO!AG95 -> 62.17637914 | AH40: =+Opex_FO!AH95 -> 62.78494483 | AI40: =+Opex_FO!AI95 -> 63.616954 | AJ40: =+Opex_FO!AJ95 -> 64.66159331 | AK40: =+Opex_FO!AK95 -> 65.58805221 | AL40: =+Opex_FO!AL95 -> 66.469523
AB41: Difference | AC41: =+AC40-AC37 -> 0.006703556033 | AD41: -0.003331050285 | AE41: -0.0003820625595 | AF41: 0.002567206502 | AG41: -0.0034842854 | AH41: =+AH40-AH37 -> 0.006463450319 | AI41: =+AI40-AI37 -> -0.003589597927 | AJ41: =+AJ40-AJ37 -> 0.006356558105 | AK41: =+AK40-AK37 -> -0.003698093524 | AL41: =+AL40-AL37 -> -0.003753564927
AB42: Test | AC42: =IF(ROUND(AC40,2)=ROUND(AC37,2),0,1) -> 0 | AD42: 0 | AE42: 0 | AF42: 0 | AG42: 0 | AH42: 0 | AI42: 0 | AJ42: 0 | AK42: 0 | AL42: 0
B46: Total operating expenditure
C48: Water
D49: Operations & Maintenance | W49: 5.837315837 | X49: 5.659126998 | Y49: 5.744355828 | Z49: 5.892156947 | AA49: 5.88219441 | AB49: 7.84269771 | AC49: 7.837750686 | AD49: 7.920031983 | AE49: 8.04132071 | AF49: 8.161940521 | AG49: 8.284369629 | AH49: 8.408635173 | AI49: 8.534764701 | AJ49: 8.662786171 | AK49: 8.792727964 | AL49: 8.924618883
D50: External bulk charges (excl. temporary purchases) | W50: =+W131 -> 1.121266968 | X50: 1.137767318 | Y50: 1.102177914 | Z50: 1.038167238 | AA50: 1.070512877 | AB50: 1.05599988 | AC50: 1.055333775 | AD50: 1.066412749 | AE50: 1.082743977 | AF50: 1.098985136 | AG50: 1.115469913 | AH50: =+AH131 -> 1.132201962 | AI50: 1.149184991 | AJ50: 1.166422766 | AK50: 1.183919108 | AL50: 1.201677894 | AM50: see reconciliation below
D51: Treatment | W51: 12.51109683 | X51: 13.18335613 | Y51: 13.2641411 | Z51: 11.01498628 | AA51: 10.39312033 | AB51: 8.76789831 | AC51: 8.415867687 | AD51: 8.5042181 | AE51: 8.634453154 | AF51: 8.763969951 | AG51: 8.8954295 | AH51: 9.028860943 | AI51: 9.164293857 | AJ51: 9.301758265 | AK51: 9.441284639 | AL51: 9.582903908
D52: Customer Service and billing | W52: 1.980157466 | X52: 1.704450266 | Y52: 1.716791411 | Z52: 1.577971698 | AA52: 1.689664917 | AB52: 1.99621441 | AC52: 1.994955236 | AD52: 2.015898426 | AE52: 2.04677024 | AF52: 2.077471794 | AG52: 2.108633871 | AH52: 2.140263379 | AI52: 2.17236733 | AJ52: 2.20495284 | AK52: 2.238027132 | AL52: 2.271597539
D53: GSL Payments | W53: 0.002242533937 | X53: 0.004401420959 | Y53: 0.02171779141 | Z53: 0.01168867925 | AA53: 0.02598852417 | AB53: 0.00999996 | AC53: 8.18175e-06 | AD53: 0.00023318175 | AE53: 8.18175e-06 | AF53: 0.00023318175 | AG53: 8.18175e-06 | AH53: 0.00023318175 | AI53: 8.18175e-06 | AJ53: 0.00023318175 | AK53: 8.18175e-06 | AL53: 0.00023318175
D54: Licence Fees | W54: 0.05606334842 | X54: 0.06382060391 | Y54: 0.05212269939 | Z54: 0.06056861063 | AA54: 0.09229604198 | AB54: 0.08 | AC54: 0.07994953753 | AD54: 0.0807888538 | AE54: 0.08202606815 | AF54: 0.08325645917 | AG54: 0.08450530606 | AH54: 0.08577288565 | AI54: 0.08705947893 | AJ54: 0.08836537112 | AK54: 0.08969085169 | AL54: 0.09103621446
D55: Corporate | W55: 9.170842534 | X55: 9.312306394 | Y55: 10.04122086 | Z55: 9.939627787 | AA55: 13.01725104 | AB55: 10.021 | AC55: 11.22717894 | AD55: 11.34504272 | AE55: 11.51878264 | AF55: 11.69156438 | AG55: 11.86693785 | AH55: 12.04494192 | AI55: 12.22561605 | AJ55: 12.40900029 | AK55: 12.59513529 | AL55: 12.78406232
D56: Other operating expenditure | W56: 0.01233393665 | X56: 0 | Y56: 0 | Z56: 0 | AA56: 0 | AB56: 0 | AC56: 0 | AD56: 0 | AE56: 0 | AF56: 0 | AG56: 0 | AH56: 0 | AI56: 0 | AJ56: 0 | AK56: 0 | AL56: 0
C57: =+CONCATENATE("Total ",C48) -> Total Water | K57: =+SUM(K49:K56) -> 0 | L57: =+SUM(L49:L56) -> 0 | M57: 0 | N57: 0 | O57: 0 | P57: 0 | Q57: 0 | R57: 0 | S57: 0 | T57: 0 | U57: 0 | V57: 0 | W57: =+SUM(W49:W56) -> 30.69131946 | X57: 31.06522913 | Y57: 31.94252761 | Z57: 29.53516724 | AA57: 32.17102813 | AB57: 29.77381027 | AC57: 30.61104405 | AD57: 30.93262601 | AE57: 31.40610497 | AF57: 31.87742143 | AG57: 32.35535425 | AH57: =+SUM(AH49:AH56) -> 32.84090944 | AI57: =+SUM(AI49:AI56) -> 33.33329459 | AJ57: =+SUM(AJ49:AJ56) -> 33.83351888 | AK57: =+SUM(AK49:AK56) -> 34.34079317 | AL57: =+SUM(AL49:AL56) -> 34.85612994
C59: Sewerage
D60: =+D49 -> Operations & Maintenance | W60: 5.173525792 | X60: 5.378536412 | Y60: 5.674858896 | Z60: 6.000542882 | AA60: 6.237310074 | AB60: 8.295548 | AC60: 8.290315327 | AD60: 8.377347682 | AE60: 8.50563982 | AF60: 8.633224417 | AG60: 8.762722783 | AH60: 8.894163625 | AI60: 9.027576079 | AJ60: 9.162989721 | AK60: 9.300434566 | AL60: 9.439941085
D61: =+D50 -> External bulk charges (excl. temporary purchases) | W61: =+W132 -> 0 | X61: 0 | Y61: 0 | Z61: 0 | AA61: 0 | AB61: 0 | AC61: 0 | AD61: 0 | AE61: 0 | AF61: 0 | AG61: 0 | AH61: =+AH132 -> 0 | AI61: 0 | AJ61: 0 | AK61: 0 | AL61: 0 | AM61: see reconciliation below
D62: Treatment | W62: 6.038022624 | X62: 5.017619893 | Y62: 7.133208589 | Z62: 5.096264151 | AA62: 6.526511474 | AB62: 4.70858069 | AC62: 4.469110607 | AD62: 4.516027667 | AE62: 4.585186889 | AF62: 4.653964692 | AG62: 4.723774162 | AH62: 4.794630775 | AI62: 4.866550237 | AJ62: 4.93954849 | AK62: 5.013641717 | AL62: 5.088846343
D63: Customer Service and billing | W63: 1.977914932 | X63: 1.702249556 | Y63: 1.713533742 | Z63: 1.574783877 | AA63: 1.689664917 | AB63: 1.99621441 | AC63: 1.994955236 | AD63: 2.015898426 | AE63: 2.04677024 | AF63: 2.077471794 | AG63: 2.108633871 | AH63: 2.140263379 | AI63: 2.17236733 | AJ63: 2.20495284 | AK63: 2.238027132 | AL63: 2.271597539
D64: GSL Payments | W64: 0 | X64: 0 | Y64: 0 | Z64: 0 | AA64: 0 | AB64: 0 | AC64: 0 | AD64: 0 | AE64: 0 | AF64: 0 | AG64: 0 | AH64: 0 | AI64: 0 | AJ64: 0 | AK64: 0 | AL64: 0
D65: Licence Fees | W65: 0.1188542986 | X65: 0.1276412078 | Y65: 0.1183619632 | Z65: 0.1285754717 | AA65: 0.1589666425 | AB65: 0.12772108 | AC65: 0.127640516 | AD65: 0.1289804957 | AE65: 0.1309557252 | AF65: 0.132920061 | AG65: 0.1349138619 | AH65: 0.1369375699 | AI65: 0.1389916334 | AJ65: 0.1410765079 | AK65: 0.1431926555 | AL65: 0.1453405454
D66: Corporate | W66: 7.8073819 | X66: 8.041396092 | Y66: 8.865202454 | Z66: 8.826015437 | AA66: 11.05943831 | AB66: 8.514 | AC66: 8.704795891 | AD66: 9.046617125 | AE66: 9.577043611 | AF66: 11.52543439 | AG66: 10.1888594 | AH66: 10.06644242 | AI66: 10.17710755 | AJ66: 10.46897929 | AK66: 10.65198247 | AL66: 10.76824233
D67: Other operating expenditure | W67: 0 | X67: 0 | Y67: 0 | Z67: 0 | AA67: 0 | AB67: 0 | AC67: 0 | AD67: 0 | AE67: 0 | AF67: 0 | AG67: 0 | AH67: 0 | AI67: 0 | AJ67: 0 | AK67: 0 | AL67: 0
C68: =+CONCATENATE("Total ",C59) -> Total Sewerage | W68: =+SUM(W60:W67) -> 21.11569955 | X68: 20.26744316 | Y68: 23.50516564 | Z68: 21.62618182 | AA68: 25.67189142 | AB68: 23.64206418 | AC68: 23.58681758 | AD68: 24.0848714 | AE68: 24.84559629 | AF68: 27.02301535 | AG68: 25.91890408 | AH68: =+SUM(AH60:AH67) -> 26.03243776 | AI68: =+SUM(AI60:AI67) -> 26.38259283 | AJ68: =+SUM(AJ60:AJ67) -> 26.91754684 | AK68: =+SUM(AK60:AK67) -> 27.34727854 | AL68: =+SUM(AL60:AL67) -> 27.71396784
C70: Recycled Water
D71: =+D60 -> Operations & Maintenance
D72: =+D61 -> External bulk charges (excl. temporary purchases) | W72: =+W133 -> 0 | X72: 0 | Y72: 0 | Z72: 0 | AA72: 0 | AB72: 0 | AC72: 0 | AD72: 0 | AE72: 0 | AF72: 0 | AG72: 0 | AH72: =+AH133 -> 0 | AI72: 0 | AJ72: 0 | AK72: 0 | AL72: 0 | AM72: see reconciliation below
D73: Treatment | W73: 0.354320362 | X73: 0.4005293073 | Y73: 0.3268527607 | Z73: 0.3315334477 | AA73: 0.1807868092 | AB73: 0.178 | AC73: 0.177887721 | AD73: 0.1797551997 | AE73: 0.1825080016 | AF73: 0.1852456217 | AG73: 0.188024306 | AH73: 0.1908446706 | AI73: 0.1937073406 | AJ73: 0.1966129507 | AK73: 0.199562145 | AL73: 0.2025555772
D74: Customer Service and billing | W74: 0.002242533937 | X74: 0.00220071048 | Y74: 0.002171779141 | Z74: 0.003187821612 | AA74: 0.00210178117 | AB74: 0.002
D75: GSL Payments
D76: Licence Fees
D77: Corporate
D78: Other operating expenditure
C79: =+CONCATENATE("Total ",C70) -> Total Recycled Water | W79: =+SUM(W71:W78) -> 0.3565628959 | X79: 0.4027300178 | Y79: 0.3290245399 | Z79: 0.3347212693 | AA79: 0.1828885903 | AB79: 0.18 | AC79: 0.177887721 | AD79: 0.1797551997 | AE79: 0.1825080016 | AF79: 0.1852456217 | AG79: 0.188024306 | AH79: =+SUM(AH71:AH78) -> 0.1908446706 | AI79: =+SUM(AI71:AI78) -> 0.1937073406 | AJ79: =+SUM(AJ71:AJ78) -> 0.1966129507 | AK79: =+SUM(AK71:AK78) -> 0.199562145 | AL79: =+SUM(AL71:AL78) -> 0.2025555772
C81: Rural Water
D82: =+D60 -> Operations & Maintenance
D83: =+D61 -> External bulk charges (excl. temporary purchases) | W83: =+W134 -> 0 | X83: 0 | Y83: 0 | Z83: 0 | AA83: 0 | AB83: 0 | AC83: 0 | AD83: 0 | AE83: 0 | AF83: 0 | AG83: 0 | AH83: =+AH134 -> 0 | AI83: 0 | AJ83: 0 | AK83: 0 | AL83: 0 | AM83: see reconciliation below
D84: Treatment
D85: Customer Service and billing
D86: GSL Payments
D87: Licence Fees
D88: Corporate
D89: Other operating expenditure
C90: =+CONCATENATE("Total ",C81) -> Total Rural Water | W90: =+SUM(W82:W89) -> 0 | X90: 0 | Y90: 0 | Z90: 0 | AA90: 0 | AB90: 0 | AC90: 0 | AD90: 0 | AE90: 0 | AF90: 0 | AG90: 0 | AH90: =+SUM(AH82:AH89) -> 0 | AI90: =+SUM(AI82:AI89) -> 0 | AJ90: =+SUM(AJ82:AJ89) -> 0 | AK90: =+SUM(AK82:AK89) -> 0 | AL90: =+SUM(AL82:AL89) -> 0
C92: Bulk Water
D93: Operations & Maintenance
D94: Treatment
D95: Customer Service and billing
D96: GSL Payments
D97: Licence Fees
D98: Corporate
D99: Other operating expenditure
C100: Total Bulk water | W100: =+SUM(W93:W99) -> 0 | X100: 0 | Y100: 0 | Z100: 0 | AA100: 0 | AB100: 0 | AC100: 0 | AD100: 0 | AE100: 0 | AF100: 0 | AG100: 0 | AH100: =+SUM(AH93:AH99) -> 0 | AI100: =+SUM(AI93:AI99) -> 0 | AJ100: =+SUM(AJ93:AJ99) -> 0 | AK100: =+SUM(AK93:AK99) -> 0 | AL100: =+SUM(AL93:AL99) -> 0
C102: External temporary water purchases
C105: Licence fees
D106: Essential Services Commission | W106: 0.0459719457 | X106: 0.06272024867 | Y106: 0.03909202454 | Z106: 0.05738078902 | AA106: 0.1197773562 | AB106: 0.1 | AC106: 0.06999996 | AD106: 0.06999996 | AE106: 0.06999996 | AF106: 0.06999996 | AG106: 0.06999996 | AH106: 0.06999996 | AI106: 0.06999996 | AJ106: 0.06999996 | AK106: 0.06999996 | AL106: 0.06999996
D107: Department of Human Services | W107: 0.09642895928 | X107: 0.09573090586 | Y107: 0.09881595092 | Z107: 0.09988507719 | AA107: 0.09907796438 | AB107: 0.08 | AC107: 0.02499996 | AD107: 0.02499996 | AE107: 0.02499996 | AF107: 0.02499996 | AG107: 0.02499996 | AH107: 0.02499996 | AI107: 0.02499996 | AJ107: 0.02499996 | AK107: 0.02499996 | AL107: 0.02499996
D108: Environment Protection Authority | W108: 0.03251674208 | X108: 0.03301065719 | Y108: 0.03257668712 | Z108: 0.03187821612 | AA108: 0.03240736387 | AB108: 0.03 | AC108: 0.09200004 | AD108: 0.09200004 | AE108: 0.09200004 | AF108: 0.09200004 | AG108: 0.09200004 | AH108: 0.09200004 | AI108: 0.09200004 | AJ108: 0.09200004 | AK108: 0.09200004 | AL108: 0.09200004
C109: =+CONCATENATE("Total ",C105) -> Total Licence fees | W109: =+SUM(W106:W108) -> 0.1749176471 | X109: 0.1914618117 | Y109: 0.1704846626 | Z109: 0.1891440823 | AA109: 0.2512626845 | AB109: 0.21 | AC109: 0.18699996 | AD109: 0.18699996 | AE109: 0.18699996 | AF109: 0.18699996 | AG109: 0.18699996 | AH109: =+SUM(AH106:AH108) -> 0.18699996 | AI109: =+SUM(AI106:AI108) -> 0.18699996 | AJ109: =+SUM(AJ106:AJ108) -> 0.18699996 | AK109: =+SUM(AK106:AK108) -> 0.18699996 | AL109: =+SUM(AL106:AL108) -> 0.18699996
C111: Environment Contribution | W111: 2.715708597 | X111: 3.828135879 | Y111: 3.777809816 | Z111: 3.984777015 | AA111: 3.940839695 | AB111: 3.75 | AC111: 3.75 | AD111: 3.75 | AE111: 3.75 | AF111: 3.75 | AG111: 3.75 | AH111: 3.75 | AI111: 3.75 | AJ111: 3.75 | AK111: 3.75 | AL111: 3.75
C113: Other non-controllable
D114: [Non-controllable 1]
D115: [Non-controllable 2]
D116: [Non-controllable 3]
D117: [Non-controllable 4]
D118: [Non-controllable 5]
D119: [Non-controllable 6]
D120: [Non-controllable 7]
D121: [Non-controllable 8]
D122: [Non-controllable 9]
D123: [Non-controllable 10]
W124: =SUM(W114:W123) -> 0 | X124: 0 | Y124: 0 | Z124: 0 | AA124: 0 | AB124: 0 | AC124: 0 | AD124: 0 | AE124: 0 | AF124: 0 | AG124: 0 | AH124: =SUM(AH114:AH123) -> 0 | AI124: =SUM(AI114:AI123) -> 0 | AJ124: =SUM(AJ114:AJ123) -> 0 | AK124: =SUM(AK114:AK123) -> 0 | AL124: =SUM(AL114:AL123) -> 0
C127: External bulk charges (excl. temporary purchases)
C128: Reconciliation
C130: Service | W130: =+W7 -> 2017-18 | X130: =+X7 -> 2018-19 | Y130: 2019-20 | Z130: 2020-21 | AA130: 2021-22 | AB130: 2022-23 | AC130: 2023-24 | AD130: 2024-25 | AE130: 2025-26 | AF130: 2026-27 | AG130: 2027-28 | AH130: =+AH7 -> 2028-29 | AI130: =+AI7 -> 2029-30 | AJ130: =+AJ7 -> 2030-31 | AK130: =+AK7 -> 2031-32 | AL130: =+AL7 -> 2032-33
D131: Water | W131: =+SUMIF($I$138:$I$179,$D$131,W$138:W$179) -> 1.121266968 | X131: 1.137767318 | Y131: 1.102177914 | Z131: 1.038167238 | AA131: 1.070512877 | AB131: 1.05599988 | AC131: 1.055333775 | AD131: 1.066412749 | AE131: 1.082743977 | AF131: 1.098985136 | AG131: 1.115469913 | AH131: 1.132201962 | AI131: 1.149184991 | AJ131: 1.166422766 | AK131: 1.183919108 | AL131: 1.201677894
D132: Sewerage | W132: =+SUMIF($I$138:$I$179,$D$132,W$138:W$179) -> 0 | X132: 0 | Y132: 0 | Z132: 0 | AA132: 0 | AB132: 0 | AC132: 0 | AD132: 0 | AE132: 0 | AF132: 0 | AG132: 0 | AH132: 0 | AI132: 0 | AJ132: 0 | AK132: 0 | AL132: 0
D133: Recycled Water | W133: =+SUMIF($I$138:$I$179,$D$133,W$138:W$179) -> 0 | X133: 0 | Y133: 0 | Z133: 0 | AA133: 0 | AB133: 0 | AC133: 0 | AD133: 0 | AE133: 0 | AF133: 0 | AG133: 0 | AH133: 0 | AI133: 0 | AJ133: 0 | AK133: 0 | AL133: 0
D134: Rural Water | W134: =+SUMIF($I$138:$I$179,$D$134,W$138:W$179) -> 0 | X134: 0 | Y134: 0 | Z134: 0 | AA134: 0 | AB134: 0 | AC134: 0 | AD134: 0 | AE134: 0 | AF134: 0 | AG134: 0 | AH134: 0 | AI134: 0 | AJ134: 0 | AK134: 0 | AL134: 0
C135: Total External Bulk Charges | W135: =SUM(W131:W134) -> 1.121266968 | X135: 1.137767318 | Y135: 1.102177914 | Z135: 1.038167238 | AA135: 1.070512877 | AB135: 1.05599988 | AC135: 1.055333775 | AD135: 1.066412749 | AE135: 1.082743977 | AF135: 1.098985136 | AG135: 1.115469913 | AH135: =SUM(AH131:AH134) -> 1.132201962 | AI135: =SUM(AI131:AI134) -> 1.149184991 | AJ135: =SUM(AJ131:AJ134) -> 1.166422766 | AK135: =SUM(AK131:AK134) -> 1.183919108 | AL135: =SUM(AL131:AL134) -> 1.201677894
C137: Description | H137: Source | I137: Service | J137: Price
B138: 1 | C138: Bulk water purchases from wholesaler | H138: Goulburn-Murray Water | I138: Water | J138: Variable | W138: 1.121266968 | X138: 1.137767318 | Y138: 1.102177914 | Z138: 1.038167238 | AA138: 1.070512877 | AB138: 1.05599988 | AC138: 1.055333775 | AD138: 1.066412749 | AE138: 1.082743977 | AF138: 1.098985136 | AG138: 1.115469913 | AH138: 1.132201962 | AI138: 1.149184991 | AJ138: 1.166422766 | AK138: 1.183919108 | AL138: 1.201677894 | AO138: ESC USE ONLY
B139: 2 | H139: [Source] | I139: [Service] | J139: [Price]
B140: 3 | H140: [Source] | I140: [Service] | J140: [Price] | AO140: [Service]
B141: 4 | H141: [Source] | I141: [Service] | J141: [Price] | AO141: Water
B142: 5 | H142: [Source] | I142: [Service] | J142: [Price] | AO142: Sewerage
B143: 6 | H143: [Source] | I143: [Service] | J143: [Price] | AO143: Recycled Water
B144: 7 | H144: [Source] | I144: [Service] | J144: [Price] | AO144: Rural Water
B145: 8 | H145: [Source] | I145: [Service] | J145: [Price]
B146: 9 | H146: [Source] | I146: [Service] | J146: [Price] | AO146: [Source]
B147: 10 | H147: [Source] | I147: [Service] | J147: [Price] | AO147: Melbourne Water
B148: 11 | H148: [Source] | I148: [Service] | J148: [Price] | AO148: Goulburn-Murray Water
B149: 12 | H149: [Source] | I149: [Service] | J149: [Price] | AO149: Other Sources
B150: 13 | H150: [Source] | I150: [Service] | J150: [Price]
B151: 14 | H151: [Source] | I151: [Service] | J151: [Price]
B152: 15 | H152: [Source] | I152: [Service] | J152: [Price]
B153: 16 | H153: [Source] | I153: [Service] | J153: [Price]
B154: 17 | H154: [Source] | I154: [Service] | J154: [Price]
B155: 18 | H155: [Source] | I155: [Service] | J155: [Price]
B156: 19 | H156: [Source] | I156: [Service] | J156: [Price]
B157: 20 | H157: [Source] | I157: [Service] | J157: [Price]
B158: 21 | H158: [Source] | I158: [Service] | J158: [Price]
B159: 22 | H159: [Source] | I159: [Service] | J159: [Price]
B160: 23 | H160: [Source] | I160: [Service] | J160: [Price]
B161: 24 | H161: [Source] | I161: [Service] | J161: [Price]
B162: 25 | H162: [Source] | I162: [Service] | J162: [Price]
B163: 26 | H163: [Source] | I163: [Service] | J163: [Price]
B164: 27 | H164: [Source] | I164: [Service] | J164: [Price]
B165: 28 | H165: [Source] | I165: [Service] | J165: [Price]
B166: 29 | H166: [Source] | I166: [Service] | J166: [Price]
B167: 30 | H167: [Source] | I167: [Service] | J167: [Price]
B168: 31 | H168: [Source] | I168: [Service] | J168: [Price]
B169: 32 | H169: [Source] | I169: [Service] | J169: [Price]
B170: 33 | H170: [Source] | I170: [Service] | J170: [Price]
B171: 34 | H171: [Source] | I171: [Service] | J171: [Price]
B172: 35 | H172: [Source] | I172: [Service] | J172: [Price]
B173: 36 | H173: [Source] | I173: [Service] | J173: [Price]
B174: 37 | H174: [Source] | I174: [Service] | J174: [Price]
B175: 38 | H175: [Source] | I175: [Service] | J175: [Price]
B176: 39 | H176: [Source] | I176: [Service] | J176: [Price]
B177: 40 | H177: [Source] | I177: [Service] | J177: [Price]

Sheet Capex_FO input
B1: Capital Expenditure - Forecast Input | Q1: =Q36 -> Gross capital expenditure | AB1: =AB36 -> Government contributions | AM1: =AM36 -> Customer contributions | AX1: =AX36 -> Net capital expenditure | BI1: =BI36 -> Regulatory Depreciation | BT1: =BT36 -> Accumulated capex | CE1: =CE36 -> Gross capital expenditure | CP1: =CP36 -> Tax Depreciation
B2: =+Contents!H7 -> Goulburn Valley Water | Q2: =Q37 -> $m, 01/01/23 | AB2: =AB37 -> $m, 01/01/23 | AM2: =AM37 -> $m, 01/01/23 | AX2: =AX37 -> $m, 01/01/23 | BI2: =BI37 -> $m, 01/01/23 | BT2: =BT37 -> $m, 01/01/23 | CE2: =CE37 -> Nominal,$ | CP2: =CP37 -> Nominal,$
B3: Go to Table of Contents | Q3: =Q39 -> 2023-24 | R3: =R39 -> 2024-25 | S3: 2025-26 | T3: 2026-27 | U3: 2027-28 | V3: 2028-29 | W3: 2029-30 | X3: 2030-31 | Y3: =Y39 -> 2031-32 | Z3: =Z39 -> 2032-33 | AB3: 2023-24 | AC3: 2024-25 | AD3: 2025-26 | AE3: 2026-27 | AF3: 2027-28 | AG3: 2028-29 | AH3: 2029-30 | AI3: 2030-31 | AJ3: 2031-32 | AK3: 2032-33 | AM3: 2023-24 | AN3: 2024-25 | AO3: 2025-26 | AP3: 2026-27 | AQ3: 2027-28 | AR3: 2028-29 | AS3: 2029-30 | AT3: 2030-31 | AU3: 2031-32 | AV3: 2032-33 | AX3: 2023-24 | AY3: 2024-25 | AZ3: 2025-26 | BA3: 2026-27 | BB3: 2027-28 | BC3: 2028-29 | BD3: 2029-30 | BE3: 2030-31 | BF3: 2031-32 | BG3: 2032-33 | BI3: 2023-24 | BJ3: 2024-25 | BK3: 2025-26 | BL3: 2026-27 | BM3: 2027-28 | BN3: 2028-29 | BO3: 2029-30 | BP3: 2030-31 | BQ3: 2031-32 | BR3: 2032-33 | BT3: 2023-24 | BU3: 2024-25 | BV3: 2025-26 | BW3: 2026-27 | BX3: 2027-28 | BY3: 2028-29 | BZ3: 2029-30 | CA3: 2030-31 | CB3: =CB39 -> 2031-32 | CC3: =CC39 -> 2032-33 | CE3: 2023-24 | CF3: 2024-25 | CG3: 2025-26 | CH3: 2026-27 | CI3: 2027-28 | CJ3: 2028-29 | CK3: 2029-30 | CL3: 2030-31 | CM3: =CM39 -> 2031-32 | CN3: =CN39 -> 2032-33 | CP3: 2023-24 | CQ3: 2024-25 | CR3: =CR39 -> 2025-26 | CS3: 2026-27 | CT3: 2027-28 | CU3: 2028-29 | CV3: 2029-30 | CW3: 2030-31 | CX3: =CX39 -> 2031-32 | CY3: =CY39 -> 2032-33
C7: Input Summary | F7: FIFTH REG PERIOD | K7: SIXTH REG PERIOD
D9: =+Q39 -> 2023-24 | E9: =+R39 -> 2024-25 | F9: 2025-26 | G9: 2026-27 | H9: 2027-28 | I9: 2028-29 | J9: 2029-30 | K9: 2030-31 | L9: =+Y39 -> 2031-32 | M9: =+Z39 -> 2032-33
C10: By Cost Driver
C11: Net capital expenditure - Renewals | D11: =+SUMIF($F$42:$F$1016,"Renewals",AX$42:AX$1016) -> 25.49 | E11: 30.23 | F11: 27.85 | G11: 26.48 | H11: 23.07 | I11: 18.8 | J11: 14.93 | K11: 19.215 | L11: =+SUMIF($F$42:$F$1016,"Renewals",BF$42:BF$1016) -> 14.23 | M11: =+SUMIF($F$42:$F$1016,"Renewals",BG$42:BG$1016) -> 18.71
C12: Net capital expenditure - Growth | D12: =+SUMIF($F$42:$F$1016,"Growth",AX$42:AX$1016) -> 10.3386 | E12: 8.9769 | F12: 4.9998 | G12: 5.0673 | H12: 3.7511 | I12: 17.9078 | J12: 18.5445 | K12: 12.6635 | L12: =+SUMIF($F$42:$F$1016,"Growth",BF$42:BF$1016) -> 14.5394 | M12: =+SUMIF($F$42:$F$1016,"Growth",BG$42:BG$1016) -> 7.8316
C13: Net capital expenditure - Improvements / Compliance | D13: =+SUMIF($F$42:$F$1016,"Improvements / Compliance",AX$42:AX$1016) -> 17.06 | E13: 16 | F13: 10.08 | G13: 3.78 | H13: 6.11 | I13: 6.54 | J13: 9.46 | K13: 7.49 | L13: =+SUMIF($F$42:$F$1016,"Improvements / Compliance",BF$42:BF$1016) -> 0.55 | M13: =+SUMIF($F$42:$F$1016,"Improvements / Compliance",BG$42:BG$1016) -> 0.1
C14: Government Contributions | D14: =+AB41 -> 0 | E14: 0 | F14: 0 | G14: 0 | H14: 0 | I14: 0 | J14: 0 | K14: 0 | L14: =+AJ41 -> 0 | M14: =+AK41 -> 0
C15: Customer Contributions | D15: =+AM41 -> 4.9114 | E15: 5.0231 | F15: 5.1402 | G15: 5.2627 | H15: 5.3889 | I15: 5.5222 | J15: 5.6555 | K15: 5.8465 | L15: =+AU41 -> 5.9906 | M15: =+AV41 -> 6.1384
C16: Total prescribed capex | D16: =SUM(D11:D15) -> 57.8 | E16: 60.23 | F16: 48.07 | G16: 40.59 | H16: 38.32 | I16: 48.77 | J16: 48.59 | K16: 45.215 | L16: =SUM(L11:L15) -> 35.31 | M16: =SUM(M11:M15) -> 32.78
C18: By Capital Type
C19: Top 10 Major Projects | D19: =+SUMIF($H$42:$H$1016,$C$19,Q$42:Q$1016) -> 25.94 | E19: 35.12 | F19: 30.07 | G19: 18.84 | H19: 11.97 | I19: 15.42 | J19: 12.46 | K19: 3.85 | L19: =+SUMIF($H$42:$H$1016,$C$19,Y$42:Y$1016) -> 0 | M19: =+SUMIF($H$42:$H$1016,$C$19,Z$42:Z$1016) -> 0
C20: Significant projects | D20: =+SUMIF($H$42:$H$1016,$C$20,Q$42:Q$1016) -> 8.22 | E20: 6.66 | F20: 2.75 | G20: 2.95 | H20: 2.33 | I20: 0 | J20: 0 | K20: 0 | L20: =+SUMIF($H$42:$H$1016,$C$20,Y$42:Y$1016) -> 0 | M20: =+SUMIF($H$42:$H$1016,$C$20,Z$42:Z$1016) -> 0
C21: Capital Programs / Allocation | D21: =+SUMIF($H$42:$H$1016,$C$21,Q$42:Q$1016) -> 9.5 | E21: 9.5 | F21: 9.5 | G21: 9.6 | H21: 9.6 | I21: 11.25 | J21: 11.25 | K21: 11.25 | L21: =+SUMIF($H$42:$H$1016,$C$21,Y$42:Y$1016) -> 10.75 | M21: =+SUMIF($H$42:$H$1016,$C$21,Z$42:Z$1016) -> 10.75
C22: Other Capital expenditure | D22: =+SUMIF($H$42:$H$1016,$C$22,Q$42:Q$1016) -> 14.14 | E22: 8.95 | F22: 5.75 | G22: 9.2 | H22: 14.42 | I22: 22.1 | J22: 24.88 | K22: 30.115 | L22: =+SUMIF($H$42:$H$1016,$C$22,Y$42:Y$1016) -> 24.56 | M22: =+SUMIF($H$42:$H$1016,$C$22,Z$42:Z$1016) -> 22.03
C23: Total prescribed capex | D23: =SUM(D19:D22) -> 57.8 | E23: 60.23 | F23: 48.07 | G23: 40.59 | H23: 38.32 | I23: 48.77 | J23: 48.59 | K23: 45.215 | L23: =SUM(L19:L22) -> 35.31 | M23: =SUM(M19:M22) -> 32.78
C25: Difference | D25: =+D23-D16 -> 0 | E25: 0 | F25: 0 | G25: 0 | H25: 0 | I25: 0 | J25: 0 | K25: 0 | L25: =+L23-L16 -> 0 | M25: =+M23-M16 -> 0
C26: Test | D26: =IF(+D23=D16,0,1) -> 0 | E26: 0 | F26: 0 | G26: 0 | H26: 0 | I26: 0 | J26: 0 | K26: 0 | L26: 0 | M26: 0
C29: Total prescribed capex | D29: =+D23 -> 57.8 | E29: 60.23 | F29: 48.07 | G29: 40.59 | H29: 38.32 | I29: 48.77 | J29: 48.59 | K29: 45.215 | L29: =+L23 -> 35.31 | M29: =+M23 -> 32.78
C32: Regulatory Depreciation | D32: =+BI41 -> 0.4581631945 | E32: 1.604855998 | F32: 3.566603299 | G32: 5.372952901 | H32: 6.388269205 | I32: 7.314533287 | J32: 8.209974545 | K32: 9.38610931 | L32: =+BQ41 -> 10.25383003 | M32: =+BR41 -> 10.56147697
B35: =Expenditure_Detail!$B$6 -> $m, 01/01/23
Q36: Gross capital expenditure | AB36: Government contributions | AM36: Customer contributions | AX36: Net capital expenditure | BI36: Regulatory Depreciation | BT36: Accumulated capex | CE36: Gross capital expenditure | CP36: Tax Depreciation
Q37: =Expenditure_Detail!$B$6 -> $m, 01/01/23 | AB37: =Expenditure_Detail!$B$6 -> $m, 01/01/23 | AM37: =Expenditure_Detail!$B$6 -> $m, 01/01/23 | AX37: =Expenditure_Detail!$B$6 -> $m, 01/01/23 | BI37: =Expenditure_Detail!$B$6 -> $m, 01/01/23 | BT37: =Expenditure_Detail!$B$6 -> $m, 01/01/23 | CE37: Nominal,$ | CP37: Nominal,$
Q39: 2023-24 | R39: 2024-25 | S39: 2025-26 | T39: 2026-27 | U39: 2027-28 | V39: 2028-29 | W39: 2029-30 | X39: 2030-31 | Y39: 2031-32 | Z39: 2032-33 | AB39: 2023-24 | AC39: 2024-25 | AD39: 2025-26 | AE39: 2026-27 | AF39: 2027-28 | AG39: 2028-29 | AH39: 2029-30 | AI39: 2030-31 | AJ39: 2031-32 | AK39: 2032-33 | AM39: 2023-24 | AN39: 2024-25 | AO39: 2025-26 | AP39: 2026-27 | AQ39: 2027-28 | AR39: 2028-29 | AS39: 2029-30 | AT39: 2030-31 | AU39: 2031-32 | AV39: 2032-33 | AX39: 2023-24 | AY39: 2024-25 | AZ39: 2025-26 | BA39: 2026-27 | BB39: 2027-28 | BC39: 2028-29 | BD39: 2029-30 | BE39: 2030-31 | BF39: 2031-32 | BG39: 2032-33 | BI39: 2023-24 | BJ39: 2024-25 | BK39: 2025-26 | BL39: 2026-27 | BM39: 2027-28 | BN39: 2028-29 | BO39: 2029-30 | BP39: 2030-31 | BQ39: 2031-32 | BR39: 2032-33 | BT39: 2023-24 | BU39: 2024-25 | BV39: 2025-26 | BW39: 2026-27 | BX39: 2027-28 | BY39: 2028-29 | BZ39: 2029-30 | CA39: 2030-31 | CB39: 2031-32 | CC39: 2032-33 | CE39: 2023-24 | CF39: 2024-25 | CG39: 2025-26 | CH39: 2026-27 | CI39: 2027-28 | CJ39: 2028-29 | CK39: 2029-30 | CL39: 2030-31 | CM39: 2031-32 | CN39: 2032-33 | CP39: 2023-24 | CQ39: 2024-25 | CR39: 2025-26 | CS39: 2026-27 | CT39: 2027-28 | CU39: 2028-29 | CV39: 2029-30 | CW39: 2030-31 | CX39: 2031-32 | CY39: 2032-33
BI40: 1 | BJ40: 2 | BK40: 3 | BL40: 4 | BM40: 5 | BN40: 6 | BO40: 7 | BP40: 8 | BQ40: 9 | BR40: 10 | CP40: 1 | CQ40: 2 | CR40: 3 | CS40: 4 | CT40: 5 | CU40: 6 | CV40: 7 | CW40: 8 | CX40: 9 | CY40: 10
C41: Project/program Name | E41: Service | F41: Major cost driver | G41: Asset category | H41: Capital type | J41: Reg Depreciation Method | K41: Year asset operational | L41: Asset life (Regulatory) | M41: Asset life (Tax) | Q41: =SUM(Q42:Q1016) -> 57.8 | R41: 60.23 | S41: 48.07 | T41: 40.59 | U41: 38.32 | V41: 48.77 | W41: 48.59 | X41: 45.215 | Y41: =SUM(Y42:Y1016) -> 35.31 | Z41: =SUM(Z42:Z1016) -> 32.78 | AB41: =SUM(AB42:AB1016) -> 0 | AC41: 0 | AD41: 0 | AE41: 0 | AF41: 0 | AG41: 0 | AH41: 0 | AI41: 0 | AJ41: 0 | AK41: 0 | AM41: =SUM(AM42:AM1016) -> 4.9114 | AN41: 5.0231 | AO41: 5.1402 | AP41: 5.2627 | AQ41: 5.3889 | AR41: 5.5222 | AS41: 5.6555 | AT41: 5.8465 | AU41: 5.9906 | AV41: 6.1384 | AX41: =SUM(AX42:AX1016) -> 52.8886 | AY41: 55.2069 | AZ41: 42.9298 | BA41: 35.3273 | BB41: 32.9311 | BC41: 43.2478 | BD41: 42.9345 | BE41: 39.3685 | BF41: 29.3194 | BG41: 26.6416 | BI41: =SUM(BI42:BI1016) -> 0.4581631945 | BJ41: 1.604855998 | BK41: 3.566603299 | BL41: 5.372952901 | BM41: 6.388269205 | BN41: 7.314533287 | BO41: 8.209974545 | BP41: 9.38610931 | BQ41: =SUM(BQ42:BQ1016) -> 10.25383003 | BR41: =SUM(BR42:BR1016) -> 10.56147697 | BT41: =SUM(BT42:BT1016) -> 23.4586 | BU41: 45.2569 | BV41: 63.9198 | BW41: 34.7373 | BX41: 28.9211 | BY41: 54.5678 | BZ41: 49.3945 | CA41: 44.5785 | CB41: =SUM(CB42:CB1016) -> 29.3194 | CC41: =SUM(CC42:CC1016) -> 26.6416 | CE41: =SUM(CE42:CE1016) -> 59.534 | CF41: 63.898007 | CG41: 52.52738689 | CH41: 45.6844026 | CI41: 44.42338253 | CJ41: 58.2339305 | CK41: 59.75957112 | CL41: 57.27700923 | CM41: =SUM(CM42:CM1016) -> 46.07154112 | CN41: =SUM(CN42:CN1016) -> 44.05357891 | CP41: =SUM(CP42:CP1016) -> 0.9650790474 | CQ41: 2.922885238 | CR41: 4.728263645 | CS41: 6.190176326 | CT41: 7.492336065 | CU41: 8.75436206 | CV41: 10.07903822 | CW41: 11.45692768 | CX41: =SUM(CX42:CX1016) -> 12.38505992 | CY41: =SUM(CY42:CY1016) -> 12.95495243
C42: Nathalia - Water Supply Pipeline | E42: Water | F42: Renewals | G42: Pipelines/network | H42: Top 10 Major Projects | J42: Straight line | K42: 2028-29 | L42: 90 | M42: 90 | Q42: 0 | R42: 0.24 | S42: 6 | T42: 7.14 | U42: 3.96 | V42: 0.4 | W42: 0 | X42: 0 | Y42: 0 | Z42: 0 | AX42: =+Q42-AB42-AM42 -> 0 | AY42: =+R42-AC42-AN42 -> 0.24 | AZ42: =+S42-AD42-AO42 -> 6 | BA42: =+T42-AE42-AP42 -> 7.14 | BB42: =+U42-AF42-AQ42 -> 3.96 | BC42: =+V42-AG42-AR42 -> 0.4 | BD42: =+W42-AH42-AS42 -> 0 | BE42: =+X42-AI42-AT42 -> 0 | BF42: =+Y42-AJ42-AU42 -> 0 | BG42: =+Z42-AK42-AV42 -> 0 | BI42: =IF($L42=0,0, IF($L42<=0.5,BT42, IF($J42="straight line", IF((LEFT(BI$39,4)*1)-INT($L42)<LEFT($BI$39,4)*1,0,((OFFSET(BT42,0,-INT($L42+0.5),1,1))/$L42)*(IF($L42-INT($L42)>0.5,$L42-0.5-INT($L42),IF($L42-INT($L42)<=0.5,$L42-0.5-INT($L42)+1,0)))) +BT42/$L42*0.5, IF($J42="Declining Balance",-$BI$38,0)))) -> 0 | BJ42: =IF($L42=0,0, IF($L42<=0.5,BU42, IF(AND($J42="straight line",$L42<1.51),(BT42-((BT42/$L42)*0.5))+BU42/$L42*0.5, IF($J42="straight line", IF((LEFT(BJ$39,4)*1)-INT($L42)<LEFT($BI$39,4)*1,0,((OFFSET(BU42,0,-INT($L42+0.5),1,1))/$L42)*(IF($L42-INT($L42)>0.5,$L42-0.5-INT($L42),IF($L42-INT($L42)<=0.5,$L42-0.5-INT($L42)+1,0)))) +BU42/$L42*0.5 +SUM(OFFSET(BU42,0,MAX(-INT($L42+(0.5-(10^-12))),-BJ$40)+1,1,MIN(INT($L42+(0.5-(10^-12))),BJ$40)-1))*1/$L42, IF($J42="Declining Balance",-$BI$38,0))))) -> 0 | BK42: =IF($L42=0,0, IF($L42<=0.5,BV42, IF(AND($J42="straight line",$L42<1.51),(BU42-((BU42/$L42)*0.5))+BV42/$L42*0.5, IF($J42="straight line", IF((LEFT(BK$39,4)*1)-INT($L42)<LEFT($BI$39,4)*1,0,((OFFSET(BV42,0,-INT($L42+0.5),1,1))/$L42)*(IF($L42-INT($L42)>0.5,$L42-0.5-INT($L42),IF($L42-INT($L42)<=0.5,$L42-0.5-INT($L42)+1,0)))) +BV42/$L42*0.5 +SUM(OFFSET(BV42,0,MAX(-INT($L42+(0.5-(10^-12))),-BK$40)+1,1,MIN(INT($L42+(0.5-(10^-12))),BK$40)-1))*1/$L42, IF($J42="Declining Balance",-$BI$38,0))))) -> 0 | BL42: =IF($L42=0,0, IF($L42<=0.5,BW42, IF(AND($J42="straight line",$L42<1.51),(BV42-((BV42/$L42)*0.5))+BW42/$L42*0.5, IF($J42="straight line", IF((LEFT(BL$39,4)*1)-INT($L42)<LEFT($BI$39,4)*1,0,((OFFSET(BW42,0,-INT($L42+0.5),1,1))/$L42)*(IF($L42-INT($L42)>0.5,$L42-0.5-INT($L42),IF($L42-INT($L42)<=0.5,$L42-0.5-INT($L42)+1,0)))) +BW42/$L42*0.5 +SUM(OFFSET(BW42,0,MAX(-INT($L42+(0.5-(10^-12))),-BL$40)+1,1,MIN(INT($L42+(0.5-(10^-12))),BL$40)-1))*1/$L42, IF($J42="Declining Balance",-$BI$38,0))))) -> 0 | BM42: =IF($L42=0,0, IF($L42<=0.5,BX42, IF(AND($J42="straight line",$L42<1.51),(BW42-((BW42/$L42)*0.5))+BX42/$L42*0.5, IF($J42="straight line", IF((LEFT(BM$39,4)*1)-INT($L42)<LEFT($BI$39,4)*1,0,((OFFSET(BX42,0,-INT($L42+0.5),1,1))/$L42)*(IF($L42-INT($L42)>0.5,$L42-0.5-INT($L42),IF($L42-INT($L42)<=0.5,$L42-0.5-INT($L42)+1,0)))) +BX42/$L42*0.5 +SUM(OFFSET(BX42,0,MAX(-INT($L42+(0.5-(10^-12))),-BM$40)+1,1,MIN(INT($L42+(0.5-(10^-12))),BM$40)-1))*1/$L42, IF($J42="Declining Balance",-$BI$38,0))))) -> 0 | BN42: =IF($L42=0,0, IF($L42<=0.5,BY42, IF(AND($J42="straight line",$L42<1.51),(BX42-((BX42/$L42)*0.5))+BY42/$L42*0.5, IF($J42="straight line", IF((LEFT(BN$39,4)*1)-INT($L42)<LEFT($BI$39,4)*1,0,((OFFSET(BY42,0,-INT($L42+0.5),1,1))/$L42)*(IF($L42-INT($L42)>0.5,$L42-0.5-INT($L42),IF($L42-INT($L42)<=0.5,$L42-0.5-INT($L42)+1,0)))) +BY42/$L42*0.5 +SUM(OFFSET(BY42,0,MAX(-INT($L42+(0.5-(10^-12))),-BN$40)+1,1,MIN(INT($L42+(0.5-(10^-12))),BN$40)-1))*1/$L42, IF($J42="Declining Balance",-$BI$38,0))))) -> 0.09855555556 | BO42: =IF($L42=0,0, IF($L42<=0.5,BZ42, IF(AND($J42="straight line",$L42<1.51),(BY42-((BY42/$L42)*0.5))+BZ42/$L42*0.5, IF($J42="straight line", IF((LEFT(BO$39,4)*1)-INT($L42)<LEFT($BI$39,4)*1,0,((OFFSET(BZ42,0,-INT($L42+0.5),1,1))/$L42)*(IF($L42-INT($L42)>0.5,$L42-0.5-INT($L42),IF($L42-INT($L42)<=0.5,$L42-0.5-INT($L42)+1,0)))) +BZ42/$L42*0.5 +SUM(OFFSET(BZ42,0,MAX(-INT($L42+(0.5-(10^-12))),-BO$40)+1,1,MIN(INT($L42+(0.5-(10^-12))),BO$40)-1))*1/$L42, IF($J42="Declining Balance",-$BI$38,0))))) -> 0.1971111111 | BP42: =IF($L42=0,0, IF($L42<=0.5,CA42, IF(AND($J42="straight line",$L42<1.51),(BZ42-((BZ42/$L42)*0.5))+CA42/$L42*0.5, IF($J42="straight line", IF((LEFT(BP$39,4)*1)-INT($L42)<LEFT($BI$39,4)*1,0,((OFFSET(CA42,0,-INT($L42+0.5),1,1))/$L42)*(IF($L42-INT($L42)>0.5,$L42-0.5-INT($L42),IF($L42-INT($L42)<=0.5,$L42-0.5-INT($L42)+1,0)))) +CA42/$L42*0.5 +SUM(OFFSET(CA42,0,MAX(-INT($L42+(0.5-(10^-12))),-BP$40)+1,1,MIN(INT($L42+(0.5-(10^-12))),BP$40)-1))*1/$L42, IF($J42="Declining Balance",-$BI$38,0))))) -> 0.1971111111 | BQ42: =IF($L42=0,0, IF($L42<=0.5,CB42, IF(AND($J42="straight line",$L42<1.51),(CA42-((CA42/$L42)*0.5))+CB42/$L42*0.5, IF($J42="straight line", IF((LEFT(BQ$39,4)*1)-INT($L42)<LEFT($BI$39,4)*1,0,((OFFSET(CB42,0,-INT($L42+0.5),1,1))/$L42)*(IF($L42-INT($L42)>0.5,$L42-0.5-INT($L42),IF($L42-INT($L42)<=0.5,$L42-0.5-INT($L42)+1,0)))) +CB42/$L42*0.5 +SUM(OFFSET(CB42,0,MAX(-INT($L42+(0.5-(10^-12))),-BQ$40)+1,1,MIN(INT($L42+(0.5-(10^-12))),BQ$40)-1))*1/$L42, IF($J42="Declining Balance",-$BI$38,0))))) -> 0.1971111111 | BR42: =IF($L42=0,0, IF($L42<=0.5,CC42, IF(AND($J42="straight line",$L42<1.51),(CB42-((CB42/$L42)*0.5))+CC42/$L42*0.5, IF($J42="straight line", IF((LEFT(BR$39,4)*1)-INT($L42)<LEFT($BI$39,4)*1,0,((OFFSET(CC42,0,-INT($L42+0.5),1,1))/$L42)*(IF($L42-INT($L42)>0.5,$L42-0.5-INT($L42),IF($L42-INT($L42)<=0.5,$L42-0.5-INT($L42)+1,0)))) +CC42/$L42*0.5 +SUM(OFFSET(CC42,0,MAX(-INT($L42+(0.5-(10^-12))),-BR$40)+1,1,MIN(INT($L42+(0.5-(10^-12))),BR$40)-1))*1/$L42, IF($J42="Declining Balance",-$BI$38,0))))) -> 0.1971111111 | BT42: =+IF($K42="Ongoing",AX42,IF(RIGHT($K42,2)=RIGHT(BT$39,2),SUM($AX42:AX42),0)+IF(RIGHT(BT$39,2)>RIGHT($K42,2),AX42,0)) -> 0 | BU42: =+IF($K42="Ongoing",AY42,IF(RIGHT($K42,2)=RIGHT(BU$39,2),SUM($AX42:AY42),0)+IF(RIGHT(BU$39,2)>RIGHT($K42,2),AY42,0)) -> 0 | BV42: =+IF($K42="Ongoing",AZ42,IF(RIGHT($K42,2)=RIGHT(BV$39,2),SUM($AX42:AZ42),0)+IF(RIGHT(BV$39,2)>RIGHT($K42,2),AZ42,0)) -> 0 | BW42: =+IF($K42="Ongoing",BA42,IF(RIGHT($K42,2)=RIGHT(BW$39,2),SUM($AX42:BA42),0)+IF(RIGHT(BW$39,2)>RIGHT($K42,2),BA42,0)) -> 0 | BX42: =+IF($K42="Ongoing",BB42,IF(RIGHT($K42,2)=RIGHT(BX$39,2),SUM($AX42:BB42),0)+IF(RIGHT(BX$39,2)>RIGHT($K42,2),BB42,0)) -> 0 | BY42: =+IF($K42="Ongoing",BC42,IF(RIGHT($K42,2)=RIGHT(BY$39,2),SUM($AX42:BC42),0)+IF(RIGHT(BY$39,2)>RIGHT($K42,2),BC42,0)) -> 17.74 | BZ42: =+IF($K42="Ongoing",BD42,IF(RIGHT($K42,2)=RIGHT(BZ$39,2),SUM($AX42:BD42),0)+IF(RIGHT(BZ$39,2)>RIGHT($K42,2),BD42,0)) -> 0 | CA42: =+IF($K42="Ongoing",BE42,IF(RIGHT($K42,2)=RIGHT(CA$39,2),SUM($AX42:BE42),0)+IF(RIGHT(CA$39,2)>RIGHT($K42,2),BE42,0)) -> 0 | CB42: =+IF($K42="Ongoing",BF42,IF(RIGHT($K42,2)=RIGHT(CB$39,2),SUM($AX42:BF42),0)+IF(RIGHT(CB$39,2)>RIGHT($K42,2),BF42,0)) -> 0 | CC42: =+IF($K42="Ongoing",BG42,IF(RIGHT($K42,2)=RIGHT(CC$39,2),SUM($AX42:BG42),0)+IF(RIGHT(CC$39,2)>RIGHT($K42,2),BG42,0)) -> 0 | CE42: =+Q42*KeyAssumptionsPriceControl_FO!AC$15 -> 0 | CF42: =+R42*KeyAssumptionsPriceControl_FO!AD$15 -> 0.254616 | CG42: =+S42*KeyAssumptionsPriceControl_FO!AE$15 -> 6.556362 | CH42: =+T42*KeyAssumptionsPriceControl_FO!AF$15 -> 8.036132903 | CI42: =+U42*KeyAssumptionsPriceControl_FO!AG$15 -> 4.590725334 | CJ42: =+V42*KeyAssumptionsPriceControl_FO!AH$15 -> 0.4776209186 | CK42: =+W42*KeyAssumptionsPriceControl_FO!AI$15 -> 0 | CL42: =+X42*KeyAssumptionsPriceControl_FO!AJ$15 -> 0 | CM42: =+Y42*KeyAssumptionsPriceControl_FO!AK$15 -> 0 | CN42: =+Z42*KeyAssumptionsPriceControl_FO!AL$15 -> 0 | CP42: =IF($M42=0,0, IF($M42<=0.5,CE42, IF($J42="straight line", IF((LEFT(CP$39,4)*1)-INT($M42)<LEFT($CP$39,4)*1,0,((OFFSET(CE42,0,-INT($M42+0.5),1,1))/$M42)*(IF($M42-INT($M42)>0.5,$M42-0.5-INT($M42),IF($M42-INT($M42)<=0.5,$M42-0.5-INT($M42)+1,0)))) +CE42/$M42*0.5, IF($J42="Declining Balance",-$CP$38,0)))) -> 0 | CQ42: =IF($M42=0,0, IF($M42<=0.5,CF42, IF(AND($J42="straight line",$M42<1.51),(CE42-((CE42/$M42)*0.5))+CF42/$M42*0.5, IF($J42="straight line", IF((LEFT(CQ$39,4)*1)-INT($M42)<LEFT($CP$39,4)*1,0,((OFFSET(CF42,0,-INT($M42+0.5),1,1))/$M42)*(IF($M42-INT($M42)>0.5,$M42-0.5-INT($M42),IF($M42-INT($M42)<=0.5,$M42-0.5-INT($M42)+1,0)))) +CF42/$M42*0.5 +SUM(OFFSET(CF42,0,MAX(-INT($M42+(0.5-(10^-12))),-CQ$40)+1,1,MIN(INT($M42+(0.5-(10^-12))),CQ$40)-1))*1/$M42, IF($J42="Declining Balance",-$CP$38,0))))) -> 0.001414533333 | CR42: =IF($M42=0,0, IF($M42<=0.5,CG42, IF(AND($J42="straight line",$M42<1.51),(CF42-((CF42/$M42)*0.5))+CG42/$M42*0.5, IF($J42="straight line", IF((LEFT(CR$39,4)*1)-INT($M42)<LEFT($CP$39,4)*1,0,((OFFSET(CG42,0,-INT($M42+0.5),1,1))/$M42)*(IF($M42-INT($M42)>0.5,$M42-0.5-INT($M42),IF($M42-INT($M42)<=0.5,$M42-0.5-INT($M42)+1,0)))) +CG42/$M42*0.5 +SUM(OFFSET(CG42,0,MAX(-INT($M42+(0.5-(10^-12))),-CR$40)+1,1,MIN(INT($M42+(0.5-(10^-12))),CR$40)-1))*1/$M42, IF($J42="Declining Balance",-$CP$38,0))))) -> 0.0392533 | CS42: =IF($M42=0,0, IF($M42<=0.5,CH42, IF(AND($J42="straight line",$M42<1.51),(CG42-((CG42/$M42)*0.5))+CH42/$M42*0.5, IF($J42="straight line", IF((LEFT(CS$39,4)*1)-INT($M42)<LEFT($CP$39,4)*1,0,((OFFSET(CH42,0,-INT($M42+0.5),1,1))/$M42)*(IF($M42-INT($M42)>0.5,$M42-0.5-INT($M42),IF($M42-INT($M42)<=0.5,$M42-0.5-INT($M42)+1,0)))) +CH42/$M42*0.5 +SUM(OFFSET(CH42,0,MAX(-INT($M42+(0.5-(10^-12))),-CS$40)+1,1,MIN(INT($M42+(0.5-(10^-12))),CS$40)-1))*1/$M42, IF($J42="Declining Balance",-$CP$38,0))))) -> 0.1203227161 | CT42: =IF($M42=0,0, IF($M42<=0.5,CI42, IF(AND($J42="straight line",$M42<1.51),(CH42-((CH42/$M42)*0.5))+CI42/$M42*0.5, IF($J42="straight line", IF((LEFT(CT$39,4)*1)-INT($M42)<LEFT($CP$39,4)*1,0,((OFFSET(CI42,0,-INT($M42+0.5),1,1))/$M42)*(IF($M42-INT($M42)>0.5,$M42-0.5-INT($M42),IF($M42-INT($M42)<=0.5,$M42-0.5-INT($M42)+1,0)))) +CI42/$M42*0.5 +SUM(OFFSET(CI42,0,MAX(-INT($M42+(0.5-(10^-12))),-CT$40)+1,1,MIN(INT($M42+(0.5-(10^-12))),CT$40)-1))*1/$M42, IF($J42="Declining Balance",-$CP$38,0))))) -> 0.1904719286 | CU42: =IF($M42=0,0, IF($M42<=0.5,CJ42, IF(AND($J42="straight line",$M42<1.51),(CI42-((CI42/$M42)*0.5))+CJ42/$M42*0.5, IF($J42="straight line", IF((LEFT(CU$39,4)*1)-INT($M42)<LEFT($CP$39,4)*1,0,((OFFSET(CJ42,0,-INT($M42+0.5),1,1))/$M42)*(IF($M42-INT($M42)>0.5,$M42-0.5-INT($M42),IF($M42-INT($M42)<=0.5,$M42-0.5-INT($M42)+1,0)))) +CJ42/$M42*0.5 +SUM(OFFSET(CJ42,0,MAX(-INT($M42+(0.5-(10^-12))),-CU$40)+1,1,MIN(INT($M42+(0.5-(10^-12))),CU$40)-1))*1/$M42, IF($J42="Declining Balance",-$CP$38,0))))) -> 0.2186294077 | CV42: =IF($M42=0,0, IF($M42<=0.5,CK42, IF(AND($J42="straight line",$M42<1.51),(CJ42-((CJ42/$M42)*0.5))+CK42/$M42*0.5, IF($J42="straight line", IF((LEFT(CV$39,4)*1)-INT($M42)<LEFT($CP$39,4)*1,0,((OFFSET(CK42,0,-INT($M42+0.5),1,1))/$M42)*(IF($M42-INT($M42)>0.5,$M42-0.5-INT($M42),IF($M42-INT($M42)<=0.5,$M42-0.5-INT($M42)+1,0)))) +CK42/$M42*0.5 +SUM(OFFSET(CK42,0,MAX(-INT($M42+(0.5-(10^-12))),-CV$40)+1,1,MIN(INT($M42+(0.5-(10^-12))),CV$40)-1))*1/$M42, IF($J42="Declining Balance",-$CP$38,0))))) -> 0.2212828573 | CW42: =IF($M42=0,0, IF($M42<=0.5,CL42, IF(AND($J42="straight line",$M42<1.51),(CK42-((CK42/$M42)*0.5))+CL42/$M42*0.5, IF($J42="straight line", IF((LEFT(CW$39,4)*1)-INT($M42)<LEFT($CP$39,4)*1,0,((OFFSET(CL42,0,-INT($M42+0.5),1,1))/$M42)*(IF($M42-INT($M42)>0.5,$M42-0.5-INT($M42),IF($M42-INT($M42)<=0.5,$M42-0.5-INT($M42)+1,0)))) +CL42/$M42*0.5 +SUM(OFFSET(CL42,0,MAX(-INT($M42+(0.5-(10^-12))),-CW$40)+1,1,MIN(INT($M42+(0.5-(10^-12))),CW$40)-1))*1/$M42, IF($J42="Declining Balance",-$CP$38,0))))) -> 0.2212828573 | CX42: =IF($M42=0,0, IF($M42<=0.5,CM42, IF(AND($J42="straight line",$M42<1.51),(CL42-((CL42/$M42)*0.5))+CM42/$M42*0.5, IF($J42="straight line", IF((LEFT(CX$39,4)*1)-INT($M42)<LEFT($CP$39,4)*1,0,((OFFSET(CM42,0,-INT($M42+0.5),1,1))/$M42)*(IF($M42-INT($M42)>0.5,$M42-0.5-INT($M42),IF($M42-INT($M42)<=0.5,$M42-0.5-INT($M42)+1,0)))) +CM42/$M42*0.5 +SUM(OFFSET(CM42,0,MAX(-INT($M42+(0.5-(10^-12))),-CX$40)+1,1,MIN(INT($M42+(0.5-(10^-12))),CX$40)-1))*1/$M42, IF($J42="Declining Balance",-$CP$38,0))))) -> 0.2212828573 | CY42: =IF($M42=0,0, IF($M42<=0.5,CN42, IF(AND($J42="straight line",$M42<1.51),(CM42-((CM42/$M42)*0.5))+CN42/$M42*0.5, IF($J42="straight line", IF((LEFT(CY$39,4)*1)-INT($M42)<LEFT($CP$39,4)*1,0,((OFFSET(CN42,0,-INT($M42+0.5),1,1))/$M42)*(IF($M42-INT($M42)>0.5,$M42-0.5-INT($M42),IF($M42-INT($M42)<=0.5,$M42-0.5-INT($M42)+1,0)))) +CN42/$M42*0.5 +SUM(OFFSET(CN42,0,MAX(-INT($M42+(0.5-(10^-12))),-CY$40)+1,1,MIN(INT($M42+(0.5-(10^-12))),CY$40)-1))*1/$M42, IF($J42="Declining Balance",-$CP$38,0))))) -> 0.2212828573
C43: Broadford - Water Treatment Plant Upgrade | E43: Water | F43: Growth | G43: Treatment | H43: Top 10 Major Projects | J43: Straight line | K43: Ongoing | L43: 47.5 | M43: 47.5 | Q43: 0.4 | R43: 1 | S43: 5.69 | T43: 6.47 | U43: 1 | V43: 4.5 | W43: 2 | X43: 0 | Y43: 0 | Z43: 0 | AX43: 0.4 | AY43: 1 | AZ43: 5.69 | BA43: 6.47 | BB43: 1 | BC43: 4.5 | BD43: 2 | BE43: 0 | BF43: 0 | BG43: 0 | BI43: =IF($L43=0,0, IF($L43<=0.5,BT43, IF($J43="straight line", IF((LEFT(BI$39,4)*1)-INT($L43)<LEFT($BI$39,4)*1,0,((OFFSET(BT43,0,-INT($L43+0.5),1,1))/$L43)*(IF($L43-INT($L43)>0.5,$L43-0.5-INT($L43),IF($L43-INT($L43)<=0.5,$L43-0.5-INT($L43)+1,0)))) +BT43/$L43*0.5, IF($J43="Declining Balance",-$BI$38,0)))) -> 0.004210526316 | BJ43: =IF($L43=0,0, IF($L43<=0.5,BU43, IF(AND($J43="straight line",$L43<1.51),(BT43-((BT43/$L43)*0.5))+BU43/$L43*0.5, IF($J43="straight line", IF((LEFT(BJ$39,4)*1)-INT($L43)<LEFT($BI$39,4)*1,0,((OFFSET(BU43,0,-INT($L43+0.5),1,1))/$L43)*(IF($L43-INT($L43)>0.5,$L43-0.5-INT($L43),IF($L43-INT($L43)<=0.5,$L43-0.5-INT($L43)+1,0)))) +BU43/$L43*0.5 +SUM(OFFSET(BU43,0,MAX(-INT($L43+(0.5-(10^-12))),-BJ$40)+1,1,MIN(INT($L43+(0.5-(10^-12))),BJ$40)-1))*1/$L43, IF($J43="Declining Balance",-$BI$38,0))))) -> 0.01894736842 | BK43: 0.08936842105 | BL43: 0.2173684211 | BM43: 0.296 | BN43: 0.3538947368 | BO43: 0.4223157895 | BP43: 0.4433684211 | BQ43: 0.4433684211 | BR43: 0.4433684211 | BT43: =+IF($K43="Ongoing",AX43,IF(RIGHT($K43,2)=RIGHT(BT$39,2),SUM($AX43:AX43),0)+IF(RIGHT(BT$39,2)>RIGHT($K43,2),AX43,0)) -> 0.4 | BU43: =+IF($K43="Ongoing",AY43,IF(RIGHT($K43,2)=RIGHT(BU$39,2),SUM($AX43:AY43),0)+IF(RIGHT(BU$39,2)>RIGHT($K43,2),AY43,0)) -> 1 | BV43: =+IF($K43="Ongoing",AZ43,IF(RIGHT($K43,2)=RIGHT(BV$39,2),SUM($AX43:AZ43),0)+IF(RIGHT(BV$39,2)>RIGHT($K43,2),AZ43,0)) -> 5.69 | BW43: =+IF($K43="Ongoing",BA43,IF(RIGHT($K43,2)=RIGHT(BW$39,2),SUM($AX43:BA43),0)+IF(RIGHT(BW$39,2)>RIGHT($K43,2),BA43,0)) -> 6.47 | BX43: =+IF($K43="Ongoing",BB43,IF(RIGHT($K43,2)=RIGHT(BX$39,2),SUM($AX43:BB43),0)+IF(RIGHT(BX$39,2)>RIGHT($K43,2),BB43,0)) -> 1 | BY43: =+IF($K43="Ongoing",BC43,IF(RIGHT($K43,2)=RIGHT(BY$39,2),SUM($AX43:BC43),0)+IF(RIGHT(BY$39,2)>RIGHT($K43,2),BC43,0)) -> 4.5 | BZ43: =+IF($K43="Ongoing",BD43,IF(RIGHT($K43,2)=RIGHT(BZ$39,2),SUM($AX43:BD43),0)+IF(RIGHT(BZ$39,2)>RIGHT($K43,2),BD43,0)) -> 2 | CA43: =+IF($K43="Ongoing",BE43,IF(RIGHT($K43,2)=RIGHT(CA$39,2),SUM($AX43:BE43),0)+IF(RIGHT(CA$39,2)>RIGHT($K43,2),BE43,0)) -> 0 | CB43: =+IF($K43="Ongoing",BF43,IF(RIGHT($K43,2)=RIGHT(CB$39,2),SUM($AX43:BF43),0)+IF(RIGHT(CB$39,2)>RIGHT($K43,2),BF43,0)) -> 0 | CC43: =+IF($K43="Ongoing",BG43,IF(RIGHT($K43,2)=RIGHT(CC$39,2),SUM($AX43:BG43),0)+IF(RIGHT(CC$39,2)>RIGHT($K43,2),BG43,0)) -> 0 | CE43: =+Q43*KeyAssumptionsPriceControl_FO!AC$15 -> 0.412 | CF43: =+R43*KeyAssumptionsPriceControl_FO!AD$15 -> 1.0609 | CG43: =+S43*KeyAssumptionsPriceControl_FO!AE$15 -> 6.21761663 | CH43: =+T43*KeyAssumptionsPriceControl_FO!AF$15 -> 7.282042001 | CI43: =+U43*KeyAssumptionsPriceControl_FO!AG$15 -> 1.159274074 | CJ43: =+V43*KeyAssumptionsPriceControl_FO!AH$15 -> 5.373235334 | CK43: =+W43*KeyAssumptionsPriceControl_FO!AI$15 -> 2.459747731 | CL43: =+X43*KeyAssumptionsPriceControl_FO!AJ$15 -> 0 | CM43: =+Y43*KeyAssumptionsPriceControl_FO!AK$15 -> 0 | CN43: =+Z43*KeyAssumptionsPriceControl_FO!AL$15 -> 0 | CP43: 0.004336842105 | CQ43: 0.01984105263 | CR43: 0.09645701716 | CS43: 0.238558687 | CT43: 0.3274146456 | CU43: 0.3961779026 | CV43: 0.4786303559 | CW43: 0.5045224373 | CX43: 0.5045224373 | CY43: 0.5045224373
C44: All Areas - Health Based Targets Water Treatment Plant Upgrade Program | E44: Water | F44: Improvements / Compliance | G44: Treatment | H44: Top 10 Major Projects | J44: Straight line | K44: Ongoing | L44: 47.5 | M44: 47.5 | Q44: 3.5 | R44: 3.5 | S44: 3 | T44: 1.5 | U44: 3 | V44: 4.65 | W44: 5 | X44: 3.85 | Y44: 0 | Z44: 0 | AX44: 3.5 | AY44: 3.5 | AZ44: 3 | BA44: 1.5 | BB44: 3 | BC44: 4.65 | BD44: 5 | BE44: 3.85 | BF44: 0 | BG44: 0 | BI44: 0.03684210526 | BJ44: 0.1105263158 | BK44: 0.1789473684 | BL44: 0.2263157895 | BM44: 0.2736842105 | BN44: 0.3542105263 | BO44: 0.4557894737 | BP44: 0.5489473684 | BQ44: 0.5894736842 | BR44: 0.5894736842 | BT44: =+IF($K44="Ongoing",AX44,IF(RIGHT($K44,2)=RIGHT(BT$39,2),SUM($AX44:AX44),0)+IF(RIGHT(BT$39,2)>RIGHT($K44,2),AX44,0)) -> 3.5 | BU44: =+IF($K44="Ongoing",AY44,IF(RIGHT($K44,2)=RIGHT(BU$39,2),SUM($AX44:AY44),0)+IF(RIGHT(BU$39,2)>RIGHT($K44,2),AY44,0)) -> 3.5 | BV44: =+IF($K44="Ongoing",AZ44,IF(RIGHT($K44,2)=RIGHT(BV$39,2),SUM($AX44:AZ44),0)+IF(RIGHT(BV$39,2)>RIGHT($K44,2),AZ44,0)) -> 3 | BW44: =+IF($K44="Ongoing",BA44,IF(RIGHT($K44,2)=RIGHT(BW$39,2),SUM($AX44:BA44),0)+IF(RIGHT(BW$39,2)>RIGHT($K44,2),BA44,0)) -> 1.5 | BX44: =+IF($K44="Ongoing",BB44,IF(RIGHT($K44,2)=RIGHT(BX$39,2),SUM($AX44:BB44),0)+IF(RIGHT(BX$39,2)>RIGHT($K44,2),BB44,0)) -> 3 | BY44: =+IF($K44="Ongoing",BC44,IF(RIGHT($K44,2)=RIGHT(BY$39,2),SUM($AX44:BC44),0)+IF(RIGHT(BY$39,2)>RIGHT($K44,2),BC44,0)) -> 4.65 | BZ44: =+IF($K44="Ongoing",BD44,IF(RIGHT($K44,2)=RIGHT(BZ$39,2),SUM($AX44:BD44),0)+IF(RIGHT(BZ$39,2)>RIGHT($K44,2),BD44,0)) -> 5 | CA44: =+IF($K44="Ongoing",BE44,IF(RIGHT($K44,2)=RIGHT(CA$39,2),SUM($AX44:BE44),0)+IF(RIGHT(CA$39,2)>RIGHT($K44,2),BE44,0)) -> 3.85 | CB44: =+IF($K44="Ongoing",BF44,IF(RIGHT($K44,2)=RIGHT(CB$39,2),SUM($AX44:BF44),0)+IF(RIGHT(CB$39,2)>RIGHT($K44,2),BF44,0)) -> 0 | CC44: =+IF($K44="Ongoing",BG44,IF(RIGHT($K44,2)=RIGHT(CC$39,2),SUM($AX44:BG44),0)+IF(RIGHT(CC$39,2)>RIGHT($K44,2),BG44,0)) -> 0 | CE44: =+Q44*KeyAssumptionsPriceControl_FO!AC$15 -> 3.605 | CF44: =+R44*KeyAssumptionsPriceControl_FO!AD$15 -> 3.71315 | CG44: =+S44*KeyAssumptionsPriceControl_FO!AE$15 -> 3.278181 | CH44: =+T44*KeyAssumptionsPriceControl_FO!AF$15 -> 1.688263215 | CI44: =+U44*KeyAssumptionsPriceControl_FO!AG$15 -> 3.477822223 | CJ44: =+V44*KeyAssumptionsPriceControl_FO!AH$15 -> 5.552343179 | CK44: =+W44*KeyAssumptionsPriceControl_FO!AI$15 -> 6.149369327 | CL44: =+X44*KeyAssumptionsPriceControl_FO!AJ$15 -> 4.877064813 | CM44: =+Y44*KeyAssumptionsPriceControl_FO!AK$15 -> 0 | CN44: =+Z44*KeyAssumptionsPriceControl_FO!AL$15 -> 0 | CP44: 0.03794736842 | CQ44: 0.1149805263 | CR44: 0.1885734842 | CS44: 0.2408518444 | CT44: 0.2952316911 | CU44: 0.3902860637 | CV44: 0.5134619848 | CW44: 0.6295297126 | CX44: 0.680867237 | CY44: 0.680867237
C45: Shepparton - Operations Centre Clear Water Storage Augmentation | E45: Water | F45: Growth | G45: Pipelines/network | H45: Top 10 Major Projects | J45: Straight line | K45: 2025-26 | L45: 60 | M45: 60 | Q45: 3 | R45: 6.37 | S45: 2.37 | T45: 0 | U45: 0 | V45: 0 | W45: 0 | X45: 0 | Y45: 0 | Z45: 0 | AX45: 3 | AY45: 6.37 | AZ45: 2.37 | BA45: 0 | BB45: 0 | BC45: 0 | BD45: 0 | BE45: 0 | BF45: 0 | BG45: 0 | BI45: 0 | BJ45: 0 | BK45: 0.09783333333 | BL45: 0.1956666667 | BM45: 0.1956666667 | BN45: 0.1956666667 | BO45: 0.1956666667 | BP45: 0.1956666667 | BQ45: 0.1956666667 | BR45: 0.1956666667 | BT45: =+IF($K45="Ongoing",AX45,IF(RIGHT($K45,2)=RIGHT(BT$39,2),SUM($AX45:AX45),0)+IF(RIGHT(BT$39,2)>RIGHT($K45,2),AX45,0)) -> 0 | BU45: =+IF($K45="Ongoing",AY45,IF(RIGHT($K45,2)=RIGHT(BU$39,2),SUM($AX45:AY45),0)+IF(RIGHT(BU$39,2)>RIGHT($K45,2),AY45,0)) -> 0 | BV45: =+IF($K45="Ongoing",AZ45,IF(RIGHT($K45,2)=RIGHT(BV$39,2),SUM($AX45:AZ45),0)+IF(RIGHT(BV$39,2)>RIGHT($K45,2),AZ45,0)) -> 11.74 | BW45: =+IF($K45="Ongoing",BA45,IF(RIGHT($K45,2)=RIGHT(BW$39,2),SUM($AX45:BA45),0)+IF(RIGHT(BW$39,2)>RIGHT($K45,2),BA45,0)) -> 0 | BX45: =+IF($K45="Ongoing",BB45,IF(RIGHT($K45,2)=RIGHT(BX$39,2),SUM($AX45:BB45),0)+IF(RIGHT(BX$39,2)>RIGHT($K45,2),BB45,0)) -> 0 | BY45: =+IF($K45="Ongoing",BC45,IF(RIGHT($K45,2)=RIGHT(BY$39,2),SUM($AX45:BC45),0)+IF(RIGHT(BY$39,2)>RIGHT($K45,2),BC45,0)) -> 0 | BZ45: =+IF($K45="Ongoing",BD45,IF(RIGHT($K45,2)=RIGHT(BZ$39,2),SUM($AX45:BD45),0)+IF(RIGHT(BZ$39,2)>RIGHT($K45,2),BD45,0)) -> 0 | CA45: =+IF($K45="Ongoing",BE45,IF(RIGHT($K45,2)=RIGHT(CA$39,2),SUM($AX45:BE45),0)+IF(RIGHT(CA$39,2)>RIGHT($K45,2),BE45,0)) -> 0 | CB45: =+IF($K45="Ongoing",BF45,IF(RIGHT($K45,2)=RIGHT(CB$39,2),SUM($AX45:BF45),0)+IF(RIGHT(CB$39,2)>RIGHT($K45,2),BF45,0)) -> 0 | CC45: =+IF($K45="Ongoing",BG45,IF(RIGHT($K45,2)=RIGHT(CC$39,2),SUM($AX45:BG45),0)+IF(RIGHT(CC$39,2)>RIGHT($K45,2),BG45,0)) -> 0 | CE45: =+Q45*KeyAssumptionsPriceControl_FO!AC$15 -> 3.09 | CF45: =+R45*KeyAssumptionsPriceControl_FO!AD$15 -> 6.757933 | CG45: =+S45*KeyAssumptionsPriceControl_FO!AE$15 -> 2.58976299 | CH45: =+T45*KeyAssumptionsPriceControl_FO!AF$15 -> 0 | CI45: =+U45*KeyAssumptionsPriceControl_FO!AG$15 -> 0 | CJ45: =+V45*KeyAssumptionsPriceControl_FO!AH$15 -> 0 | CK45: =+W45*KeyAssumptionsPriceControl_FO!AI$15 -> 0 | CL45: =+X45*KeyAssumptionsPriceControl_FO!AJ$15 -> 0 | CM45: =+Y45*KeyAssumptionsPriceControl_FO!AK$15 -> 0 | CN45: =+Z45*KeyAssumptionsPriceControl_FO!AL$15 -> 0 | CP45: 0.02575 | CQ45: 0.1078161083 | CR45: 0.1857135749 | CS45: 0.2072949332 | CT45: 0.2072949332 | CU45: 0.2072949332 | CV45: 0.2072949332 | CW45: 0.2072949332 | CX45: 0.2072949332 | CY45: 0.2072949332
C46: Mansfield - Raw Water Pipeline Upgrade Ritchies to Mansfield No.3 | E46: Water | F46: Renewals | G46: Pipelines/network | H46: Top 10 Major Projects | J46: Straight line | K46: 2026-27 | L46: 90 | M46: 90 | Q46: 0.5 | R46: 5 | S46: 5 | T46: 0.75 | U46: 0 | V46: 0 | W46: 0 | X46: 0 | Y46: 0 | Z46: 0 | AX46: 0.5 | AY46: 5 | AZ46: 5 | BA46: 0.75 | BB46: 0 | BC46: 0 | BD46: 0 | BE46: 0 | BF46: 0 | BG46: 0 | BI46: 0 | BJ46: 0 | BK46: 0 | BL46: 0.0625 | BM46: 0.125 | BN46: 0.125 | BO46: 0.125 | BP46: 0.125 | BQ46: 0.125 | BR46: 0.125 | BT46: =+IF($K46="Ongoing",AX46,IF(RIGHT($K46,2)=RIGHT(BT$39,2),SUM($AX46:AX46),0)+IF(RIGHT(BT$39,2)>RIGHT($K46,2),AX46,0)) -> 0 | BU46: =+IF($K46="Ongoing",AY46,IF(RIGHT($K46,2)=RIGHT(BU$39,2),SUM($AX46:AY46),0)+IF(RIGHT(BU$39,2)>RIGHT($K46,2),AY46,0)) -> 0 | BV46: =+IF($K46="Ongoing",AZ46,IF(RIGHT($K46,2)=RIGHT(BV$39,2),SUM($AX46:AZ46),0)+IF(RIGHT(BV$39,2)>RIGHT($K46,2),AZ46,0)) -> 0 | BW46: =+IF($K46="Ongoing",BA46,IF(RIGHT($K46,2)=RIGHT(BW$39,2),SUM($AX46:BA46),0)+IF(RIGHT(BW$39,2)>RIGHT($K46,2),BA46,0)) -> 11.25 | BX46: =+IF($K46="Ongoing",BB46,IF(RIGHT($K46,2)=RIGHT(BX$39,2),SUM($AX46:BB46),0)+IF(RIGHT(BX$39,2)>RIGHT($K46,2),BB46,0)) -> 0 | BY46: =+IF($K46="Ongoing",BC46,IF(RIGHT($K46,2)=RIGHT(BY$39,2),SUM($AX46:BC46),0)+IF(RIGHT(BY$39,2)>RIGHT($K46,2),BC46,0)) -> 0 | BZ46: =+IF($K46="Ongoing",BD46,IF(RIGHT($K46,2)=RIGHT(BZ$39,2),SUM($AX46:BD46),0)+IF(RIGHT(BZ$39,2)>RIGHT($K46,2),BD46,0)) -> 0 | CA46: =+IF($K46="Ongoing",BE46,IF(RIGHT($K46,2)=RIGHT(CA$39,2),SUM($AX46:BE46),0)+IF(RIGHT(CA$39,2)>RIGHT($K46,2),BE46,0)) -> 0 | CB46: =+IF($K46="Ongoing",BF46,IF(RIGHT($K46,2)=RIGHT(CB$39,2),SUM($AX46:BF46),0)+IF(RIGHT(CB$39,2)>RIGHT($K46,2),BF46,0)) -> 0 | CC46: =+IF($K46="Ongoing",BG46,IF(RIGHT($K46,2)=RIGHT(CC$39,2),SUM($AX46:BG46),0)+IF(RIGHT(CC$39,2)>RIGHT($K46,2),BG46,0)) -> 0 | CE46: =+Q46*KeyAssumptionsPriceControl_FO!AC$15 -> 0.515 | CF46: =+R46*KeyAssumptionsPriceControl_FO!AD$15 -> 5.3045 | CG46: =+S46*KeyAssumptionsPriceControl_FO!AE$15 -> 5.463635 | CH46: =+T46*KeyAssumptionsPriceControl_FO!AF$15 -> 0.8441316075 | CI46: =+U46*KeyAssumptionsPriceControl_FO!AG$15 -> 0 | CJ46: =+V46*KeyAssumptionsPriceControl_FO!AH$15 -> 0 | CK46: =+W46*KeyAssumptionsPriceControl_FO!AI$15 -> 0 | CL46: =+X46*KeyAssumptionsPriceControl_FO!AJ$15 -> 0 | CM46: =+Y46*KeyAssumptionsPriceControl_FO!AK$15 -> 0 | CN46: =+Z46*KeyAssumptionsPriceControl_FO!AL$15 -> 0 | CP46: 0.002861111111 | CQ46: 0.03519166667 | CR46: 0.09501463889 | CS46: 0.1300577867 | CT46: 0.1347474067 | CU46: 0.1347474067 | CV46: 0.1347474067 | CW46: 0.1347474067 | CX46: 0.1347474067 | CY46: 0.1347474067
C47: All Areas - Large Scale Solar | E47: Water | F47: Improvements / Compliance | G47: Corporate | H47: Top 10 Major Projects | J47: Straight line | K47: 2025-26 | L47: 25 | M47: 25 | Q47: 4 | R47: 3.75 | S47: 2.5 | T47: 0 | U47: 0 | V47: 0 | W47: 0 | X47: 0 | Y47: 0 | Z47: 0 | AX47: 4 | AY47: 3.75 | AZ47: 2.5 | BA47: 0 | BB47: 0 | BC47: 0 | BD47: 0 | BE47: 0 | BF47: 0 | BG47: 0 | BI47: 0 | BJ47: 0 | BK47: 0.205 | BL47: 0.41 | BM47: 0.41 | BN47: 0.41 | BO47: 0.41 | BP47: 0.41 | BQ47: 0.41 | BR47: 0.41 | BT47: =+IF($K47="Ongoing",AX47,IF(RIGHT($K47,2)=RIGHT(BT$39,2),SUM($AX47:AX47),0)+IF(RIGHT(BT$39,2)>RIGHT($K47,2),AX47,0)) -> 0 | BU47: =+IF($K47="Ongoing",AY47,IF(RIGHT($K47,2)=RIGHT(BU$39,2),SUM($AX47:AY47),0)+IF(RIGHT(BU$39,2)>RIGHT($K47,2),AY47,0)) -> 0 | BV47: =+IF($K47="Ongoing",AZ47,IF(RIGHT($K47,2)=RIGHT(BV$39,2),SUM($AX47:AZ47),0)+IF(RIGHT(BV$39,2)>RIGHT($K47,2),AZ47,0)) -> 10.25 | BW47: =+IF($K47="Ongoing",BA47,IF(RIGHT($K47,2)=RIGHT(BW$39,2),SUM($AX47:BA47),0)+IF(RIGHT(BW$39,2)>RIGHT($K47,2),BA47,0)) -> 0 | BX47: =+IF($K47="Ongoing",BB47,IF(RIGHT($K47,2)=RIGHT(BX$39,2),SUM($AX47:BB47),0)+IF(RIGHT(BX$39,2)>RIGHT($K47,2),BB47,0)) -> 0 | BY47: =+IF($K47="Ongoing",BC47,IF(RIGHT($K47,2)=RIGHT(BY$39,2),SUM($AX47:BC47),0)+IF(RIGHT(BY$39,2)>RIGHT($K47,2),BC47,0)) -> 0 | BZ47: =+IF($K47="Ongoing",BD47,IF(RIGHT($K47,2)=RIGHT(BZ$39,2),SUM($AX47:BD47),0)+IF(RIGHT(BZ$39,2)>RIGHT($K47,2),BD47,0)) -> 0 | CA47: =+IF($K47="Ongoing",BE47,IF(RIGHT($K47,2)=RIGHT(CA$39,2),SUM($AX47:BE47),0)+IF(RIGHT(CA$39,2)>RIGHT($K47,2),BE47,0)) -> 0 | CB47: =+IF($K47="Ongoing",BF47,IF(RIGHT($K47,2)=RIGHT(CB$39,2),SUM($AX47:BF47),0)+IF(RIGHT(CB$39,2)>RIGHT($K47,2),BF47,0)) -> 0 | CC47: =+IF($K47="Ongoing",BG47,IF(RIGHT($K47,2)=RIGHT(CC$39,2),SUM($AX47:BG47),0)+IF(RIGHT(CC$39,2)>RIGHT($K47,2),BG47,0)) -> 0 | CE47: =+Q47*KeyAssumptionsPriceControl_FO!AC$15 -> 4.12 | CF47: =+R47*KeyAssumptionsPriceControl_FO!AD$15 -> 3.978375 | CG47: =+S47*KeyAssumptionsPriceControl_FO!AE$15 -> 2.7318175 | CH47: =+T47*KeyAssumptionsPriceControl_FO!AF$15 -> 0 | CI47: =+U47*KeyAssumptionsPriceControl_FO!AG$15 -> 0 | CJ47: =+V47*KeyAssumptionsPriceControl_FO!AH$15 -> 0 | CK47: =+W47*KeyAssumptionsPriceControl_FO!AI$15 -> 0 | CL47: =+X47*KeyAssumptionsPriceControl_FO!AJ$15 -> 0 | CM47: =+Y47*KeyAssumptionsPriceControl_FO!AK$15 -> 0 | CN47: =+Z47*KeyAssumptionsPriceControl_FO!AL$15 -> 0 | CP47: 0.0824 | CQ47: 0.2443675 | CR47: 0.37857135 | CS47: 0.4332077 | CT47: 0.4332077 | CU47: 0.4332077 | CV47: 0.4332077 | CW47: 0.4332077 | CX47: 0.4332077 | CY47: 0.4332077
C48: All Areas - Large Scale Solar | E48: Sewerage | F48: Improvements / Compliance | G48: Corporate | H48: Top 10 Major Projects | J48: Straight line | K48: 2025-26 | L48: 25 | M48: 25 | Q48: 4 | R48: 3.75 | S48: 2.5 | T48: 0 | U48: 0 | V48: 0 | W48: 0 | X48: 0 | Y48: 0 | Z48: 0 | AX48: 4 | AY48: 3.75 | AZ48: 2.5 | BA48: 0 | BB48: 0 | BC48: 0 | BD48: 0 | BE48: 0 | BF48: 0 | BG48: 0 | BI48: 0 | BJ48: 0 | BK48: 0.205 | BL48: 0.41 | BM48: 0.41 | BN48: 0.41 | BO48: 0.41 | BP48: 0.41 | BQ48: 0.41 | BR48: 0.41 | BT48: =+IF($K48="Ongoing",AX48,IF(RIGHT($K48,2)=RIGHT(BT$39,2),SUM($AX48:AX48),0)+IF(RIGHT(BT$39,2)>RIGHT($K48,2),AX48,0)) -> 0 | BU48: =+IF($K48="Ongoing",AY48,IF(RIGHT($K48,2)=RIGHT(BU$39,2),SUM($AX48:AY48),0)+IF(RIGHT(BU$39,2)>RIGHT($K48,2),AY48,0)) -> 0 | BV48: =+IF($K48="Ongoing",AZ48,IF(RIGHT($K48,2)=RIGHT(BV$39,2),SUM($AX48:AZ48),0)+IF(RIGHT(BV$39,2)>RIGHT($K48,2),AZ48,0)) -> 10.25 | BW48: =+IF($K48="Ongoing",BA48,IF(RIGHT($K48,2)=RIGHT(BW$39,2),SUM($AX48:BA48),0)+IF(RIGHT(BW$39,2)>RIGHT($K48,2),BA48,0)) -> 0 | BX48: =+IF($K48="Ongoing",BB48,IF(RIGHT($K48,2)=RIGHT(BX$39,2),SUM($AX48:BB48),0)+IF(RIGHT(BX$39,2)>RIGHT($K48,2),BB48,0)) -> 0 | BY48: =+IF($K48="Ongoing",BC48,IF(RIGHT($K48,2)=RIGHT(BY$39,2),SUM($AX48:BC48),0)+IF(RIGHT(BY$39,2)>RIGHT($K48,2),BC48,0)) -> 0 | BZ48: =+IF($K48="Ongoing",BD48,IF(RIGHT($K48,2)=RIGHT(BZ$39,2),SUM($AX48:BD48),0)+IF(RIGHT(BZ$39,2)>RIGHT($K48,2),BD48,0)) -> 0 | CA48: =+IF($K48="Ongoing",BE48,IF(RIGHT($K48,2)=RIGHT(CA$39,2),SUM($AX48:BE48),0)+IF(RIGHT(CA$39,2)>RIGHT($K48,2),BE48,0)) -> 0 | CB48: =+IF($K48="Ongoing",BF48,IF(RIGHT($K48,2)=RIGHT(CB$39,2),SUM($AX48:BF48),0)+IF(RIGHT(CB$39,2)>RIGHT($K48,2),BF48,0)) -> 0 | CC48: =+IF($K48="Ongoing",BG48,IF(RIGHT($K48,2)=RIGHT(CC$39,2),SUM($AX48:BG48),0)+IF(RIGHT(CC$39,2)>RIGHT($K48,2),BG48,0)) -> 0 | CE48: =+Q48*KeyAssumptionsPriceControl_FO!AC$15 -> 4.12 | CF48: =+R48*KeyAssumptionsPriceControl_FO!AD$15 -> 3.978375 | CG48: =+S48*KeyAssumptionsPriceControl_FO!AE$15 -> 2.7318175 | CH48: =+T48*KeyAssumptionsPriceControl_FO!AF$15 -> 0 | CI48: =+U48*KeyAssumptionsPriceControl_FO!AG$15 -> 0 | CJ48: =+V48*KeyAssumptionsPriceControl_FO!AH$15 -> 0 | CK48: =+W48*KeyAssumptionsPriceControl_FO!AI$15 -> 0 | CL48: =+X48*KeyAssumptionsPriceControl_FO!AJ$15 -> 0 | CM48: =+Y48*KeyAssumptionsPriceControl_FO!AK$15 -> 0 | CN48: =+Z48*KeyAssumptionsPriceControl_FO!AL$15 -> 0 | CP48: 0.0824 | CQ48: 0.2443675 | CR48: 0.37857135 | CS48: 0.4332077 | CT48: 0.4332077 | CU48: 0.4332077 | CV48: 0.4332077 | CW48: 0.4332077 | CX48: 0.4332077 | CY48: 0.4332077
C49: Shepparton - Corporate Office Upgrades | E49: Water | F49: Renewals | G49: Corporate | H49: Top 10 Major Projects | J49: Straight line | K49: 2024-25 | L49: 60 | M49: 60 | Q49: 3.15 | R49: 3.75 | S49: 0 | T49: 0 | U49: 0 | V49: 0 | W49: 0 | X49: 0 | Y49: 0 | Z49: 0 | AX49: 3.15 | AY49: 3.75 | AZ49: 0 | BA49: 0 | BB49: 0 | BC49: 0 | BD49: 0 | BE49: 0 | BF49: 0 | BG49: 0 | BI49: 0 | BJ49: 0.0575 | BK49: 0.115 | BL49: 0.115 | BM49: 0.115 | BN49: 0.115 | BO49: 0.115 | BP49: 0.115 | BQ49: 0.115 | BR49: 0.115 | BT49: =+IF($K49="Ongoing",AX49,IF(RIGHT($K49,2)=RIGHT(BT$39,2),SUM($AX49:AX49),0)+IF(RIGHT(BT$39,2)>RIGHT($K49,2),AX49,0)) -> 0 | BU49: =+IF($K49="Ongoing",AY49,IF(RIGHT($K49,2)=RIGHT(BU$39,2),SUM($AX49:AY49),0)+IF(RIGHT(BU$39,2)>RIGHT($K49,2),AY49,0)) -> 6.9 | BV49: =+IF($K49="Ongoing",AZ49,IF(RIGHT($K49,2)=RIGHT(BV$39,2),SUM($AX49:AZ49),0)+IF(RIGHT(BV$39,2)>RIGHT($K49,2),AZ49,0)) -> 0 | BW49: =+IF($K49="Ongoing",BA49,IF(RIGHT($K49,2)=RIGHT(BW$39,2),SUM($AX49:BA49),0)+IF(RIGHT(BW$39,2)>RIGHT($K49,2),BA49,0)) -> 0 | BX49: =+IF($K49="Ongoing",BB49,IF(RIGHT($K49,2)=RIGHT(BX$39,2),SUM($AX49:BB49),0)+IF(RIGHT(BX$39,2)>RIGHT($K49,2),BB49,0)) -> 0 | BY49: =+IF($K49="Ongoing",BC49,IF(RIGHT($K49,2)=RIGHT(BY$39,2),SUM($AX49:BC49),0)+IF(RIGHT(BY$39,2)>RIGHT($K49,2),BC49,0)) -> 0 | BZ49: =+IF($K49="Ongoing",BD49,IF(RIGHT($K49,2)=RIGHT(BZ$39,2),SUM($AX49:BD49),0)+IF(RIGHT(BZ$39,2)>RIGHT($K49,2),BD49,0)) -> 0 | CA49: =+IF($K49="Ongoing",BE49,IF(RIGHT($K49,2)=RIGHT(CA$39,2),SUM($AX49:BE49),0)+IF(RIGHT(CA$39,2)>RIGHT($K49,2),BE49,0)) -> 0 | CB49: =+IF($K49="Ongoing",BF49,IF(RIGHT($K49,2)=RIGHT(CB$39,2),SUM($AX49:BF49),0)+IF(RIGHT(CB$39,2)>RIGHT($K49,2),BF49,0)) -> 0 | CC49: =+IF($K49="Ongoing",BG49,IF(RIGHT($K49,2)=RIGHT(CC$39,2),SUM($AX49:BG49),0)+IF(RIGHT(CC$39,2)>RIGHT($K49,2),BG49,0)) -> 0 | CE49: =+Q49*KeyAssumptionsPriceControl_FO!AC$15 -> 3.2445 | CF49: =+R49*KeyAssumptionsPriceControl_FO!AD$15 -> 3.978375 | CG49: =+S49*KeyAssumptionsPriceControl_FO!AE$15 -> 0 | CH49: =+T49*KeyAssumptionsPriceControl_FO!AF$15 -> 0 | CI49: =+U49*KeyAssumptionsPriceControl_FO!AG$15 -> 0 | CJ49: =+V49*KeyAssumptionsPriceControl_FO!AH$15 -> 0 | CK49: =+W49*KeyAssumptionsPriceControl_FO!AI$15 -> 0 | CL49: =+X49*KeyAssumptionsPriceControl_FO!AJ$15 -> 0 | CM49: =+Y49*KeyAssumptionsPriceControl_FO!AK$15 -> 0 | CN49: =+Z49*KeyAssumptionsPriceControl_FO!AL$15 -> 0 | CP49: 0.0270375 | CQ49: 0.087228125 | CR49: 0.12038125 | CS49: 0.12038125 | CT49: 0.12038125 | CU49: 0.12038125 | CV49: 0.12038125 | CW49: 0.12038125 | CX49: 0.12038125 | CY49: 0.12038125
C50: Shepparton - Corporate Office Upgrades | E50: Sewerage | F50: Renewals | G50: Corporate | H50: Top 10 Major Projects | J50: Straight line | K50: 2024-25 | L50: 60 | M50: 60 | Q50: 3.15 | R50: 3.75 | S50: 0 | T50: 0 | U50: 0 | V50: 0 | W50: 0 | X50: 0 | Y50: 0 | Z50: 0 | AX50: 3.15 | AY50: 3.75 | AZ50: 0 | BA50: 0 | BB50: 0 | BC50: 0 | BD50: 0 | BE50: 0 | BF50: 0 | BG50: 0 | BI50: 0 | BJ50: 0.0575 | BK50: 0.115 | BL50: 0.115 | BM50: 0.115 | BN50: 0.115 | BO50: 0.115 | BP50: 0.115 | BQ50: 0.115 | BR50: 0.115 | BT50: =+IF($K50="Ongoing",AX50,IF(RIGHT($K50,2)=RIGHT(BT$39,2),SUM($AX50:AX50),0)+IF(RIGHT(BT$39,2)>RIGHT($K50,2),AX50,0)) -> 0 | BU50: =+IF($K50="Ongoing",AY50,IF(RIGHT($K50,2)=RIGHT(BU$39,2),SUM($AX50:AY50),0)+IF(RIGHT(BU$39,2)>RIGHT($K50,2),AY50,0)) -> 6.9 | BV50: =+IF($K50="Ongoing",AZ50,IF(RIGHT($K50,2)=RIGHT(BV$39,2),SUM($AX50:AZ50),0)+IF(RIGHT(BV$39,2)>RIGHT($K50,2),AZ50,0)) -> 0 | BW50: =+IF($K50="Ongoing",BA50,IF(RIGHT($K50,2)=RIGHT(BW$39,2),SUM($AX50:BA50),0)+IF(RIGHT(BW$39,2)>RIGHT($K50,2),BA50,0)) -> 0 | BX50: =+IF($K50="Ongoing",BB50,IF(RIGHT($K50,2)=RIGHT(BX$39,2),SUM($AX50:BB50),0)+IF(RIGHT(BX$39,2)>RIGHT($K50,2),BB50,0)) -> 0 | BY50: =+IF($K50="Ongoing",BC50,IF(RIGHT($K50,2)=RIGHT(BY$39,2),SUM($AX50:BC50),0)+IF(RIGHT(BY$39,2)>RIGHT($K50,2),BC50,0)) -> 0 | BZ50: =+IF($K50="Ongoing",BD50,IF(RIGHT($K50,2)=RIGHT(BZ$39,2),SUM($AX50:BD50),0)+IF(RIGHT(BZ$39,2)>RIGHT($K50,2),BD50,0)) -> 0 | CA50: =+IF($K50="Ongoing",BE50,IF(RIGHT($K50,2)=RIGHT(CA$39,2),SUM($AX50:BE50),0)+IF(RIGHT(CA$39,2)>RIGHT($K50,2),BE50,0)) -> 0 | CB50: =+IF($K50="Ongoing",BF50,IF(RIGHT($K50,2)=RIGHT(CB$39,2),SUM($AX50:BF50),0)+IF(RIGHT(CB$39,2)>RIGHT($K50,2),BF50,0)) -> 0 | CC50: =+IF($K50="Ongoing",BG50,IF(RIGHT($K50,2)=RIGHT(CC$39,2),SUM($AX50:BG50),0)+IF(RIGHT(CC$39,2)>RIGHT($K50,2),BG50,0)) -> 0 | CE50: =+Q50*KeyAssumptionsPriceControl_FO!AC$15 -> 3.2445 | CF50: =+R50*KeyAssumptionsPriceControl_FO!AD$15 -> 3.978375 | CG50: =+S50*KeyAssumptionsPriceControl_FO!AE$15 -> 0 | CH50: =+T50*KeyAssumptionsPriceControl_FO!AF$15 -> 0 | CI50: =+U50*KeyAssumptionsPriceControl_FO!AG$15 -> 0 | CJ50: =+V50*KeyAssumptionsPriceControl_FO!AH$15 -> 0 | CK50: =+W50*KeyAssumptionsPriceControl_FO!AI$15 -> 0 | CL50: =+X50*KeyAssumptionsPriceControl_FO!AJ$15 -> 0 | CM50: =+Y50*KeyAssumptionsPriceControl_FO!AK$15 -> 0 | CN50: =+Z50*KeyAssumptionsPriceControl_FO!AL$15 -> 0 | CP50: 0.0270375 | CQ50: 0.087228125 | CR50: 0.12038125 | CS50: 0.12038125 | CT50: 0.12038125 | CU50: 0.12038125 | CV50: 0.12038125 | CW50: 0.12038125 | CX50: 0.12038125 | CY50: 0.12038125
C51: Mansfield - Water Treatment Plant Upgrade | E51: Water | F51: Growth | G51: Treatment | H51: Top 10 Major Projects | J51: Straight line | K51: 2029-30 | L51: 47.5 | M51: 47.5 | Q51: 0.1 | R51: 0.15 | S51: 0 | T51: 1.63 | U51: 3.2 | V51: 4.95 | W51: 4.95 | X51: 0 | Y51: 0 | Z51: 0 | AX51: 0.1 | AY51: 0.15 | AZ51: 0 | BA51: 1.63 | BB51: 3.2 | BC51: 4.95 | BD51: 4.95 | BE51: 0 | BF51: 0 | BG51: 0 | BI51: 0 | BJ51: 0 | BK51: 0 | BL51: 0 | BM51: 0 | BN51: 0 | BO51: 0.1576842105 | BP51: 0.3153684211 | BQ51: 0.3153684211 | BR51: 0.3153684211 | BT51: =+IF($K51="Ongoing",AX51,IF(RIGHT($K51,2)=RIGHT(BT$39,2),SUM($AX51:AX51),0)+IF(RIGHT(BT$39,2)>RIGHT($K51,2),AX51,0)) -> 0 | BU51: =+IF($K51="Ongoing",AY51,IF(RIGHT($K51,2)=RIGHT(BU$39,2),SUM($AX51:AY51),0)+IF(RIGHT(BU$39,2)>RIGHT($K51,2),AY51,0)) -> 0 | BV51: =+IF($K51="Ongoing",AZ51,IF(RIGHT($K51,2)=RIGHT(BV$39,2),SUM($AX51:AZ51),0)+IF(RIGHT(BV$39,2)>RIGHT($K51,2),AZ51,0)) -> 0 | BW51: =+IF($K51="Ongoing",BA51,IF(RIGHT($K51,2)=RIGHT(BW$39,2),SUM($AX51:BA51),0)+IF(RIGHT(BW$39,2)>RIGHT($K51,2),BA51,0)) -> 0 | BX51: =+IF($K51="Ongoing",BB51,IF(RIGHT($K51,2)=RIGHT(BX$39,2),SUM($AX51:BB51),0)+IF(RIGHT(BX$39,2)>RIGHT($K51,2),BB51,0)) -> 0 | BY51: =+IF($K51="Ongoing",BC51,IF(RIGHT($K51,2)=RIGHT(BY$39,2),SUM($AX51:BC51),0)+IF(RIGHT(BY$39,2)>RIGHT($K51,2),BC51,0)) -> 0 | BZ51: =+IF($K51="Ongoing",BD51,IF(RIGHT($K51,2)=RIGHT(BZ$39,2),SUM($AX51:BD51),0)+IF(RIGHT(BZ$39,2)>RIGHT($K51,2),BD51,0)) -> 14.98 | CA51: =+IF($K51="Ongoing",BE51,IF(RIGHT($K51,2)=RIGHT(CA$39,2),SUM($AX51:BE51),0)+IF(RIGHT(CA$39,2)>RIGHT($K51,2),BE51,0)) -> 0 | CB51: =+IF($K51="Ongoing",BF51,IF(RIGHT($K51,2)=RIGHT(CB$39,2),SUM($AX51:BF51),0)+IF(RIGHT(CB$39,2)>RIGHT($K51,2),BF51,0)) -> 0 | CC51: =+IF($K51="Ongoing",BG51,IF(RIGHT($K51,2)=RIGHT(CC$39,2),SUM($AX51:BG51),0)+IF(RIGHT(CC$39,2)>RIGHT($K51,2),BG51,0)) -> 0 | CE51: =+Q51*KeyAssumptionsPriceControl_FO!AC$15 -> 0.103 | CF51: =+R51*KeyAssumptionsPriceControl_FO!AD$15 -> 0.159135 | CG51: =+S51*KeyAssumptionsPriceControl_FO!AE$15 -> 0 | CH51: =+T51*KeyAssumptionsPriceControl_FO!AF$15 -> 1.83457936 | CI51: =+U51*KeyAssumptionsPriceControl_FO!AG$15 -> 3.709677038 | CJ51: =+V51*KeyAssumptionsPriceControl_FO!AH$15 -> 5.910558868 | CK51: =+W51*KeyAssumptionsPriceControl_FO!AI$15 -> 6.087875634 | CL51: =+X51*KeyAssumptionsPriceControl_FO!AJ$15 -> 0 | CM51: =+Y51*KeyAssumptionsPriceControl_FO!AK$15 -> 0 | CN51: =+Z51*KeyAssumptionsPriceControl_FO!AL$15 -> 0 | CP51: 0.001084210526 | CQ51: 0.003843526316 | CR51: 0.005518631579 | CS51: 0.02482999327 | CT51: 0.08319058693 | CU51: 0.184456228 | CV51: 0.3107555386 | CW51: 0.37483844 | CX51: 0.37483844 | CY51: 0.37483844
C53: Mansfield - WMF Winter Storage and Irrigation Augmentation | E53: Sewerage | F53: Growth | G53: Treatment | H53: Top 10 Major Projects | J53: Straight line | K53: 2024-25 | L53: 120 | M53: 120 | Q53: 3.57 | R53: 1.51 | S53: 0 | T53: 0 | U53: 0 | V53: 0 | W53: 0 | X53: 0 | Y53: 0 | Z53: 0 | AX53: =+Q53-AB53-AM53 -> 3.57 | AY53: =+R53-AC53-AN53 -> 1.51 | AZ53: =+S53-AD53-AO53 -> 0 | BA53: =+T53-AE53-AP53 -> 0 | BB53: =+U53-AF53-AQ53 -> 0 | BC53: =+V53-AG53-AR53 -> 0 | BD53: =+W53-AH53-AS53 -> 0 | BE53: =+X53-AI53-AT53 -> 0 | BF53: =+Y53-AJ53-AU53 -> 0 | BG53: =+Z53-AK53-AV53 -> 0 | BI53: =IF($L53=0,0, IF($L53<=0.5,BT53, IF($J53="straight line", IF((LEFT(BI$39,4)*1)-INT($L53)<LEFT($BI$39,4)*1,0,((OFFSET(BT53,0,-INT($L53+0.5),1,1))/$L53)*(IF($L53-INT($L53)>0.5,$L53-0.5-INT($L53),IF($L53-INT($L53)<=0.5,$L53-0.5-INT($L53)+1,0)))) +BT53/$L53*0.5, IF($J53="Declining Balance",-$BI$38,0)))) -> 0 | BJ53: =IF($L53=0,0, IF($L53<=0.5,BU53, IF(AND($J53="straight line",$L53<1.51),(BT53-((BT53/$L53)*0.5))+BU53/$L53*0.5, IF($J53="straight line", IF((LEFT(BJ$39,4)*1)-INT($L53)<LEFT($BI$39,4)*1,0,((OFFSET(BU53,0,-INT($L53+0.5),1,1))/$L53)*(IF($L53-INT($L53)>0.5,$L53-0.5-INT($L53),IF($L53-INT($L53)<=0.5,$L53-0.5-INT($L53)+1,0)))) +BU53/$L53*0.5 +SUM(OFFSET(BU53,0,MAX(-INT($L53+(0.5-(10^-12))),-BJ$40)+1,1,MIN(INT($L53+(0.5-(10^-12))),BJ$40)-1))*1/$L53, IF($J53="Declining Balance",-$BI$38,0))))) -> 0.02116666667 | BK53: =IF($L53=0,0, IF($L53<=0.5,BV53, IF(AND($J53="straight line",$L53<1.51),(BU53-((BU53/$L53)*0.5))+BV53/$L53*0.5, IF($J53="straight line", IF((LEFT(BK$39,4)*1)-INT($L53)<LEFT($BI$39,4)*1,0,((OFFSET(BV53,0,-INT($L53+0.5),1,1))/$L53)*(IF($L53-INT($L53)>0.5,$L53-0.5-INT($L53),IF($L53-INT($L53)<=0.5,$L53-0.5-INT($L53)+1,0)))) +BV53/$L53*0.5 +SUM(OFFSET(BV53,0,MAX(-INT($L53+(0.5-(10^-12))),-BK$40)+1,1,MIN(INT($L53+(0.5-(10^-12))),BK$40)-1))*1/$L53, IF($J53="Declining Balance",-$BI$38,0))))) -> 0.04233333333 | BL53: =IF($L53=0,0, IF($L53<=0.5,BW53, IF(AND($J53="straight line",$L53<1.51),(BV53-((BV53/$L53)*0.5))+BW53/$L53*0.5, IF($J53="straight line", IF((LEFT(BL$39,4)*1)-INT($L53)<LEFT($BI$39,4)*1,0,((OFFSET(BW53,0,-INT($L53+0.5),1,1))/$L53)*(IF($L53-INT($L53)>0.5,$L53-0.5-INT($L53),IF($L53-INT($L53)<=0.5,$L53-0.5-INT($L53)+1,0)))) +BW53/$L53*0.5 +SUM(OFFSET(BW53,0,MAX(-INT($L53+(0.5-(10^-12))),-BL$40)+1,1,MIN(INT($L53+(0.5-(10^-12))),BL$40)-1))*1/$L53, IF($J53="Declining Balance",-$BI$38,0))))) -> 0.04233333333 | BM53: =IF($L53=0,0, IF($L53<=0.5,BX53, IF(AND($J53="straight line",$L53<1.51),(BW53-((BW53/$L53)*0.5))+BX53/$L53*0.5, IF($J53="straight line", IF((LEFT(BM$39,4)*1)-INT($L53)<LEFT($BI$39,4)*1,0,((OFFSET(BX53,0,-INT($L53+0.5),1,1))/$L53)*(IF($L53-INT($L53)>0.5,$L53-0.5-INT($L53),IF($L53-INT($L53)<=0.5,$L53-0.5-INT($L53)+1,0)))) +BX53/$L53*0.5 +SUM(OFFSET(BX53,0,MAX(-INT($L53+(0.5-(10^-12))),-BM$40)+1,1,MIN(INT($L53+(0.5-(10^-12))),BM$40)-1))*1/$L53, IF($J53="Declining Balance",-$BI$38,0))))) -> 0.04233333333 | BN53: =IF($L53=0,0, IF($L53<=0.5,BY53, IF(AND($J53="straight line",$L53<1.51),(BX53-((BX53/$L53)*0.5))+BY53/$L53*0.5, IF($J53="straight line", IF((LEFT(BN$39,4)*1)-INT($L53)<LEFT($BI$39,4)*1,0,((OFFSET(BY53,0,-INT($L53+0.5),1,1))/$L53)*(IF($L53-INT($L53)>0.5,$L53-0.5-INT($L53),IF($L53-INT($L53)<=0.5,$L53-0.5-INT($L53)+1,0)))) +BY53/$L53*0.5 +SUM(OFFSET(BY53,0,MAX(-INT($L53+(0.5-(10^-12))),-BN$40)+1,1,MIN(INT($L53+(0.5-(10^-12))),BN$40)-1))*1/$L53, IF($J53="Declining Balance",-$BI$38,0))))) -> 0.04233333333 | BO53: =IF($L53=0,0, IF($L53<=0.5,BZ53, IF(AND($J53="straight line",$L53<1.51),(BY53-((BY53/$L53)*0.5))+BZ53/$L53*0.5, IF($J53="straight line", IF((LEFT(BO$39,4)*1)-INT($L53)<LEFT($BI$39,4)*1,0,((OFFSET(BZ53,0,-INT($L53+0.5),1,1))/$L53)*(IF($L53-INT($L53)>0.5,$L53-0.5-INT($L53),IF($L53-INT($L53)<=0.5,$L53-0.5-INT($L53)+1,0)))) +BZ53/$L53*0.5 +SUM(OFFSET(BZ53,0,MAX(-INT($L53+(0.5-(10^-12))),-BO$40)+1,1,MIN(INT($L53+(0.5-(10^-12))),BO$40)-1))*1/$L53, IF($J53="Declining Balance",-$BI$38,0))))) -> 0.04233333333 | BP53: =IF($L53=0,0, IF($L53<=0.5,CA53, IF(AND($J53="straight line",$L53<1.51),(BZ53-((BZ53/$L53)*0.5))+CA53/$L53*0.5, IF($J53="straight line", IF((LEFT(BP$39,4)*1)-INT($L53)<LEFT($BI$39,4)*1,0,((OFFSET(CA53,0,-INT($L53+0.5),1,1))/$L53)*(IF($L53-INT($L53)>0.5,$L53-0.5-INT($L53),IF($L53-INT($L53)<=0.5,$L53-0.5-INT($L53)+1,0)))) +CA53/$L53*0.5 +SUM(OFFSET(CA53,0,MAX(-INT($L53+(0.5-(10^-12))),-BP$40)+1,1,MIN(INT($L53+(0.5-(10^-12))),BP$40)-1))*1/$L53, IF($J53="Declining Balance",-$BI$38,0))))) -> 0.04233333333 | BQ53: =IF($L53=0,0, IF($L53<=0.5,CB53, IF(AND($J53="straight line",$L53<1.51),(CA53-((CA53/$L53)*0.5))+CB53/$L53*0.5, IF($J53="straight line", IF((LEFT(BQ$39,4)*1)-INT($L53)<LEFT($BI$39,4)*1,0,((OFFSET(CB53,0,-INT($L53+0.5),1,1))/$L53)*(IF($L53-INT($L53)>0.5,$L53-0.5-INT($L53),IF($L53-INT($L53)<=0.5,$L53-0.5-INT($L53)+1,0)))) +CB53/$L53*0.5 +SUM(OFFSET(CB53,0,MAX(-INT($L53+(0.5-(10^-12))),-BQ$40)+1,1,MIN(INT($L53+(0.5-(10^-12))),BQ$40)-1))*1/$L53, IF($J53="Declining Balance",-$BI$38,0))))) -> 0.04233333333 | BR53: =IF($L53=0,0, IF($L53<=0.5,CC53, IF(AND($J53="straight line",$L53<1.51),(CB53-((CB53/$L53)*0.5))+CC53/$L53*0.5, IF($J53="straight line", IF((LEFT(BR$39,4)*1)-INT($L53)<LEFT($BI$39,4)*1,0,((OFFSET(CC53,0,-INT($L53+0.5),1,1))/$L53)*(IF($L53-INT($L53)>0.5,$L53-0.5-INT($L53),IF($L53-INT($L53)<=0.5,$L53-0.5-INT($L53)+1,0)))) +CC53/$L53*0.5 +SUM(OFFSET(CC53,0,MAX(-INT($L53+(0.5-(10^-12))),-BR$40)+1,1,MIN(INT($L53+(0.5-(10^-12))),BR$40)-1))*1/$L53, IF($J53="Declining Balance",-$BI$38,0))))) -> 0.04233333333 | BT53: =+IF($K53="Ongoing",AX53,IF(RIGHT($K53,2)=RIGHT(BT$39,2),SUM($AX53:AX53),0)+IF(RIGHT(BT$39,2)>RIGHT($K53,2),AX53,0)) -> 0 | BU53: =+IF($K53="Ongoing",AY53,IF(RIGHT($K53,2)=RIGHT(BU$39,2),SUM($AX53:AY53),0)+IF(RIGHT(BU$39,2)>RIGHT($K53,2),AY53,0)) -> 5.08 | BV53: =+IF($K53="Ongoing",AZ53,IF(RIGHT($K53,2)=RIGHT(BV$39,2),SUM($AX53:AZ53),0)+IF(RIGHT(BV$39,2)>RIGHT($K53,2),AZ53,0)) -> 0 | BW53: =+IF($K53="Ongoing",BA53,IF(RIGHT($K53,2)=RIGHT(BW$39,2),SUM($AX53:BA53),0)+IF(RIGHT(BW$39,2)>RIGHT($K53,2),BA53,0)) -> 0 | BX53: =+IF($K53="Ongoing",BB53,IF(RIGHT($K53,2)=RIGHT(BX$39,2),SUM($AX53:BB53),0)+IF(RIGHT(BX$39,2)>RIGHT($K53,2),BB53,0)) -> 0 | BY53: =+IF($K53="Ongoing",BC53,IF(RIGHT($K53,2)=RIGHT(BY$39,2),SUM($AX53:BC53),0)+IF(RIGHT(BY$39,2)>RIGHT($K53,2),BC53,0)) -> 0 | BZ53: =+IF($K53="Ongoing",BD53,IF(RIGHT($K53,2)=RIGHT(BZ$39,2),SUM($AX53:BD53),0)+IF(RIGHT(BZ$39,2)>RIGHT($K53,2),BD53,0)) -> 0 | CA53: =+IF($K53="Ongoing",BE53,IF(RIGHT($K53,2)=RIGHT(CA$39,2),SUM($AX53:BE53),0)+IF(RIGHT(CA$39,2)>RIGHT($K53,2),BE53,0)) -> 0 | CB53: =+IF($K53="Ongoing",BF53,IF(RIGHT($K53,2)=RIGHT(CB$39,2),SUM($AX53:BF53),0)+IF(RIGHT(CB$39,2)>RIGHT($K53,2),BF53,0)) -> 0 | CC53: =+IF($K53="Ongoing",BG53,IF(RIGHT($K53,2)=RIGHT(CC$39,2),SUM($AX53:BG53),0)+IF(RIGHT(CC$39,2)>RIGHT($K53,2),BG53,0)) -> 0 | CE53: =+Q53*KeyAssumptionsPriceControl_FO!AC$15 -> 3.6771 | CF53: =+R53*KeyAssumptionsPriceControl_FO!AD$15 -> 1.601959 | CG53: =+S53*KeyAssumptionsPriceControl_FO!AE$15 -> 0 | CH53: =+T53*KeyAssumptionsPriceControl_FO!AF$15 -> 0 | CI53: =+U53*KeyAssumptionsPriceControl_FO!AG$15 -> 0 | CJ53: =+V53*KeyAssumptionsPriceControl_FO!AH$15 -> 0 | CK53: =+W53*KeyAssumptionsPriceControl_FO!AI$15 -> 0 | CL53: =+X53*KeyAssumptionsPriceControl_FO!AJ$15 -> 0 | CM53: =+Y53*KeyAssumptionsPriceControl_FO!AK$15 -> 0 | CN53: =+Z53*KeyAssumptionsPriceControl_FO!AL$15 -> 0 | CP53: =IF($M53=0,0, IF($M53<=0.5,CE53, IF($J53="straight line", IF((LEFT(CP$39,4)*1)-INT($M53)<LEFT($CP$39,4)*1,0,((OFFSET(CE53,0,-INT($M53+0.5),1,1))/$M53)*(IF($M53-INT($M53)>0.5,$M53-0.5-INT($M53),IF($M53-INT($M53)<=0.5,$M53-0.5-INT($M53)+1,0)))) +CE53/$M53*0.5, IF($J53="Declining Balance",-$CP$38,0)))) -> 0.01532125 | CQ53: =IF($M53=0,0, IF($M53<=0.5,CF53, IF(AND($J53="straight line",$M53<1.51),(CE53-((CE53/$M53)*0.5))+CF53/$M53*0.5, IF($J53="straight line", IF((LEFT(CQ$39,4)*1)-INT($M53)<LEFT($CP$39,4)*1,0,((OFFSET(CF53,0,-INT($M53+0.5),1,1))/$M53)*(IF($M53-INT($M53)>0.5,$M53-0.5-INT($M53),IF($M53-INT($M53)<=0.5,$M53-0.5-INT($M53)+1,0)))) +CF53/$M53*0.5 +SUM(OFFSET(CF53,0,MAX(-INT($M53+(0.5-(10^-12))),-CQ$40)+1,1,MIN(INT($M53+(0.5-(10^-12))),CQ$40)-1))*1/$M53, IF($J53="Declining Balance",-$CP$38,0))))) -> 0.03731732917 | CR53: =IF($M53=0,0, IF($M53<=0.5,CG53, IF(AND($J53="straight line",$M53<1.51),(CF53-((CF53/$M53)*0.5))+CG53/$M53*0.5, IF($J53="straight line", IF((LEFT(CR$39,4)*1)-INT($M53)<LEFT($CP$39,4)*1,0,((OFFSET(CG53,0,-INT($M53+0.5),1,1))/$M53)*(IF($M53-INT($M53)>0.5,$M53-0.5-INT($M53),IF($M53-INT($M53)<=0.5,$M53-0.5-INT($M53)+1,0)))) +CG53/$M53*0.5 +SUM(OFFSET(CG53,0,MAX(-INT($M53+(0.5-(10^-12))),-CR$40)+1,1,MIN(INT($M53+(0.5-(10^-12))),CR$40)-1))*1/$M53, IF($J53="Declining Balance",-$CP$38,0))))) -> 0.04399215833 | CS53: =IF($M53=0,0, IF($M53<=0.5,CH53, IF(AND($J53="straight line",$M53<1.51),(CG53-((CG53/$M53)*0.5))+CH53/$M53*0.5, IF($J53="straight line", IF((LEFT(CS$39,4)*1)-INT($M53)<LEFT($CP$39,4)*1,0,((OFFSET(CH53,0,-INT($M53+0.5),1,1))/$M53)*(IF($M53-INT($M53)>0.5,$M53-0.5-INT($M53),IF($M53-INT($M53)<=0.5,$M53-0.5-INT($M53)+1,0)))) +CH53/$M53*0.5 +SUM(OFFSET(CH53,0,MAX(-INT($M53+(0.5-(10^-12))),-CS$40)+1,1,MIN(INT($M53+(0.5-(10^-12))),CS$40)-1))*1/$M53, IF($J53="Declining Balance",-$CP$38,0))))) -> 0.04399215833 | CT53: =IF($M53=0,0, IF($M53<=0.5,CI53, IF(AND($J53="straight line",$M53<1.51),(CH53-((CH53/$M53)*0.5))+CI53/$M53*0.5, IF($J53="straight line", IF((LEFT(CT$39,4)*1)-INT($M53)<LEFT($CP$39,4)*1,0,((OFFSET(CI53,0,-INT($M53+0.5),1,1))/$M53)*(IF($M53-INT($M53)>0.5,$M53-0.5-INT($M53),IF($M53-INT($M53)<=0.5,$M53-0.5-INT($M53)+1,0)))) +CI53/$M53*0.5 +SUM(OFFSET(CI53,0,MAX(-INT($M53+(0.5-(10^-12))),-CT$40)+1,1,MIN(INT($M53+(0.5-(10^-12))),CT$40)-1))*1/$M53, IF($J53="Declining Balance",-$CP$38,0))))) -> 0.04399215833 | CU53: =IF($M53=0,0, IF($M53<=0.5,CJ53, IF(AND($J53="straight line",$M53<1.51),(CI53-((CI53/$M53)*0.5))+CJ53/$M53*0.5, IF($J53="straight line", IF((LEFT(CU$39,4)*1)-INT($M53)<LEFT($CP$39,4)*1,0,((OFFSET(CJ53,0,-INT($M53+0.5),1,1))/$M53)*(IF($M53-INT($M53)>0.5,$M53-0.5-INT($M53),IF($M53-INT($M53)<=0.5,$M53-0.5-INT($M53)+1,0)))) +CJ53/$M53*0.5 +SUM(OFFSET(CJ53,0,MAX(-INT($M53+(0.5-(10^-12))),-CU$40)+1,1,MIN(INT($M53+(0.5-(10^-12))),CU$40)-1))*1/$M53, IF($J53="Declining Balance",-$CP$38,0))))) -> 0.04399215833 | CV53: =IF($M53=0,0, IF($M53<=0.5,CK53, IF(AND($J53="straight line",$M53<1.51),(CJ53-((CJ53/$M53)*0.5))+CK53/$M53*0.5, IF($J53="straight line", IF((LEFT(CV$39,4)*1)-INT($M53)<LEFT($CP$39,4)*1,0,((OFFSET(CK53,0,-INT($M53+0.5),1,1))/$M53)*(IF($M53-INT($M53)>0.5,$M53-0.5-INT($M53),IF($M53-INT($M53)<=0.5,$M53-0.5-INT($M53)+1,0)))) +CK53/$M53*0.5 +SUM(OFFSET(CK53,0,MAX(-INT($M53+(0.5-(10^-12))),-CV$40)+1,1,MIN(INT($M53+(0.5-(10^-12))),CV$40)-1))*1/$M53, IF($J53="Declining Balance",-$CP$38,0))))) -> 0.04399215833 | CW53: =IF($M53=0,0, IF($M53<=0.5,CL53, IF(AND($J53="straight line",$M53<1.51),(CK53-((CK53/$M53)*0.5))+CL53/$M53*0.5, IF($J53="straight line", IF((LEFT(CW$39,4)*1)-INT($M53)<LEFT($CP$39,4)*1,0,((OFFSET(CL53,0,-INT($M53+0.5),1,1))/$M53)*(IF($M53-INT($M53)>0.5,$M53-0.5-INT($M53),IF($M53-INT($M53)<=0.5,$M53-0.5-INT($M53)+1,0)))) +CL53/$M53*0.5 +SUM(OFFSET(CL53,0,MAX(-INT($M53+(0.5-(10^-12))),-CW$40)+1,1,MIN(INT($M53+(0.5-(10^-12))),CW$40)-1))*1/$M53, IF($J53="Declining Balance",-$CP$38,0))))) -> 0.04399215833 | CX53: =IF($M53=0,0, IF($M53<=0.5,CM53, IF(AND($J53="straight line",$M53<1.51),(CL53-((CL53/$M53)*0.5))+CM53/$M53*0.5, IF($J53="straight line", IF((LEFT(CX$39,4)*1)-INT($M53)<LEFT($CP$39,4)*1,0,((OFFSET(CM53,0,-INT($M53+0.5),1,1))/$M53)*(IF($M53-INT($M53)>0.5,$M53-0.5-INT($M53),IF($M53-INT($M53)<=0.5,$M53-0.5-INT($M53)+1,0)))) +CM53/$M53*0.5 +SUM(OFFSET(CM53,0,MAX(-INT($M53+(0.5-(10^-12))),-CX$40)+1,1,MIN(INT($M53+(0.5-(10^-12))),CX$40)-1))*1/$M53, IF($J53="Declining Balance",-$CP$38,0))))) -> 0.04399215833 | CY53: =IF($M53=0,0, IF($M53<=0.5,CN53, IF(AND($J53="straight line",$M53<1.51),(CM53-((CM53/$M53)*0.5))+CN53/$M53*0.5, IF($J53="straight line", IF((LEFT(CY$39,4)*1)-INT($M53)<LEFT($CP$39,4)*1,0,((OFFSET(CN53,0,-INT($M53+0.5),1,1))/$M53)*(IF($M53-INT($M53)>0.5,$M53-0.5-INT($M53),IF($M53-INT($M53)<=0.5,$M53-0.5-INT($M53)+1,0)))) +CN53/$M53*0.5 +SUM(OFFSET(CN53,0,MAX(-INT($M53+(0.5-(10^-12))),-CY$40)+1,1,MIN(INT($M53+(0.5-(10^-12))),CY$40)-1))*1/$M53, IF($J53="Declining Balance",-$CP$38,0))))) -> 0.04399215833
C54: All Areas - Core Business Automation (SCADA) Replacement | E54: Water | F54: Renewals | G54: Corporate | H54: Top 10 Major Projects | J54: Straight line | K54: Ongoing | L54: 15 | M54: 15 | Q54: 0.285 | R54: 1.175 | S54: 1.505 | T54: 0.675 | U54: 0.405 | V54: 0.46 | W54: 0.255 | X54: 0 | Y54: 0 | Z54: 0 | AX54: 0.285 | AY54: 1.175 | AZ54: 1.505 | BA54: 0.675 | BB54: 0.405 | BC54: 0.46 | BD54: 0.255 | BE54: 0 | BF54: 0 | BG54: 0 | BI54: 0.0095 | BJ54: 0.05816666667 | BK54: 0.1475 | BL54: 0.2201666667 | BM54: 0.2561666667 | BN54: 0.285 | BO54: 0.3088333333 | BP54: 0.3173333333 | BQ54: 0.3173333333 | BR54: 0.3173333333 | BT54: =+IF($K54="Ongoing",AX54,IF(RIGHT($K54,2)=RIGHT(BT$39,2),SUM($AX54:AX54),0)+IF(RIGHT(BT$39,2)>RIGHT($K54,2),AX54,0)) -> 0.285 | BU54: =+IF($K54="Ongoing",AY54,IF(RIGHT($K54,2)=RIGHT(BU$39,2),SUM($AX54:AY54),0)+IF(RIGHT(BU$39,2)>RIGHT($K54,2),AY54,0)) -> 1.175 | BV54: =+IF($K54="Ongoing",AZ54,IF(RIGHT($K54,2)=RIGHT(BV$39,2),SUM($AX54:AZ54),0)+IF(RIGHT(BV$39,2)>RIGHT($K54,2),AZ54,0)) -> 1.505 | BW54: =+IF($K54="Ongoing",BA54,IF(RIGHT($K54,2)=RIGHT(BW$39,2),SUM($AX54:BA54),0)+IF(RIGHT(BW$39,2)>RIGHT($K54,2),BA54,0)) -> 0.675 | BX54: =+IF($K54="Ongoing",BB54,IF(RIGHT($K54,2)=RIGHT(BX$39,2),SUM($AX54:BB54),0)+IF(RIGHT(BX$39,2)>RIGHT($K54,2),BB54,0)) -> 0.405 | BY54: =+IF($K54="Ongoing",BC54,IF(RIGHT($K54,2)=RIGHT(BY$39,2),SUM($AX54:BC54),0)+IF(RIGHT(BY$39,2)>RIGHT($K54,2),BC54,0)) -> 0.46 | BZ54: =+IF($K54="Ongoing",BD54,IF(RIGHT($K54,2)=RIGHT(BZ$39,2),SUM($AX54:BD54),0)+IF(RIGHT(BZ$39,2)>RIGHT($K54,2),BD54,0)) -> 0.255 | CA54: =+IF($K54="Ongoing",BE54,IF(RIGHT($K54,2)=RIGHT(CA$39,2),SUM($AX54:BE54),0)+IF(RIGHT(CA$39,2)>RIGHT($K54,2),BE54,0)) -> 0 | CB54: =+IF($K54="Ongoing",BF54,IF(RIGHT($K54,2)=RIGHT(CB$39,2),SUM($AX54:BF54),0)+IF(RIGHT(CB$39,2)>RIGHT($K54,2),BF54,0)) -> 0 | CC54: =+IF($K54="Ongoing",BG54,IF(RIGHT($K54,2)=RIGHT(CC$39,2),SUM($AX54:BG54),0)+IF(RIGHT(CC$39,2)>RIGHT($K54,2),BG54,0)) -> 0 | CE54: =+Q54*KeyAssumptionsPriceControl_FO!AC$15 -> 0.29355 | CF54: =+R54*KeyAssumptionsPriceControl_FO!AD$15 -> 1.2465575 | CG54: =+S54*KeyAssumptionsPriceControl_FO!AE$15 -> 1.644554135 | CH54: =+T54*KeyAssumptionsPriceControl_FO!AF$15 -> 0.7597184468 | CI54: =+U54*KeyAssumptionsPriceControl_FO!AG$15 -> 0.4695060001 | CJ54: =+V54*KeyAssumptionsPriceControl_FO!AH$15 -> 0.5492640564 | CK54: =+W54*KeyAssumptionsPriceControl_FO!AI$15 -> 0.3136178357 | CL54: =+X54*KeyAssumptionsPriceControl_FO!AJ$15 -> 0 | CM54: =+Y54*KeyAssumptionsPriceControl_FO!AK$15 -> 0 | CN54: =+Z54*KeyAssumptionsPriceControl_FO!AL$15 -> 0 | CP54: 0.009785 | CQ54: 0.06112191667 | CR54: 0.1574923045 | CS54: 0.2376347239 | CT54: 0.2786088721 | CU54: 0.312567874 | CV54: 0.3413306037 | CW54: 0.3517845316 | CX54: 0.3517845316 | CY54: 0.3517845316
C55: All Areas - Core Business Automation (SCADA) Replacement | E55: Sewerage | F55: Renewals | G55: Corporate | H55: Top 10 Major Projects | J55: Straight line | K55: Ongoing | L55: 15 | M55: 15 | Q55: 0.285 | R55: 1.175 | S55: 1.505 | T55: 0.675 | U55: 0.405 | V55: 0.46 | W55: 0.255 | X55: 0 | Y55: 0 | Z55: 0 | AX55: 0.285 | AY55: 1.175 | AZ55: 1.505 | BA55: 0.675 | BB55: 0.405 | BC55: 0.46 | BD55: 0.255 | BE55: 0 | BF55: 0 | BG55: 0 | BI55: 0.0095 | BJ55: 0.05816666667 | BK55: 0.1475 | BL55: 0.2201666667 | BM55: 0.2561666667 | BN55: 0.285 | BO55: 0.3088333333 | BP55: 0.3173333333 | BQ55: 0.3173333333 | BR55: 0.3173333333 | BT55: =+IF($K55="Ongoing",AX55,IF(RIGHT($K55,2)=RIGHT(BT$39,2),SUM($AX55:AX55),0)+IF(RIGHT(BT$39,2)>RIGHT($K55,2),AX55,0)) -> 0.285 | BU55: =+IF($K55="Ongoing",AY55,IF(RIGHT($K55,2)=RIGHT(BU$39,2),SUM($AX55:AY55),0)+IF(RIGHT(BU$39,2)>RIGHT($K55,2),AY55,0)) -> 1.175 | BV55: =+IF($K55="Ongoing",AZ55,IF(RIGHT($K55,2)=RIGHT(BV$39,2),SUM($AX55:AZ55),0)+IF(RIGHT(BV$39,2)>RIGHT($K55,2),AZ55,0)) -> 1.505 | BW55: =+IF($K55="Ongoing",BA55,IF(RIGHT($K55,2)=RIGHT(BW$39,2),SUM($AX55:BA55),0)+IF(RIGHT(BW$39,2)>RIGHT($K55,2),BA55,0)) -> 0.675 | BX55: =+IF($K55="Ongoing",BB55,IF(RIGHT($K55,2)=RIGHT(BX$39,2),SUM($AX55:BB55),0)+IF(RIGHT(BX$39,2)>RIGHT($K55,2),BB55,0)) -> 0.405 | BY55: =+IF($K55="Ongoing",BC55,IF(RIGHT($K55,2)=RIGHT(BY$39,2),SUM($AX55:BC55),0)+IF(RIGHT(BY$39,2)>RIGHT($K55,2),BC55,0)) -> 0.46 | BZ55: =+IF($K55="Ongoing",BD55,IF(RIGHT($K55,2)=RIGHT(BZ$39,2),SUM($AX55:BD55),0)+IF(RIGHT(BZ$39,2)>RIGHT($K55,2),BD55,0)) -> 0.255 | CA55: =+IF($K55="Ongoing",BE55,IF(RIGHT($K55,2)=RIGHT(CA$39,2),SUM($AX55:BE55),0)+IF(RIGHT(CA$39,2)>RIGHT($K55,2),BE55,0)) -> 0 | CB55: =+IF($K55="Ongoing",BF55,IF(RIGHT($K55,2)=RIGHT(CB$39,2),SUM($AX55:BF55),0)+IF(RIGHT(CB$39,2)>RIGHT($K55,2),BF55,0)) -> 0 | CC55: =+IF($K55="Ongoing",BG55,IF(RIGHT($K55,2)=RIGHT(CC$39,2),SUM($AX55:BG55),0)+IF(RIGHT(CC$39,2)>RIGHT($K55,2),BG55,0)) -> 0 | CE55: =+Q55*KeyAssumptionsPriceControl_FO!AC$15 -> 0.29355 | CF55: =+R55*KeyAssumptionsPriceControl_FO!AD$15 -> 1.2465575 | CG55: =+S55*KeyAssumptionsPriceControl_FO!AE$15 -> 1.644554135 | CH55: =+T55*KeyAssumptionsPriceControl_FO!AF$15 -> 0.7597184468 | CI55: =+U55*KeyAssumptionsPriceControl_FO!AG$15 -> 0.4695060001 | CJ55: =+V55*KeyAssumptionsPriceControl_FO!AH$15 -> 0.5492640564 | CK55: =+W55*KeyAssumptionsPriceControl_FO!AI$15 -> 0.3136178357 | CL55: =+X55*KeyAssumptionsPriceControl_FO!AJ$15 -> 0 | CM55: =+Y55*KeyAssumptionsPriceControl_FO!AK$15 -> 0 | CN55: =+Z55*KeyAssumptionsPriceControl_FO!AL$15 -> 0 | CP55: 0.009785 | CQ55: 0.06112191667 | CR55: 0.1574923045 | CS55: 0.2376347239 | CT55: 0.2786088721 | CU55: 0.312567874 | CV55: 0.3413306037 | CW55: 0.3517845316 | CX55: 0.3517845316 | CY55: 0.3517845316
C56: Nagambie - Sewer Pump Station 04 Pump Station & Rising Main Upgrade | E56: Sewerage | F56: Renewals | G56: Pipelines/network | H56: Significant projects | J56: Straight line | K56: 2027-28 | L56: 90 | M56: 90 | Q56: 0 | R56: 0 | S56: 1.19 | T56: 2.25 | U56: 1.03 | V56: 0 | W56: 0 | X56: 0 | Y56: 0 | Z56: 0 | AX56: 0 | AY56: 0 | AZ56: 1.19 | BA56: 2.25 | BB56: 1.03 | BC56: 0 | BD56: 0 | BE56: 0 | BF56: 0 | BG56: 0 | BI56: 0 | BJ56: 0 | BK56: 0 | BL56: 0 | BM56: 0.02483333333 | BN56: 0.04966666667 | BO56: 0.04966666667 | BP56: 0.04966666667 | BQ56: 0.04966666667 | BR56: 0.04966666667 | BT56: =+IF($K56="Ongoing",AX56,IF(RIGHT($K56,2)=RIGHT(BT$39,2),SUM($AX56:AX56),0)+IF(RIGHT(BT$39,2)>RIGHT($K56,2),AX56,0)) -> 0 | BU56: =+IF($K56="Ongoing",AY56,IF(RIGHT($K56,2)=RIGHT(BU$39,2),SUM($AX56:AY56),0)+IF(RIGHT(BU$39,2)>RIGHT($K56,2),AY56,0)) -> 0 | BV56: =+IF($K56="Ongoing",AZ56,IF(RIGHT($K56,2)=RIGHT(BV$39,2),SUM($AX56:AZ56),0)+IF(RIGHT(BV$39,2)>RIGHT($K56,2),AZ56,0)) -> 0 | BW56: =+IF($K56="Ongoing",BA56,IF(RIGHT($K56,2)=RIGHT(BW$39,2),SUM($AX56:BA56),0)+IF(RIGHT(BW$39,2)>RIGHT($K56,2),BA56,0)) -> 0 | BX56: =+IF($K56="Ongoing",BB56,IF(RIGHT($K56,2)=RIGHT(BX$39,2),SUM($AX56:BB56),0)+IF(RIGHT(BX$39,2)>RIGHT($K56,2),BB56,0)) -> 4.47 | BY56: =+IF($K56="Ongoing",BC56,IF(RIGHT($K56,2)=RIGHT(BY$39,2),SUM($AX56:BC56),0)+IF(RIGHT(BY$39,2)>RIGHT($K56,2),BC56,0)) -> 0 | BZ56: =+IF($K56="Ongoing",BD56,IF(RIGHT($K56,2)=RIGHT(BZ$39,2),SUM($AX56:BD56),0)+IF(RIGHT(BZ$39,2)>RIGHT($K56,2),BD56,0)) -> 0 | CA56: =+IF($K56="Ongoing",BE56,IF(RIGHT($K56,2)=RIGHT(CA$39,2),SUM($AX56:BE56),0)+IF(RIGHT(CA$39,2)>RIGHT($K56,2),BE56,0)) -> 0 | CB56: =+IF($K56="Ongoing",BF56,IF(RIGHT($K56,2)=RIGHT(CB$39,2),SUM($AX56:BF56),0)+IF(RIGHT(CB$39,2)>RIGHT($K56,2),BF56,0)) -> 0 | CC56: =+IF($K56="Ongoing",BG56,IF(RIGHT($K56,2)=RIGHT(CC$39,2),SUM($AX56:BG56),0)+IF(RIGHT(CC$39,2)>RIGHT($K56,2),BG56,0)) -> 0 | CE56: =+Q56*KeyAssumptionsPriceControl_FO!AC$15 -> 0 | CF56: =+R56*KeyAssumptionsPriceControl_FO!AD$15 -> 0 | CG56: =+S56*KeyAssumptionsPriceControl_FO!AE$15 -> 1.30034513 | CH56: =+T56*KeyAssumptionsPriceControl_FO!AF$15 -> 2.532394823 | CI56: =+U56*KeyAssumptionsPriceControl_FO!AG$15 -> 1.194052297 | CJ56: =+V56*KeyAssumptionsPriceControl_FO!AH$15 -> 0 | CK56: =+W56*KeyAssumptionsPriceControl_FO!AI$15 -> 0 | CL56: =+X56*KeyAssumptionsPriceControl_FO!AJ$15 -> 0 | CM56: =+Y56*KeyAssumptionsPriceControl_FO!AK$15 -> 0 | CN56: =+Z56*KeyAssumptionsPriceControl_FO!AL$15 -> 0 | CP56: 0 | CQ56: 0 | CR56: 0.007224139611 | CS56: 0.02851713935 | CT56: 0.04921962334 | CU56: 0.05585324721 | CV56: 0.05585324721 | CW56: 0.05585324721 | CX56: 0.05585324721 | CY56: 0.05585324721
C57: Katunga - Numurkah Water Treatment Plant to Katunga Pipeline | E57: Water | F57: Improvements / Compliance | G57: Pipelines/network | H57: Significant projects | J57: Straight line | K57: 2025-26 | L57: 90 | M57: 90 | Q57: 1 | R57: 3 | S57: 0.46 | T57: 0 | U57: 0 | V57: 0 | W57: 0 | X57: 0 | Y57: 0 | Z57: 0 | AX57: 1 | AY57: 3 | AZ57: 0.46 | BA57: 0 | BB57: 0 | BC57: 0 | BD57: 0 | BE57: 0 | BF57: 0 | BG57: 0 | BI57: 0 | BJ57: 0 | BK57: 0.02477777778 | BL57: 0.04955555556 | BM57: 0.04955555556 | BN57: 0.04955555556 | BO57: 0.04955555556 | BP57: 0.04955555556 | BQ57: 0.04955555556 | BR57: 0.04955555556 | BT57: =+IF($K57="Ongoing",AX57,IF(RIGHT($K57,2)=RIGHT(BT$39,2),SUM($AX57:AX57),0)+IF(RIGHT(BT$39,2)>RIGHT($K57,2),AX57,0)) -> 0 | BU57: =+IF($K57="Ongoing",AY57,IF(RIGHT($K57,2)=RIGHT(BU$39,2),SUM($AX57:AY57),0)+IF(RIGHT(BU$39,2)>RIGHT($K57,2),AY57,0)) -> 0 | BV57: =+IF($K57="Ongoing",AZ57,IF(RIGHT($K57,2)=RIGHT(BV$39,2),SUM($AX57:AZ57),0)+IF(RIGHT(BV$39,2)>RIGHT($K57,2),AZ57,0)) -> 4.46 | BW57: =+IF($K57="Ongoing",BA57,IF(RIGHT($K57,2)=RIGHT(BW$39,2),SUM($AX57:BA57),0)+IF(RIGHT(BW$39,2)>RIGHT($K57,2),BA57,0)) -> 0 | BX57: =+IF($K57="Ongoing",BB57,IF(RIGHT($K57,2)=RIGHT(BX$39,2),SUM($AX57:BB57),0)+IF(RIGHT(BX$39,2)>RIGHT($K57,2),BB57,0)) -> 0 | BY57: =+IF($K57="Ongoing",BC57,IF(RIGHT($K57,2)=RIGHT(BY$39,2),SUM($AX57:BC57),0)+IF(RIGHT(BY$39,2)>RIGHT($K57,2),BC57,0)) -> 0 | BZ57: =+IF($K57="Ongoing",BD57,IF(RIGHT($K57,2)=RIGHT(BZ$39,2),SUM($AX57:BD57),0)+IF(RIGHT(BZ$39,2)>RIGHT($K57,2),BD57,0)) -> 0 | CA57: =+IF($K57="Ongoing",BE57,IF(RIGHT($K57,2)=RIGHT(CA$39,2),SUM($AX57:BE57),0)+IF(RIGHT(CA$39,2)>RIGHT($K57,2),BE57,0)) -> 0 | CB57: =+IF($K57="Ongoing",BF57,IF(RIGHT($K57,2)=RIGHT(CB$39,2),SUM($AX57:BF57),0)+IF(RIGHT(CB$39,2)>RIGHT($K57,2),BF57,0)) -> 0 | CC57: =+IF($K57="Ongoing",BG57,IF(RIGHT($K57,2)=RIGHT(CC$39,2),SUM($AX57:BG57),0)+IF(RIGHT(CC$39,2)>RIGHT($K57,2),BG57,0)) -> 0 | CE57: =+Q57*KeyAssumptionsPriceControl_FO!AC$15 -> 1.03 | CF57: =+R57*KeyAssumptionsPriceControl_FO!AD$15 -> 3.1827 | CG57: =+S57*KeyAssumptionsPriceControl_FO!AE$15 -> 0.50265442 | CH57: =+T57*KeyAssumptionsPriceControl_FO!AF$15 -> 0 | CI57: =+U57*KeyAssumptionsPriceControl_FO!AG$15 -> 0 | CJ57: =+V57*KeyAssumptionsPriceControl_FO!AH$15 -> 0 | CK57: =+W57*KeyAssumptionsPriceControl_FO!AI$15 -> 0 | CL57: =+X57*KeyAssumptionsPriceControl_FO!AJ$15 -> 0 | CM57: =+Y57*KeyAssumptionsPriceControl_FO!AK$15 -> 0 | CN57: =+Z57*KeyAssumptionsPriceControl_FO!AL$15 -> 0 | CP57: 0.005722222222 | CQ57: 0.02912611111 | CR57: 0.04960030233 | CS57: 0.05239282689 | CT57: 0.05239282689 | CU57: 0.05239282689 | CV57: 0.05239282689 | CW57: 0.05239282689 | CX57: 0.05239282689 | CY57: 0.05239282689
C58: Shepparton - Sewer Pump Station 56 Rising Main Stage 3 | E58: Sewerage | F58: Growth | G58: Pipelines/network | H58: Significant projects | J58: Straight line | K58: 2024-25 | L58: 90 | M58: 90 | Q58: 1.34 | R58: 2.86 | S58: 0 | T58: 0 | U58: 0 | V58: 0 | W58: 0 | X58: 0 | Y58: 0 | Z58: 0 | AX58: 1.34 | AY58: 2.86 | AZ58: 0 | BA58: 0 | BB58: 0 | BC58: 0 | BD58: 0 | BE58: 0 | BF58: 0 | BG58: 0 | BI58: 0 | BJ58: 0.02333333333 | BK58: 0.04666666667 | BL58: 0.04666666667 | BM58: 0.04666666667 | BN58: 0.04666666667 | BO58: 0.04666666667 | BP58: 0.04666666667 | BQ58: 0.04666666667 | BR58: 0.04666666667 | BT58: =+IF($K58="Ongoing",AX58,IF(RIGHT($K58,2)=RIGHT(BT$39,2),SUM($AX58:AX58),0)+IF(RIGHT(BT$39,2)>RIGHT($K58,2),AX58,0)) -> 0 | BU58: =+IF($K58="Ongoing",AY58,IF(RIGHT($K58,2)=RIGHT(BU$39,2),SUM($AX58:AY58),0)+IF(RIGHT(BU$39,2)>RIGHT($K58,2),AY58,0)) -> 4.2 | BV58: =+IF($K58="Ongoing",AZ58,IF(RIGHT($K58,2)=RIGHT(BV$39,2),SUM($AX58:AZ58),0)+IF(RIGHT(BV$39,2)>RIGHT($K58,2),AZ58,0)) -> 0 | BW58: =+IF($K58="Ongoing",BA58,IF(RIGHT($K58,2)=RIGHT(BW$39,2),SUM($AX58:BA58),0)+IF(RIGHT(BW$39,2)>RIGHT($K58,2),BA58,0)) -> 0 | BX58: =+IF($K58="Ongoing",BB58,IF(RIGHT($K58,2)=RIGHT(BX$39,2),SUM($AX58:BB58),0)+IF(RIGHT(BX$39,2)>RIGHT($K58,2),BB58,0)) -> 0 | BY58: =+IF($K58="Ongoing",BC58,IF(RIGHT($K58,2)=RIGHT(BY$39,2),SUM($AX58:BC58),0)+IF(RIGHT(BY$39,2)>RIGHT($K58,2),BC58,0)) -> 0 | BZ58: =+IF($K58="Ongoing",BD58,IF(RIGHT($K58,2)=RIGHT(BZ$39,2),SUM($AX58:BD58),0)+IF(RIGHT(BZ$39,2)>RIGHT($K58,2),BD58,0)) -> 0 | CA58: =+IF($K58="Ongoing",BE58,IF(RIGHT($K58,2)=RIGHT(CA$39,2),SUM($AX58:BE58),0)+IF(RIGHT(CA$39,2)>RIGHT($K58,2),BE58,0)) -> 0 | CB58: =+IF($K58="Ongoing",BF58,IF(RIGHT($K58,2)=RIGHT(CB$39,2),SUM($AX58:BF58),0)+IF(RIGHT(CB$39,2)>RIGHT($K58,2),BF58,0)) -> 0 | CC58: =+IF($K58="Ongoing",BG58,IF(RIGHT($K58,2)=RIGHT(CC$39,2),SUM($AX58:BG58),0)+IF(RIGHT(CC$39,2)>RIGHT($K58,2),BG58,0)) -> 0 | CE58: =+Q58*KeyAssumptionsPriceControl_FO!AC$15 -> 1.3802 | CF58: =+R58*KeyAssumptionsPriceControl_FO!AD$15 -> 3.034174 | CG58: =+S58*KeyAssumptionsPriceControl_FO!AE$15 -> 0 | CH58: =+T58*KeyAssumptionsPriceControl_FO!AF$15 -> 0 | CI58: =+U58*KeyAssumptionsPriceControl_FO!AG$15 -> 0 | CJ58: =+V58*KeyAssumptionsPriceControl_FO!AH$15 -> 0 | CK58: =+W58*KeyAssumptionsPriceControl_FO!AI$15 -> 0 | CL58: =+X58*KeyAssumptionsPriceControl_FO!AJ$15 -> 0 | CM58: =+Y58*KeyAssumptionsPriceControl_FO!AK$15 -> 0 | CN58: =+Z58*KeyAssumptionsPriceControl_FO!AL$15 -> 0 | CP58: 0.007667777778 | CQ58: 0.03219207778 | CR58: 0.0490486 | CS58: 0.0490486 | CT58: 0.0490486 | CU58: 0.0490486 | CV58: 0.0490486 | CW58: 0.0490486 | CX58: 0.0490486 | CY58: 0.0490486
C59: All Areas - Water Pressure Improvement | E59: Water | F59: Improvements / Compliance | G59: Pipelines/network | H59: Significant projects | J59: Straight line | K59: Ongoing | L59: 47.5 | M59: 47.5 | Q59: 0 | R59: 0.4 | S59: 1.1 | T59: 0.7 | U59: 1.3 | V59: 0 | W59: 0 | X59: 0 | Y59: 0 | Z59: 0 | AX59: 0 | AY59: 0.4 | AZ59: 1.1 | BA59: 0.7 | BB59: 1.3 | BC59: 0 | BD59: 0 | BE59: 0 | BF59: 0 | BG59: 0 | BI59: 0 | BJ59: 0.004210526316 | BK59: 0.02 | BL59: 0.03894736842 | BM59: 0.06 | BN59: 0.07368421053 | BO59: 0.07368421053 | BP59: 0.07368421053 | BQ59: 0.07368421053 | BR59: 0.07368421053 | BT59: =+IF($K59="Ongoing",AX59,IF(RIGHT($K59,2)=RIGHT(BT$39,2),SUM($AX59:AX59),0)+IF(RIGHT(BT$39,2)>RIGHT($K59,2),AX59,0)) -> 0 | BU59: =+IF($K59="Ongoing",AY59,IF(RIGHT($K59,2)=RIGHT(BU$39,2),SUM($AX59:AY59),0)+IF(RIGHT(BU$39,2)>RIGHT($K59,2),AY59,0)) -> 0.4 | BV59: =+IF($K59="Ongoing",AZ59,IF(RIGHT($K59,2)=RIGHT(BV$39,2),SUM($AX59:AZ59),0)+IF(RIGHT(BV$39,2)>RIGHT($K59,2),AZ59,0)) -> 1.1 | BW59: =+IF($K59="Ongoing",BA59,IF(RIGHT($K59,2)=RIGHT(BW$39,2),SUM($AX59:BA59),0)+IF(RIGHT(BW$39,2)>RIGHT($K59,2),BA59,0)) -> 0.7 | BX59: =+IF($K59="Ongoing",BB59,IF(RIGHT($K59,2)=RIGHT(BX$39,2),SUM($AX59:BB59),0)+IF(RIGHT(BX$39,2)>RIGHT($K59,2),BB59,0)) -> 1.3 | BY59: =+IF($K59="Ongoing",BC59,IF(RIGHT($K59,2)=RIGHT(BY$39,2),SUM($AX59:BC59),0)+IF(RIGHT(BY$39,2)>RIGHT($K59,2),BC59,0)) -> 0 | BZ59: =+IF($K59="Ongoing",BD59,IF(RIGHT($K59,2)=RIGHT(BZ$39,2),SUM($AX59:BD59),0)+IF(RIGHT(BZ$39,2)>RIGHT($K59,2),BD59,0)) -> 0 | CA59: =+IF($K59="Ongoing",BE59,IF(RIGHT($K59,2)=RIGHT(CA$39,2),SUM($AX59:BE59),0)+IF(RIGHT(CA$39,2)>RIGHT($K59,2),BE59,0)) -> 0 | CB59: =+IF($K59="Ongoing",BF59,IF(RIGHT($K59,2)=RIGHT(CB$39,2),SUM($AX59:BF59),0)+IF(RIGHT(CB$39,2)>RIGHT($K59,2),BF59,0)) -> 0 | CC59: =+IF($K59="Ongoing",BG59,IF(RIGHT($K59,2)=RIGHT(CC$39,2),SUM($AX59:BG59),0)+IF(RIGHT(CC$39,2)>RIGHT($K59,2),BG59,0)) -> 0 | CE59: =+Q59*KeyAssumptionsPriceControl_FO!AC$15 -> 0 | CF59: =+R59*KeyAssumptionsPriceControl_FO!AD$15 -> 0.42436 | CG59: =+S59*KeyAssumptionsPriceControl_FO!AE$15 -> 1.2019997 | CH59: =+T59*KeyAssumptionsPriceControl_FO!AF$15 -> 0.787856167 | CI59: =+U59*KeyAssumptionsPriceControl_FO!AG$15 -> 1.507056297 | CJ59: =+V59*KeyAssumptionsPriceControl_FO!AH$15 -> 0 | CK59: =+W59*KeyAssumptionsPriceControl_FO!AI$15 -> 0 | CL59: =+X59*KeyAssumptionsPriceControl_FO!AJ$15 -> 0 | CM59: =+Y59*KeyAssumptionsPriceControl_FO!AK$15 -> 0 | CN59: =+Z59*KeyAssumptionsPriceControl_FO!AL$15 -> 0 | CP59: 0 | CQ59: 0.004466947368 | CR59: 0.02158652316 | CS59: 0.04253237439 | CT59: 0.06668934769 | CU59: 0.08255309818 | CV59: 0.08255309818 | CW59: 0.08255309818 | CX59: 0.08255309818 | CY59: 0.08255309818
C60: Kilmore - Kilmore South Trunk Sewer | E60: Sewerage | F60: Growth | G60: Pipelines/network | H60: Significant projects | J60: Straight line | K60: 2023-24 | L60: 90 | M60: 90 | Q60: 3.38 | R60: 0 | S60: 0 | T60: 0 | U60: 0 | V60: 0 | W60: 0 | X60: 0 | Y60: 0 | Z60: 0 | AX60: 3.38 | AY60: 0 | AZ60: 0 | BA60: 0 | BB60: 0 | BC60: 0 | BD60: 0 | BE60: 0 | BF60: 0 | BG60: 0 | BI60: 0.01877777778 | BJ60: 0.03755555556 | BK60: 0.03755555556 | BL60: 0.03755555556 | BM60: 0.03755555556 | BN60: 0.03755555556 | BO60: 0.03755555556 | BP60: 0.03755555556 | BQ60: 0.03755555556 | BR60: 0.03755555556 | BT60: =+IF($K60="Ongoing",AX60,IF(RIGHT($K60,2)=RIGHT(BT$39,2),SUM($AX60:AX60),0)+IF(RIGHT(BT$39,2)>RIGHT($K60,2),AX60,0)) -> 3.38 | BU60: =+IF($K60="Ongoing",AY60,IF(RIGHT($K60,2)=RIGHT(BU$39,2),SUM($AX60:AY60),0)+IF(RIGHT(BU$39,2)>RIGHT($K60,2),AY60,0)) -> 0 | BV60: =+IF($K60="Ongoing",AZ60,IF(RIGHT($K60,2)=RIGHT(BV$39,2),SUM($AX60:AZ60),0)+IF(RIGHT(BV$39,2)>RIGHT($K60,2),AZ60,0)) -> 0 | BW60: =+IF($K60="Ongoing",BA60,IF(RIGHT($K60,2)=RIGHT(BW$39,2),SUM($AX60:BA60),0)+IF(RIGHT(BW$39,2)>RIGHT($K60,2),BA60,0)) -> 0 | BX60: =+IF($K60="Ongoing",BB60,IF(RIGHT($K60,2)=RIGHT(BX$39,2),SUM($AX60:BB60),0)+IF(RIGHT(BX$39,2)>RIGHT($K60,2),BB60,0)) -> 0 | BY60: =+IF($K60="Ongoing",BC60,IF(RIGHT($K60,2)=RIGHT(BY$39,2),SUM($AX60:BC60),0)+IF(RIGHT(BY$39,2)>RIGHT($K60,2),BC60,0)) -> 0 | BZ60: =+IF($K60="Ongoing",BD60,IF(RIGHT($K60,2)=RIGHT(BZ$39,2),SUM($AX60:BD60),0)+IF(RIGHT(BZ$39,2)>RIGHT($K60,2),BD60,0)) -> 0 | CA60: =+IF($K60="Ongoing",BE60,IF(RIGHT($K60,2)=RIGHT(CA$39,2),SUM($AX60:BE60),0)+IF(RIGHT(CA$39,2)>RIGHT($K60,2),BE60,0)) -> 0 | CB60: =+IF($K60="Ongoing",BF60,IF(RIGHT($K60,2)=RIGHT(CB$39,2),SUM($AX60:BF60),0)+IF(RIGHT(CB$39,2)>RIGHT($K60,2),BF60,0)) -> 0 | CC60: =+IF($K60="Ongoing",BG60,IF(RIGHT($K60,2)=RIGHT(CC$39,2),SUM($AX60:BG60),0)+IF(RIGHT(CC$39,2)>RIGHT($K60,2),BG60,0)) -> 0 | CE60: =+Q60*KeyAssumptionsPriceControl_FO!AC$15 -> 3.4814 | CF60: =+R60*KeyAssumptionsPriceControl_FO!AD$15 -> 0 | CG60: =+S60*KeyAssumptionsPriceControl_FO!AE$15 -> 0 | CH60: =+T60*KeyAssumptionsPriceControl_FO!AF$15 -> 0 | CI60: =+U60*KeyAssumptionsPriceControl_FO!AG$15 -> 0 | CJ60: =+V60*KeyAssumptionsPriceControl_FO!AH$15 -> 0 | CK60: =+W60*KeyAssumptionsPriceControl_FO!AI$15 -> 0 | CL60: =+X60*KeyAssumptionsPriceControl_FO!AJ$15 -> 0 | CM60: =+Y60*KeyAssumptionsPriceControl_FO!AK$15 -> 0 | CN60: =+Z60*KeyAssumptionsPriceControl_FO!AL$15 -> 0 | CP60: 0.01934111111 | CQ60: 0.03868222222 | CR60: 0.03868222222 | CS60: 0.03868222222 | CT60: 0.03868222222 | CU60: 0.03868222222 | CV60: 0.03868222222 | CW60: 0.03868222222 | CX60: 0.03868222222 | CY60: 0.03868222222
C61: All Areas - Microbial Risk Reduction (Shepparton UV Plant) | E61: Water | F61: Improvements / Compliance | G61: Treatment | H61: Significant projects | J61: Straight line | K61: 2024-25 | L61: 47.5 | M61: 47.5 | Q61: 2.5 | R61: 0.4 | S61: 0 | T61: 0 | U61: 0 | V61: 0 | W61: 0 | X61: 0 | Y61: 0 | Z61: 0 | AX61: 2.5 | AY61: 0.4 | AZ61: 0 | BA61: 0 | BB61: 0 | BC61: 0 | BD61: 0 | BE61: 0 | BF61: 0 | BG61: 0 | BI61: 0 | BJ61: 0.03052631579 | BK61: 0.06105263158 | BL61: 0.06105263158 | BM61: 0.06105263158 | BN61: 0.06105263158 | BO61: 0.06105263158 | BP61: 0.06105263158 | BQ61: 0.06105263158 | BR61: 0.06105263158 | BT61: =+IF($K61="Ongoing",AX61,IF(RIGHT($K61,2)=RIGHT(BT$39,2),SUM($AX61:AX61),0)+IF(RIGHT(BT$39,2)>RIGHT($K61,2),AX61,0)) -> 0 | BU61: =+IF($K61="Ongoing",AY61,IF(RIGHT($K61,2)=RIGHT(BU$39,2),SUM($AX61:AY61),0)+IF(RIGHT(BU$39,2)>RIGHT($K61,2),AY61,0)) -> 2.9 | BV61: =+IF($K61="Ongoing",AZ61,IF(RIGHT($K61,2)=RIGHT(BV$39,2),SUM($AX61:AZ61),0)+IF(RIGHT(BV$39,2)>RIGHT($K61,2),AZ61,0)) -> 0 | BW61: =+IF($K61="Ongoing",BA61,IF(RIGHT($K61,2)=RIGHT(BW$39,2),SUM($AX61:BA61),0)+IF(RIGHT(BW$39,2)>RIGHT($K61,2),BA61,0)) -> 0 | BX61: =+IF($K61="Ongoing",BB61,IF(RIGHT($K61,2)=RIGHT(BX$39,2),SUM($AX61:BB61),0)+IF(RIGHT(BX$39,2)>RIGHT($K61,2),BB61,0)) -> 0 | BY61: =+IF($K61="Ongoing",BC61,IF(RIGHT($K61,2)=RIGHT(BY$39,2),SUM($AX61:BC61),0)+IF(RIGHT(BY$39,2)>RIGHT($K61,2),BC61,0)) -> 0 | BZ61: =+IF($K61="Ongoing",BD61,IF(RIGHT($K61,2)=RIGHT(BZ$39,2),SUM($AX61:BD61),0)+IF(RIGHT(BZ$39,2)>RIGHT($K61,2),BD61,0)) -> 0 | CA61: =+IF($K61="Ongoing",BE61,IF(RIGHT($K61,2)=RIGHT(CA$39,2),SUM($AX61:BE61),0)+IF(RIGHT(CA$39,2)>RIGHT($K61,2),BE61,0)) -> 0 | CB61: =+IF($K61="Ongoing",BF61,IF(RIGHT($K61,2)=RIGHT(CB$39,2),SUM($AX61:BF61),0)+IF(RIGHT(CB$39,2)>RIGHT($K61,2),BF61,0)) -> 0 | CC61: =+IF($K61="Ongoing",BG61,IF(RIGHT($K61,2)=RIGHT(CC$39,2),SUM($AX61:BG61),0)+IF(RIGHT(CC$39,2)>RIGHT($K61,2),BG61,0)) -> 0 | CE61: =+Q61*KeyAssumptionsPriceControl_FO!AC$15 -> 2.575 | CF61: =+R61*KeyAssumptionsPriceControl_FO!AD$15 -> 0.42436 | CG61: =+S61*KeyAssumptionsPriceControl_FO!AE$15 -> 0 | CH61: =+T61*KeyAssumptionsPriceControl_FO!AF$15 -> 0 | CI61: =+U61*KeyAssumptionsPriceControl_FO!AG$15 -> 0 | CJ61: =+V61*KeyAssumptionsPriceControl_FO!AH$15 -> 0 | CK61: =+W61*KeyAssumptionsPriceControl_FO!AI$15 -> 0 | CL61: =+X61*KeyAssumptionsPriceControl_FO!AJ$15 -> 0 | CM61: =+Y61*KeyAssumptionsPriceControl_FO!AK$15 -> 0 | CN61: =+Z61*KeyAssumptionsPriceControl_FO!AL$15 -> 0 | CP61: 0.02710526316 | CQ61: 0.05867747368 | CR61: 0.06314442105 | CS61: 0.06314442105 | CT61: 0.06314442105 | CU61: 0.06314442105 | CV61: 0.06314442105 | CW61: 0.06314442105 | CX61: 0.06314442105 | CY61: 0.06314442105
C62: All Areas - Water Mains Replacement | E62: Water | F62: Renewals | G62: Pipelines/network | H62: Capital Programs / Allocation | J62: Straight line | K62: Ongoing | L62: 90 | M62: 90 | Q62: 2.75 | R62: 2.75 | S62: 2.75 | T62: 2.75 | U62: 2.75 | V62: 4.06 | W62: 4.06 | X62: 4.06 | Y62: 4.06 | Z62: 4.06 | AX62: 2.75 | AY62: 2.75 | AZ62: 2.75 | BA62: 2.75 | BB62: 2.75 | BC62: 4.06 | BD62: 4.06 | BE62: 4.06 | BF62: 4.06 | BG62: 4.06 | BI62: 0.01527777778 | BJ62: 0.04583333333 | BK62: 0.07638888889 | BL62: 0.1069444444 | BM62: 0.1375 | BN62: 0.1753333333 | BO62: 0.2204444444 | BP62: 0.2655555556 | BQ62: 0.3106666667 | BR62: 0.3557777778 | BT62: =+IF($K62="Ongoing",AX62,IF(RIGHT($K62,2)=RIGHT(BT$39,2),SUM($AX62:AX62),0)+IF(RIGHT(BT$39,2)>RIGHT($K62,2),AX62,0)) -> 2.75 | BU62: =+IF($K62="Ongoing",AY62,IF(RIGHT($K62,2)=RIGHT(BU$39,2),SUM($AX62:AY62),0)+IF(RIGHT(BU$39,2)>RIGHT($K62,2),AY62,0)) -> 2.75 | BV62: =+IF($K62="Ongoing",AZ62,IF(RIGHT($K62,2)=RIGHT(BV$39,2),SUM($AX62:AZ62),0)+IF(RIGHT(BV$39,2)>RIGHT($K62,2),AZ62,0)) -> 2.75 | BW62: =+IF($K62="Ongoing",BA62,IF(RIGHT($K62,2)=RIGHT(BW$39,2),SUM($AX62:BA62),0)+IF(RIGHT(BW$39,2)>RIGHT($K62,2),BA62,0)) -> 2.75 | BX62: =+IF($K62="Ongoing",BB62,IF(RIGHT($K62,2)=RIGHT(BX$39,2),SUM($AX62:BB62),0)+IF(RIGHT(BX$39,2)>RIGHT($K62,2),BB62,0)) -> 2.75 | BY62: =+IF($K62="Ongoing",BC62,IF(RIGHT($K62,2)=RIGHT(BY$39,2),SUM($AX62:BC62),0)+IF(RIGHT(BY$39,2)>RIGHT($K62,2),BC62,0)) -> 4.06 | BZ62: =+IF($K62="Ongoing",BD62,IF(RIGHT($K62,2)=RIGHT(BZ$39,2),SUM($AX62:BD62),0)+IF(RIGHT(BZ$39,2)>RIGHT($K62,2),BD62,0)) -> 4.06 | CA62: =+IF($K62="Ongoing",BE62,IF(RIGHT($K62,2)=RIGHT(CA$39,2),SUM($AX62:BE62),0)+IF(RIGHT(CA$39,2)>RIGHT($K62,2),BE62,0)) -> 4.06 | CB62: =+IF($K62="Ongoing",BF62,IF(RIGHT($K62,2)=RIGHT(CB$39,2),SUM($AX62:BF62),0)+IF(RIGHT(CB$39,2)>RIGHT($K62,2),BF62,0)) -> 4.06 | CC62: =+IF($K62="Ongoing",BG62,IF(RIGHT($K62,2)=RIGHT(CC$39,2),SUM($AX62:BG62),0)+IF(RIGHT(CC$39,2)>RIGHT($K62,2),BG62,0)) -> 4.06 | CE62: =+Q62*KeyAssumptionsPriceControl_FO!AC$15 -> 2.8325 | CF62: =+R62*KeyAssumptionsPriceControl_FO!AD$15 -> 2.917475 | CG62: =+S62*KeyAssumptionsPriceControl_FO!AE$15 -> 3.00499925 | CH62: =+T62*KeyAssumptionsPriceControl_FO!AF$15 -> 3.095149228 | CI62: =+U62*KeyAssumptionsPriceControl_FO!AG$15 -> 3.188003704 | CJ62: =+V62*KeyAssumptionsPriceControl_FO!AH$15 -> 4.847852324 | CK62: =+W62*KeyAssumptionsPriceControl_FO!AI$15 -> 4.993287894 | CL62: =+X62*KeyAssumptionsPriceControl_FO!AJ$15 -> 5.14308653 | CM62: =+Y62*KeyAssumptionsPriceControl_FO!AK$15 -> 5.297379126 | CN62: =+Z62*KeyAssumptionsPriceControl_FO!AL$15 -> 5.4563005 | CP62: 0.01573611111 | CQ62: 0.04768041667 | CR62: 0.08058305139 | CS62: 0.1144727652 | CT62: 0.1493791703 | CU62: 0.1940228149 | CV62: 0.2486958161 | CW62: 0.3050090074 | CX62: 0.3630115944 | CY62: 0.422754259
C63: All Areas - Sewer Relining Program - Collapse Prevention | E63: Sewerage | F63: Renewals | G63: Pipelines/network | H63: Capital Programs / Allocation | J63: Straight line | K63: Ongoing | L63: 90 | M63: 90 | Q63: 1 | R63: 1 | S63: 1 | T63: 1 | U63: 1 | V63: 1.34 | W63: 1.34 | X63: 1.34 | Y63: 1.34 | Z63: 1.34 | AX63: 1 | AY63: 1 | AZ63: 1 | BA63: 1 | BB63: 1 | BC63: 1.34 | BD63: 1.34 | BE63: 1.34 | BF63: 1.34 | BG63: 1.34 | BI63: 0.005555555556 | BJ63: 0.01666666667 | BK63: 0.02777777778 | BL63: 0.03888888889 | BM63: 0.05 | BN63: 0.063 | BO63: 0.07788888889 | BP63: 0.09277777778 | BQ63: 0.1076666667 | BR63: 0.1225555556 | BT63: =+IF($K63="Ongoing",AX63,IF(RIGHT($K63,2)=RIGHT(BT$39,2),SUM($AX63:AX63),0)+IF(RIGHT(BT$39,2)>RIGHT($K63,2),AX63,0)) -> 1 | BU63: =+IF($K63="Ongoing",AY63,IF(RIGHT($K63,2)=RIGHT(BU$39,2),SUM($AX63:AY63),0)+IF(RIGHT(BU$39,2)>RIGHT($K63,2),AY63,0)) -> 1 | BV63: =+IF($K63="Ongoing",AZ63,IF(RIGHT($K63,2)=RIGHT(BV$39,2),SUM($AX63:AZ63),0)+IF(RIGHT(BV$39,2)>RIGHT($K63,2),AZ63,0)) -> 1 | BW63: =+IF($K63="Ongoing",BA63,IF(RIGHT($K63,2)=RIGHT(BW$39,2),SUM($AX63:BA63),0)+IF(RIGHT(BW$39,2)>RIGHT($K63,2),BA63,0)) -> 1 | BX63: =+IF($K63="Ongoing",BB63,IF(RIGHT($K63,2)=RIGHT(BX$39,2),SUM($AX63:BB63),0)+IF(RIGHT(BX$39,2)>RIGHT($K63,2),BB63,0)) -> 1 | BY63: =+IF($K63="Ongoing",BC63,IF(RIGHT($K63,2)=RIGHT(BY$39,2),SUM($AX63:BC63),0)+IF(RIGHT(BY$39,2)>RIGHT($K63,2),BC63,0)) -> 1.34 | BZ63: =+IF($K63="Ongoing",BD63,IF(RIGHT($K63,2)=RIGHT(BZ$39,2),SUM($AX63:BD63),0)+IF(RIGHT(BZ$39,2)>RIGHT($K63,2),BD63,0)) -> 1.34 | CA63: =+IF($K63="Ongoing",BE63,IF(RIGHT($K63,2)=RIGHT(CA$39,2),SUM($AX63:BE63),0)+IF(RIGHT(CA$39,2)>RIGHT($K63,2),BE63,0)) -> 1.34 | CB63: =+IF($K63="Ongoing",BF63,IF(RIGHT($K63,2)=RIGHT(CB$39,2),SUM($AX63:BF63),0)+IF(RIGHT(CB$39,2)>RIGHT($K63,2),BF63,0)) -> 1.34 | CC63: =+IF($K63="Ongoing",BG63,IF(RIGHT($K63,2)=RIGHT(CC$39,2),SUM($AX63:BG63),0)+IF(RIGHT(CC$39,2)>RIGHT($K63,2),BG63,0)) -> 1.34 | CE63: =+Q63*KeyAssumptionsPriceControl_FO!AC$15 -> 1.03 | CF63: =+R63*KeyAssumptionsPriceControl_FO!AD$15 -> 1.0609 | CG63: =+S63*KeyAssumptionsPriceControl_FO!AE$15 -> 1.092727 | CH63: =+T63*KeyAssumptionsPriceControl_FO!AF$15 -> 1.12550881 | CI63: =+U63*KeyAssumptionsPriceControl_FO!AG$15 -> 1.159274074 | CJ63: =+V63*KeyAssumptionsPriceControl_FO!AH$15 -> 1.600030077 | CK63: =+W63*KeyAssumptionsPriceControl_FO!AI$15 -> 1.64803098 | CL63: =+X63*KeyAssumptionsPriceControl_FO!AJ$15 -> 1.697471909 | CM63: =+Y63*KeyAssumptionsPriceControl_FO!AK$15 -> 1.748396066 | CN63: =+Z63*KeyAssumptionsPriceControl_FO!AL$15 -> 1.800847948 | CP63: 0.005722222222 | CQ63: 0.01733833333 | CR63: 0.02930292778 | CS63: 0.04162646006 | CT63: 0.0543196983 | CU63: 0.06964916581 | CV63: 0.08769394946 | CW63: 0.1062800766 | CX63: 0.1254237876 | CY63: 0.1451418099
C64: All Areas - Sewer Relining Program - Blockage Prevention | E64: Sewerage | F64: Renewals | G64: Pipelines/network | H64: Capital Programs / Allocation | J64: Straight line | K64: Ongoing | L64: 90 | M64: 90 | Q64: 0.76 | R64: 0.76 | S64: 0.76 | T64: 0.76 | U64: 0.76 | V64: 0.76 | W64: 0.76 | X64: 0.76 | Y64: 0.76 | Z64: 0.76 | AX64: 0.76 | AY64: 0.76 | AZ64: 0.76 | BA64: 0.76 | BB64: 0.76 | BC64: 0.76 | BD64: 0.76 | BE64: 0.76 | BF64: 0.76 | BG64: 0.76 | BI64: 0.004222222222 | BJ64: 0.01266666667 | BK64: 0.02111111111 | BL64: 0.02955555556 | BM64: 0.038 | BN64: 0.04644444444 | BO64: 0.05488888889 | BP64: 0.06333333333 | BQ64: 0.07177777778 | BR64: 0.08022222222 | BT64: =+IF($K64="Ongoing",AX64,IF(RIGHT($K64,2)=RIGHT(BT$39,2),SUM($AX64:AX64),0)+IF(RIGHT(BT$39,2)>RIGHT($K64,2),AX64,0)) -> 0.76 | BU64: =+IF($K64="Ongoing",AY64,IF(RIGHT($K64,2)=RIGHT(BU$39,2),SUM($AX64:AY64),0)+IF(RIGHT(BU$39,2)>RIGHT($K64,2),AY64,0)) -> 0.76 | BV64: =+IF($K64="Ongoing",AZ64,IF(RIGHT($K64,2)=RIGHT(BV$39,2),SUM($AX64:AZ64),0)+IF(RIGHT(BV$39,2)>RIGHT($K64,2),AZ64,0)) -> 0.76 | BW64: =+IF($K64="Ongoing",BA64,IF(RIGHT($K64,2)=RIGHT(BW$39,2),SUM($AX64:BA64),0)+IF(RIGHT(BW$39,2)>RIGHT($K64,2),BA64,0)) -> 0.76 | BX64: =+IF($K64="Ongoing",BB64,IF(RIGHT($K64,2)=RIGHT(BX$39,2),SUM($AX64:BB64),0)+IF(RIGHT(BX$39,2)>RIGHT($K64,2),BB64,0)) -> 0.76 | BY64: =+IF($K64="Ongoing",BC64,IF(RIGHT($K64,2)=RIGHT(BY$39,2),SUM($AX64:BC64),0)+IF(RIGHT(BY$39,2)>RIGHT($K64,2),BC64,0)) -> 0.76 | BZ64: =+IF($K64="Ongoing",BD64,IF(RIGHT($K64,2)=RIGHT(BZ$39,2),SUM($AX64:BD64),0)+IF(RIGHT(BZ$39,2)>RIGHT($K64,2),BD64,0)) -> 0.76 | CA64: =+IF($K64="Ongoing",BE64,IF(RIGHT($K64,2)=RIGHT(CA$39,2),SUM($AX64:BE64),0)+IF(RIGHT(CA$39,2)>RIGHT($K64,2),BE64,0)) -> 0.76 | CB64: =+IF($K64="Ongoing",BF64,IF(RIGHT($K64,2)=RIGHT(CB$39,2),SUM($AX64:BF64),0)+IF(RIGHT(CB$39,2)>RIGHT($K64,2),BF64,0)) -> 0.76 | CC64: =+IF($K64="Ongoing",BG64,IF(RIGHT($K64,2)=RIGHT(CC$39,2),SUM($AX64:BG64),0)+IF(RIGHT(CC$39,2)>RIGHT($K64,2),BG64,0)) -> 0.76 | CE64: =+Q64*KeyAssumptionsPriceControl_FO!AC$15 -> 0.7828 | CF64: =+R64*KeyAssumptionsPriceControl_FO!AD$15 -> 0.806284 | CG64: =+S64*KeyAssumptionsPriceControl_FO!AE$15 -> 0.83047252 | CH64: =+T64*KeyAssumptionsPriceControl_FO!AF$15 -> 0.8553866956 | CI64: =+U64*KeyAssumptionsPriceControl_FO!AG$15 -> 0.8810482965 | CJ64: =+V64*KeyAssumptionsPriceControl_FO!AH$15 -> 0.9074797454 | CK64: =+W64*KeyAssumptionsPriceControl_FO!AI$15 -> 0.9347041377 | CL64: =+X64*KeyAssumptionsPriceControl_FO!AJ$15 -> 0.9627452619 | CM64: =+Y64*KeyAssumptionsPriceControl_FO!AK$15 -> 0.9916276197 | CN64: =+Z64*KeyAssumptionsPriceControl_FO!AL$15 -> 1.021376448 | CP64: 0.004348888889 | CQ64: 0.01317713333 | CR64: 0.02227022511 | CS64: 0.03163610964 | CT64: 0.04128297071 | CU64: 0.05121923761 | CV64: 0.06145359251 | CW64: 0.07199497807 | CX64: 0.08285260519 | CY64: 0.09403596112
C65: All Areas - Asset Acquisitions - Vehicles | E65: Water | F65: Renewals | G65: Corporate | H65: Capital Programs / Allocation | J65: Straight line | K65: Ongoing | L65: 5 | M65: 5 | Q65: 0.7 | R65: 0.7 | S65: 0.7 | T65: 0.75 | U65: 0.75 | V65: 0.75 | W65: 0.75 | X65: 0.75 | Y65: 0.75 | Z65: 0.75 | AX65: 0.7 | AY65: 0.7 | AZ65: 0.7 | BA65: 0.75 | BB65: 0.75 | BC65: 0.75 | BD65: 0.75 | BE65: 0.75 | BF65: 0.75 | BG65: 0.75 | BI65: 0.07 | BJ65: 0.21 | BK65: 0.35 | BL65: 0.495 | BM65: 0.645 | BN65: 0.725 | BO65: 0.735 | BP65: 0.745 | BQ65: 0.75 | BR65: 0.75 | BT65: =+IF($K65="Ongoing",AX65,IF(RIGHT($K65,2)=RIGHT(BT$39,2),SUM($AX65:AX65),0)+IF(RIGHT(BT$39,2)>RIGHT($K65,2),AX65,0)) -> 0.7 | BU65: =+IF($K65="Ongoing",AY65,IF(RIGHT($K65,2)=RIGHT(BU$39,2),SUM($AX65:AY65),0)+IF(RIGHT(BU$39,2)>RIGHT($K65,2),AY65,0)) -> 0.7 | BV65: =+IF($K65="Ongoing",AZ65,IF(RIGHT($K65,2)=RIGHT(BV$39,2),SUM($AX65:AZ65),0)+IF(RIGHT(BV$39,2)>RIGHT($K65,2),AZ65,0)) -> 0.7 | BW65: =+IF($K65="Ongoing",BA65,IF(RIGHT($K65,2)=RIGHT(BW$39,2),SUM($AX65:BA65),0)+IF(RIGHT(BW$39,2)>RIGHT($K65,2),BA65,0)) -> 0.75 | BX65: =+IF($K65="Ongoing",BB65,IF(RIGHT($K65,2)=RIGHT(BX$39,2),SUM($AX65:BB65),0)+IF(RIGHT(BX$39,2)>RIGHT($K65,2),BB65,0)) -> 0.75 | BY65: =+IF($K65="Ongoing",BC65,IF(RIGHT($K65,2)=RIGHT(BY$39,2),SUM($AX65:BC65),0)+IF(RIGHT(BY$39,2)>RIGHT($K65,2),BC65,0)) -> 0.75 | BZ65: =+IF($K65="Ongoing",BD65,IF(RIGHT($K65,2)=RIGHT(BZ$39,2),SUM($AX65:BD65),0)+IF(RIGHT(BZ$39,2)>RIGHT($K65,2),BD65,0)) -> 0.75 | CA65: =+IF($K65="Ongoing",BE65,IF(RIGHT($K65,2)=RIGHT(CA$39,2),SUM($AX65:BE65),0)+IF(RIGHT(CA$39,2)>RIGHT($K65,2),BE65,0)) -> 0.75 | CB65: =+IF($K65="Ongoing",BF65,IF(RIGHT($K65,2)=RIGHT(CB$39,2),SUM($AX65:BF65),0)+IF(RIGHT(CB$39,2)>RIGHT($K65,2),BF65,0)) -> 0.75 | CC65: =+IF($K65="Ongoing",BG65,IF(RIGHT($K65,2)=RIGHT(CC$39,2),SUM($AX65:BG65),0)+IF(RIGHT(CC$39,2)>RIGHT($K65,2),BG65,0)) -> 0.75 | CE65: =+Q65*KeyAssumptionsPriceControl_FO!AC$15 -> 0.721 | CF65: =+R65*KeyAssumptionsPriceControl_FO!AD$15 -> 0.74263 | CG65: =+S65*KeyAssumptionsPriceControl_FO!AE$15 -> 0.7649089 | CH65: =+T65*KeyAssumptionsPriceControl_FO!AF$15 -> 0.8441316075 | CI65: =+U65*KeyAssumptionsPriceControl_FO!AG$15 -> 0.8694555557 | CJ65: =+V65*KeyAssumptionsPriceControl_FO!AH$15 -> 0.8955392224 | CK65: =+W65*KeyAssumptionsPriceControl_FO!AI$15 -> 0.9224053991 | CL65: =+X65*KeyAssumptionsPriceControl_FO!AJ$15 -> 0.950077561 | CM65: =+Y65*KeyAssumptionsPriceControl_FO!AK$15 -> 0.9785798879 | CN65: =+Z65*KeyAssumptionsPriceControl_FO!AL$15 -> 1.007937285 | CP65: 0.0721 | CQ65: 0.218463 | CR65: 0.36921689 | CS65: 0.5301209407 | CT65: 0.7014796571 | CU65: 0.8058791349 | CV65: 0.841310597 | CW65: 0.877805003 | CX65: 0.9097666972 | CY65: 0.9370596981
C66: All Areas - Asset Acquisitions - Vehicles | E66: Sewerage | F66: Renewals | G66: Corporate | H66: Capital Programs / Allocation | J66: Straight line | K66: Ongoing | L66: 5 | M66: 5 | Q66: 0.7 | R66: 0.7 | S66: 0.7 | T66: 0.75 | U66: 0.75 | V66: 0.75 | W66: 0.75 | X66: 0.75 | Y66: 0.75 | Z66: 0.75 | AX66: 0.7 | AY66: 0.7 | AZ66: 0.7 | BA66: 0.75 | BB66: 0.75 | BC66: 0.75 | BD66: 0.75 | BE66: 0.75 | BF66: 0.75 | BG66: 0.75 | BI66: 0.07 | BJ66: 0.21 | BK66: 0.35 | BL66: 0.495 | BM66: 0.645 | BN66: 0.725 | BO66: 0.735 | BP66: 0.745 | BQ66: 0.75 | BR66: 0.75 | BT66: =+IF($K66="Ongoing",AX66,IF(RIGHT($K66,2)=RIGHT(BT$39,2),SUM($AX66:AX66),0)+IF(RIGHT(BT$39,2)>RIGHT($K66,2),AX66,0)) -> 0.7 | BU66: =+IF($K66="Ongoing",AY66,IF(RIGHT($K66,2)=RIGHT(BU$39,2),SUM($AX66:AY66),0)+IF(RIGHT(BU$39,2)>RIGHT($K66,2),AY66,0)) -> 0.7 | BV66: =+IF($K66="Ongoing",AZ66,IF(RIGHT($K66,2)=RIGHT(BV$39,2),SUM($AX66:AZ66),0)+IF(RIGHT(BV$39,2)>RIGHT($K66,2),AZ66,0)) -> 0.7 | BW66: =+IF($K66="Ongoing",BA66,IF(RIGHT($K66,2)=RIGHT(BW$39,2),SUM($AX66:BA66),0)+IF(RIGHT(BW$39,2)>RIGHT($K66,2),BA66,0)) -> 0.75 | BX66: =+IF($K66="Ongoing",BB66,IF(RIGHT($K66,2)=RIGHT(BX$39,2),SUM($AX66:BB66),0)+IF(RIGHT(BX$39,2)>RIGHT($K66,2),BB66,0)) -> 0.75 | BY66: =+IF($K66="Ongoing",BC66,IF(RIGHT($K66,2)=RIGHT(BY$39,2),SUM($AX66:BC66),0)+IF(RIGHT(BY$39,2)>RIGHT($K66,2),BC66,0)) -> 0.75 | BZ66: =+IF($K66="Ongoing",BD66,IF(RIGHT($K66,2)=RIGHT(BZ$39,2),SUM($AX66:BD66),0)+IF(RIGHT(BZ$39,2)>RIGHT($K66,2),BD66,0)) -> 0.75 | CA66: =+IF($K66="Ongoing",BE66,IF(RIGHT($K66,2)=RIGHT(CA$39,2),SUM($AX66:BE66),0)+IF(RIGHT(CA$39,2)>RIGHT($K66,2),BE66,0)) -> 0.75 | CB66: =+IF($K66="Ongoing",BF66,IF(RIGHT($K66,2)=RIGHT(CB$39,2),SUM($AX66:BF66),0)+IF(RIGHT(CB$39,2)>RIGHT($K66,2),BF66,0)) -> 0.75 | CC66: =+IF($K66="Ongoing",BG66,IF(RIGHT($K66,2)=RIGHT(CC$39,2),SUM($AX66:BG66),0)+IF(RIGHT(CC$39,2)>RIGHT($K66,2),BG66,0)) -> 0.75 | CE66: =+Q66*KeyAssumptionsPriceControl_FO!AC$15 -> 0.721 | CF66: =+R66*KeyAssumptionsPriceControl_FO!AD$15 -> 0.74263 | CG66: =+S66*KeyAssumptionsPriceControl_FO!AE$15 -> 0.7649089 | CH66: =+T66*KeyAssumptionsPriceControl_FO!AF$15 -> 0.8441316075 | CI66: =+U66*KeyAssumptionsPriceControl_FO!AG$15 -> 0.8694555557 | CJ66: =+V66*KeyAssumptionsPriceControl_FO!AH$15 -> 0.8955392224 | CK66: =+W66*KeyAssumptionsPriceControl_FO!AI$15 -> 0.9224053991 | CL66: =+X66*KeyAssumptionsPriceControl_FO!AJ$15 -> 0.950077561 | CM66: =+Y66*KeyAssumptionsPriceControl_FO!AK$15 -> 0.9785798879 | CN66: =+Z66*KeyAssumptionsPriceControl_FO!AL$15 -> 1.007937285 | CP66: 0.0721 | CQ66: 0.218463 | CR66: 0.36921689 | CS66: 0.5301209407 | CT66: 0.7014796571 | CU66: 0.8058791349 | CV66: 0.841310597 | CW66: 0.877805003 | CX66: 0.9097666972 | CY66: 0.9370596981
C67: Externally Funded Works - Sewer | E67: Sewerage | F67: Growth | G67: Pipelines/network | H67: Capital Programs / Allocation | J67: Straight line | K67: Ongoing | L67: 90 | M67: 90 | Q67: 0.65 | R67: 0.65 | S67: 0.65 | T67: 0.65 | U67: 0.65 | V67: 0.65 | W67: 0.65 | X67: 0.65 | Y67: 0.65 | Z67: 0.65 | AM67: 1.4926 | AN67: 1.5266 | AO67: 1.5623 | AP67: 1.5997 | AQ67: 1.6371 | AR67: 1.6779 | AS67: 1.7187 | AT67: 1.7765 | AU67: 1.8207 | AV67: 1.8649 | AX67: -0.8426 | AY67: -0.8766 | AZ67: -0.9123 | BA67: -0.9497 | BB67: -0.9871 | BC67: -1.0279 | BD67: -1.0687 | BE67: -1.1265 | BF67: -1.1707 | BG67: -1.2149 | BI67: -0.004681111111 | BJ67: -0.01423222222 | BK67: -0.02417055556 | BL67: -0.034515 | BM67: -0.045275 | BN67: -0.05646944444 | BO67: -0.06811722222 | BP67: -0.08031277778 | BQ67: -0.093075 | BR67: -0.1063283333 | BT67: =+IF($K67="Ongoing",AX67,IF(RIGHT($K67,2)=RIGHT(BT$39,2),SUM($AX67:AX67),0)+IF(RIGHT(BT$39,2)>RIGHT($K67,2),AX67,0)) -> -0.8426 | BU67: =+IF($K67="Ongoing",AY67,IF(RIGHT($K67,2)=RIGHT(BU$39,2),SUM($AX67:AY67),0)+IF(RIGHT(BU$39,2)>RIGHT($K67,2),AY67,0)) -> -0.8766 | BV67: =+IF($K67="Ongoing",AZ67,IF(RIGHT($K67,2)=RIGHT(BV$39,2),SUM($AX67:AZ67),0)+IF(RIGHT(BV$39,2)>RIGHT($K67,2),AZ67,0)) -> -0.9123 | BW67: =+IF($K67="Ongoing",BA67,IF(RIGHT($K67,2)=RIGHT(BW$39,2),SUM($AX67:BA67),0)+IF(RIGHT(BW$39,2)>RIGHT($K67,2),BA67,0)) -> -0.9497 | BX67: =+IF($K67="Ongoing",BB67,IF(RIGHT($K67,2)=RIGHT(BX$39,2),SUM($AX67:BB67),0)+IF(RIGHT(BX$39,2)>RIGHT($K67,2),BB67,0)) -> -0.9871 | BY67: =+IF($K67="Ongoing",BC67,IF(RIGHT($K67,2)=RIGHT(BY$39,2),SUM($AX67:BC67),0)+IF(RIGHT(BY$39,2)>RIGHT($K67,2),BC67,0)) -> -1.0279 | BZ67: =+IF($K67="Ongoing",BD67,IF(RIGHT($K67,2)=RIGHT(BZ$39,2),SUM($AX67:BD67),0)+IF(RIGHT(BZ$39,2)>RIGHT($K67,2),BD67,0)) -> -1.0687 | CA67: =+IF($K67="Ongoing",BE67,IF(RIGHT($K67,2)=RIGHT(CA$39,2),SUM($AX67:BE67),0)+IF(RIGHT(CA$39,2)>RIGHT($K67,2),BE67,0)) -> -1.1265 | CB67: =+IF($K67="Ongoing",BF67,IF(RIGHT($K67,2)=RIGHT(CB$39,2),SUM($AX67:BF67),0)+IF(RIGHT(CB$39,2)>RIGHT($K67,2),BF67,0)) -> -1.1707 | CC67: =+IF($K67="Ongoing",BG67,IF(RIGHT($K67,2)=RIGHT(CC$39,2),SUM($AX67:BG67),0)+IF(RIGHT(CC$39,2)>RIGHT($K67,2),BG67,0)) -> -1.2149 | CE67: =+Q67*KeyAssumptionsPriceControl_FO!AC$15 -> 0.6695 | CF67: =+R67*KeyAssumptionsPriceControl_FO!AD$15 -> 0.689585 | CG67: =+S67*KeyAssumptionsPriceControl_FO!AE$15 -> 0.71027255 | CH67: =+T67*KeyAssumptionsPriceControl_FO!AF$15 -> 0.7315807265 | CI67: =+U67*KeyAssumptionsPriceControl_FO!AG$15 -> 0.7535281483 | CJ67: =+V67*KeyAssumptionsPriceControl_FO!AH$15 -> 0.7761339927 | CK67: =+W67*KeyAssumptionsPriceControl_FO!AI$15 -> 0.7994180125 | CL67: =+X67*KeyAssumptionsPriceControl_FO!AJ$15 -> 0.8234005529 | CM67: =+Y67*KeyAssumptionsPriceControl_FO!AK$15 -> 0.8481025695 | CN67: =+Z67*KeyAssumptionsPriceControl_FO!AL$15 -> 0.8735456466 | CP67: 0.003719444444 | CQ67: 0.01126991667 | CR67: 0.01904690306 | CS67: 0.02705719904 | CT67: 0.0353078039 | CU67: 0.0438059269 | CV67: 0.0525589936 | CW67: 0.06157465229 | CX67: 0.07086078075 | CY67: 0.08042549306
C68: All Areas - Water Treatment Plant Optimisation | E68: Water | F68: Renewals | G68: Treatment | H68: Capital Programs / Allocation | J68: Straight line | K68: Ongoing | L68: 47.5 | M68: 47.5 | Q68: 0.6 | R68: 0.6 | S68: 0.6 | T68: 0.6 | U68: 0.6 | V68: 0.6 | W68: 0.6 | X68: 0.6 | Y68: 0.6 | Z68: 0.6 | AX68: 0.6 | AY68: 0.6 | AZ68: 0.6 | BA68: 0.6 | BB68: 0.6 | BC68: 0.6 | BD68: 0.6 | BE68: 0.6 | BF68: 0.6 | BG68: 0.6 | BI68: 0.006315789474 | BJ68: 0.01894736842 | BK68: 0.03157894737 | BL68: 0.04421052632 | BM68: 0.05684210526 | BN68: 0.06947368421 | BO68: 0.08210526316 | BP68: 0.09473684211 | BQ68: 0.1073684211 | BR68: 0.12 | BT68: =+IF($K68="Ongoing",AX68,IF(RIGHT($K68,2)=RIGHT(BT$39,2),SUM($AX68:AX68),0)+IF(RIGHT(BT$39,2)>RIGHT($K68,2),AX68,0)) -> 0.6 | BU68: =+IF($K68="Ongoing",AY68,IF(RIGHT($K68,2)=RIGHT(BU$39,2),SUM($AX68:AY68),0)+IF(RIGHT(BU$39,2)>RIGHT($K68,2),AY68,0)) -> 0.6 | BV68: =+IF($K68="Ongoing",AZ68,IF(RIGHT($K68,2)=RIGHT(BV$39,2),SUM($AX68:AZ68),0)+IF(RIGHT(BV$39,2)>RIGHT($K68,2),AZ68,0)) -> 0.6 | BW68: =+IF($K68="Ongoing",BA68,IF(RIGHT($K68,2)=RIGHT(BW$39,2),SUM($AX68:BA68),0)+IF(RIGHT(BW$39,2)>RIGHT($K68,2),BA68,0)) -> 0.6 | BX68: =+IF($K68="Ongoing",BB68,IF(RIGHT($K68,2)=RIGHT(BX$39,2),SUM($AX68:BB68),0)+IF(RIGHT(BX$39,2)>RIGHT($K68,2),BB68,0)) -> 0.6 | BY68: =+IF($K68="Ongoing",BC68,IF(RIGHT($K68,2)=RIGHT(BY$39,2),SUM($AX68:BC68),0)+IF(RIGHT(BY$39,2)>RIGHT($K68,2),BC68,0)) -> 0.6 | BZ68: =+IF($K68="Ongoing",BD68,IF(RIGHT($K68,2)=RIGHT(BZ$39,2),SUM($AX68:BD68),0)+IF(RIGHT(BZ$39,2)>RIGHT($K68,2),BD68,0)) -> 0.6 | CA68: =+IF($K68="Ongoing",BE68,IF(RIGHT($K68,2)=RIGHT(CA$39,2),SUM($AX68:BE68),0)+IF(RIGHT(CA$39,2)>RIGHT($K68,2),BE68,0)) -> 0.6 | CB68: =+IF($K68="Ongoing",BF68,IF(RIGHT($K68,2)=RIGHT(CB$39,2),SUM($AX68:BF68),0)+IF(RIGHT(CB$39,2)>RIGHT($K68,2),BF68,0)) -> 0.6 | CC68: =+IF($K68="Ongoing",BG68,IF(RIGHT($K68,2)=RIGHT(CC$39,2),SUM($AX68:BG68),0)+IF(RIGHT(CC$39,2)>RIGHT($K68,2),BG68,0)) -> 0.6 | CE68: =+Q68*KeyAssumptionsPriceControl_FO!AC$15 -> 0.618 | CF68: =+R68*KeyAssumptionsPriceControl_FO!AD$15 -> 0.63654 | CG68: =+S68*KeyAssumptionsPriceControl_FO!AE$15 -> 0.6556362 | CH68: =+T68*KeyAssumptionsPriceControl_FO!AF$15 -> 0.675305286 | CI68: =+U68*KeyAssumptionsPriceControl_FO!AG$15 -> 0.6955644446 | CJ68: =+V68*KeyAssumptionsPriceControl_FO!AH$15 -> 0.7164313779 | CK68: =+W68*KeyAssumptionsPriceControl_FO!AI$15 -> 0.7379243193 | CL68: =+X68*KeyAssumptionsPriceControl_FO!AJ$15 -> 0.7600620488 | CM68: =+Y68*KeyAssumptionsPriceControl_FO!AK$15 -> 0.7828639103 | CN68: =+Z68*KeyAssumptionsPriceControl_FO!AL$15 -> 0.8063498276 | CP68: 0.006505263158 | CQ68: 0.01971094737 | CR68: 0.03331280211 | CS68: 0.04732271248 | CT68: 0.06175292017 | CU68: 0.0766160341 | CV68: 0.09192504143 | CW68: 0.107693319 | CX68: 0.1239346449 | CY68: 0.1406632105
C69: All Areas - Switchboard Replacements | E69: Sewerage | F69: Renewals | G69: Pipelines/network | H69: Capital Programs / Allocation | J69: Straight line | K69: Ongoing | L69: 25 | M69: 25 | Q69: 0.4 | R69: 0.4 | S69: 0.4 | T69: 0.4 | U69: 0.4 | V69: 0.4 | W69: 0.4 | X69: 0.4 | Y69: 0.4 | Z69: 0.4 | AX69: 0.4 | AY69: 0.4 | AZ69: 0.4 | BA69: 0.4 | BB69: 0.4 | BC69: 0.4 | BD69: 0.4 | BE69: 0.4 | BF69: 0.4 | BG69: 0.4 | BI69: 0.008 | BJ69: 0.024 | BK69: 0.04 | BL69: 0.056 | BM69: 0.072 | BN69: 0.088 | BO69: 0.104 | BP69: 0.12 | BQ69: 0.136 | BR69: 0.152 | BT69: =+IF($K69="Ongoing",AX69,IF(RIGHT($K69,2)=RIGHT(BT$39,2),SUM($AX69:AX69),0)+IF(RIGHT(BT$39,2)>RIGHT($K69,2),AX69,0)) -> 0.4 | BU69: =+IF($K69="Ongoing",AY69,IF(RIGHT($K69,2)=RIGHT(BU$39,2),SUM($AX69:AY69),0)+IF(RIGHT(BU$39,2)>RIGHT($K69,2),AY69,0)) -> 0.4 | BV69: =+IF($K69="Ongoing",AZ69,IF(RIGHT($K69,2)=RIGHT(BV$39,2),SUM($AX69:AZ69),0)+IF(RIGHT(BV$39,2)>RIGHT($K69,2),AZ69,0)) -> 0.4 | BW69: =+IF($K69="Ongoing",BA69,IF(RIGHT($K69,2)=RIGHT(BW$39,2),SUM($AX69:BA69),0)+IF(RIGHT(BW$39,2)>RIGHT($K69,2),BA69,0)) -> 0.4 | BX69: =+IF($K69="Ongoing",BB69,IF(RIGHT($K69,2)=RIGHT(BX$39,2),SUM($AX69:BB69),0)+IF(RIGHT(BX$39,2)>RIGHT($K69,2),BB69,0)) -> 0.4 | BY69: =+IF($K69="Ongoing",BC69,IF(RIGHT($K69,2)=RIGHT(BY$39,2),SUM($AX69:BC69),0)+IF(RIGHT(BY$39,2)>RIGHT($K69,2),BC69,0)) -> 0.4 | BZ69: =+IF($K69="Ongoing",BD69,IF(RIGHT($K69,2)=RIGHT(BZ$39,2),SUM($AX69:BD69),0)+IF(RIGHT(BZ$39,2)>RIGHT($K69,2),BD69,0)) -> 0.4 | CA69: =+IF($K69="Ongoing",BE69,IF(RIGHT($K69,2)=RIGHT(CA$39,2),SUM($AX69:BE69),0)+IF(RIGHT(CA$39,2)>RIGHT($K69,2),BE69,0)) -> 0.4 | CB69: =+IF($K69="Ongoing",BF69,IF(RIGHT($K69,2)=RIGHT(CB$39,2),SUM($AX69:BF69),0)+IF(RIGHT(CB$39,2)>RIGHT($K69,2),BF69,0)) -> 0.4 | CC69: =+IF($K69="Ongoing",BG69,IF(RIGHT($K69,2)=RIGHT(CC$39,2),SUM($AX69:BG69),0)+IF(RIGHT(CC$39,2)>RIGHT($K69,2),BG69,0)) -> 0.4 | CE69: =+Q69*KeyAssumptionsPriceControl_FO!AC$15 -> 0.412 | CF69: =+R69*KeyAssumptionsPriceControl_FO!AD$15 -> 0.42436 | CG69: =+S69*KeyAssumptionsPriceControl_FO!AE$15 -> 0.4370908 | CH69: =+T69*KeyAssumptionsPriceControl_FO!AF$15 -> 0.450203524 | CI69: =+U69*KeyAssumptionsPriceControl_FO!AG$15 -> 0.4637096297 | CJ69: =+V69*KeyAssumptionsPriceControl_FO!AH$15 -> 0.4776209186 | CK69: =+W69*KeyAssumptionsPriceControl_FO!AI$15 -> 0.4919495462 | CL69: =+X69*KeyAssumptionsPriceControl_FO!AJ$15 -> 0.5067080326 | CM69: =+Y69*KeyAssumptionsPriceControl_FO!AK$15 -> 0.5219092735 | CN69: =+Z69*KeyAssumptionsPriceControl_FO!AL$15 -> 0.5375665517 | CP69: 0.00824 | CQ69: 0.0249672 | CR69: 0.042196216 | CS69: 0.05994210248 | CT69: 0.07822036555 | CU69: 0.09704697652 | CV69: 0.1164383858 | CW69: 0.1364115374 | CX69: 0.1569838835 | CY69: 0.1781734
C70: All Areas - Councils - Water & Sewer | E70: Water | F70: Renewals | G70: Pipelines/network | H70: Capital Programs / Allocation | J70: Straight line | K70: Ongoing | L70: 90 | M70: 90 | Q70: 0.395 | R70: 0.395 | S70: 0.395 | T70: 0.395 | U70: 0.395 | V70: 0.395 | W70: 0.395 | X70: 0.395 | Y70: 0.395 | Z70: 0.395 | AX70: 0.395 | AY70: 0.395 | AZ70: 0.395 | BA70: 0.395 | BB70: 0.395 | BC70: 0.395 | BD70: 0.395 | BE70: 0.395 | BF70: 0.395 | BG70: 0.395 | BI70: 0.002194444444 | BJ70: 0.006583333333 | BK70: 0.01097222222 | BL70: 0.01536111111 | BM70: 0.01975 | BN70: 0.02413888889 | BO70: 0.02852777778 | BP70: 0.03291666667 | BQ70: 0.03730555556 | BR70: 0.04169444444 | BT70: =+IF($K70="Ongoing",AX70,IF(RIGHT($K70,2)=RIGHT(BT$39,2),SUM($AX70:AX70),0)+IF(RIGHT(BT$39,2)>RIGHT($K70,2),AX70,0)) -> 0.395 | BU70: =+IF($K70="Ongoing",AY70,IF(RIGHT($K70,2)=RIGHT(BU$39,2),SUM($AX70:AY70),0)+IF(RIGHT(BU$39,2)>RIGHT($K70,2),AY70,0)) -> 0.395 | BV70: =+IF($K70="Ongoing",AZ70,IF(RIGHT($K70,2)=RIGHT(BV$39,2),SUM($AX70:AZ70),0)+IF(RIGHT(BV$39,2)>RIGHT($K70,2),AZ70,0)) -> 0.395 | BW70: =+IF($K70="Ongoing",BA70,IF(RIGHT($K70,2)=RIGHT(BW$39,2),SUM($AX70:BA70),0)+IF(RIGHT(BW$39,2)>RIGHT($K70,2),BA70,0)) -> 0.395 | BX70: =+IF($K70="Ongoing",BB70,IF(RIGHT($K70,2)=RIGHT(BX$39,2),SUM($AX70:BB70),0)+IF(RIGHT(BX$39,2)>RIGHT($K70,2),BB70,0)) -> 0.395 | BY70: =+IF($K70="Ongoing",BC70,IF(RIGHT($K70,2)=RIGHT(BY$39,2),SUM($AX70:BC70),0)+IF(RIGHT(BY$39,2)>RIGHT($K70,2),BC70,0)) -> 0.395 | BZ70: =+IF($K70="Ongoing",BD70,IF(RIGHT($K70,2)=RIGHT(BZ$39,2),SUM($AX70:BD70),0)+IF(RIGHT(BZ$39,2)>RIGHT($K70,2),BD70,0)) -> 0.395 | CA70: =+IF($K70="Ongoing",BE70,IF(RIGHT($K70,2)=RIGHT(CA$39,2),SUM($AX70:BE70),0)+IF(RIGHT(CA$39,2)>RIGHT($K70,2),BE70,0)) -> 0.395 | CB70: =+IF($K70="Ongoing",BF70,IF(RIGHT($K70,2)=RIGHT(CB$39,2),SUM($AX70:BF70),0)+IF(RIGHT(CB$39,2)>RIGHT($K70,2),BF70,0)) -> 0.395 | CC70: =+IF($K70="Ongoing",BG70,IF(RIGHT($K70,2)=RIGHT(CC$39,2),SUM($AX70:BG70),0)+IF(RIGHT(CC$39,2)>RIGHT($K70,2),BG70,0)) -> 0.395 | CE70: =+Q70*KeyAssumptionsPriceControl_FO!AC$15 -> 0.40685 | CF70: =+R70*KeyAssumptionsPriceControl_FO!AD$15 -> 0.4190555 | CG70: =+S70*KeyAssumptionsPriceControl_FO!AE$15 -> 0.431627165 | CH70: =+T70*KeyAssumptionsPriceControl_FO!AF$15 -> 0.44457598 | CI70: =+U70*KeyAssumptionsPriceControl_FO!AG$15 -> 0.4579132593 | CJ70: =+V70*KeyAssumptionsPriceControl_FO!AH$15 -> 0.4716506571 | CK70: =+W70*KeyAssumptionsPriceControl_FO!AI$15 -> 0.4858001768 | CL70: =+X70*KeyAssumptionsPriceControl_FO!AJ$15 -> 0.5003741821 | CM70: =+Y70*KeyAssumptionsPriceControl_FO!AK$15 -> 0.5153854076 | CN70: =+Z70*KeyAssumptionsPriceControl_FO!AL$15 -> 0.5308469698 | CP70: 0.002260277778 | CQ70: 0.006848641667 | CR70: 0.01157465647 | CS70: 0.01644245172 | CT70: 0.02145628083 | CU70: 0.02662052481 | CV70: 0.03193969611 | CW70: 0.03741844255 | CX70: 0.04306155138 | CY70: 0.04887395348
C71: All Areas - Councils - Water & Sewer | E71: Sewerage | F71: Renewals | G71: Pipelines/network | H71: Capital Programs / Allocation | J71: Straight line | K71: Ongoing | L71: 90 | M71: 90 | Q71: 0.395 | R71: 0.395 | S71: 0.395 | T71: 0.395 | U71: 0.395 | V71: 0.395 | W71: 0.395 | X71: 0.395 | Y71: 0.395 | Z71: 0.395 | AX71: 0.395 | AY71: 0.395 | AZ71: 0.395 | BA71: 0.395 | BB71: 0.395 | BC71: 0.395 | BD71: 0.395 | BE71: 0.395 | BF71: 0.395 | BG71: 0.395 | BI71: 0.002194444444 | BJ71: 0.006583333333 | BK71: 0.01097222222 | BL71: 0.01536111111 | BM71: 0.01975 | BN71: 0.02413888889 | BO71: 0.02852777778 | BP71: 0.03291666667 | BQ71: 0.03730555556 | BR71: 0.04169444444 | BT71: =+IF($K71="Ongoing",AX71,IF(RIGHT($K71,2)=RIGHT(BT$39,2),SUM($AX71:AX71),0)+IF(RIGHT(BT$39,2)>RIGHT($K71,2),AX71,0)) -> 0.395 | BU71: =+IF($K71="Ongoing",AY71,IF(RIGHT($K71,2)=RIGHT(BU$39,2),SUM($AX71:AY71),0)+IF(RIGHT(BU$39,2)>RIGHT($K71,2),AY71,0)) -> 0.395 | BV71: =+IF($K71="Ongoing",AZ71,IF(RIGHT($K71,2)=RIGHT(BV$39,2),SUM($AX71:AZ71),0)+IF(RIGHT(BV$39,2)>RIGHT($K71,2),AZ71,0)) -> 0.395 | BW71: =+IF($K71="Ongoing",BA71,IF(RIGHT($K71,2)=RIGHT(BW$39,2),SUM($AX71:BA71),0)+IF(RIGHT(BW$39,2)>RIGHT($K71,2),BA71,0)) -> 0.395 | BX71: =+IF($K71="Ongoing",BB71,IF(RIGHT($K71,2)=RIGHT(BX$39,2),SUM($AX71:BB71),0)+IF(RIGHT(BX$39,2)>RIGHT($K71,2),BB71,0)) -> 0.395 | BY71: =+IF($K71="Ongoing",BC71,IF(RIGHT($K71,2)=RIGHT(BY$39,2),SUM($AX71:BC71),0)+IF(RIGHT(BY$39,2)>RIGHT($K71,2),BC71,0)) -> 0.395 | BZ71: =+IF($K71="Ongoing",BD71,IF(RIGHT($K71,2)=RIGHT(BZ$39,2),SUM($AX71:BD71),0)+IF(RIGHT(BZ$39,2)>RIGHT($K71,2),BD71,0)) -> 0.395 | CA71: =+IF($K71="Ongoing",BE71,IF(RIGHT($K71,2)=RIGHT(CA$39,2),SUM($AX71:BE71),0)+IF(RIGHT(CA$39,2)>RIGHT($K71,2),BE71,0)) -> 0.395 | CB71: =+IF($K71="Ongoing",BF71,IF(RIGHT($K71,2)=RIGHT(CB$39,2),SUM($AX71:BF71),0)+IF(RIGHT(CB$39,2)>RIGHT($K71,2),BF71,0)) -> 0.395 | CC71: =+IF($K71="Ongoing",BG71,IF(RIGHT($K71,2)=RIGHT(CC$39,2),SUM($AX71:BG71),0)+IF(RIGHT(CC$39,2)>RIGHT($K71,2),BG71,0)) -> 0.395 | CE71: =+Q71*KeyAssumptionsPriceControl_FO!AC$15 -> 0.40685 | CF71: =+R71*KeyAssumptionsPriceControl_FO!AD$15 -> 0.4190555 | CG71: =+S71*KeyAssumptionsPriceControl_FO!AE$15 -> 0.431627165 | CH71: =+T71*KeyAssumptionsPriceControl_FO!AF$15 -> 0.44457598 | CI71: =+U71*KeyAssumptionsPriceControl_FO!AG$15 -> 0.4579132593 | CJ71: =+V71*KeyAssumptionsPriceControl_FO!AH$15 -> 0.4716506571 | CK71: =+W71*KeyAssumptionsPriceControl_FO!AI$15 -> 0.4858001768 | CL71: =+X71*KeyAssumptionsPriceControl_FO!AJ$15 -> 0.5003741821 | CM71: =+Y71*KeyAssumptionsPriceControl_FO!AK$15 -> 0.5153854076 | CN71: =+Z71*KeyAssumptionsPriceControl_FO!AL$15 -> 0.5308469698 | CP71: 0.002260277778 | CQ71: 0.006848641667 | CR71: 0.01157465647 | CS71: 0.01644245172 | CT71: 0.02145628083 | CU71: 0.02662052481 | CV71: 0.03193969611 | CW71: 0.03741844255 | CX71: 0.04306155138 | CY71: 0.04887395348
C72: All Areas - Asset Acquisitions - Corporate Assets | E72: Water | F72: Renewals | G72: Corporate | H72: Capital Programs / Allocation | J72: Straight line | K72: Ongoing | L72: 15 | M72: 15 | Q72: 0.25 | R72: 0.25 | S72: 0.25 | T72: 0.25 | U72: 0.25 | V72: 0.25 | W72: 0.25 | X72: 0.25 | Y72: 0.25 | Z72: 0.25 | AX72: 0.25 | AY72: 0.25 | AZ72: 0.25 | BA72: 0.25 | BB72: 0.25 | BC72: 0.25 | BD72: 0.25 | BE72: 0.25 | BF72: 0.25 | BG72: 0.25 | BI72: 0.008333333333 | BJ72: 0.025 | BK72: 0.04166666667 | BL72: 0.05833333333 | BM72: 0.075 | BN72: 0.09166666667 | BO72: 0.1083333333 | BP72: 0.125 | BQ72: 0.1416666667 | BR72: 0.1583333333 | BT72: =+IF($K72="Ongoing",AX72,IF(RIGHT($K72,2)=RIGHT(BT$39,2),SUM($AX72:AX72),0)+IF(RIGHT(BT$39,2)>RIGHT($K72,2),AX72,0)) -> 0.25 | BU72: =+IF($K72="Ongoing",AY72,IF(RIGHT($K72,2)=RIGHT(BU$39,2),SUM($AX72:AY72),0)+IF(RIGHT(BU$39,2)>RIGHT($K72,2),AY72,0)) -> 0.25 | BV72: =+IF($K72="Ongoing",AZ72,IF(RIGHT($K72,2)=RIGHT(BV$39,2),SUM($AX72:AZ72),0)+IF(RIGHT(BV$39,2)>RIGHT($K72,2),AZ72,0)) -> 0.25 | BW72: =+IF($K72="Ongoing",BA72,IF(RIGHT($K72,2)=RIGHT(BW$39,2),SUM($AX72:BA72),0)+IF(RIGHT(BW$39,2)>RIGHT($K72,2),BA72,0)) -> 0.25 | BX72: =+IF($K72="Ongoing",BB72,IF(RIGHT($K72,2)=RIGHT(BX$39,2),SUM($AX72:BB72),0)+IF(RIGHT(BX$39,2)>RIGHT($K72,2),BB72,0)) -> 0.25 | BY72: =+IF($K72="Ongoing",BC72,IF(RIGHT($K72,2)=RIGHT(BY$39,2),SUM($AX72:BC72),0)+IF(RIGHT(BY$39,2)>RIGHT($K72,2),BC72,0)) -> 0.25 | BZ72: =+IF($K72="Ongoing",BD72,IF(RIGHT($K72,2)=RIGHT(BZ$39,2),SUM($AX72:BD72),0)+IF(RIGHT(BZ$39,2)>RIGHT($K72,2),BD72,0)) -> 0.25 | CA72: =+IF($K72="Ongoing",BE72,IF(RIGHT($K72,2)=RIGHT(CA$39,2),SUM($AX72:BE72),0)+IF(RIGHT(CA$39,2)>RIGHT($K72,2),BE72,0)) -> 0.25 | CB72: =+IF($K72="Ongoing",BF72,IF(RIGHT($K72,2)=RIGHT(CB$39,2),SUM($AX72:BF72),0)+IF(RIGHT(CB$39,2)>RIGHT($K72,2),BF72,0)) -> 0.25 | CC72: =+IF($K72="Ongoing",BG72,IF(RIGHT($K72,2)=RIGHT(CC$39,2),SUM($AX72:BG72),0)+IF(RIGHT(CC$39,2)>RIGHT($K72,2),BG72,0)) -> 0.25 | CE72: =+Q72*KeyAssumptionsPriceControl_FO!AC$15 -> 0.2575 | CF72: =+R72*KeyAssumptionsPriceControl_FO!AD$15 -> 0.265225 | CG72: =+S72*KeyAssumptionsPriceControl_FO!AE$15 -> 0.27318175 | CH72: =+T72*KeyAssumptionsPriceControl_FO!AF$15 -> 0.2813772025 | CI72: =+U72*KeyAssumptionsPriceControl_FO!AG$15 -> 0.2898185186 | CJ72: =+V72*KeyAssumptionsPriceControl_FO!AH$15 -> 0.2985130741 | CK72: =+W72*KeyAssumptionsPriceControl_FO!AI$15 -> 0.3074684664 | CL72: =+X72*KeyAssumptionsPriceControl_FO!AJ$15 -> 0.3166925203 | CM72: =+Y72*KeyAssumptionsPriceControl_FO!AK$15 -> 0.326193296 | CN72: =+Z72*KeyAssumptionsPriceControl_FO!AL$15 -> 0.3359790948 | CP72: 0.008583333333 | CQ72: 0.0260075 | CR72: 0.04395439167 | CS72: 0.06243969008 | CT72: 0.08147954745 | CU72: 0.1010906005 | CV72: 0.1212899852 | CW72: 0.1420953514 | CX72: 0.1635248787 | CY72: 0.1855972917
C73: All Areas - Asset Acquisitions - Corporate Assets | E73: Sewerage | F73: Renewals | G73: Corporate | H73: Capital Programs / Allocation | J73: Straight line | K73: Ongoing | L73: 15 | M73: 15 | Q73: 0.25 | R73: 0.25 | S73: 0.25 | T73: 0.25 | U73: 0.25 | V73: 0.25 | W73: 0.25 | X73: 0.25 | Y73: 0.25 | Z73: 0.25 | AX73: 0.25 | AY73: 0.25 | AZ73: 0.25 | BA73: 0.25 | BB73: 0.25 | BC73: 0.25 | BD73: 0.25 | BE73: 0.25 | BF73: 0.25 | BG73: 0.25 | BI73: 0.008333333333 | BJ73: 0.025 | BK73: 0.04166666667 | BL73: 0.05833333333 | BM73: 0.075 | BN73: 0.09166666667 | BO73: 0.1083333333 | BP73: 0.125 | BQ73: 0.1416666667 | BR73: 0.1583333333 | BT73: =+IF($K73="Ongoing",AX73,IF(RIGHT($K73,2)=RIGHT(BT$39,2),SUM($AX73:AX73),0)+IF(RIGHT(BT$39,2)>RIGHT($K73,2),AX73,0)) -> 0.25 | BU73: =+IF($K73="Ongoing",AY73,IF(RIGHT($K73,2)=RIGHT(BU$39,2),SUM($AX73:AY73),0)+IF(RIGHT(BU$39,2)>RIGHT($K73,2),AY73,0)) -> 0.25 | BV73: =+IF($K73="Ongoing",AZ73,IF(RIGHT($K73,2)=RIGHT(BV$39,2),SUM($AX73:AZ73),0)+IF(RIGHT(BV$39,2)>RIGHT($K73,2),AZ73,0)) -> 0.25 | BW73: =+IF($K73="Ongoing",BA73,IF(RIGHT($K73,2)=RIGHT(BW$39,2),SUM($AX73:BA73),0)+IF(RIGHT(BW$39,2)>RIGHT($K73,2),BA73,0)) -> 0.25 | BX73: =+IF($K73="Ongoing",BB73,IF(RIGHT($K73,2)=RIGHT(BX$39,2),SUM($AX73:BB73),0)+IF(RIGHT(BX$39,2)>RIGHT($K73,2),BB73,0)) -> 0.25 | BY73: =+IF($K73="Ongoing",BC73,IF(RIGHT($K73,2)=RIGHT(BY$39,2),SUM($AX73:BC73),0)+IF(RIGHT(BY$39,2)>RIGHT($K73,2),BC73,0)) -> 0.25 | BZ73: =+IF($K73="Ongoing",BD73,IF(RIGHT($K73,2)=RIGHT(BZ$39,2),SUM($AX73:BD73),0)+IF(RIGHT(BZ$39,2)>RIGHT($K73,2),BD73,0)) -> 0.25 | CA73: =+IF($K73="Ongoing",BE73,IF(RIGHT($K73,2)=RIGHT(CA$39,2),SUM($AX73:BE73),0)+IF(RIGHT(CA$39,2)>RIGHT($K73,2),BE73,0)) -> 0.25 | CB73: =+IF($K73="Ongoing",BF73,IF(RIGHT($K73,2)=RIGHT(CB$39,2),SUM($AX73:BF73),0)+IF(RIGHT(CB$39,2)>RIGHT($K73,2),BF73,0)) -> 0.25 | CC73: =+IF($K73="Ongoing",BG73,IF(RIGHT($K73,2)=RIGHT(CC$39,2),SUM($AX73:BG73),0)+IF(RIGHT(CC$39,2)>RIGHT($K73,2),BG73,0)) -> 0.25 | CE73: =+Q73*KeyAssumptionsPriceControl_FO!AC$15 -> 0.2575 | CF73: =+R73*KeyAssumptionsPriceControl_FO!AD$15 -> 0.265225 | CG73: =+S73*KeyAssumptionsPriceControl_FO!AE$15 -> 0.27318175 | CH73: =+T73*KeyAssumptionsPriceControl_FO!AF$15 -> 0.2813772025 | CI73: =+U73*KeyAssumptionsPriceControl_FO!AG$15 -> 0.2898185186 | CJ73: =+V73*KeyAssumptionsPriceControl_FO!AH$15 -> 0.2985130741 | CK73: =+W73*KeyAssumptionsPriceControl_FO!AI$15 -> 0.3074684664 | CL73: =+X73*KeyAssumptionsPriceControl_FO!AJ$15 -> 0.3166925203 | CM73: =+Y73*KeyAssumptionsPriceControl_FO!AK$15 -> 0.326193296 | CN73: =+Z73*KeyAssumptionsPriceControl_FO!AL$15 -> 0.3359790948 | CP73: 0.008583333333 | CQ73: 0.0260075 | CR73: 0.04395439167 | CS73: 0.06243969008 | CT73: 0.08147954745 | CU73: 0.1010906005 | CV73: 0.1212899852 | CW73: 0.1420953514 | CX73: 0.1635248787 | CY73: 0.1855972917
C74: Externally Funded Works - Water | E74: Water | F74: Growth | G74: Pipelines/network | H74: Capital Programs / Allocation | J74: Straight line | K74: Ongoing | L74: 90 | M74: 90 | Q74: 0.15 | R74: 0.15 | S74: 0.15 | T74: 0.15 | U74: 0.15 | V74: 0.15 | W74: 0.15 | X74: 0.15 | Y74: 0.15 | Z74: 0.15 | AM74: 3.4188 | AN74: 3.4965 | AO74: 3.5779 | AP74: 3.663 | AQ74: 3.7518 | AR74: 3.8443 | AS74: 3.9368 | AT74: 4.07 | AU74: 4.1699 | AV74: 4.2735 | AX74: -3.2688 | AY74: -3.3465 | AZ74: -3.4279 | BA74: -3.513 | BB74: -3.6018 | BC74: -3.6943 | BD74: -3.7868 | BE74: -3.92 | BF74: -4.0199 | BG74: -4.1235 | BI74: -0.01816 | BJ74: -0.05491166667 | BK74: -0.09254722222 | BL74: -0.1311077778 | BM74: -0.1706344444 | BN74: -0.2111683333 | BO74: -0.25273 | BP74: -0.2955455556 | BQ74: -0.3396561111 | BR74: -0.3848972222 | BT74: =+IF($K74="Ongoing",AX74,IF(RIGHT($K74,2)=RIGHT(BT$39,2),SUM($AX74:AX74),0)+IF(RIGHT(BT$39,2)>RIGHT($K74,2),AX74,0)) -> -3.2688 | BU74: =+IF($K74="Ongoing",AY74,IF(RIGHT($K74,2)=RIGHT(BU$39,2),SUM($AX74:AY74),0)+IF(RIGHT(BU$39,2)>RIGHT($K74,2),AY74,0)) -> -3.3465 | BV74: =+IF($K74="Ongoing",AZ74,IF(RIGHT($K74,2)=RIGHT(BV$39,2),SUM($AX74:AZ74),0)+IF(RIGHT(BV$39,2)>RIGHT($K74,2),AZ74,0)) -> -3.4279 | BW74: =+IF($K74="Ongoing",BA74,IF(RIGHT($K74,2)=RIGHT(BW$39,2),SUM($AX74:BA74),0)+IF(RIGHT(BW$39,2)>RIGHT($K74,2),BA74,0)) -> -3.513 | BX74: =+IF($K74="Ongoing",BB74,IF(RIGHT($K74,2)=RIGHT(BX$39,2),SUM($AX74:BB74),0)+IF(RIGHT(BX$39,2)>RIGHT($K74,2),BB74,0)) -> -3.6018 | BY74: =+IF($K74="Ongoing",BC74,IF(RIGHT($K74,2)=RIGHT(BY$39,2),SUM($AX74:BC74),0)+IF(RIGHT(BY$39,2)>RIGHT($K74,2),BC74,0)) -> -3.6943 | BZ74: =+IF($K74="Ongoing",BD74,IF(RIGHT($K74,2)=RIGHT(BZ$39,2),SUM($AX74:BD74),0)+IF(RIGHT(BZ$39,2)>RIGHT($K74,2),BD74,0)) -> -3.7868 | CA74: =+IF($K74="Ongoing",BE74,IF(RIGHT($K74,2)=RIGHT(CA$39,2),SUM($AX74:BE74),0)+IF(RIGHT(CA$39,2)>RIGHT($K74,2),BE74,0)) -> -3.92 | CB74: =+IF($K74="Ongoing",BF74,IF(RIGHT($K74,2)=RIGHT(CB$39,2),SUM($AX74:BF74),0)+IF(RIGHT(CB$39,2)>RIGHT($K74,2),BF74,0)) -> -4.0199 | CC74: =+IF($K74="Ongoing",BG74,IF(RIGHT($K74,2)=RIGHT(CC$39,2),SUM($AX74:BG74),0)+IF(RIGHT(CC$39,2)>RIGHT($K74,2),BG74,0)) -> -4.1235 | CE74: =+Q74*KeyAssumptionsPriceControl_FO!AC$15 -> 0.1545 | CF74: =+R74*KeyAssumptionsPriceControl_FO!AD$15 -> 0.159135 | CG74: =+S74*KeyAssumptionsPriceControl_FO!AE$15 -> 0.16390905 | CH74: =+T74*KeyAssumptionsPriceControl_FO!AF$15 -> 0.1688263215 | CI74: =+U74*KeyAssumptionsPriceControl_FO!AG$15 -> 0.1738911111 | CJ74: =+V74*KeyAssumptionsPriceControl_FO!AH$15 -> 0.1791078445 | CK74: =+W74*KeyAssumptionsPriceControl_FO!AI$15 -> 0.1844810798 | CL74: =+X74*KeyAssumptionsPriceControl_FO!AJ$15 -> 0.1900155122 | CM74: =+Y74*KeyAssumptionsPriceControl_FO!AK$15 -> 0.1957159776 | CN74: =+Z74*KeyAssumptionsPriceControl_FO!AL$15 -> 0.2015874569 | CP74: 0.0008583333333 | CQ74: 0.00260075 | CR74: 0.004395439167 | CS74: 0.006243969008 | CT74: 0.008147954745 | CU74: 0.01010906005 | CV74: 0.01212899852 | CW74: 0.01420953514 | CX74: 0.01635248787 | CY74: 0.01855972917
C75: All Areas - Asset Acquisitions - Digital Assets | E75: Water | F75: Renewals | G75: Corporate | H75: Capital Programs / Allocation | J75: Straight line | K75: Ongoing | L75: 5 | M75: 5 | Q75: 0.25 | R75: 0.25 | S75: 0.25 | T75: 0.25 | U75: 0.25 | V75: 0.25 | W75: 0.25 | X75: 0.25 | Y75: 0 | Z75: 0 | AX75: 0.25 | AY75: 0.25 | AZ75: 0.25 | BA75: 0.25 | BB75: 0.25 | BC75: 0.25 | BD75: 0.25 | BE75: 0.25 | BF75: 0 | BG75: 0 | BI75: 0.025 | BJ75: 0.075 | BK75: 0.125 | BL75: 0.175 | BM75: 0.225 | BN75: 0.25 | BO75: 0.25 | BP75: 0.25 | BQ75: 0.225 | BR75: 0.175 | BT75: =+IF($K75="Ongoing",AX75,IF(RIGHT($K75,2)=RIGHT(BT$39,2),SUM($AX75:AX75),0)+IF(RIGHT(BT$39,2)>RIGHT($K75,2),AX75,0)) -> 0.25 | BU75: =+IF($K75="Ongoing",AY75,IF(RIGHT($K75,2)=RIGHT(BU$39,2),SUM($AX75:AY75),0)+IF(RIGHT(BU$39,2)>RIGHT($K75,2),AY75,0)) -> 0.25 | BV75: =+IF($K75="Ongoing",AZ75,IF(RIGHT($K75,2)=RIGHT(BV$39,2),SUM($AX75:AZ75),0)+IF(RIGHT(BV$39,2)>RIGHT($K75,2),AZ75,0)) -> 0.25 | BW75: =+IF($K75="Ongoing",BA75,IF(RIGHT($K75,2)=RIGHT(BW$39,2),SUM($AX75:BA75),0)+IF(RIGHT(BW$39,2)>RIGHT($K75,2),BA75,0)) -> 0.25 | BX75: =+IF($K75="Ongoing",BB75,IF(RIGHT($K75,2)=RIGHT(BX$39,2),SUM($AX75:BB75),0)+IF(RIGHT(BX$39,2)>RIGHT($K75,2),BB75,0)) -> 0.25 | BY75: =+IF($K75="Ongoing",BC75,IF(RIGHT($K75,2)=RIGHT(BY$39,2),SUM($AX75:BC75),0)+IF(RIGHT(BY$39,2)>RIGHT($K75,2),BC75,0)) -> 0.25 | BZ75: =+IF($K75="Ongoing",BD75,IF(RIGHT($K75,2)=RIGHT(BZ$39,2),SUM($AX75:BD75),0)+IF(RIGHT(BZ$39,2)>RIGHT($K75,2),BD75,0)) -> 0.25 | CA75: =+IF($K75="Ongoing",BE75,IF(RIGHT($K75,2)=RIGHT(CA$39,2),SUM($AX75:BE75),0)+IF(RIGHT(CA$39,2)>RIGHT($K75,2),BE75,0)) -> 0.25 | CB75: =+IF($K75="Ongoing",BF75,IF(RIGHT($K75,2)=RIGHT(CB$39,2),SUM($AX75:BF75),0)+IF(RIGHT(CB$39,2)>RIGHT($K75,2),BF75,0)) -> 0 | CC75: =+IF($K75="Ongoing",BG75,IF(RIGHT($K75,2)=RIGHT(CC$39,2),SUM($AX75:BG75),0)+IF(RIGHT(CC$39,2)>RIGHT($K75,2),BG75,0)) -> 0 | CE75: =+Q75*KeyAssumptionsPriceControl_FO!AC$15 -> 0.2575 | CF75: =+R75*KeyAssumptionsPriceControl_FO!AD$15 -> 0.265225 | CG75: =+S75*KeyAssumptionsPriceControl_FO!AE$15 -> 0.27318175 | CH75: =+T75*KeyAssumptionsPriceControl_FO!AF$15 -> 0.2813772025 | CI75: =+U75*KeyAssumptionsPriceControl_FO!AG$15 -> 0.2898185186 | CJ75: =+V75*KeyAssumptionsPriceControl_FO!AH$15 -> 0.2985130741 | CK75: =+W75*KeyAssumptionsPriceControl_FO!AI$15 -> 0.3074684664 | CL75: =+X75*KeyAssumptionsPriceControl_FO!AJ$15 -> 0.3166925203 | CM75: =+Y75*KeyAssumptionsPriceControl_FO!AK$15 -> 0 | CN75: =+Z75*KeyAssumptionsPriceControl_FO!AL$15 -> 0 | CP75: 0.02575 | CQ75: 0.0780225 | CR75: 0.131863175 | CS75: 0.1873190702 | CT75: 0.2444386424 | CU75: 0.2775218016 | CV75: 0.2858474557 | CW75: 0.2944228793 | CX75: 0.2706362361 | CY75: 0.213516664
C76: All Areas - Asset Acquisitions - Digital Assets | E76: Sewerage | F76: Renewals | G76: Corporate | H76: Capital Programs / Allocation | J76: Straight line | K76: Ongoing | L76: 5 | M76: 5 | Q76: 0.25 | R76: 0.25 | S76: 0.25 | T76: 0.25 | U76: 0.25 | V76: 0.25 | W76: 0.25 | X76: 0.25 | Y76: 0 | Z76: 0 | AX76: 0.25 | AY76: 0.25 | AZ76: 0.25 | BA76: 0.25 | BB76: 0.25 | BC76: 0.25 | BD76: 0.25 | BE76: 0.25 | BF76: 0 | BG76: 0 | BI76: 0.025 | BJ76: 0.075 | BK76: 0.125 | BL76: 0.175 | BM76: 0.225 | BN76: 0.25 | BO76: 0.25 | BP76: 0.25 | BQ76: 0.225 | BR76: 0.175 | BT76: =+IF($K76="Ongoing",AX76,IF(RIGHT($K76,2)=RIGHT(BT$39,2),SUM($AX76:AX76),0)+IF(RIGHT(BT$39,2)>RIGHT($K76,2),AX76,0)) -> 0.25 | BU76: =+IF($K76="Ongoing",AY76,IF(RIGHT($K76,2)=RIGHT(BU$39,2),SUM($AX76:AY76),0)+IF(RIGHT(BU$39,2)>RIGHT($K76,2),AY76,0)) -> 0.25 | BV76: =+IF($K76="Ongoing",AZ76,IF(RIGHT($K76,2)=RIGHT(BV$39,2),SUM($AX76:AZ76),0)+IF(RIGHT(BV$39,2)>RIGHT($K76,2),AZ76,0)) -> 0.25 | BW76: =+IF($K76="Ongoing",BA76,IF(RIGHT($K76,2)=RIGHT(BW$39,2),SUM($AX76:BA76),0)+IF(RIGHT(BW$39,2)>RIGHT($K76,2),BA76,0)) -> 0.25 | BX76: =+IF($K76="Ongoing",BB76,IF(RIGHT($K76,2)=RIGHT(BX$39,2),SUM($AX76:BB76),0)+IF(RIGHT(BX$39,2)>RIGHT($K76,2),BB76,0)) -> 0.25 | BY76: =+IF($K76="Ongoing",BC76,IF(RIGHT($K76,2)=RIGHT(BY$39,2),SUM($AX76:BC76),0)+IF(RIGHT(BY$39,2)>RIGHT($K76,2),BC76,0)) -> 0.25 | BZ76: =+IF($K76="Ongoing",BD76,IF(RIGHT($K76,2)=RIGHT(BZ$39,2),SUM($AX76:BD76),0)+IF(RIGHT(BZ$39,2)>RIGHT($K76,2),BD76,0)) -> 0.25 | CA76: =+IF($K76="Ongoing",BE76,IF(RIGHT($K76,2)=RIGHT(CA$39,2),SUM($AX76:BE76),0)+IF(RIGHT(CA$39,2)>RIGHT($K76,2),BE76,0)) -> 0.25 | CB76: =+IF($K76="Ongoing",BF76,IF(RIGHT($K76,2)=RIGHT(CB$39,2),SUM($AX76:BF76),0)+IF(RIGHT(CB$39,2)>RIGHT($K76,2),BF76,0)) -> 0 | CC76: =+IF($K76="Ongoing",BG76,IF(RIGHT($K76,2)=RIGHT(CC$39,2),SUM($AX76:BG76),0)+IF(RIGHT(CC$39,2)>RIGHT($K76,2),BG76,0)) -> 0 | CE76: =+Q76*KeyAssumptionsPriceControl_FO!AC$15 -> 0.2575 | CF76: =+R76*KeyAssumptionsPriceControl_FO!AD$15 -> 0.265225 | CG76: =+S76*KeyAssumptionsPriceControl_FO!AE$15 -> 0.27318175 | CH76: =+T76*KeyAssumptionsPriceControl_FO!AF$15 -> 0.2813772025 | CI76: =+U76*KeyAssumptionsPriceControl_FO!AG$15 -> 0.2898185186 | CJ76: =+V76*KeyAssumptionsPriceControl_FO!AH$15 -> 0.2985130741 | CK76: =+W76*KeyAssumptionsPriceControl_FO!AI$15 -> 0.3074684664 | CL76: =+X76*KeyAssumptionsPriceControl_FO!AJ$15 -> 0.3166925203 | CM76: =+Y76*KeyAssumptionsPriceControl_FO!AK$15 -> 0 | CN76: =+Z76*KeyAssumptionsPriceControl_FO!AL$15 -> 0 | CP76: 0.02575 | CQ76: 0.0780225 | CR76: 0.131863175 | CS76: 0.1873190702 | CT76: 0.2444386424 | CU76: 0.2775218016 | CV76: 0.2858474557 | CW76: 0.2944228793 | CX76: 0.2706362361 | CY76: 0.213516664
C77: All Areas - Customer Billing/CRM System Replacement | E77: Water | F77: Renewals | G77: Corporate | H77: Other Capital expenditure | J77: Straight line | K77: 2025-26 | L77: 10 | M77: 10 | Q77: 1.15 | R77: 0.49 | S77: 0.04 | T77: 0 | U77: 0 | V77: 0 | W77: 0 | X77: 0 | Y77: 0 | Z77: 0 | AX77: 1.15 | AY77: 0.49 | AZ77: 0.04 | BA77: 0 | BB77: 0 | BC77: 0 | BD77: 0 | BE77: 0 | BF77: 0 | BG77: 0 | BI77: 0 | BJ77: 0 | BK77: 0.084 | BL77: 0.168 | BM77: 0.168 | BN77: 0.168 | BO77: 0.168 | BP77: 0.168 | BQ77: 0.168 | BR77: 0.168 | BT77: =+IF($K77="Ongoing",AX77,IF(RIGHT($K77,2)=RIGHT(BT$39,2),SUM($AX77:AX77),0)+IF(RIGHT(BT$39,2)>RIGHT($K77,2),AX77,0)) -> 0 | BU77: =+IF($K77="Ongoing",AY77,IF(RIGHT($K77,2)=RIGHT(BU$39,2),SUM($AX77:AY77),0)+IF(RIGHT(BU$39,2)>RIGHT($K77,2),AY77,0)) -> 0 | BV77: =+IF($K77="Ongoing",AZ77,IF(RIGHT($K77,2)=RIGHT(BV$39,2),SUM($AX77:AZ77),0)+IF(RIGHT(BV$39,2)>RIGHT($K77,2),AZ77,0)) -> 1.68 | BW77: =+IF($K77="Ongoing",BA77,IF(RIGHT($K77,2)=RIGHT(BW$39,2),SUM($AX77:BA77),0)+IF(RIGHT(BW$39,2)>RIGHT($K77,2),BA77,0)) -> 0 | BX77: =+IF($K77="Ongoing",BB77,IF(RIGHT($K77,2)=RIGHT(BX$39,2),SUM($AX77:BB77),0)+IF(RIGHT(BX$39,2)>RIGHT($K77,2),BB77,0)) -> 0 | BY77: =+IF($K77="Ongoing",BC77,IF(RIGHT($K77,2)=RIGHT(BY$39,2),SUM($AX77:BC77),0)+IF(RIGHT(BY$39,2)>RIGHT($K77,2),BC77,0)) -> 0 | BZ77: =+IF($K77="Ongoing",BD77,IF(RIGHT($K77,2)=RIGHT(BZ$39,2),SUM($AX77:BD77),0)+IF(RIGHT(BZ$39,2)>RIGHT($K77,2),BD77,0)) -> 0 | CA77: =+IF($K77="Ongoing",BE77,IF(RIGHT($K77,2)=RIGHT(CA$39,2),SUM($AX77:BE77),0)+IF(RIGHT(CA$39,2)>RIGHT($K77,2),BE77,0)) -> 0 | CB77: =+IF($K77="Ongoing",BF77,IF(RIGHT($K77,2)=RIGHT(CB$39,2),SUM($AX77:BF77),0)+IF(RIGHT(CB$39,2)>RIGHT($K77,2),BF77,0)) -> 0 | CC77: =+IF($K77="Ongoing",BG77,IF(RIGHT($K77,2)=RIGHT(CC$39,2),SUM($AX77:BG77),0)+IF(RIGHT(CC$39,2)>RIGHT($K77,2),BG77,0)) -> 0 | CE77: =+Q77*KeyAssumptionsPriceControl_FO!AC$15 -> 1.1845 | CF77: =+R77*KeyAssumptionsPriceControl_FO!AD$15 -> 0.519841 | CG77: =+S77*KeyAssumptionsPriceControl_FO!AE$15 -> 0.04370908 | CH77: =+T77*KeyAssumptionsPriceControl_FO!AF$15 -> 0 | CI77: =+U77*KeyAssumptionsPriceControl_FO!AG$15 -> 0 | CJ77: =+V77*KeyAssumptionsPriceControl_FO!AH$15 -> 0 | CK77: =+W77*KeyAssumptionsPriceControl_FO!AI$15 -> 0 | CL77: =+X77*KeyAssumptionsPriceControl_FO!AJ$15 -> 0 | CM77: =+Y77*KeyAssumptionsPriceControl_FO!AK$15 -> 0 | CN77: =+Z77*KeyAssumptionsPriceControl_FO!AL$15 -> 0 | CP77: 0.059225 | CQ77: 0.14444205 | CR77: 0.172619554 | CS77: 0.174805008 | CT77: 0.174805008 | CU77: 0.174805008 | CV77: 0.174805008 | CW77: 0.174805008 | CX77: 0.174805008 | CY77: 0.174805008
C78: All Areas - Customer Billing/CRM System Replacement | E78: Sewerage | F78: Renewals | G78: Corporate | H78: Other Capital expenditure | J78: Straight line | K78: 2025-26 | L78: 10 | M78: 10 | Q78: 1.15 | R78: 0.49 | S78: 0.04 | T78: 0 | U78: 0 | V78: 0 | W78: 0 | X78: 0 | Y78: 0 | Z78: 0 | AX78: 1.15 | AY78: 0.49 | AZ78: 0.04 | BA78: 0 | BB78: 0 | BC78: 0 | BD78: 0 | BE78: 0 | BF78: 0 | BG78: 0 | BI78: 0 | BJ78: 0 | BK78: 0.084 | BL78: 0.168 | BM78: 0.168 | BN78: 0.168 | BO78: 0.168 | BP78: 0.168 | BQ78: 0.168 | BR78: 0.168 | BT78: =+IF($K78="Ongoing",AX78,IF(RIGHT($K78,2)=RIGHT(BT$39,2),SUM($AX78:AX78),0)+IF(RIGHT(BT$39,2)>RIGHT($K78,2),AX78,0)) -> 0 | BU78: =+IF($K78="Ongoing",AY78,IF(RIGHT($K78,2)=RIGHT(BU$39,2),SUM($AX78:AY78),0)+IF(RIGHT(BU$39,2)>RIGHT($K78,2),AY78,0)) -> 0 | BV78: =+IF($K78="Ongoing",AZ78,IF(RIGHT($K78,2)=RIGHT(BV$39,2),SUM($AX78:AZ78),0)+IF(RIGHT(BV$39,2)>RIGHT($K78,2),AZ78,0)) -> 1.68 | BW78: =+IF($K78="Ongoing",BA78,IF(RIGHT($K78,2)=RIGHT(BW$39,2),SUM($AX78:BA78),0)+IF(RIGHT(BW$39,2)>RIGHT($K78,2),BA78,0)) -> 0 | BX78: =+IF($K78="Ongoing",BB78,IF(RIGHT($K78,2)=RIGHT(BX$39,2),SUM($AX78:BB78),0)+IF(RIGHT(BX$39,2)>RIGHT($K78,2),BB78,0)) -> 0 | BY78: =+IF($K78="Ongoing",BC78,IF(RIGHT($K78,2)=RIGHT(BY$39,2),SUM($AX78:BC78),0)+IF(RIGHT(BY$39,2)>RIGHT($K78,2),BC78,0)) -> 0 | BZ78: =+IF($K78="Ongoing",BD78,IF(RIGHT($K78,2)=RIGHT(BZ$39,2),SUM($AX78:BD78),0)+IF(RIGHT(BZ$39,2)>RIGHT($K78,2),BD78,0)) -> 0 | CA78: =+IF($K78="Ongoing",BE78,IF(RIGHT($K78,2)=RIGHT(CA$39,2),SUM($AX78:BE78),0)+IF(RIGHT(CA$39,2)>RIGHT($K78,2),BE78,0)) -> 0 | CB78: =+IF($K78="Ongoing",BF78,IF(RIGHT($K78,2)=RIGHT(CB$39,2),SUM($AX78:BF78),0)+IF(RIGHT(CB$39,2)>RIGHT($K78,2),BF78,0)) -> 0 | CC78: =+IF($K78="Ongoing",BG78,IF(RIGHT($K78,2)=RIGHT(CC$39,2),SUM($AX78:BG78),0)+IF(RIGHT(CC$39,2)>RIGHT($K78,2),BG78,0)) -> 0 | CE78: =+Q78*KeyAssumptionsPriceControl_FO!AC$15 -> 1.1845 | CF78: =+R78*KeyAssumptionsPriceControl_FO!AD$15 -> 0.519841 | CG78: =+S78*KeyAssumptionsPriceControl_FO!AE$15 -> 0.04370908 | CH78: =+T78*KeyAssumptionsPriceControl_FO!AF$15 -> 0 | CI78: =+U78*KeyAssumptionsPriceControl_FO!AG$15 -> 0 | CJ78: =+V78*KeyAssumptionsPriceControl_FO!AH$15 -> 0 | CK78: =+W78*KeyAssumptionsPriceControl_FO!AI$15 -> 0 | CL78: =+X78*KeyAssumptionsPriceControl_FO!AJ$15 -> 0 | CM78: =+Y78*KeyAssumptionsPriceControl_FO!AK$15 -> 0 | CN78: =+Z78*KeyAssumptionsPriceControl_FO!AL$15 -> 0 | CP78: 0.059225 | CQ78: 0.14444205 | CR78: 0.172619554 | CS78: 0.174805008 | CT78: 0.174805008 | CU78: 0.174805008 | CV78: 0.174805008 | CW78: 0.174805008 | CX78: 0.174805008 | CY78: 0.174805008
C79: All Areas - HR Software Replacement | E79: Water | F79: Renewals | G79: Corporate | H79: Other Capital expenditure | J79: Straight line | K79: 2025-26 | L79: 10 | M79: 10 | Q79: 0 | R79: 0.25 | S79: 0.25 | T79: 0 | U79: 0 | V79: 0 | W79: 0 | X79: 0 | Y79: 0 | Z79: 0 | AX79: 0 | AY79: 0.25 | AZ79: 0.25 | BA79: 0 | BB79: 0 | BC79: 0 | BD79: 0 | BE79: 0 | BF79: 0 | BG79: 0 | BI79: 0 | BJ79: 0 | BK79: 0.025 | BL79: 0.05 | BM79: 0.05 | BN79: 0.05 | BO79: 0.05 | BP79: 0.05 | BQ79: 0.05 | BR79: 0.05 | BT79: =+IF($K79="Ongoing",AX79,IF(RIGHT($K79,2)=RIGHT(BT$39,2),SUM($AX79:AX79),0)+IF(RIGHT(BT$39,2)>RIGHT($K79,2),AX79,0)) -> 0 | BU79: =+IF($K79="Ongoing",AY79,IF(RIGHT($K79,2)=RIGHT(BU$39,2),SUM($AX79:AY79),0)+IF(RIGHT(BU$39,2)>RIGHT($K79,2),AY79,0)) -> 0 | BV79: =+IF($K79="Ongoing",AZ79,IF(RIGHT($K79,2)=RIGHT(BV$39,2),SUM($AX79:AZ79),0)+IF(RIGHT(BV$39,2)>RIGHT($K79,2),AZ79,0)) -> 0.5 | BW79: =+IF($K79="Ongoing",BA79,IF(RIGHT($K79,2)=RIGHT(BW$39,2),SUM($AX79:BA79),0)+IF(RIGHT(BW$39,2)>RIGHT($K79,2),BA79,0)) -> 0 | BX79: =+IF($K79="Ongoing",BB79,IF(RIGHT($K79,2)=RIGHT(BX$39,2),SUM($AX79:BB79),0)+IF(RIGHT(BX$39,2)>RIGHT($K79,2),BB79,0)) -> 0 | BY79: =+IF($K79="Ongoing",BC79,IF(RIGHT($K79,2)=RIGHT(BY$39,2),SUM($AX79:BC79),0)+IF(RIGHT(BY$39,2)>RIGHT($K79,2),BC79,0)) -> 0 | BZ79: =+IF($K79="Ongoing",BD79,IF(RIGHT($K79,2)=RIGHT(BZ$39,2),SUM($AX79:BD79),0)+IF(RIGHT(BZ$39,2)>RIGHT($K79,2),BD79,0)) -> 0 | CA79: =+IF($K79="Ongoing",BE79,IF(RIGHT($K79,2)=RIGHT(CA$39,2),SUM($AX79:BE79),0)+IF(RIGHT(CA$39,2)>RIGHT($K79,2),BE79,0)) -> 0 | CB79: =+IF($K79="Ongoing",BF79,IF(RIGHT($K79,2)=RIGHT(CB$39,2),SUM($AX79:BF79),0)+IF(RIGHT(CB$39,2)>RIGHT($K79,2),BF79,0)) -> 0 | CC79: =+IF($K79="Ongoing",BG79,IF(RIGHT($K79,2)=RIGHT(CC$39,2),SUM($AX79:BG79),0)+IF(RIGHT(CC$39,2)>RIGHT($K79,2),BG79,0)) -> 0 | CE79: =+Q79*KeyAssumptionsPriceControl_FO!AC$15 -> 0 | CF79: =+R79*KeyAssumptionsPriceControl_FO!AD$15 -> 0.265225 | CG79: =+S79*KeyAssumptionsPriceControl_FO!AE$15 -> 0.27318175 | CH79: =+T79*KeyAssumptionsPriceControl_FO!AF$15 -> 0 | CI79: =+U79*KeyAssumptionsPriceControl_FO!AG$15 -> 0 | CJ79: =+V79*KeyAssumptionsPriceControl_FO!AH$15 -> 0 | CK79: =+W79*KeyAssumptionsPriceControl_FO!AI$15 -> 0 | CL79: =+X79*KeyAssumptionsPriceControl_FO!AJ$15 -> 0 | CM79: =+Y79*KeyAssumptionsPriceControl_FO!AK$15 -> 0 | CN79: =+Z79*KeyAssumptionsPriceControl_FO!AL$15 -> 0 | CP79: 0 | CQ79: 0.01326125 | CR79: 0.0401815875 | CS79: 0.053840675 | CT79: 0.053840675 | CU79: 0.053840675 | CV79: 0.053840675 | CW79: 0.053840675 | CX79: 0.053840675 | CY79: 0.053840675
C80: All Areas - HR Software Replacement | E80: Sewerage | F80: Renewals | G80: Corporate | H80: Other Capital expenditure | J80: Straight line | K80: 2025-26 | L80: 10 | M80: 10 | Q80: 0 | R80: 0.25 | S80: 0.25 | T80: 0 | U80: 0 | V80: 0 | W80: 0 | X80: 0 | Y80: 0 | Z80: 0 | AX80: 0 | AY80: 0.25 | AZ80: 0.25 | BA80: 0 | BB80: 0 | BC80: 0 | BD80: 0 | BE80: 0 | BF80: 0 | BG80: 0 | BI80: 0 | BJ80: 0 | BK80: 0.025 | BL80: 0.05 | BM80: 0.05 | BN80: 0.05 | BO80: 0.05 | BP80: 0.05 | BQ80: 0.05 | BR80: 0.05 | BT80: =+IF($K80="Ongoing",AX80,IF(RIGHT($K80,2)=RIGHT(BT$39,2),SUM($AX80:AX80),0)+IF(RIGHT(BT$39,2)>RIGHT($K80,2),AX80,0)) -> 0 | BU80: =+IF($K80="Ongoing",AY80,IF(RIGHT($K80,2)=RIGHT(BU$39,2),SUM($AX80:AY80),0)+IF(RIGHT(BU$39,2)>RIGHT($K80,2),AY80,0)) -> 0 | BV80: =+IF($K80="Ongoing",AZ80,IF(RIGHT($K80,2)=RIGHT(BV$39,2),SUM($AX80:AZ80),0)+IF(RIGHT(BV$39,2)>RIGHT($K80,2),AZ80,0)) -> 0.5 | BW80: =+IF($K80="Ongoing",BA80,IF(RIGHT($K80,2)=RIGHT(BW$39,2),SUM($AX80:BA80),0)+IF(RIGHT(BW$39,2)>RIGHT($K80,2),BA80,0)) -> 0 | BX80: =+IF($K80="Ongoing",BB80,IF(RIGHT($K80,2)=RIGHT(BX$39,2),SUM($AX80:BB80),0)+IF(RIGHT(BX$39,2)>RIGHT($K80,2),BB80,0)) -> 0 | BY80: =+IF($K80="Ongoing",BC80,IF(RIGHT($K80,2)=RIGHT(BY$39,2),SUM($AX80:BC80),0)+IF(RIGHT(BY$39,2)>RIGHT($K80,2),BC80,0)) -> 0 | BZ80: =+IF($K80="Ongoing",BD80,IF(RIGHT($K80,2)=RIGHT(BZ$39,2),SUM($AX80:BD80),0)+IF(RIGHT(BZ$39,2)>RIGHT($K80,2),BD80,0)) -> 0 | CA80: =+IF($K80="Ongoing",BE80,IF(RIGHT($K80,2)=RIGHT(CA$39,2),SUM($AX80:BE80),0)+IF(RIGHT(CA$39,2)>RIGHT($K80,2),BE80,0)) -> 0 | CB80: =+IF($K80="Ongoing",BF80,IF(RIGHT($K80,2)=RIGHT(CB$39,2),SUM($AX80:BF80),0)+IF(RIGHT(CB$39,2)>RIGHT($K80,2),BF80,0)) -> 0 | CC80: =+IF($K80="Ongoing",BG80,IF(RIGHT($K80,2)=RIGHT(CC$39,2),SUM($AX80:BG80),0)+IF(RIGHT(CC$39,2)>RIGHT($K80,2),BG80,0)) -> 0 | CE80: =+Q80*KeyAssumptionsPriceControl_FO!AC$15 -> 0 | CF80: =+R80*KeyAssumptionsPriceControl_FO!AD$15 -> 0.265225 | CG80: =+S80*KeyAssumptionsPriceControl_FO!AE$15 -> 0.27318175 | CH80: =+T80*KeyAssumptionsPriceControl_FO!AF$15 -> 0 | CI80: =+U80*KeyAssumptionsPriceControl_FO!AG$15 -> 0 | CJ80: =+V80*KeyAssumptionsPriceControl_FO!AH$15 -> 0 | CK80: =+W80*KeyAssumptionsPriceControl_FO!AI$15 -> 0 | CL80: =+X80*KeyAssumptionsPriceControl_FO!AJ$15 -> 0 | CM80: =+Y80*KeyAssumptionsPriceControl_FO!AK$15 -> 0 | CN80: =+Z80*KeyAssumptionsPriceControl_FO!AL$15 -> 0 | CP80: 0 | CQ80: 0.01326125 | CR80: 0.0401815875 | CS80: 0.053840675 | CT80: 0.053840675 | CU80: 0.053840675 | CV80: 0.053840675 | CW80: 0.053840675 | CX80: 0.053840675 | CY80: 0.053840675
C81: All Areas - Asset Management Information System Replacement | E81: Water | F81: Renewals | G81: Corporate | H81: Other Capital expenditure | J81: Straight line | K81: 2023-24 | L81: 10 | M81: 10 | Q81: 0.46 | R81: 0 | S81: 0 | T81: 0 | U81: 0 | V81: 0 | W81: 0 | X81: 0 | Y81: 0 | Z81: 0 | AX81: 0.46 | AY81: 0 | AZ81: 0 | BA81: 0 | BB81: 0 | BC81: 0 | BD81: 0 | BE81: 0 | BF81: 0 | BG81: 0 | BI81: 0.023 | BJ81: 0.046 | BK81: 0.046 | BL81: 0.046 | BM81: 0.046 | BN81: 0.046 | BO81: 0.046 | BP81: 0.046 | BQ81: 0.046 | BR81: 0.046 | BT81: =+IF($K81="Ongoing",AX81,IF(RIGHT($K81,2)=RIGHT(BT$39,2),SUM($AX81:AX81),0)+IF(RIGHT(BT$39,2)>RIGHT($K81,2),AX81,0)) -> 0.46 | BU81: =+IF($K81="Ongoing",AY81,IF(RIGHT($K81,2)=RIGHT(BU$39,2),SUM($AX81:AY81),0)+IF(RIGHT(BU$39,2)>RIGHT($K81,2),AY81,0)) -> 0 | BV81: =+IF($K81="Ongoing",AZ81,IF(RIGHT($K81,2)=RIGHT(BV$39,2),SUM($AX81:AZ81),0)+IF(RIGHT(BV$39,2)>RIGHT($K81,2),AZ81,0)) -> 0 | BW81: =+IF($K81="Ongoing",BA81,IF(RIGHT($K81,2)=RIGHT(BW$39,2),SUM($AX81:BA81),0)+IF(RIGHT(BW$39,2)>RIGHT($K81,2),BA81,0)) -> 0 | BX81: =+IF($K81="Ongoing",BB81,IF(RIGHT($K81,2)=RIGHT(BX$39,2),SUM($AX81:BB81),0)+IF(RIGHT(BX$39,2)>RIGHT($K81,2),BB81,0)) -> 0 | BY81: =+IF($K81="Ongoing",BC81,IF(RIGHT($K81,2)=RIGHT(BY$39,2),SUM($AX81:BC81),0)+IF(RIGHT(BY$39,2)>RIGHT($K81,2),BC81,0)) -> 0 | BZ81: =+IF($K81="Ongoing",BD81,IF(RIGHT($K81,2)=RIGHT(BZ$39,2),SUM($AX81:BD81),0)+IF(RIGHT(BZ$39,2)>RIGHT($K81,2),BD81,0)) -> 0 | CA81: =+IF($K81="Ongoing",BE81,IF(RIGHT($K81,2)=RIGHT(CA$39,2),SUM($AX81:BE81),0)+IF(RIGHT(CA$39,2)>RIGHT($K81,2),BE81,0)) -> 0 | CB81: =+IF($K81="Ongoing",BF81,IF(RIGHT($K81,2)=RIGHT(CB$39,2),SUM($AX81:BF81),0)+IF(RIGHT(CB$39,2)>RIGHT($K81,2),BF81,0)) -> 0 | CC81: =+IF($K81="Ongoing",BG81,IF(RIGHT($K81,2)=RIGHT(CC$39,2),SUM($AX81:BG81),0)+IF(RIGHT(CC$39,2)>RIGHT($K81,2),BG81,0)) -> 0 | CE81: =+Q81*KeyAssumptionsPriceControl_FO!AC$15 -> 0.4738 | CF81: =+R81*KeyAssumptionsPriceControl_FO!AD$15 -> 0 | CG81: =+S81*KeyAssumptionsPriceControl_FO!AE$15 -> 0 | CH81: =+T81*KeyAssumptionsPriceControl_FO!AF$15 -> 0 | CI81: =+U81*KeyAssumptionsPriceControl_FO!AG$15 -> 0 | CJ81: =+V81*KeyAssumptionsPriceControl_FO!AH$15 -> 0 | CK81: =+W81*KeyAssumptionsPriceControl_FO!AI$15 -> 0 | CL81: =+X81*KeyAssumptionsPriceControl_FO!AJ$15 -> 0 | CM81: =+Y81*KeyAssumptionsPriceControl_FO!AK$15 -> 0 | CN81: =+Z81*KeyAssumptionsPriceControl_FO!AL$15 -> 0 | CP81: 0.02369 | CQ81: 0.04738 | CR81: 0.04738 | CS81: 0.04738 | CT81: 0.04738 | CU81: 0.04738 | CV81: 0.04738 | CW81: 0.04738 | CX81: 0.04738 | CY81: 0.04738
C82: All Areas - Asset Management Information System Replacement | E82: Sewerage | F82: Renewals | G82: Corporate | H82: Other Capital expenditure | J82: Straight line | K82: 2023-24 | L82: 10 | M82: 10 | Q82: 0.46 | R82: 0 | S82: 0 | T82: 0 | U82: 0 | V82: 0 | W82: 0 | X82: 0 | Y82: 0 | Z82: 0 | AX82: 0.46 | AY82: 0 | AZ82: 0 | BA82: 0 | BB82: 0 | BC82: 0 | BD82: 0 | BE82: 0 | BF82: 0 | BG82: 0 | BI82: 0.023 | BJ82: 0.046 | BK82: 0.046 | BL82: 0.046 | BM82: 0.046 | BN82: 0.046 | BO82: 0.046 | BP82: 0.046 | BQ82: 0.046 | BR82: 0.046 | BT82: =+IF($K82="Ongoing",AX82,IF(RIGHT($K82,2)=RIGHT(BT$39,2),SUM($AX82:AX82),0)+IF(RIGHT(BT$39,2)>RIGHT($K82,2),AX82,0)) -> 0.46 | BU82: =+IF($K82="Ongoing",AY82,IF(RIGHT($K82,2)=RIGHT(BU$39,2),SUM($AX82:AY82),0)+IF(RIGHT(BU$39,2)>RIGHT($K82,2),AY82,0)) -> 0 | BV82: =+IF($K82="Ongoing",AZ82,IF(RIGHT($K82,2)=RIGHT(BV$39,2),SUM($AX82:AZ82),0)+IF(RIGHT(BV$39,2)>RIGHT($K82,2),AZ82,0)) -> 0 | BW82: =+IF($K82="Ongoing",BA82,IF(RIGHT($K82,2)=RIGHT(BW$39,2),SUM($AX82:BA82),0)+IF(RIGHT(BW$39,2)>RIGHT($K82,2),BA82,0)) -> 0 | BX82: =+IF($K82="Ongoing",BB82,IF(RIGHT($K82,2)=RIGHT(BX$39,2),SUM($AX82:BB82),0)+IF(RIGHT(BX$39,2)>RIGHT($K82,2),BB82,0)) -> 0 | BY82: =+IF($K82="Ongoing",BC82,IF(RIGHT($K82,2)=RIGHT(BY$39,2),SUM($AX82:BC82),0)+IF(RIGHT(BY$39,2)>RIGHT($K82,2),BC82,0)) -> 0 | BZ82: =+IF($K82="Ongoing",BD82,IF(RIGHT($K82,2)=RIGHT(BZ$39,2),SUM($AX82:BD82),0)+IF(RIGHT(BZ$39,2)>RIGHT($K82,2),BD82,0)) -> 0 | CA82: =+IF($K82="Ongoing",BE82,IF(RIGHT($K82,2)=RIGHT(CA$39,2),SUM($AX82:BE82),0)+IF(RIGHT(CA$39,2)>RIGHT($K82,2),BE82,0)) -> 0 | CB82: =+IF($K82="Ongoing",BF82,IF(RIGHT($K82,2)=RIGHT(CB$39,2),SUM($AX82:BF82),0)+IF(RIGHT(CB$39,2)>RIGHT($K82,2),BF82,0)) -> 0 | CC82: =+IF($K82="Ongoing",BG82,IF(RIGHT($K82,2)=RIGHT(CC$39,2),SUM($AX82:BG82),0)+IF(RIGHT(CC$39,2)>RIGHT($K82,2),BG82,0)) -> 0 | CE82: =+Q82*KeyAssumptionsPriceControl_FO!AC$15 -> 0.4738 | CF82: =+R82*KeyAssumptionsPriceControl_FO!AD$15 -> 0 | CG82: =+S82*KeyAssumptionsPriceControl_FO!AE$15 -> 0 | CH82: =+T82*KeyAssumptionsPriceControl_FO!AF$15 -> 0 | CI82: =+U82*KeyAssumptionsPriceControl_FO!AG$15 -> 0 | CJ82: =+V82*KeyAssumptionsPriceControl_FO!AH$15 -> 0 | CK82: =+W82*KeyAssumptionsPriceControl_FO!AI$15 -> 0 | CL82: =+X82*KeyAssumptionsPriceControl_FO!AJ$15 -> 0 | CM82: =+Y82*KeyAssumptionsPriceControl_FO!AK$15 -> 0 | CN82: =+Z82*KeyAssumptionsPriceControl_FO!AL$15 -> 0 | CP82: 0.02369 | CQ82: 0.04738 | CR82: 0.04738 | CS82: 0.04738 | CT82: 0.04738 | CU82: 0.04738 | CV82: 0.04738 | CW82: 0.04738 | CX82: 0.04738 | CY82: 0.04738
C83: All Areas - Operator Mobility, Field Service and Work Order Management | E83: Water | F83: Renewals | G83: Corporate | H83: Other Capital expenditure | J83: Straight line | K83: 2024-25 | L83: 10 | M83: 10 | Q83: 0.115 | R83: 0.275 | S83: 0 | T83: 0 | U83: 0 | V83: 0 | W83: 0 | X83: 0 | Y83: 0 | Z83: 0 | AX83: 0.115 | AY83: 0.275 | AZ83: 0 | BA83: 0 | BB83: 0 | BC83: 0 | BD83: 0 | BE83: 0 | BF83: 0 | BG83: 0 | BI83: 0 | BJ83: 0.0195 | BK83: 0.039 | BL83: 0.039 | BM83: 0.039 | BN83: 0.039 | BO83: 0.039 | BP83: 0.039 | BQ83: 0.039 | BR83: 0.039 | BT83: =+IF($K83="Ongoing",AX83,IF(RIGHT($K83,2)=RIGHT(BT$39,2),SUM($AX83:AX83),0)+IF(RIGHT(BT$39,2)>RIGHT($K83,2),AX83,0)) -> 0 | BU83: =+IF($K83="Ongoing",AY83,IF(RIGHT($K83,2)=RIGHT(BU$39,2),SUM($AX83:AY83),0)+IF(RIGHT(BU$39,2)>RIGHT($K83,2),AY83,0)) -> 0.39 | BV83: =+IF($K83="Ongoing",AZ83,IF(RIGHT($K83,2)=RIGHT(BV$39,2),SUM($AX83:AZ83),0)+IF(RIGHT(BV$39,2)>RIGHT($K83,2),AZ83,0)) -> 0 | BW83: =+IF($K83="Ongoing",BA83,IF(RIGHT($K83,2)=RIGHT(BW$39,2),SUM($AX83:BA83),0)+IF(RIGHT(BW$39,2)>RIGHT($K83,2),BA83,0)) -> 0 | BX83: =+IF($K83="Ongoing",BB83,IF(RIGHT($K83,2)=RIGHT(BX$39,2),SUM($AX83:BB83),0)+IF(RIGHT(BX$39,2)>RIGHT($K83,2),BB83,0)) -> 0 | BY83: =+IF($K83="Ongoing",BC83,IF(RIGHT($K83,2)=RIGHT(BY$39,2),SUM($AX83:BC83),0)+IF(RIGHT(BY$39,2)>RIGHT($K83,2),BC83,0)) -> 0 | BZ83: =+IF($K83="Ongoing",BD83,IF(RIGHT($K83,2)=RIGHT(BZ$39,2),SUM($AX83:BD83),0)+IF(RIGHT(BZ$39,2)>RIGHT($K83,2),BD83,0)) -> 0 | CA83: =+IF($K83="Ongoing",BE83,IF(RIGHT($K83,2)=RIGHT(CA$39,2),SUM($AX83:BE83),0)+IF(RIGHT(CA$39,2)>RIGHT($K83,2),BE83,0)) -> 0 | CB83: =+IF($K83="Ongoing",BF83,IF(RIGHT($K83,2)=RIGHT(CB$39,2),SUM($AX83:BF83),0)+IF(RIGHT(CB$39,2)>RIGHT($K83,2),BF83,0)) -> 0 | CC83: =+IF($K83="Ongoing",BG83,IF(RIGHT($K83,2)=RIGHT(CC$39,2),SUM($AX83:BG83),0)+IF(RIGHT(CC$39,2)>RIGHT($K83,2),BG83,0)) -> 0 | CE83: =+Q83*KeyAssumptionsPriceControl_FO!AC$15 -> 0.11845 | CF83: =+R83*KeyAssumptionsPriceControl_FO!AD$15 -> 0.2917475 | CG83: =+S83*KeyAssumptionsPriceControl_FO!AE$15 -> 0 | CH83: =+T83*KeyAssumptionsPriceControl_FO!AF$15 -> 0 | CI83: =+U83*KeyAssumptionsPriceControl_FO!AG$15 -> 0 | CJ83: =+V83*KeyAssumptionsPriceControl_FO!AH$15 -> 0 | CK83: =+W83*KeyAssumptionsPriceControl_FO!AI$15 -> 0 | CL83: =+X83*KeyAssumptionsPriceControl_FO!AJ$15 -> 0 | CM83: =+Y83*KeyAssumptionsPriceControl_FO!AK$15 -> 0 | CN83: =+Z83*KeyAssumptionsPriceControl_FO!AL$15 -> 0 | CP83: 0.0059225 | CQ83: 0.026432375 | CR83: 0.04101975 | CS83: 0.04101975 | CT83: 0.04101975 | CU83: 0.04101975 | CV83: 0.04101975 | CW83: 0.04101975 | CX83: 0.04101975 | CY83: 0.04101975
C84: All Areas - Operator Mobility, Field Service and Work Order Management | E84: Sewerage | F84: Renewals | G84: Corporate | H84: Other Capital expenditure | J84: Straight line | K84: 2024-25 | L84: 10 | M84: 10 | Q84: 0.115 | R84: 0.275 | S84: 0 | T84: 0 | U84: 0 | V84: 0 | W84: 0 | X84: 0 | Y84: 0 | Z84: 0 | AX84: 0.115 | AY84: 0.275 | AZ84: 0 | BA84: 0 | BB84: 0 | BC84: 0 | BD84: 0 | BE84: 0 | BF84: 0 | BG84: 0 | BI84: 0 | BJ84: 0.0195 | BK84: 0.039 | BL84: 0.039 | BM84: 0.039 | BN84: 0.039 | BO84: 0.039 | BP84: 0.039 | BQ84: 0.039 | BR84: 0.039 | BT84: =+IF($K84="Ongoing",AX84,IF(RIGHT($K84,2)=RIGHT(BT$39,2),SUM($AX84:AX84),0)+IF(RIGHT(BT$39,2)>RIGHT($K84,2),AX84,0)) -> 0 | BU84: =+IF($K84="Ongoing",AY84,IF(RIGHT($K84,2)=RIGHT(BU$39,2),SUM($AX84:AY84),0)+IF(RIGHT(BU$39,2)>RIGHT($K84,2),AY84,0)) -> 0.39 | BV84: =+IF($K84="Ongoing",AZ84,IF(RIGHT($K84,2)=RIGHT(BV$39,2),SUM($AX84:AZ84),0)+IF(RIGHT(BV$39,2)>RIGHT($K84,2),AZ84,0)) -> 0 | BW84: =+IF($K84="Ongoing",BA84,IF(RIGHT($K84,2)=RIGHT(BW$39,2),SUM($AX84:BA84),0)+IF(RIGHT(BW$39,2)>RIGHT($K84,2),BA84,0)) -> 0 | BX84: =+IF($K84="Ongoing",BB84,IF(RIGHT($K84,2)=RIGHT(BX$39,2),SUM($AX84:BB84),0)+IF(RIGHT(BX$39,2)>RIGHT($K84,2),BB84,0)) -> 0 | BY84: =+IF($K84="Ongoing",BC84,IF(RIGHT($K84,2)=RIGHT(BY$39,2),SUM($AX84:BC84),0)+IF(RIGHT(BY$39,2)>RIGHT($K84,2),BC84,0)) -> 0 | BZ84: =+IF($K84="Ongoing",BD84,IF(RIGHT($K84,2)=RIGHT(BZ$39,2),SUM($AX84:BD84),0)+IF(RIGHT(BZ$39,2)>RIGHT($K84,2),BD84,0)) -> 0 | CA84: =+IF($K84="Ongoing",BE84,IF(RIGHT($K84,2)=RIGHT(CA$39,2),SUM($AX84:BE84),0)+IF(RIGHT(CA$39,2)>RIGHT($K84,2),BE84,0)) -> 0 | CB84: =+IF($K84="Ongoing",BF84,IF(RIGHT($K84,2)=RIGHT(CB$39,2),SUM($AX84:BF84),0)+IF(RIGHT(CB$39,2)>RIGHT($K84,2),BF84,0)) -> 0 | CC84: =+IF($K84="Ongoing",BG84,IF(RIGHT($K84,2)=RIGHT(CC$39,2),SUM($AX84:BG84),0)+IF(RIGHT(CC$39,2)>RIGHT($K84,2),BG84,0)) -> 0 | CE84: =+Q84*KeyAssumptionsPriceControl_FO!AC$15 -> 0.11845 | CF84: =+R84*KeyAssumptionsPriceControl_FO!AD$15 -> 0.2917475 | CG84: =+S84*KeyAssumptionsPriceControl_FO!AE$15 -> 0 | CH84: =+T84*KeyAssumptionsPriceControl_FO!AF$15 -> 0 | CI84: =+U84*KeyAssumptionsPriceControl_FO!AG$15 -> 0 | CJ84: =+V84*KeyAssumptionsPriceControl_FO!AH$15 -> 0 | CK84: =+W84*KeyAssumptionsPriceControl_FO!AI$15 -> 0 | CL84: =+X84*KeyAssumptionsPriceControl_FO!AJ$15 -> 0 | CM84: =+Y84*KeyAssumptionsPriceControl_FO!AK$15 -> 0 | CN84: =+Z84*KeyAssumptionsPriceControl_FO!AL$15 -> 0 | CP84: 0.0059225 | CQ84: 0.026432375 | CR84: 0.04101975 | CS84: 0.04101975 | CT84: 0.04101975 | CU84: 0.04101975 | CV84: 0.04101975 | CW84: 0.04101975 | CX84: 0.04101975 | CY84: 0.04101975
C85: All Areas - Digital Asset (Software) Development/Enhancement (Separate out for improvement to software assets) | E85: Water | F85: Improvements / Compliance | G85: Corporate | H85: Other Capital expenditure | J85: Straight line | K85: Ongoing | L85: 10 | M85: 10 | Q85: 0.06 | R85: 0.06 | S85: 0.06 | T85: 0.06 | U85: 0.06 | V85: 0.06 | W85: 0.06 | X85: 0.06 | Y85: 0 | Z85: 0 | AX85: =+Q85-AB85-AM85 -> 0.06 | AY85: =+R85-AC85-AN85 -> 0.06 | AZ85: =+S85-AD85-AO85 -> 0.06 | BA85: =+T85-AE85-AP85 -> 0.06 | BB85: =+U85-AF85-AQ85 -> 0.06 | BC85: =+V85-AG85-AR85 -> 0.06 | BD85: =+W85-AH85-AS85 -> 0.06 | BE85: =+X85-AI85-AT85 -> 0.06 | BF85: 0 | BG85: 0 | BI85: 0.003 | BJ85: 0.009 | BK85: 0.015 | BL85: 0.021 | BM85: 0.027 | BN85: 0.033 | BO85: 0.039 | BP85: 0.045 | BQ85: 0.048 | BR85: 0.048 | BT85: =+IF($K85="Ongoing",AX85,IF(RIGHT($K85,2)=RIGHT(BT$39,2),SUM($AX85:AX85),0)+IF(RIGHT(BT$39,2)>RIGHT($K85,2),AX85,0)) -> 0.06 | BU85: =+IF($K85="Ongoing",AY85,IF(RIGHT($K85,2)=RIGHT(BU$39,2),SUM($AX85:AY85),0)+IF(RIGHT(BU$39,2)>RIGHT($K85,2),AY85,0)) -> 0.06 | BV85: =+IF($K85="Ongoing",AZ85,IF(RIGHT($K85,2)=RIGHT(BV$39,2),SUM($AX85:AZ85),0)+IF(RIGHT(BV$39,2)>RIGHT($K85,2),AZ85,0)) -> 0.06 | BW85: =+IF($K85="Ongoing",BA85,IF(RIGHT($K85,2)=RIGHT(BW$39,2),SUM($AX85:BA85),0)+IF(RIGHT(BW$39,2)>RIGHT($K85,2),BA85,0)) -> 0.06 | BX85: =+IF($K85="Ongoing",BB85,IF(RIGHT($K85,2)=RIGHT(BX$39,2),SUM($AX85:BB85),0)+IF(RIGHT(BX$39,2)>RIGHT($K85,2),BB85,0)) -> 0.06 | BY85: =+IF($K85="Ongoing",BC85,IF(RIGHT($K85,2)=RIGHT(BY$39,2),SUM($AX85:BC85),0)+IF(RIGHT(BY$39,2)>RIGHT($K85,2),BC85,0)) -> 0.06 | BZ85: =+IF($K85="Ongoing",BD85,IF(RIGHT($K85,2)=RIGHT(BZ$39,2),SUM($AX85:BD85),0)+IF(RIGHT(BZ$39,2)>RIGHT($K85,2),BD85,0)) -> 0.06 | CA85: =+IF($K85="Ongoing",BE85,IF(RIGHT($K85,2)=RIGHT(CA$39,2),SUM($AX85:BE85),0)+IF(RIGHT(CA$39,2)>RIGHT($K85,2),BE85,0)) -> 0.06 | CB85: =+IF($K85="Ongoing",BF85,IF(RIGHT($K85,2)=RIGHT(CB$39,2),SUM($AX85:BF85),0)+IF(RIGHT(CB$39,2)>RIGHT($K85,2),BF85,0)) -> 0 | CC85: =+IF($K85="Ongoing",BG85,IF(RIGHT($K85,2)=RIGHT(CC$39,2),SUM($AX85:BG85),0)+IF(RIGHT(CC$39,2)>RIGHT($K85,2),BG85,0)) -> 0 | CE85: =+Q85*KeyAssumptionsPriceControl_FO!AC$15 -> 0.0618 | CF85: =+R85*KeyAssumptionsPriceControl_FO!AD$15 -> 0.063654 | CG85: =+S85*KeyAssumptionsPriceControl_FO!AE$15 -> 0.06556362 | CH85: =+T85*KeyAssumptionsPriceControl_FO!AF$15 -> 0.0675305286 | CI85: =+U85*KeyAssumptionsPriceControl_FO!AG$15 -> 0.06955644446 | CJ85: =+V85*KeyAssumptionsPriceControl_FO!AH$15 -> 0.07164313779 | CK85: =+W85*KeyAssumptionsPriceControl_FO!AI$15 -> 0.07379243193 | CL85: =+X85*KeyAssumptionsPriceControl_FO!AJ$15 -> 0.07600620488 | CM85: =+Y85*KeyAssumptionsPriceControl_FO!AK$15 -> 0 | CN85: =+Z85*KeyAssumptionsPriceControl_FO!AL$15 -> 0 | CP85: =IF($M85=0,0, IF($M85<=0.5,CE85, IF($J85="straight line", IF((LEFT(CP$39,4)*1)-INT($M85)<LEFT($CP$39,4)*1,0,((OFFSET(CE85,0,-INT($M85+0.5),1,1))/$M85)*(IF($M85-INT($M85)>0.5,$M85-0.5-INT($M85),IF($M85-INT($M85)<=0.5,$M85-0.5-INT($M85)+1,0)))) +CE85/$M85*0.5, IF($J85="Declining Balance",-$CP$38,0)))) -> 0.00309 | CQ85: =IF($M85=0,0, IF($M85<=0.5,CF85, IF(AND($J85="straight line",$M85<1.51),(CE85-((CE85/$M85)*0.5))+CF85/$M85*0.5, IF($J85="straight line", IF((LEFT(CQ$39,4)*1)-INT($M85)<LEFT($CP$39,4)*1,0,((OFFSET(CF85,0,-INT($M85+0.5),1,1))/$M85)*(IF($M85-INT($M85)>0.5,$M85-0.5-INT($M85),IF($M85-INT($M85)<=0.5,$M85-0.5-INT($M85)+1,0)))) +CF85/$M85*0.5 +SUM(OFFSET(CF85,0,MAX(-INT($M85+(0.5-(10^-12))),-CQ$40)+1,1,MIN(INT($M85+(0.5-(10^-12))),CQ$40)-1))*1/$M85, IF($J85="Declining Balance",-$CP$38,0))))) -> 0.0093627 | CR85: =IF($M85=0,0, IF($M85<=0.5,CG85, IF(AND($J85="straight line",$M85<1.51),(CF85-((CF85/$M85)*0.5))+CG85/$M85*0.5, IF($J85="straight line", IF((LEFT(CR$39,4)*1)-INT($M85)<LEFT($CP$39,4)*1,0,((OFFSET(CG85,0,-INT($M85+0.5),1,1))/$M85)*(IF($M85-INT($M85)>0.5,$M85-0.5-INT($M85),IF($M85-INT($M85)<=0.5,$M85-0.5-INT($M85)+1,0)))) +CG85/$M85*0.5 +SUM(OFFSET(CG85,0,MAX(-INT($M85+(0.5-(10^-12))),-CR$40)+1,1,MIN(INT($M85+(0.5-(10^-12))),CR$40)-1))*1/$M85, IF($J85="Declining Balance",-$CP$38,0))))) -> 0.015823581 | CS85: =IF($M85=0,0, IF($M85<=0.5,CH85, IF(AND($J85="straight line",$M85<1.51),(CG85-((CG85/$M85)*0.5))+CH85/$M85*0.5, IF($J85="straight line", IF((LEFT(CS$39,4)*1)-INT($M85)<LEFT($CP$39,4)*1,0,((OFFSET(CH85,0,-INT($M85+0.5),1,1))/$M85)*(IF($M85-INT($M85)>0.5,$M85-0.5-INT($M85),IF($M85-INT($M85)<=0.5,$M85-0.5-INT($M85)+1,0)))) +CH85/$M85*0.5 +SUM(OFFSET(CH85,0,MAX(-INT($M85+(0.5-(10^-12))),-CS$40)+1,1,MIN(INT($M85+(0.5-(10^-12))),CS$40)-1))*1/$M85, IF($J85="Declining Balance",-$CP$38,0))))) -> 0.02247828843 | CT85: =IF($M85=0,0, IF($M85<=0.5,CI85, IF(AND($J85="straight line",$M85<1.51),(CH85-((CH85/$M85)*0.5))+CI85/$M85*0.5, IF($J85="straight line", IF((LEFT(CT$39,4)*1)-INT($M85)<LEFT($CP$39,4)*1,0,((OFFSET(CI85,0,-INT($M85+0.5),1,1))/$M85)*(IF($M85-INT($M85)>0.5,$M85-0.5-INT($M85),IF($M85-INT($M85)<=0.5,$M85-0.5-INT($M85)+1,0)))) +CI85/$M85*0.5 +SUM(OFFSET(CI85,0,MAX(-INT($M85+(0.5-(10^-12))),-CT$40)+1,1,MIN(INT($M85+(0.5-(10^-12))),CT$40)-1))*1/$M85, IF($J85="Declining Balance",-$CP$38,0))))) -> 0.02933263708 | CU85: =IF($M85=0,0, IF($M85<=0.5,CJ85, IF(AND($J85="straight line",$M85<1.51),(CI85-((CI85/$M85)*0.5))+CJ85/$M85*0.5, IF($J85="straight line", IF((LEFT(CU$39,4)*1)-INT($M85)<LEFT($CP$39,4)*1,0,((OFFSET(CJ85,0,-INT($M85+0.5),1,1))/$M85)*(IF($M85-INT($M85)>0.5,$M85-0.5-INT($M85),IF($M85-INT($M85)<=0.5,$M85-0.5-INT($M85)+1,0)))) +CJ85/$M85*0.5 +SUM(OFFSET(CJ85,0,MAX(-INT($M85+(0.5-(10^-12))),-CU$40)+1,1,MIN(INT($M85+(0.5-(10^-12))),CU$40)-1))*1/$M85, IF($J85="Declining Balance",-$CP$38,0))))) -> 0.0363926162 | CV85: =IF($M85=0,0, IF($M85<=0.5,CK85, IF(AND($J85="straight line",$M85<1.51),(CJ85-((CJ85/$M85)*0.5))+CK85/$M85*0.5, IF($J85="straight line", IF((LEFT(CV$39,4)*1)-INT($M85)<LEFT($CP$39,4)*1,0,((OFFSET(CK85,0,-INT($M85+0.5),1,1))/$M85)*(IF($M85-INT($M85)>0.5,$M85-0.5-INT($M85),IF($M85-INT($M85)<=0.5,$M85-0.5-INT($M85)+1,0)))) +CK85/$M85*0.5 +SUM(OFFSET(CK85,0,MAX(-INT($M85+(0.5-(10^-12))),-CV$40)+1,1,MIN(INT($M85+(0.5-(10^-12))),CV$40)-1))*1/$M85, IF($J85="Declining Balance",-$CP$38,0))))) -> 0.04366439468 | CW85: =IF($M85=0,0, IF($M85<=0.5,CL85, IF(AND($J85="straight line",$M85<1.51),(CK85-((CK85/$M85)*0.5))+CL85/$M85*0.5, IF($J85="straight line", IF((LEFT(CW$39,4)*1)-INT($M85)<LEFT($CP$39,4)*1,0,((OFFSET(CL85,0,-INT($M85+0.5),1,1))/$M85)*(IF($M85-INT($M85)>0.5,$M85-0.5-INT($M85),IF($M85-INT($M85)<=0.5,$M85-0.5-INT($M85)+1,0)))) +CL85/$M85*0.5 +SUM(OFFSET(CL85,0,MAX(-INT($M85+(0.5-(10^-12))),-CW$40)+1,1,MIN(INT($M85+(0.5-(10^-12))),CW$40)-1))*1/$M85, IF($J85="Declining Balance",-$CP$38,0))))) -> 0.05115432652 | CX85: =IF($M85=0,0, IF($M85<=0.5,CM85, IF(AND($J85="straight line",$M85<1.51),(CL85-((CL85/$M85)*0.5))+CM85/$M85*0.5, IF($J85="straight line", IF((LEFT(CX$39,4)*1)-INT($M85)<LEFT($CP$39,4)*1,0,((OFFSET(CM85,0,-INT($M85+0.5),1,1))/$M85)*(IF($M85-INT($M85)>0.5,$M85-0.5-INT($M85),IF($M85-INT($M85)<=0.5,$M85-0.5-INT($M85)+1,0)))) +CM85/$M85*0.5 +SUM(OFFSET(CM85,0,MAX(-INT($M85+(0.5-(10^-12))),-CX$40)+1,1,MIN(INT($M85+(0.5-(10^-12))),CX$40)-1))*1/$M85, IF($J85="Declining Balance",-$CP$38,0))))) -> 0.05495463677 | CY85: =IF($M85=0,0, IF($M85<=0.5,CN85, IF(AND($J85="straight line",$M85<1.51),(CM85-((CM85/$M85)*0.5))+CN85/$M85*0.5, IF($J85="straight line", IF((LEFT(CY$39,4)*1)-INT($M85)<LEFT($CP$39,4)*1,0,((OFFSET(CN85,0,-INT($M85+0.5),1,1))/$M85)*(IF($M85-INT($M85)>0.5,$M85-0.5-INT($M85),IF($M85-INT($M85)<=0.5,$M85-0.5-INT($M85)+1,0)))) +CN85/$M85*0.5 +SUM(OFFSET(CN85,0,MAX(-INT($M85+(0.5-(10^-12))),-CY$40)+1,1,MIN(INT($M85+(0.5-(10^-12))),CY$40)-1))*1/$M85, IF($J85="Declining Balance",-$CP$38,0))))) -> 0.05495463677
C86: All Areas - Digital Asset (Software) Development/Enhancement (Separate out for improvement to software assets) | E86: Sewerage | F86: Improvements / Compliance | G86: Corporate | H86: Other Capital expenditure | J86: Straight line | K86: Ongoing | L86: 10 | M86: 10 | Q86: 0.06 | R86: 0.06 | S86: 0.06 | T86: 0.06 | U86: 0.06 | V86: 0.06 | W86: 0.06 | X86: 0.06 | Y86: 0 | Z86: 0 | AX86: 0.06 | AY86: 0.06 | AZ86: 0.06 | BA86: 0.06 | BB86: 0.06 | BC86: 0.06 | BD86: 0.06 | BE86: 0.06 | BF86: 0 | BG86: 0 | BI86: 0.003 | BJ86: 0.009 | BK86: 0.015 | BL86: 0.021 | BM86: 0.027 | BN86: 0.033 | BO86: 0.039 | BP86: 0.045 | BQ86: 0.048 | BR86: 0.048 | BT86: =+IF($K86="Ongoing",AX86,IF(RIGHT($K86,2)=RIGHT(BT$39,2),SUM($AX86:AX86),0)+IF(RIGHT(BT$39,2)>RIGHT($K86,2),AX86,0)) -> 0.06 | BU86: =+IF($K86="Ongoing",AY86,IF(RIGHT($K86,2)=RIGHT(BU$39,2),SUM($AX86:AY86),0)+IF(RIGHT(BU$39,2)>RIGHT($K86,2),AY86,0)) -> 0.06 | BV86: =+IF($K86="Ongoing",AZ86,IF(RIGHT($K86,2)=RIGHT(BV$39,2),SUM($AX86:AZ86),0)+IF(RIGHT(BV$39,2)>RIGHT($K86,2),AZ86,0)) -> 0.06 | BW86: =+IF($K86="Ongoing",BA86,IF(RIGHT($K86,2)=RIGHT(BW$39,2),SUM($AX86:BA86),0)+IF(RIGHT(BW$39,2)>RIGHT($K86,2),BA86,0)) -> 0.06 | BX86: =+IF($K86="Ongoing",BB86,IF(RIGHT($K86,2)=RIGHT(BX$39,2),SUM($AX86:BB86),0)+IF(RIGHT(BX$39,2)>RIGHT($K86,2),BB86,0)) -> 0.06 | BY86: =+IF($K86="Ongoing",BC86,IF(RIGHT($K86,2)=RIGHT(BY$39,2),SUM($AX86:BC86),0)+IF(RIGHT(BY$39,2)>RIGHT($K86,2),BC86,0)) -> 0.06 | BZ86: =+IF($K86="Ongoing",BD86,IF(RIGHT($K86,2)=RIGHT(BZ$39,2),SUM($AX86:BD86),0)+IF(RIGHT(BZ$39,2)>RIGHT($K86,2),BD86,0)) -> 0.06 | CA86: =+IF($K86="Ongoing",BE86,IF(RIGHT($K86,2)=RIGHT(CA$39,2),SUM($AX86:BE86),0)+IF(RIGHT(CA$39,2)>RIGHT($K86,2),BE86,0)) -> 0.06 | CB86: =+IF($K86="Ongoing",BF86,IF(RIGHT($K86,2)=RIGHT(CB$39,2),SUM($AX86:BF86),0)+IF(RIGHT(CB$39,2)>RIGHT($K86,2),BF86,0)) -> 0 | CC86: =+IF($K86="Ongoing",BG86,IF(RIGHT($K86,2)=RIGHT(CC$39,2),SUM($AX86:BG86),0)+IF(RIGHT(CC$39,2)>RIGHT($K86,2),BG86,0)) -> 0 | CE86: =+Q86*KeyAssumptionsPriceControl_FO!AC$15 -> 0.0618 | CF86: =+R86*KeyAssumptionsPriceControl_FO!AD$15 -> 0.063654 | CG86: =+S86*KeyAssumptionsPriceControl_FO!AE$15 -> 0.06556362 | CH86: =+T86*KeyAssumptionsPriceControl_FO!AF$15 -> 0.0675305286 | CI86: =+U86*KeyAssumptionsPriceControl_FO!AG$15 -> 0.06955644446 | CJ86: =+V86*KeyAssumptionsPriceControl_FO!AH$15 -> 0.07164313779 | CK86: =+W86*KeyAssumptionsPriceControl_FO!AI$15 -> 0.07379243193 | CL86: =+X86*KeyAssumptionsPriceControl_FO!AJ$15 -> 0.07600620488 | CM86: =+Y86*KeyAssumptionsPriceControl_FO!AK$15 -> 0 | CN86: =+Z86*KeyAssumptionsPriceControl_FO!AL$15 -> 0 | CP86: 0.00309 | CQ86: 0.0093627 | CR86: 0.015823581 | CS86: 0.02247828843 | CT86: 0.02933263708 | CU86: 0.0363926162 | CV86: 0.04366439468 | CW86: 0.05115432652 | CX86: 0.05495463677 | CY86: 0.05495463677
C87: All Areas - Network and Data Management Readiness | E87: Water | F87: Improvements / Compliance | G87: Corporate | H87: Other Capital expenditure | J87: Straight line | K87: 2025-26 | L87: 10 | M87: 10 | Q87: 0.015 | R87: 0.175 | S87: 0.005 | T87: 0 | U87: 0 | V87: 0 | W87: 0 | X87: 0 | Y87: 0 | Z87: 0 | AX87: 0.015 | AY87: 0.175 | AZ87: 0.005 | BA87: 0 | BB87: 0 | BC87: 0 | BD87: 0 | BE87: 0 | BF87: 0 | BG87: 0 | BI87: 0 | BJ87: 0 | BK87: 0.00975 | BL87: 0.0195 | BM87: 0.0195 | BN87: 0.0195 | BO87: 0.0195 | BP87: 0.0195 | BQ87: 0.0195 | BR87: 0.0195 | BT87: =+IF($K87="Ongoing",AX87,IF(RIGHT($K87,2)=RIGHT(BT$39,2),SUM($AX87:AX87),0)+IF(RIGHT(BT$39,2)>RIGHT($K87,2),AX87,0)) -> 0 | BU87: =+IF($K87="Ongoing",AY87,IF(RIGHT($K87,2)=RIGHT(BU$39,2),SUM($AX87:AY87),0)+IF(RIGHT(BU$39,2)>RIGHT($K87,2),AY87,0)) -> 0 | BV87: =+IF($K87="Ongoing",AZ87,IF(RIGHT($K87,2)=RIGHT(BV$39,2),SUM($AX87:AZ87),0)+IF(RIGHT(BV$39,2)>RIGHT($K87,2),AZ87,0)) -> 0.195 | BW87: =+IF($K87="Ongoing",BA87,IF(RIGHT($K87,2)=RIGHT(BW$39,2),SUM($AX87:BA87),0)+IF(RIGHT(BW$39,2)>RIGHT($K87,2),BA87,0)) -> 0 | BX87: =+IF($K87="Ongoing",BB87,IF(RIGHT($K87,2)=RIGHT(BX$39,2),SUM($AX87:BB87),0)+IF(RIGHT(BX$39,2)>RIGHT($K87,2),BB87,0)) -> 0 | BY87: =+IF($K87="Ongoing",BC87,IF(RIGHT($K87,2)=RIGHT(BY$39,2),SUM($AX87:BC87),0)+IF(RIGHT(BY$39,2)>RIGHT($K87,2),BC87,0)) -> 0 | BZ87: =+IF($K87="Ongoing",BD87,IF(RIGHT($K87,2)=RIGHT(BZ$39,2),SUM($AX87:BD87),0)+IF(RIGHT(BZ$39,2)>RIGHT($K87,2),BD87,0)) -> 0 | CA87: =+IF($K87="Ongoing",BE87,IF(RIGHT($K87,2)=RIGHT(CA$39,2),SUM($AX87:BE87),0)+IF(RIGHT(CA$39,2)>RIGHT($K87,2),BE87,0)) -> 0 | CB87: =+IF($K87="Ongoing",BF87,IF(RIGHT($K87,2)=RIGHT(CB$39,2),SUM($AX87:BF87),0)+IF(RIGHT(CB$39,2)>RIGHT($K87,2),BF87,0)) -> 0 | CC87: =+IF($K87="Ongoing",BG87,IF(RIGHT($K87,2)=RIGHT(CC$39,2),SUM($AX87:BG87),0)+IF(RIGHT(CC$39,2)>RIGHT($K87,2),BG87,0)) -> 0 | CE87: =+Q87*KeyAssumptionsPriceControl_FO!AC$15 -> 0.01545 | CF87: =+R87*KeyAssumptionsPriceControl_FO!AD$15 -> 0.1856575 | CG87: =+S87*KeyAssumptionsPriceControl_FO!AE$15 -> 0.005463635 | CH87: =+T87*KeyAssumptionsPriceControl_FO!AF$15 -> 0 | CI87: =+U87*KeyAssumptionsPriceControl_FO!AG$15 -> 0 | CJ87: =+V87*KeyAssumptionsPriceControl_FO!AH$15 -> 0 | CK87: =+W87*KeyAssumptionsPriceControl_FO!AI$15 -> 0 | CL87: =+X87*KeyAssumptionsPriceControl_FO!AJ$15 -> 0 | CM87: =+Y87*KeyAssumptionsPriceControl_FO!AK$15 -> 0 | CN87: =+Z87*KeyAssumptionsPriceControl_FO!AL$15 -> 0 | CP87: 0.0007725 | CQ87: 0.010827875 | CR87: 0.02038393175 | CS87: 0.0206571135 | CT87: 0.0206571135 | CU87: 0.0206571135 | CV87: 0.0206571135 | CW87: 0.0206571135 | CX87: 0.0206571135 | CY87: 0.0206571135
C88: All Areas - Network and Data Management Readiness | E88: Sewerage | F88: Improvements / Compliance | G88: Corporate | H88: Other Capital expenditure | J88: Straight line | K88: 2025-26 | L88: 10 | M88: 10 | Q88: 0.015 | R88: 0.175 | S88: 0.005 | T88: 0 | U88: 0 | V88: 0 | W88: 0 | X88: 0 | Y88: 0 | Z88: 0 | AX88: 0.015 | AY88: 0.175 | AZ88: 0.005 | BA88: 0 | BB88: 0 | BC88: 0 | BD88: 0 | BE88: 0 | BF88: 0 | BG88: 0 | BI88: 0 | BJ88: 0 | BK88: 0.00975 | BL88: 0.0195 | BM88: 0.0195 | BN88: 0.0195 | BO88: 0.0195 | BP88: 0.0195 | BQ88: 0.0195 | BR88: 0.0195 | BT88: =+IF($K88="Ongoing",AX88,IF(RIGHT($K88,2)=RIGHT(BT$39,2),SUM($AX88:AX88),0)+IF(RIGHT(BT$39,2)>RIGHT($K88,2),AX88,0)) -> 0 | BU88: =+IF($K88="Ongoing",AY88,IF(RIGHT($K88,2)=RIGHT(BU$39,2),SUM($AX88:AY88),0)+IF(RIGHT(BU$39,2)>RIGHT($K88,2),AY88,0)) -> 0 | BV88: =+IF($K88="Ongoing",AZ88,IF(RIGHT($K88,2)=RIGHT(BV$39,2),SUM($AX88:AZ88),0)+IF(RIGHT(BV$39,2)>RIGHT($K88,2),AZ88,0)) -> 0.195 | BW88: =+IF($K88="Ongoing",BA88,IF(RIGHT($K88,2)=RIGHT(BW$39,2),SUM($AX88:BA88),0)+IF(RIGHT(BW$39,2)>RIGHT($K88,2),BA88,0)) -> 0 | BX88: =+IF($K88="Ongoing",BB88,IF(RIGHT($K88,2)=RIGHT(BX$39,2),SUM($AX88:BB88),0)+IF(RIGHT(BX$39,2)>RIGHT($K88,2),BB88,0)) -> 0 | BY88: =+IF($K88="Ongoing",BC88,IF(RIGHT($K88,2)=RIGHT(BY$39,2),SUM($AX88:BC88),0)+IF(RIGHT(BY$39,2)>RIGHT($K88,2),BC88,0)) -> 0 | BZ88: =+IF($K88="Ongoing",BD88,IF(RIGHT($K88,2)=RIGHT(BZ$39,2),SUM($AX88:BD88),0)+IF(RIGHT(BZ$39,2)>RIGHT($K88,2),BD88,0)) -> 0 | CA88: =+IF($K88="Ongoing",BE88,IF(RIGHT($K88,2)=RIGHT(CA$39,2),SUM($AX88:BE88),0)+IF(RIGHT(CA$39,2)>RIGHT($K88,2),BE88,0)) -> 0 | CB88: =+IF($K88="Ongoing",BF88,IF(RIGHT($K88,2)=RIGHT(CB$39,2),SUM($AX88:BF88),0)+IF(RIGHT(CB$39,2)>RIGHT($K88,2),BF88,0)) -> 0 | CC88: =+IF($K88="Ongoing",BG88,IF(RIGHT($K88,2)=RIGHT(CC$39,2),SUM($AX88:BG88),0)+IF(RIGHT(CC$39,2)>RIGHT($K88,2),BG88,0)) -> 0 | CE88: =+Q88*KeyAssumptionsPriceControl_FO!AC$15 -> 0.01545 | CF88: =+R88*KeyAssumptionsPriceControl_FO!AD$15 -> 0.1856575 | CG88: =+S88*KeyAssumptionsPriceControl_FO!AE$15 -> 0.005463635 | CH88: =+T88*KeyAssumptionsPriceControl_FO!AF$15 -> 0 | CI88: =+U88*KeyAssumptionsPriceControl_FO!AG$15 -> 0 | CJ88: =+V88*KeyAssumptionsPriceControl_FO!AH$15 -> 0 | CK88: =+W88*KeyAssumptionsPriceControl_FO!AI$15 -> 0 | CL88: =+X88*KeyAssumptionsPriceControl_FO!AJ$15 -> 0 | CM88: =+Y88*KeyAssumptionsPriceControl_FO!AK$15 -> 0 | CN88: =+Z88*KeyAssumptionsPriceControl_FO!AL$15 -> 0 | CP88: 0.0007725 | CQ88: 0.010827875 | CR88: 0.02038393175 | CS88: 0.0206571135 | CT88: 0.0206571135 | CU88: 0.0206571135 | CV88: 0.0206571135 | CW88: 0.0206571135 | CX88: 0.0206571135 | CY88: 0.0206571135
C89: All Areas - Digital Infrastructure Projects | E89: Water | F89: Improvements / Compliance | G89: Corporate | H89: Other Capital expenditure | J89: Straight line | K89: 2030-31 | L89: 10 | M89: 10 | Q89: 0.035 | R89: 0.035 | S89: 0.035 | T89: 0.035 | U89: 0.035 | V89: 0.035 | W89: 0.035 | X89: 0.035 | Y89: 0 | Z89: 0 | AX89: 0.035 | AY89: 0.035 | AZ89: 0.035 | BA89: 0.035 | BB89: 0.035 | BC89: 0.035 | BD89: 0.035 | BE89: 0.035 | BF89: 0 | BG89: 0 | BI89: 0 | BJ89: 0 | BK89: 0 | BL89: 0 | BM89: 0 | BN89: 0 | BO89: 0 | BP89: 0.014 | BQ89: 0.028 | BR89: 0.028 | BT89: =+IF($K89="Ongoing",AX89,IF(RIGHT($K89,2)=RIGHT(BT$39,2),SUM($AX89:AX89),0)+IF(RIGHT(BT$39,2)>RIGHT($K89,2),AX89,0)) -> 0 | BU89: =+IF($K89="Ongoing",AY89,IF(RIGHT($K89,2)=RIGHT(BU$39,2),SUM($AX89:AY89),0)+IF(RIGHT(BU$39,2)>RIGHT($K89,2),AY89,0)) -> 0 | BV89: =+IF($K89="Ongoing",AZ89,IF(RIGHT($K89,2)=RIGHT(BV$39,2),SUM($AX89:AZ89),0)+IF(RIGHT(BV$39,2)>RIGHT($K89,2),AZ89,0)) -> 0 | BW89: =+IF($K89="Ongoing",BA89,IF(RIGHT($K89,2)=RIGHT(BW$39,2),SUM($AX89:BA89),0)+IF(RIGHT(BW$39,2)>RIGHT($K89,2),BA89,0)) -> 0 | BX89: =+IF($K89="Ongoing",BB89,IF(RIGHT($K89,2)=RIGHT(BX$39,2),SUM($AX89:BB89),0)+IF(RIGHT(BX$39,2)>RIGHT($K89,2),BB89,0)) -> 0 | BY89: =+IF($K89="Ongoing",BC89,IF(RIGHT($K89,2)=RIGHT(BY$39,2),SUM($AX89:BC89),0)+IF(RIGHT(BY$39,2)>RIGHT($K89,2),BC89,0)) -> 0 | BZ89: =+IF($K89="Ongoing",BD89,IF(RIGHT($K89,2)=RIGHT(BZ$39,2),SUM($AX89:BD89),0)+IF(RIGHT(BZ$39,2)>RIGHT($K89,2),BD89,0)) -> 0 | CA89: =+IF($K89="Ongoing",BE89,IF(RIGHT($K89,2)=RIGHT(CA$39,2),SUM($AX89:BE89),0)+IF(RIGHT(CA$39,2)>RIGHT($K89,2),BE89,0)) -> 0.28 | CB89: =+IF($K89="Ongoing",BF89,IF(RIGHT($K89,2)=RIGHT(CB$39,2),SUM($AX89:BF89),0)+IF(RIGHT(CB$39,2)>RIGHT($K89,2),BF89,0)) -> 0 | CC89: =+IF($K89="Ongoing",BG89,IF(RIGHT($K89,2)=RIGHT(CC$39,2),SUM($AX89:BG89),0)+IF(RIGHT(CC$39,2)>RIGHT($K89,2),BG89,0)) -> 0 | CE89: =+Q89*KeyAssumptionsPriceControl_FO!AC$15 -> 0.03605 | CF89: =+R89*KeyAssumptionsPriceControl_FO!AD$15 -> 0.0371315 | CG89: =+S89*KeyAssumptionsPriceControl_FO!AE$15 -> 0.038245445 | CH89: =+T89*KeyAssumptionsPriceControl_FO!AF$15 -> 0.03939280835 | CI89: =+U89*KeyAssumptionsPriceControl_FO!AG$15 -> 0.0405745926 | CJ89: =+V89*KeyAssumptionsPriceControl_FO!AH$15 -> 0.04179183038 | CK89: =+W89*KeyAssumptionsPriceControl_FO!AI$15 -> 0.04304558529 | CL89: =+X89*KeyAssumptionsPriceControl_FO!AJ$15 -> 0.04433695285 | CM89: =+Y89*KeyAssumptionsPriceControl_FO!AK$15 -> 0 | CN89: =+Z89*KeyAssumptionsPriceControl_FO!AL$15 -> 0 | CP89: 0.0018025 | CQ89: 0.005461575 | CR89: 0.00923042225 | CS89: 0.01311233492 | CT89: 0.01711070497 | CU89: 0.02122902611 | CV89: 0.0254708969 | CW89: 0.0298400238 | CX89: 0.03205687145 | CY89: 0.03205687145
C90: All Areas - Digital Infrastructure Projects | E90: Sewerage | F90: Improvements / Compliance | G90: Corporate | H90: Other Capital expenditure | J90: Straight line | K90: 2030-31 | L90: 10 | M90: 10 | Q90: 0.035 | R90: 0.035 | S90: 0.035 | T90: 0.035 | U90: 0.035 | V90: 0.035 | W90: 0.035 | X90: 0.035 | Y90: 0 | Z90: 0 | AX90: 0.035 | AY90: 0.035 | AZ90: 0.035 | BA90: 0.035 | BB90: 0.035 | BC90: 0.035 | BD90: 0.035 | BE90: 0.035 | BF90: 0 | BG90: 0 | BI90: 0 | BJ90: 0 | BK90: 0 | BL90: 0 | BM90: 0 | BN90: 0 | BO90: 0 | BP90: 0.014 | BQ90: 0.028 | BR90: 0.028 | BT90: =+IF($K90="Ongoing",AX90,IF(RIGHT($K90,2)=RIGHT(BT$39,2),SUM($AX90:AX90),0)+IF(RIGHT(BT$39,2)>RIGHT($K90,2),AX90,0)) -> 0 | BU90: =+IF($K90="Ongoing",AY90,IF(RIGHT($K90,2)=RIGHT(BU$39,2),SUM($AX90:AY90),0)+IF(RIGHT(BU$39,2)>RIGHT($K90,2),AY90,0)) -> 0 | BV90: =+IF($K90="Ongoing",AZ90,IF(RIGHT($K90,2)=RIGHT(BV$39,2),SUM($AX90:AZ90),0)+IF(RIGHT(BV$39,2)>RIGHT($K90,2),AZ90,0)) -> 0 | BW90: =+IF($K90="Ongoing",BA90,IF(RIGHT($K90,2)=RIGHT(BW$39,2),SUM($AX90:BA90),0)+IF(RIGHT(BW$39,2)>RIGHT($K90,2),BA90,0)) -> 0 | BX90: =+IF($K90="Ongoing",BB90,IF(RIGHT($K90,2)=RIGHT(BX$39,2),SUM($AX90:BB90),0)+IF(RIGHT(BX$39,2)>RIGHT($K90,2),BB90,0)) -> 0 | BY90: =+IF($K90="Ongoing",BC90,IF(RIGHT($K90,2)=RIGHT(BY$39,2),SUM($AX90:BC90),0)+IF(RIGHT(BY$39,2)>RIGHT($K90,2),BC90,0)) -> 0 | BZ90: =+IF($K90="Ongoing",BD90,IF(RIGHT($K90,2)=RIGHT(BZ$39,2),SUM($AX90:BD90),0)+IF(RIGHT(BZ$39,2)>RIGHT($K90,2),BD90,0)) -> 0 | CA90: =+IF($K90="Ongoing",BE90,IF(RIGHT($K90,2)=RIGHT(CA$39,2),SUM($AX90:BE90),0)+IF(RIGHT(CA$39,2)>RIGHT($K90,2),BE90,0)) -> 0.28 | CB90: =+IF($K90="Ongoing",BF90,IF(RIGHT($K90,2)=RIGHT(CB$39,2),SUM($AX90:BF90),0)+IF(RIGHT(CB$39,2)>RIGHT($K90,2),BF90,0)) -> 0 | CC90: =+IF($K90="Ongoing",BG90,IF(RIGHT($K90,2)=RIGHT(CC$39,2),SUM($AX90:BG90),0)+IF(RIGHT(CC$39,2)>RIGHT($K90,2),BG90,0)) -> 0 | CE90: =+Q90*KeyAssumptionsPriceControl_FO!AC$15 -> 0.03605 | CF90: =+R90*KeyAssumptionsPriceControl_FO!AD$15 -> 0.0371315 | CG90: =+S90*KeyAssumptionsPriceControl_FO!AE$15 -> 0.038245445 | CH90: =+T90*KeyAssumptionsPriceControl_FO!AF$15 -> 0.03939280835 | CI90: =+U90*KeyAssumptionsPriceControl_FO!AG$15 -> 0.0405745926 | CJ90: =+V90*KeyAssumptionsPriceControl_FO!AH$15 -> 0.04179183038 | CK90: =+W90*KeyAssumptionsPriceControl_FO!AI$15 -> 0.04304558529 | CL90: =+X90*KeyAssumptionsPriceControl_FO!AJ$15 -> 0.04433695285 | CM90: =+Y90*KeyAssumptionsPriceControl_FO!AK$15 -> 0 | CN90: =+Z90*KeyAssumptionsPriceControl_FO!AL$15 -> 0 | CP90: 0.0018025 | CQ90: 0.005461575 | CR90: 0.00923042225 | CS90: 0.01311233492 | CT90: 0.01711070497 | CU90: 0.02122902611 | CV90: 0.0254708969 | CW90: 0.0298400238 | CX90: 0.03205687145 | CY90: 0.03205687145
C91: All Areas - System Collaboration Enhancement (TRIM and forms working together) | E91: Water | F91: Improvements / Compliance | G91: Corporate | H91: Other Capital expenditure | J91: Straight line | K91: 2025-26 | L91: 10 | M91: 10 | Q91: 0.05 | R91: 0.05 | S91: 0.025 | T91: 0 | U91: 0 | V91: 0 | W91: 0 | X91: 0 | Y91: 0 | Z91: 0 | AX91: 0.05 | AY91: 0.05 | AZ91: 0.025 | BA91: 0 | BB91: 0 | BC91: 0 | BD91: 0 | BE91: 0 | BF91: 0 | BG91: 0 | BI91: 0 | BJ91: 0 | BK91: 0.00625 | BL91: 0.0125 | BM91: 0.0125 | BN91: 0.0125 | BO91: 0.0125 | BP91: 0.0125 | BQ91: 0.0125 | BR91: 0.0125 | BT91: =+IF($K91="Ongoing",AX91,IF(RIGHT($K91,2)=RIGHT(BT$39,2),SUM($AX91:AX91),0)+IF(RIGHT(BT$39,2)>RIGHT($K91,2),AX91,0)) -> 0 | BU91: =+IF($K91="Ongoing",AY91,IF(RIGHT($K91,2)=RIGHT(BU$39,2),SUM($AX91:AY91),0)+IF(RIGHT(BU$39,2)>RIGHT($K91,2),AY91,0)) -> 0 | BV91: =+IF($K91="Ongoing",AZ91,IF(RIGHT($K91,2)=RIGHT(BV$39,2),SUM($AX91:AZ91),0)+IF(RIGHT(BV$39,2)>RIGHT($K91,2),AZ91,0)) -> 0.125 | BW91: =+IF($K91="Ongoing",BA91,IF(RIGHT($K91,2)=RIGHT(BW$39,2),SUM($AX91:BA91),0)+IF(RIGHT(BW$39,2)>RIGHT($K91,2),BA91,0)) -> 0 | BX91: =+IF($K91="Ongoing",BB91,IF(RIGHT($K91,2)=RIGHT(BX$39,2),SUM($AX91:BB91),0)+IF(RIGHT(BX$39,2)>RIGHT($K91,2),BB91,0)) -> 0 | BY91: =+IF($K91="Ongoing",BC91,IF(RIGHT($K91,2)=RIGHT(BY$39,2),SUM($AX91:BC91),0)+IF(RIGHT(BY$39,2)>RIGHT($K91,2),BC91,0)) -> 0 | BZ91: =+IF($K91="Ongoing",BD91,IF(RIGHT($K91,2)=RIGHT(BZ$39,2),SUM($AX91:BD91),0)+IF(RIGHT(BZ$39,2)>RIGHT($K91,2),BD91,0)) -> 0 | CA91: =+IF($K91="Ongoing",BE91,IF(RIGHT($K91,2)=RIGHT(CA$39,2),SUM($AX91:BE91),0)+IF(RIGHT(CA$39,2)>RIGHT($K91,2),BE91,0)) -> 0 | CB91: =+IF($K91="Ongoing",BF91,IF(RIGHT($K91,2)=RIGHT(CB$39,2),SUM($AX91:BF91),0)+IF(RIGHT(CB$39,2)>RIGHT($K91,2),BF91,0)) -> 0 | CC91: =+IF($K91="Ongoing",BG91,IF(RIGHT($K91,2)=RIGHT(CC$39,2),SUM($AX91:BG91),0)+IF(RIGHT(CC$39,2)>RIGHT($K91,2),BG91,0)) -> 0 | CE91: =+Q91*KeyAssumptionsPriceControl_FO!AC$15 -> 0.0515 | CF91: =+R91*KeyAssumptionsPriceControl_FO!AD$15 -> 0.053045 | CG91: =+S91*KeyAssumptionsPriceControl_FO!AE$15 -> 0.027318175 | CH91: =+T91*KeyAssumptionsPriceControl_FO!AF$15 -> 0 | CI91: =+U91*KeyAssumptionsPriceControl_FO!AG$15 -> 0 | CJ91: =+V91*KeyAssumptionsPriceControl_FO!AH$15 -> 0 | CK91: =+W91*KeyAssumptionsPriceControl_FO!AI$15 -> 0 | CL91: =+X91*KeyAssumptionsPriceControl_FO!AJ$15 -> 0 | CM91: =+Y91*KeyAssumptionsPriceControl_FO!AK$15 -> 0 | CN91: =+Z91*KeyAssumptionsPriceControl_FO!AL$15 -> 0 | CP91: 0.002575 | CQ91: 0.00780225 | CR91: 0.01182040875 | CS91: 0.0131863175 | CT91: 0.0131863175 | CU91: 0.0131863175 | CV91: 0.0131863175 | CW91: 0.0131863175 | CX91: 0.0131863175 | CY91: 0.0131863175
C92: All Areas - System Collaboration Enhancement (TRIM and forms working together) | E92: Sewerage | F92: Improvements / Compliance | G92: Corporate | H92: Other Capital expenditure | J92: Straight line | K92: 2025-26 | L92: 10 | M92: 10 | Q92: 0.05 | R92: 0.05 | S92: 0.025 | T92: 0 | U92: 0 | V92: 0 | W92: 0 | X92: 0 | Y92: 0 | Z92: 0 | AX92: 0.05 | AY92: 0.05 | AZ92: 0.025 | BA92: 0 | BB92: 0 | BC92: 0 | BD92: 0 | BE92: 0 | BF92: 0 | BG92: 0 | BI92: 0 | BJ92: 0 | BK92: 0.00625 | BL92: 0.0125 | BM92: 0.0125 | BN92: 0.0125 | BO92: 0.0125 | BP92: 0.0125 | BQ92: 0.0125 | BR92: 0.0125 | BT92: =+IF($K92="Ongoing",AX92,IF(RIGHT($K92,2)=RIGHT(BT$39,2),SUM($AX92:AX92),0)+IF(RIGHT(BT$39,2)>RIGHT($K92,2),AX92,0)) -> 0 | BU92: =+IF($K92="Ongoing",AY92,IF(RIGHT($K92,2)=RIGHT(BU$39,2),SUM($AX92:AY92),0)+IF(RIGHT(BU$39,2)>RIGHT($K92,2),AY92,0)) -> 0 | BV92: =+IF($K92="Ongoing",AZ92,IF(RIGHT($K92,2)=RIGHT(BV$39,2),SUM($AX92:AZ92),0)+IF(RIGHT(BV$39,2)>RIGHT($K92,2),AZ92,0)) -> 0.125 | BW92: =+IF($K92="Ongoing",BA92,IF(RIGHT($K92,2)=RIGHT(BW$39,2),SUM($AX92:BA92),0)+IF(RIGHT(BW$39,2)>RIGHT($K92,2),BA92,0)) -> 0 | BX92: =+IF($K92="Ongoing",BB92,IF(RIGHT($K92,2)=RIGHT(BX$39,2),SUM($AX92:BB92),0)+IF(RIGHT(BX$39,2)>RIGHT($K92,2),BB92,0)) -> 0 | BY92: =+IF($K92="Ongoing",BC92,IF(RIGHT($K92,2)=RIGHT(BY$39,2),SUM($AX92:BC92),0)+IF(RIGHT(BY$39,2)>RIGHT($K92,2),BC92,0)) -> 0 | BZ92: =+IF($K92="Ongoing",BD92,IF(RIGHT($K92,2)=RIGHT(BZ$39,2),SUM($AX92:BD92),0)+IF(RIGHT(BZ$39,2)>RIGHT($K92,2),BD92,0)) -> 0 | CA92: =+IF($K92="Ongoing",BE92,IF(RIGHT($K92,2)=RIGHT(CA$39,2),SUM($AX92:BE92),0)+IF(RIGHT(CA$39,2)>RIGHT($K92,2),BE92,0)) -> 0 | CB92: =+IF($K92="Ongoing",BF92,IF(RIGHT($K92,2)=RIGHT(CB$39,2),SUM($AX92:BF92),0)+IF(RIGHT(CB$39,2)>RIGHT($K92,2),BF92,0)) -> 0 | CC92: =+IF($K92="Ongoing",BG92,IF(RIGHT($K92,2)=RIGHT(CC$39,2),SUM($AX92:BG92),0)+IF(RIGHT(CC$39,2)>RIGHT($K92,2),BG92,0)) -> 0 | CE92: =+Q92*KeyAssumptionsPriceControl_FO!AC$15 -> 0.0515 | CF92: =+R92*KeyAssumptionsPriceControl_FO!AD$15 -> 0.053045 | CG92: =+S92*KeyAssumptionsPriceControl_FO!AE$15 -> 0.027318175 | CH92: =+T92*KeyAssumptionsPriceControl_FO!AF$15 -> 0 | CI92: =+U92*KeyAssumptionsPriceControl_FO!AG$15 -> 0 | CJ92: =+V92*KeyAssumptionsPriceControl_FO!AH$15 -> 0 | CK92: =+W92*KeyAssumptionsPriceControl_FO!AI$15 -> 0 | CL92: =+X92*KeyAssumptionsPriceControl_FO!AJ$15 -> 0 | CM92: =+Y92*KeyAssumptionsPriceControl_FO!AK$15 -> 0 | CN92: =+Z92*KeyAssumptionsPriceControl_FO!AL$15 -> 0 | CP92: 0.002575 | CQ92: 0.00780225 | CR92: 0.01182040875 | CS92: 0.0131863175 | CT92: 0.0131863175 | CU92: 0.0131863175 | CV92: 0.0131863175 | CW92: 0.0131863175 | CX92: 0.0131863175 | CY92: 0.0131863175
C93: All Areas - Network Automation Uplift | E93: Water | F93: Improvements / Compliance | G93: Corporate | H93: Other Capital expenditure | J93: Straight line | K93: 2030-31 | L93: 10 | M93: 10 | Q93: 0 | R93: 0 | S93: 0 | T93: 0 | U93: 0.11 | V93: 0.5 | W93: 1.75 | X93: 1.655 | Y93: 0 | Z93: 0 | AX93: 0 | AY93: 0 | AZ93: 0 | BA93: 0 | BB93: 0.11 | BC93: 0.5 | BD93: 1.75 | BE93: 1.655 | BF93: 0 | BG93: 0 | BI93: 0 | BJ93: 0 | BK93: 0 | BL93: 0 | BM93: 0 | BN93: 0 | BO93: 0 | BP93: 0.20075 | BQ93: 0.4015 | BR93: 0.4015 | BT93: =+IF($K93="Ongoing",AX93,IF(RIGHT($K93,2)=RIGHT(BT$39,2),SUM($AX93:AX93),0)+IF(RIGHT(BT$39,2)>RIGHT($K93,2),AX93,0)) -> 0 | BU93: =+IF($K93="Ongoing",AY93,IF(RIGHT($K93,2)=RIGHT(BU$39,2),SUM($AX93:AY93),0)+IF(RIGHT(BU$39,2)>RIGHT($K93,2),AY93,0)) -> 0 | BV93: =+IF($K93="Ongoing",AZ93,IF(RIGHT($K93,2)=RIGHT(BV$39,2),SUM($AX93:AZ93),0)+IF(RIGHT(BV$39,2)>RIGHT($K93,2),AZ93,0)) -> 0 | BW93: =+IF($K93="Ongoing",BA93,IF(RIGHT($K93,2)=RIGHT(BW$39,2),SUM($AX93:BA93),0)+IF(RIGHT(BW$39,2)>RIGHT($K93,2),BA93,0)) -> 0 | BX93: =+IF($K93="Ongoing",BB93,IF(RIGHT($K93,2)=RIGHT(BX$39,2),SUM($AX93:BB93),0)+IF(RIGHT(BX$39,2)>RIGHT($K93,2),BB93,0)) -> 0 | BY93: =+IF($K93="Ongoing",BC93,IF(RIGHT($K93,2)=RIGHT(BY$39,2),SUM($AX93:BC93),0)+IF(RIGHT(BY$39,2)>RIGHT($K93,2),BC93,0)) -> 0 | BZ93: =+IF($K93="Ongoing",BD93,IF(RIGHT($K93,2)=RIGHT(BZ$39,2),SUM($AX93:BD93),0)+IF(RIGHT(BZ$39,2)>RIGHT($K93,2),BD93,0)) -> 0 | CA93: =+IF($K93="Ongoing",BE93,IF(RIGHT($K93,2)=RIGHT(CA$39,2),SUM($AX93:BE93),0)+IF(RIGHT(CA$39,2)>RIGHT($K93,2),BE93,0)) -> 4.015 | CB93: =+IF($K93="Ongoing",BF93,IF(RIGHT($K93,2)=RIGHT(CB$39,2),SUM($AX93:BF93),0)+IF(RIGHT(CB$39,2)>RIGHT($K93,2),BF93,0)) -> 0 | CC93: =+IF($K93="Ongoing",BG93,IF(RIGHT($K93,2)=RIGHT(CC$39,2),SUM($AX93:BG93),0)+IF(RIGHT(CC$39,2)>RIGHT($K93,2),BG93,0)) -> 0 | CE93: =+Q93*KeyAssumptionsPriceControl_FO!AC$15 -> 0 | CF93: =+R93*KeyAssumptionsPriceControl_FO!AD$15 -> 0 | CG93: =+S93*KeyAssumptionsPriceControl_FO!AE$15 -> 0 | CH93: =+T93*KeyAssumptionsPriceControl_FO!AF$15 -> 0 | CI93: =+U93*KeyAssumptionsPriceControl_FO!AG$15 -> 0.1275201482 | CJ93: =+V93*KeyAssumptionsPriceControl_FO!AH$15 -> 0.5970261483 | CK93: =+W93*KeyAssumptionsPriceControl_FO!AI$15 -> 2.152279264 | CL93: =+X93*KeyAssumptionsPriceControl_FO!AJ$15 -> 2.096504485 | CM93: =+Y93*KeyAssumptionsPriceControl_FO!AK$15 -> 0 | CN93: =+Z93*KeyAssumptionsPriceControl_FO!AL$15 -> 0 | CP93: 0 | CQ93: 0 | CR93: 0 | CS93: 0 | CT93: 0.006376007409 | CU93: 0.04260332223 | CV93: 0.1800685929 | CW93: 0.3925077803 | CX93: 0.4973330046 | CY93: 0.4973330046
C94: All Areas - Network Automation Uplift | E94: Sewerage | F94: Improvements / Compliance | G94: Corporate | H94: Other Capital expenditure | J94: Straight line | K94: 2030-31 | L94: 10 | M94: 10 | Q94: 0 | R94: 0 | S94: 0 | T94: 0 | U94: 0.11 | V94: 0.5 | W94: 1.75 | X94: 1.655 | Y94: 0 | Z94: 0 | AX94: 0 | AY94: 0 | AZ94: 0 | BA94: 0 | BB94: 0.11 | BC94: 0.5 | BD94: 1.75 | BE94: 1.655 | BF94: 0 | BG94: 0 | BI94: 0 | BJ94: 0 | BK94: 0 | BL94: 0 | BM94: 0 | BN94: 0 | BO94: 0 | BP94: 0.20075 | BQ94: 0.4015 | BR94: 0.4015 | BT94: =+IF($K94="Ongoing",AX94,IF(RIGHT($K94,2)=RIGHT(BT$39,2),SUM($AX94:AX94),0)+IF(RIGHT(BT$39,2)>RIGHT($K94,2),AX94,0)) -> 0 | BU94: =+IF($K94="Ongoing",AY94,IF(RIGHT($K94,2)=RIGHT(BU$39,2),SUM($AX94:AY94),0)+IF(RIGHT(BU$39,2)>RIGHT($K94,2),AY94,0)) -> 0 | BV94: =+IF($K94="Ongoing",AZ94,IF(RIGHT($K94,2)=RIGHT(BV$39,2),SUM($AX94:AZ94),0)+IF(RIGHT(BV$39,2)>RIGHT($K94,2),AZ94,0)) -> 0 | BW94: =+IF($K94="Ongoing",BA94,IF(RIGHT($K94,2)=RIGHT(BW$39,2),SUM($AX94:BA94),0)+IF(RIGHT(BW$39,2)>RIGHT($K94,2),BA94,0)) -> 0 | BX94: =+IF($K94="Ongoing",BB94,IF(RIGHT($K94,2)=RIGHT(BX$39,2),SUM($AX94:BB94),0)+IF(RIGHT(BX$39,2)>RIGHT($K94,2),BB94,0)) -> 0 | BY94: =+IF($K94="Ongoing",BC94,IF(RIGHT($K94,2)=RIGHT(BY$39,2),SUM($AX94:BC94),0)+IF(RIGHT(BY$39,2)>RIGHT($K94,2),BC94,0)) -> 0 | BZ94: =+IF($K94="Ongoing",BD94,IF(RIGHT($K94,2)=RIGHT(BZ$39,2),SUM($AX94:BD94),0)+IF(RIGHT(BZ$39,2)>RIGHT($K94,2),BD94,0)) -> 0 | CA94: =+IF($K94="Ongoing",BE94,IF(RIGHT($K94,2)=RIGHT(CA$39,2),SUM($AX94:BE94),0)+IF(RIGHT(CA$39,2)>RIGHT($K94,2),BE94,0)) -> 4.015 | CB94: =+IF($K94="Ongoing",BF94,IF(RIGHT($K94,2)=RIGHT(CB$39,2),SUM($AX94:BF94),0)+IF(RIGHT(CB$39,2)>RIGHT($K94,2),BF94,0)) -> 0 | CC94: =+IF($K94="Ongoing",BG94,IF(RIGHT($K94,2)=RIGHT(CC$39,2),SUM($AX94:BG94),0)+IF(RIGHT(CC$39,2)>RIGHT($K94,2),BG94,0)) -> 0 | CE94: =+Q94*KeyAssumptionsPriceControl_FO!AC$15 -> 0 | CF94: =+R94*KeyAssumptionsPriceControl_FO!AD$15 -> 0 | CG94: =+S94*KeyAssumptionsPriceControl_FO!AE$15 -> 0 | CH94: =+T94*KeyAssumptionsPriceControl_FO!AF$15 -> 0 | CI94: =+U94*KeyAssumptionsPriceControl_FO!AG$15 -> 0.1275201482 | CJ94: =+V94*KeyAssumptionsPriceControl_FO!AH$15 -> 0.5970261483 | CK94: =+W94*KeyAssumptionsPriceControl_FO!AI$15 -> 2.152279264 | CL94: =+X94*KeyAssumptionsPriceControl_FO!AJ$15 -> 2.096504485 | CM94: =+Y94*KeyAssumptionsPriceControl_FO!AK$15 -> 0 | CN94: =+Z94*KeyAssumptionsPriceControl_FO!AL$15 -> 0 | CP94: 0 | CQ94: 0 | CR94: 0 | CS94: 0 | CT94: 0.006376007409 | CU94: 0.04260332223 | CV94: 0.1800685929 | CW94: 0.3925077803 | CX94: 0.4973330046 | CY94: 0.4973330046
C95: All Areas - Budget and Forecast Modelling System | E95: Water | F95: Improvements / Compliance | G95: Corporate | H95: Other Capital expenditure | J95: Straight line | K95: 2024-25 | L95: 10 | M95: 10 | Q95: 0.05 | R95: 0.06 | S95: 0 | T95: 0 | U95: 0 | V95: 0 | W95: 0 | X95: 0 | Y95: 0 | Z95: 0 | AX95: 0.05 | AY95: 0.06 | AZ95: 0 | BA95: 0 | BB95: 0 | BC95: 0 | BD95: 0 | BE95: 0 | BF95: 0 | BG95: 0 | BI95: 0 | BJ95: 0.0055 | BK95: 0.011 | BL95: 0.011 | BM95: 0.011 | BN95: 0.011 | BO95: 0.011 | BP95: 0.011 | BQ95: 0.011 | BR95: 0.011 | BT95: =+IF($K95="Ongoing",AX95,IF(RIGHT($K95,2)=RIGHT(BT$39,2),SUM($AX95:AX95),0)+IF(RIGHT(BT$39,2)>RIGHT($K95,2),AX95,0)) -> 0 | BU95: =+IF($K95="Ongoing",AY95,IF(RIGHT($K95,2)=RIGHT(BU$39,2),SUM($AX95:AY95),0)+IF(RIGHT(BU$39,2)>RIGHT($K95,2),AY95,0)) -> 0.11 | BV95: =+IF($K95="Ongoing",AZ95,IF(RIGHT($K95,2)=RIGHT(BV$39,2),SUM($AX95:AZ95),0)+IF(RIGHT(BV$39,2)>RIGHT($K95,2),AZ95,0)) -> 0 | BW95: =+IF($K95="Ongoing",BA95,IF(RIGHT($K95,2)=RIGHT(BW$39,2),SUM($AX95:BA95),0)+IF(RIGHT(BW$39,2)>RIGHT($K95,2),BA95,0)) -> 0 | BX95: =+IF($K95="Ongoing",BB95,IF(RIGHT($K95,2)=RIGHT(BX$39,2),SUM($AX95:BB95),0)+IF(RIGHT(BX$39,2)>RIGHT($K95,2),BB95,0)) -> 0 | BY95: =+IF($K95="Ongoing",BC95,IF(RIGHT($K95,2)=RIGHT(BY$39,2),SUM($AX95:BC95),0)+IF(RIGHT(BY$39,2)>RIGHT($K95,2),BC95,0)) -> 0 | BZ95: =+IF($K95="Ongoing",BD95,IF(RIGHT($K95,2)=RIGHT(BZ$39,2),SUM($AX95:BD95),0)+IF(RIGHT(BZ$39,2)>RIGHT($K95,2),BD95,0)) -> 0 | CA95: =+IF($K95="Ongoing",BE95,IF(RIGHT($K95,2)=RIGHT(CA$39,2),SUM($AX95:BE95),0)+IF(RIGHT(CA$39,2)>RIGHT($K95,2),BE95,0)) -> 0 | CB95: =+IF($K95="Ongoing",BF95,IF(RIGHT($K95,2)=RIGHT(CB$39,2),SUM($AX95:BF95),0)+IF(RIGHT(CB$39,2)>RIGHT($K95,2),BF95,0)) -> 0 | CC95: =+IF($K95="Ongoing",BG95,IF(RIGHT($K95,2)=RIGHT(CC$39,2),SUM($AX95:BG95),0)+IF(RIGHT(CC$39,2)>RIGHT($K95,2),BG95,0)) -> 0 | CE95: =+Q95*KeyAssumptionsPriceControl_FO!AC$15 -> 0.0515 | CF95: =+R95*KeyAssumptionsPriceControl_FO!AD$15 -> 0.063654 | CG95: =+S95*KeyAssumptionsPriceControl_FO!AE$15 -> 0 | CH95: =+T95*KeyAssumptionsPriceControl_FO!AF$15 -> 0 | CI95: =+U95*KeyAssumptionsPriceControl_FO!AG$15 -> 0 | CJ95: =+V95*KeyAssumptionsPriceControl_FO!AH$15 -> 0 | CK95: =+W95*KeyAssumptionsPriceControl_FO!AI$15 -> 0 | CL95: =+X95*KeyAssumptionsPriceControl_FO!AJ$15 -> 0 | CM95: =+Y95*KeyAssumptionsPriceControl_FO!AK$15 -> 0 | CN95: =+Z95*KeyAssumptionsPriceControl_FO!AL$15 -> 0 | CP95: 0.002575 | CQ95: 0.0083327 | CR95: 0.0115154 | CS95: 0.0115154 | CT95: 0.0115154 | CU95: 0.0115154 | CV95: 0.0115154 | CW95: 0.0115154 | CX95: 0.0115154 | CY95: 0.0115154
C96: All Areas - Budget and Forecast Modelling System | E96: Sewerage | F96: Improvements / Compliance | G96: Corporate | H96: Other Capital expenditure | J96: Straight line | K96: 2024-25 | L96: 10 | M96: 10 | Q96: 0.05 | R96: 0.06 | S96: 0 | T96: 0 | U96: 0 | V96: 0 | W96: 0 | X96: 0 | Y96: 0 | Z96: 0 | AX96: 0.05 | AY96: 0.06 | AZ96: 0 | BA96: 0 | BB96: 0 | BC96: 0 | BD96: 0 | BE96: 0 | BF96: 0 | BG96: 0 | BI96: 0 | BJ96: 0.0055 | BK96: 0.011 | BL96: 0.011 | BM96: 0.011 | BN96: 0.011 | BO96: 0.011 | BP96: 0.011 | BQ96: 0.011 | BR96: 0.011 | BT96: =+IF($K96="Ongoing",AX96,IF(RIGHT($K96,2)=RIGHT(BT$39,2),SUM($AX96:AX96),0)+IF(RIGHT(BT$39,2)>RIGHT($K96,2),AX96,0)) -> 0 | BU96: =+IF($K96="Ongoing",AY96,IF(RIGHT($K96,2)=RIGHT(BU$39,2),SUM($AX96:AY96),0)+IF(RIGHT(BU$39,2)>RIGHT($K96,2),AY96,0)) -> 0.11 | BV96: =+IF($K96="Ongoing",AZ96,IF(RIGHT($K96,2)=RIGHT(BV$39,2),SUM($AX96:AZ96),0)+IF(RIGHT(BV$39,2)>RIGHT($K96,2),AZ96,0)) -> 0 | BW96: =+IF($K96="Ongoing",BA96,IF(RIGHT($K96,2)=RIGHT(BW$39,2),SUM($AX96:BA96),0)+IF(RIGHT(BW$39,2)>RIGHT($K96,2),BA96,0)) -> 0 | BX96: =+IF($K96="Ongoing",BB96,IF(RIGHT($K96,2)=RIGHT(BX$39,2),SUM($AX96:BB96),0)+IF(RIGHT(BX$39,2)>RIGHT($K96,2),BB96,0)) -> 0 | BY96: =+IF($K96="Ongoing",BC96,IF(RIGHT($K96,2)=RIGHT(BY$39,2),SUM($AX96:BC96),0)+IF(RIGHT(BY$39,2)>RIGHT($K96,2),BC96,0)) -> 0 | BZ96: =+IF($K96="Ongoing",BD96,IF(RIGHT($K96,2)=RIGHT(BZ$39,2),SUM($AX96:BD96),0)+IF(RIGHT(BZ$39,2)>RIGHT($K96,2),BD96,0)) -> 0 | CA96: =+IF($K96="Ongoing",BE96,IF(RIGHT($K96,2)=RIGHT(CA$39,2),SUM($AX96:BE96),0)+IF(RIGHT(CA$39,2)>RIGHT($K96,2),BE96,0)) -> 0 | CB96: =+IF($K96="Ongoing",BF96,IF(RIGHT($K96,2)=RIGHT(CB$39,2),SUM($AX96:BF96),0)+IF(RIGHT(CB$39,2)>RIGHT($K96,2),BF96,0)) -> 0 | CC96: =+IF($K96="Ongoing",BG96,IF(RIGHT($K96,2)=RIGHT(CC$39,2),SUM($AX96:BG96),0)+IF(RIGHT(CC$39,2)>RIGHT($K96,2),BG96,0)) -> 0 | CE96: =+Q96*KeyAssumptionsPriceControl_FO!AC$15 -> 0.0515 | CF96: =+R96*KeyAssumptionsPriceControl_FO!AD$15 -> 0.063654 | CG96: =+S96*KeyAssumptionsPriceControl_FO!AE$15 -> 0 | CH96: =+T96*KeyAssumptionsPriceControl_FO!AF$15 -> 0 | CI96: =+U96*KeyAssumptionsPriceControl_FO!AG$15 -> 0 | CJ96: =+V96*KeyAssumptionsPriceControl_FO!AH$15 -> 0 | CK96: =+W96*KeyAssumptionsPriceControl_FO!AI$15 -> 0 | CL96: =+X96*KeyAssumptionsPriceControl_FO!AJ$15 -> 0 | CM96: =+Y96*KeyAssumptionsPriceControl_FO!AK$15 -> 0 | CN96: =+Z96*KeyAssumptionsPriceControl_FO!AL$15 -> 0 | CP96: 0.002575 | CQ96: 0.0083327 | CR96: 0.0115154 | CS96: 0.0115154 | CT96: 0.0115154 | CU96: 0.0115154 | CV96: 0.0115154 | CW96: 0.0115154 | CX96: 0.0115154 | CY96: 0.0115154
C97: All Areas - Drawing Management System | E97: Water | F97: Improvements / Compliance | G97: Corporate | H97: Other Capital expenditure | J97: Straight line | K97: 2024-25 | L97: 10 | M97: 10 | Q97: 0.025 | R97: 0.04 | S97: 0 | T97: 0 | U97: 0 | V97: 0 | W97: 0 | X97: 0 | Y97: 0 | Z97: 0 | AX97: 0.025 | AY97: 0.04 | AZ97: 0 | BA97: 0 | BB97: 0 | BC97: 0 | BD97: 0 | BE97: 0 | BF97: 0 | BG97: 0 | BI97: 0 | BJ97: 0.00325 | BK97: 0.0065 | BL97: 0.0065 | BM97: 0.0065 | BN97: 0.0065 | BO97: 0.0065 | BP97: 0.0065 | BQ97: 0.0065 | BR97: 0.0065 | BT97: =+IF($K97="Ongoing",AX97,IF(RIGHT($K97,2)=RIGHT(BT$39,2),SUM($AX97:AX97),0)+IF(RIGHT(BT$39,2)>RIGHT($K97,2),AX97,0)) -> 0 | BU97: =+IF($K97="Ongoing",AY97,IF(RIGHT($K97,2)=RIGHT(BU$39,2),SUM($AX97:AY97),0)+IF(RIGHT(BU$39,2)>RIGHT($K97,2),AY97,0)) -> 0.065 | BV97: =+IF($K97="Ongoing",AZ97,IF(RIGHT($K97,2)=RIGHT(BV$39,2),SUM($AX97:AZ97),0)+IF(RIGHT(BV$39,2)>RIGHT($K97,2),AZ97,0)) -> 0 | BW97: =+IF($K97="Ongoing",BA97,IF(RIGHT($K97,2)=RIGHT(BW$39,2),SUM($AX97:BA97),0)+IF(RIGHT(BW$39,2)>RIGHT($K97,2),BA97,0)) -> 0 | BX97: =+IF($K97="Ongoing",BB97,IF(RIGHT($K97,2)=RIGHT(BX$39,2),SUM($AX97:BB97),0)+IF(RIGHT(BX$39,2)>RIGHT($K97,2),BB97,0)) -> 0 | BY97: =+IF($K97="Ongoing",BC97,IF(RIGHT($K97,2)=RIGHT(BY$39,2),SUM($AX97:BC97),0)+IF(RIGHT(BY$39,2)>RIGHT($K97,2),BC97,0)) -> 0 | BZ97: =+IF($K97="Ongoing",BD97,IF(RIGHT($K97,2)=RIGHT(BZ$39,2),SUM($AX97:BD97),0)+IF(RIGHT(BZ$39,2)>RIGHT($K97,2),BD97,0)) -> 0 | CA97: =+IF($K97="Ongoing",BE97,IF(RIGHT($K97,2)=RIGHT(CA$39,2),SUM($AX97:BE97),0)+IF(RIGHT(CA$39,2)>RIGHT($K97,2),BE97,0)) -> 0 | CB97: =+IF($K97="Ongoing",BF97,IF(RIGHT($K97,2)=RIGHT(CB$39,2),SUM($AX97:BF97),0)+IF(RIGHT(CB$39,2)>RIGHT($K97,2),BF97,0)) -> 0 | CC97: =+IF($K97="Ongoing",BG97,IF(RIGHT($K97,2)=RIGHT(CC$39,2),SUM($AX97:BG97),0)+IF(RIGHT(CC$39,2)>RIGHT($K97,2),BG97,0)) -> 0 | CE97: =+Q97*KeyAssumptionsPriceControl_FO!AC$15 -> 0.02575 | CF97: =+R97*KeyAssumptionsPriceControl_FO!AD$15 -> 0.042436 | CG97: =+S97*KeyAssumptionsPriceControl_FO!AE$15 -> 0 | CH97: =+T97*KeyAssumptionsPriceControl_FO!AF$15 -> 0 | CI97: =+U97*KeyAssumptionsPriceControl_FO!AG$15 -> 0 | CJ97: =+V97*KeyAssumptionsPriceControl_FO!AH$15 -> 0 | CK97: =+W97*KeyAssumptionsPriceControl_FO!AI$15 -> 0 | CL97: =+X97*KeyAssumptionsPriceControl_FO!AJ$15 -> 0 | CM97: =+Y97*KeyAssumptionsPriceControl_FO!AK$15 -> 0 | CN97: =+Z97*KeyAssumptionsPriceControl_FO!AL$15 -> 0 | CP97: 0.0012875 | CQ97: 0.0046968 | CR97: 0.0068186 | CS97: 0.0068186 | CT97: 0.0068186 | CU97: 0.0068186 | CV97: 0.0068186 | CW97: 0.0068186 | CX97: 0.0068186 | CY97: 0.0068186
C98: All Areas - Drawing Management System | E98: Sewerage | F98: Improvements / Compliance | G98: Corporate | H98: Other Capital expenditure | J98: Straight line | K98: 2024-25 | L98: 10 | M98: 10 | Q98: 0.025 | R98: 0.04 | S98: 0 | T98: 0 | U98: 0 | V98: 0 | W98: 0 | X98: 0 | Y98: 0 | Z98: 0 | AX98: 0.025 | AY98: 0.04 | AZ98: 0 | BA98: 0 | BB98: 0 | BC98: 0 | BD98: 0 | BE98: 0 | BF98: 0 | BG98: 0 | BI98: 0 | BJ98: 0.00325 | BK98: 0.0065 | BL98: 0.0065 | BM98: 0.0065 | BN98: 0.0065 | BO98: 0.0065 | BP98: 0.0065 | BQ98: 0.0065 | BR98: 0.0065 | BT98: =+IF($K98="Ongoing",AX98,IF(RIGHT($K98,2)=RIGHT(BT$39,2),SUM($AX98:AX98),0)+IF(RIGHT(BT$39,2)>RIGHT($K98,2),AX98,0)) -> 0 | BU98: =+IF($K98="Ongoing",AY98,IF(RIGHT($K98,2)=RIGHT(BU$39,2),SUM($AX98:AY98),0)+IF(RIGHT(BU$39,2)>RIGHT($K98,2),AY98,0)) -> 0.065 | BV98: =+IF($K98="Ongoing",AZ98,IF(RIGHT($K98,2)=RIGHT(BV$39,2),SUM($AX98:AZ98),0)+IF(RIGHT(BV$39,2)>RIGHT($K98,2),AZ98,0)) -> 0 | BW98: =+IF($K98="Ongoing",BA98,IF(RIGHT($K98,2)=RIGHT(BW$39,2),SUM($AX98:BA98),0)+IF(RIGHT(BW$39,2)>RIGHT($K98,2),BA98,0)) -> 0 | BX98: =+IF($K98="Ongoing",BB98,IF(RIGHT($K98,2)=RIGHT(BX$39,2),SUM($AX98:BB98),0)+IF(RIGHT(BX$39,2)>RIGHT($K98,2),BB98,0)) -> 0 | BY98: =+IF($K98="Ongoing",BC98,IF(RIGHT($K98,2)=RIGHT(BY$39,2),SUM($AX98:BC98),0)+IF(RIGHT(BY$39,2)>RIGHT($K98,2),BC98,0)) -> 0 | BZ98: =+IF($K98="Ongoing",BD98,IF(RIGHT($K98,2)=RIGHT(BZ$39,2),SUM($AX98:BD98),0)+IF(RIGHT(BZ$39,2)>RIGHT($K98,2),BD98,0)) -> 0 | CA98: =+IF($K98="Ongoing",BE98,IF(RIGHT($K98,2)=RIGHT(CA$39,2),SUM($AX98:BE98),0)+IF(RIGHT(CA$39,2)>RIGHT($K98,2),BE98,0)) -> 0 | CB98: =+IF($K98="Ongoing",BF98,IF(RIGHT($K98,2)=RIGHT(CB$39,2),SUM($AX98:BF98),0)+IF(RIGHT(CB$39,2)>RIGHT($K98,2),BF98,0)) -> 0 | CC98: =+IF($K98="Ongoing",BG98,IF(RIGHT($K98,2)=RIGHT(CC$39,2),SUM($AX98:BG98),0)+IF(RIGHT(CC$39,2)>RIGHT($K98,2),BG98,0)) -> 0 | CE98: =+Q98*KeyAssumptionsPriceControl_FO!AC$15 -> 0.02575 | CF98: =+R98*KeyAssumptionsPriceControl_FO!AD$15 -> 0.042436 | CG98: =+S98*KeyAssumptionsPriceControl_FO!AE$15 -> 0 | CH98: =+T98*KeyAssumptionsPriceControl_FO!AF$15 -> 0 | CI98: =+U98*KeyAssumptionsPriceControl_FO!AG$15 -> 0 | CJ98: =+V98*KeyAssumptionsPriceControl_FO!AH$15 -> 0 | CK98: =+W98*KeyAssumptionsPriceControl_FO!AI$15 -> 0 | CL98: =+X98*KeyAssumptionsPriceControl_FO!AJ$15 -> 0 | CM98: =+Y98*KeyAssumptionsPriceControl_FO!AK$15 -> 0 | CN98: =+Z98*KeyAssumptionsPriceControl_FO!AL$15 -> 0 | CP98: 0.0012875 | CQ98: 0.0046968 | CR98: 0.0068186 | CS98: 0.0068186 | CT98: 0.0068186 | CU98: 0.0068186 | CV98: 0.0068186 | CW98: 0.0068186 | CX98: 0.0068186 | CY98: 0.0068186
C99: All Areas - Contract Management System (Stage 1) | E99: Water | F99: Improvements / Compliance | G99: Corporate | H99: Other Capital expenditure | J99: Straight line | K99: 2024-25 | L99: 10 | M99: 10 | Q99: 0.045 | R99: 0.015 | S99: 0 | T99: 0 | U99: 0 | V99: 0 | W99: 0 | X99: 0 | Y99: 0 | Z99: 0 | AX99: 0.045 | AY99: 0.015 | AZ99: 0 | BA99: 0 | BB99: 0 | BC99: 0 | BD99: 0 | BE99: 0 | BF99: 0 | BG99: 0 | BI99: 0 | BJ99: 0.003 | BK99: 0.006 | BL99: 0.006 | BM99: 0.006 | BN99: 0.006 | BO99: 0.006 | BP99: 0.006 | BQ99: 0.006 | BR99: 0.006 | BT99: =+IF($K99="Ongoing",AX99,IF(RIGHT($K99,2)=RIGHT(BT$39,2),SUM($AX99:AX99),0)+IF(RIGHT(BT$39,2)>RIGHT($K99,2),AX99,0)) -> 0 | BU99: =+IF($K99="Ongoing",AY99,IF(RIGHT($K99,2)=RIGHT(BU$39,2),SUM($AX99:AY99),0)+IF(RIGHT(BU$39,2)>RIGHT($K99,2),AY99,0)) -> 0.06 | BV99: =+IF($K99="Ongoing",AZ99,IF(RIGHT($K99,2)=RIGHT(BV$39,2),SUM($AX99:AZ99),0)+IF(RIGHT(BV$39,2)>RIGHT($K99,2),AZ99,0)) -> 0 | BW99: =+IF($K99="Ongoing",BA99,IF(RIGHT($K99,2)=RIGHT(BW$39,2),SUM($AX99:BA99),0)+IF(RIGHT(BW$39,2)>RIGHT($K99,2),BA99,0)) -> 0 | BX99: =+IF($K99="Ongoing",BB99,IF(RIGHT($K99,2)=RIGHT(BX$39,2),SUM($AX99:BB99),0)+IF(RIGHT(BX$39,2)>RIGHT($K99,2),BB99,0)) -> 0 | BY99: =+IF($K99="Ongoing",BC99,IF(RIGHT($K99,2)=RIGHT(BY$39,2),SUM($AX99:BC99),0)+IF(RIGHT(BY$39,2)>RIGHT($K99,2),BC99,0)) -> 0 | BZ99: =+IF($K99="Ongoing",BD99,IF(RIGHT($K99,2)=RIGHT(BZ$39,2),SUM($AX99:BD99),0)+IF(RIGHT(BZ$39,2)>RIGHT($K99,2),BD99,0)) -> 0 | CA99: =+IF($K99="Ongoing",BE99,IF(RIGHT($K99,2)=RIGHT(CA$39,2),SUM($AX99:BE99),0)+IF(RIGHT(CA$39,2)>RIGHT($K99,2),BE99,0)) -> 0 | CB99: =+IF($K99="Ongoing",BF99,IF(RIGHT($K99,2)=RIGHT(CB$39,2),SUM($AX99:BF99),0)+IF(RIGHT(CB$39,2)>RIGHT($K99,2),BF99,0)) -> 0 | CC99: =+IF($K99="Ongoing",BG99,IF(RIGHT($K99,2)=RIGHT(CC$39,2),SUM($AX99:BG99),0)+IF(RIGHT(CC$39,2)>RIGHT($K99,2),BG99,0)) -> 0 | CE99: =+Q99*KeyAssumptionsPriceControl_FO!AC$15 -> 0.04635 | CF99: =+R99*KeyAssumptionsPriceControl_FO!AD$15 -> 0.0159135 | CG99: =+S99*KeyAssumptionsPriceControl_FO!AE$15 -> 0 | CH99: =+T99*KeyAssumptionsPriceControl_FO!AF$15 -> 0 | CI99: =+U99*KeyAssumptionsPriceControl_FO!AG$15 -> 0 | CJ99: =+V99*KeyAssumptionsPriceControl_FO!AH$15 -> 0 | CK99: =+W99*KeyAssumptionsPriceControl_FO!AI$15 -> 0 | CL99: =+X99*KeyAssumptionsPriceControl_FO!AJ$15 -> 0 | CM99: =+Y99*KeyAssumptionsPriceControl_FO!AK$15 -> 0 | CN99: =+Z99*KeyAssumptionsPriceControl_FO!AL$15 -> 0 | CP99: 0.0023175 | CQ99: 0.005430675 | CR99: 0.00622635 | CS99: 0.00622635 | CT99: 0.00622635 | CU99: 0.00622635 | CV99: 0.00622635 | CW99: 0.00622635 | CX99: 0.00622635 | CY99: 0.00622635
C100: All Areas - Contract Management System (Stage 1) | E100: Sewerage | F100: Improvements / Compliance | G100: Corporate | H100: Other Capital expenditure | J100: Straight line | K100: 2024-25 | L100: 10 | M100: 10 | Q100: 0.045 | R100: 0.015 | S100: 0 | T100: 0 | U100: 0 | V100: 0 | W100: 0 | X100: 0 | Y100: 0 | Z100: 0 | AX100: 0.045 | AY100: 0.015 | AZ100: 0 | BA100: 0 | BB100: 0 | BC100: 0 | BD100: 0 | BE100: 0 | BF100: 0 | BG100: 0 | BI100: 0 | BJ100: 0.003 | BK100: 0.006 | BL100: 0.006 | BM100: 0.006 | BN100: 0.006 | BO100: 0.006 | BP100: 0.006 | BQ100: 0.006 | BR100: 0.006 | BT100: =+IF($K100="Ongoing",AX100,IF(RIGHT($K100,2)=RIGHT(BT$39,2),SUM($AX100:AX100),0)+IF(RIGHT(BT$39,2)>RIGHT($K100,2),AX100,0)) -> 0 | BU100: =+IF($K100="Ongoing",AY100,IF(RIGHT($K100,2)=RIGHT(BU$39,2),SUM($AX100:AY100),0)+IF(RIGHT(BU$39,2)>RIGHT($K100,2),AY100,0)) -> 0.06 | BV100: =+IF($K100="Ongoing",AZ100,IF(RIGHT($K100,2)=RIGHT(BV$39,2),SUM($AX100:AZ100),0)+IF(RIGHT(BV$39,2)>RIGHT($K100,2),AZ100,0)) -> 0 | BW100: =+IF($K100="Ongoing",BA100,IF(RIGHT($K100,2)=RIGHT(BW$39,2),SUM($AX100:BA100),0)+IF(RIGHT(BW$39,2)>RIGHT($K100,2),BA100,0)) -> 0 | BX100: =+IF($K100="Ongoing",BB100,IF(RIGHT($K100,2)=RIGHT(BX$39,2),SUM($AX100:BB100),0)+IF(RIGHT(BX$39,2)>RIGHT($K100,2),BB100,0)) -> 0 | BY100: =+IF($K100="Ongoing",BC100,IF(RIGHT($K100,2)=RIGHT(BY$39,2),SUM($AX100:BC100),0)+IF(RIGHT(BY$39,2)>RIGHT($K100,2),BC100,0)) -> 0 | BZ100: =+IF($K100="Ongoing",BD100,IF(RIGHT($K100,2)=RIGHT(BZ$39,2),SUM($AX100:BD100),0)+IF(RIGHT(BZ$39,2)>RIGHT($K100,2),BD100,0)) -> 0 | CA100: =+IF($K100="Ongoing",BE100,IF(RIGHT($K100,2)=RIGHT(CA$39,2),SUM($AX100:BE100),0)+IF(RIGHT(CA$39,2)>RIGHT($K100,2),BE100,0)) -> 0 | CB100: =+IF($K100="Ongoing",BF100,IF(RIGHT($K100,2)=RIGHT(CB$39,2),SUM($AX100:BF100),0)+IF(RIGHT(CB$39,2)>RIGHT($K100,2),BF100,0)) -> 0 | CC100: =+IF($K100="Ongoing",BG100,IF(RIGHT($K100,2)=RIGHT(CC$39,2),SUM($AX100:BG100),0)+IF(RIGHT(CC$39,2)>RIGHT($K100,2),BG100,0)) -> 0 | CE100: =+Q100*KeyAssumptionsPriceControl_FO!AC$15 -> 0.04635 | CF100: =+R100*KeyAssumptionsPriceControl_FO!AD$15 -> 0.0159135 | CG100: =+S100*KeyAssumptionsPriceControl_FO!AE$15 -> 0 | CH100: =+T100*KeyAssumptionsPriceControl_FO!AF$15 -> 0 | CI100: =+U100*KeyAssumptionsPriceControl_FO!AG$15 -> 0 | CJ100: =+V100*KeyAssumptionsPriceControl_FO!AH$15 -> 0 | CK100: =+W100*KeyAssumptionsPriceControl_FO!AI$15 -> 0 | CL100: =+X100*KeyAssumptionsPriceControl_FO!AJ$15 -> 0 | CM100: =+Y100*KeyAssumptionsPriceControl_FO!AK$15 -> 0 | CN100: =+Z100*KeyAssumptionsPriceControl_FO!AL$15 -> 0 | CP100: 0.0023175 | CQ100: 0.005430675 | CR100: 0.00622635 | CS100: 0.00622635 | CT100: 0.00622635 | CU100: 0.00622635 | CV100: 0.00622635 | CW100: 0.00622635 | CX100: 0.00622635 | CY100: 0.00622635
C101: All Areas - Project/Program/Portfolio Management System (Stage 1) | E101: Water | F101: Improvements / Compliance | G101: Corporate | H101: Other Capital expenditure | J101: Straight line | K101: 2023-24 | L101: 10 | M101: 10 | Q101: 0.055 | R101: 0 | S101: 0 | T101: 0 | U101: 0 | V101: 0 | W101: 0 | X101: 0 | Y101: 0 | Z101: 0 | AX101: 0.055 | AY101: 0 | AZ101: 0 | BA101: 0 | BB101: 0 | BC101: 0 | BD101: 0 | BE101: 0 | BF101: 0 | BG101: 0 | BI101: 0.00275 | BJ101: 0.0055 | BK101: 0.0055 | BL101: 0.0055 | BM101: 0.0055 | BN101: 0.0055 | BO101: 0.0055 | BP101: 0.0055 | BQ101: 0.0055 | BR101: 0.0055 | BT101: =+IF($K101="Ongoing",AX101,IF(RIGHT($K101,2)=RIGHT(BT$39,2),SUM($AX101:AX101),0)+IF(RIGHT(BT$39,2)>RIGHT($K101,2),AX101,0)) -> 0.055 | BU101: =+IF($K101="Ongoing",AY101,IF(RIGHT($K101,2)=RIGHT(BU$39,2),SUM($AX101:AY101),0)+IF(RIGHT(BU$39,2)>RIGHT($K101,2),AY101,0)) -> 0 | BV101: =+IF($K101="Ongoing",AZ101,IF(RIGHT($K101,2)=RIGHT(BV$39,2),SUM($AX101:AZ101),0)+IF(RIGHT(BV$39,2)>RIGHT($K101,2),AZ101,0)) -> 0 | BW101: =+IF($K101="Ongoing",BA101,IF(RIGHT($K101,2)=RIGHT(BW$39,2),SUM($AX101:BA101),0)+IF(RIGHT(BW$39,2)>RIGHT($K101,2),BA101,0)) -> 0 | BX101: =+IF($K101="Ongoing",BB101,IF(RIGHT($K101,2)=RIGHT(BX$39,2),SUM($AX101:BB101),0)+IF(RIGHT(BX$39,2)>RIGHT($K101,2),BB101,0)) -> 0 | BY101: =+IF($K101="Ongoing",BC101,IF(RIGHT($K101,2)=RIGHT(BY$39,2),SUM($AX101:BC101),0)+IF(RIGHT(BY$39,2)>RIGHT($K101,2),BC101,0)) -> 0 | BZ101: =+IF($K101="Ongoing",BD101,IF(RIGHT($K101,2)=RIGHT(BZ$39,2),SUM($AX101:BD101),0)+IF(RIGHT(BZ$39,2)>RIGHT($K101,2),BD101,0)) -> 0 | CA101: =+IF($K101="Ongoing",BE101,IF(RIGHT($K101,2)=RIGHT(CA$39,2),SUM($AX101:BE101),0)+IF(RIGHT(CA$39,2)>RIGHT($K101,2),BE101,0)) -> 0 | CB101: =+IF($K101="Ongoing",BF101,IF(RIGHT($K101,2)=RIGHT(CB$39,2),SUM($AX101:BF101),0)+IF(RIGHT(CB$39,2)>RIGHT($K101,2),BF101,0)) -> 0 | CC101: =+IF($K101="Ongoing",BG101,IF(RIGHT($K101,2)=RIGHT(CC$39,2),SUM($AX101:BG101),0)+IF(RIGHT(CC$39,2)>RIGHT($K101,2),BG101,0)) -> 0 | CE101: =+Q101*KeyAssumptionsPriceControl_FO!AC$15 -> 0.05665 | CF101: =+R101*KeyAssumptionsPriceControl_FO!AD$15 -> 0 | CG101: =+S101*KeyAssumptionsPriceControl_FO!AE$15 -> 0 | CH101: =+T101*KeyAssumptionsPriceControl_FO!AF$15 -> 0 | CI101: =+U101*KeyAssumptionsPriceControl_FO!AG$15 -> 0 | CJ101: =+V101*KeyAssumptionsPriceControl_FO!AH$15 -> 0 | CK101: =+W101*KeyAssumptionsPriceControl_FO!AI$15 -> 0 | CL101: =+X101*KeyAssumptionsPriceControl_FO!AJ$15 -> 0 | CM101: =+Y101*KeyAssumptionsPriceControl_FO!AK$15 -> 0 | CN101: =+Z101*KeyAssumptionsPriceControl_FO!AL$15 -> 0 | CP101: 0.0028325 | CQ101: 0.005665 | CR101: 0.005665 | CS101: 0.005665 | CT101: 0.005665 | CU101: 0.005665 | CV101: 0.005665 | CW101: 0.005665 | CX101: 0.005665 | CY101: 0.005665
C102: All Areas - Project/Program/Portfolio Management System (Stage 1) | E102: Sewerage | F102: Improvements / Compliance | G102: Corporate | H102: Other Capital expenditure | J102: Straight line | K102: 2023-24 | L102: 10 | M102: 10 | Q102: 0.055 | R102: 0 | S102: 0 | T102: 0 | U102: 0 | V102: 0 | W102: 0 | X102: 0 | Y102: 0 | Z102: 0 | AX102: 0.055 | AY102: 0 | AZ102: 0 | BA102: 0 | BB102: 0 | BC102: 0 | BD102: 0 | BE102: 0 | BF102: 0 | BG102: 0 | BI102: 0.00275 | BJ102: 0.0055 | BK102: 0.0055 | BL102: 0.0055 | BM102: 0.0055 | BN102: 0.0055 | BO102: 0.0055 | BP102: 0.0055 | BQ102: 0.0055 | BR102: 0.0055 | BT102: =+IF($K102="Ongoing",AX102,IF(RIGHT($K102,2)=RIGHT(BT$39,2),SUM($AX102:AX102),0)+IF(RIGHT(BT$39,2)>RIGHT($K102,2),AX102,0)) -> 0.055 | BU102: =+IF($K102="Ongoing",AY102,IF(RIGHT($K102,2)=RIGHT(BU$39,2),SUM($AX102:AY102),0)+IF(RIGHT(BU$39,2)>RIGHT($K102,2),AY102,0)) -> 0 | BV102: =+IF($K102="Ongoing",AZ102,IF(RIGHT($K102,2)=RIGHT(BV$39,2),SUM($AX102:AZ102),0)+IF(RIGHT(BV$39,2)>RIGHT($K102,2),AZ102,0)) -> 0 | BW102: =+IF($K102="Ongoing",BA102,IF(RIGHT($K102,2)=RIGHT(BW$39,2),SUM($AX102:BA102),0)+IF(RIGHT(BW$39,2)>RIGHT($K102,2),BA102,0)) -> 0 | BX102: =+IF($K102="Ongoing",BB102,IF(RIGHT($K102,2)=RIGHT(BX$39,2),SUM($AX102:BB102),0)+IF(RIGHT(BX$39,2)>RIGHT($K102,2),BB102,0)) -> 0 | BY102: =+IF($K102="Ongoing",BC102,IF(RIGHT($K102,2)=RIGHT(BY$39,2),SUM($AX102:BC102),0)+IF(RIGHT(BY$39,2)>RIGHT($K102,2),BC102,0)) -> 0 | BZ102: =+IF($K102="Ongoing",BD102,IF(RIGHT($K102,2)=RIGHT(BZ$39,2),SUM($AX102:BD102),0)+IF(RIGHT(BZ$39,2)>RIGHT($K102,2),BD102,0)) -> 0 | CA102: =+IF($K102="Ongoing",BE102,IF(RIGHT($K102,2)=RIGHT(CA$39,2),SUM($AX102:BE102),0)+IF(RIGHT(CA$39,2)>RIGHT($K102,2),BE102,0)) -> 0 | CB102: =+IF($K102="Ongoing",BF102,IF(RIGHT($K102,2)=RIGHT(CB$39,2),SUM($AX102:BF102),0)+IF(RIGHT(CB$39,2)>RIGHT($K102,2),BF102,0)) -> 0 | CC102: =+IF($K102="Ongoing",BG102,IF(RIGHT($K102,2)=RIGHT(CC$39,2),SUM($AX102:BG102),0)+IF(RIGHT(CC$39,2)>RIGHT($K102,2),BG102,0)) -> 0 | CE102: =+Q102*KeyAssumptionsPriceControl_FO!AC$15 -> 0.05665 | CF102: =+R102*KeyAssumptionsPriceControl_FO!AD$15 -> 0 | CG102: =+S102*KeyAssumptionsPriceControl_FO!AE$15 -> 0 | CH102: =+T102*KeyAssumptionsPriceControl_FO!AF$15 -> 0 | CI102: =+U102*KeyAssumptionsPriceControl_FO!AG$15 -> 0 | CJ102: =+V102*KeyAssumptionsPriceControl_FO!AH$15 -> 0 | CK102: =+W102*KeyAssumptionsPriceControl_FO!AI$15 -> 0 | CL102: =+X102*KeyAssumptionsPriceControl_FO!AJ$15 -> 0 | CM102: =+Y102*KeyAssumptionsPriceControl_FO!AK$15 -> 0 | CN102: =+Z102*KeyAssumptionsPriceControl_FO!AL$15 -> 0 | CP102: 0.0028325 | CQ102: 0.005665 | CR102: 0.005665 | CS102: 0.005665 | CT102: 0.005665 | CU102: 0.005665 | CV102: 0.005665 | CW102: 0.005665 | CX102: 0.005665 | CY102: 0.005665
C103: All Areas - Mobility Computing Upgrades (iPad Rollout) | E103: Water | F103: Improvements / Compliance | G103: Corporate | H103: Other Capital expenditure | J103: Straight line | K103: 2023-24 | L103: 10 | M103: 10 | Q103: 0.05 | R103: 0 | S103: 0 | T103: 0 | U103: 0 | V103: 0 | W103: 0 | X103: 0 | Y103: 0 | Z103: 0 | AX103: 0.05 | AY103: 0 | AZ103: 0 | BA103: 0 | BB103: 0 | BC103: 0 | BD103: 0 | BE103: 0 | BF103: 0 | BG103: 0 | BI103: 0.0025 | BJ103: 0.005 | BK103: 0.005 | BL103: 0.005 | BM103: 0.005 | BN103: 0.005 | BO103: 0.005 | BP103: 0.005 | BQ103: 0.005 | BR103: 0.005 | BT103: =+IF($K103="Ongoing",AX103,IF(RIGHT($K103,2)=RIGHT(BT$39,2),SUM($AX103:AX103),0)+IF(RIGHT(BT$39,2)>RIGHT($K103,2),AX103,0)) -> 0.05 | BU103: =+IF($K103="Ongoing",AY103,IF(RIGHT($K103,2)=RIGHT(BU$39,2),SUM($AX103:AY103),0)+IF(RIGHT(BU$39,2)>RIGHT($K103,2),AY103,0)) -> 0 | BV103: =+IF($K103="Ongoing",AZ103,IF(RIGHT($K103,2)=RIGHT(BV$39,2),SUM($AX103:AZ103),0)+IF(RIGHT(BV$39,2)>RIGHT($K103,2),AZ103,0)) -> 0 | BW103: =+IF($K103="Ongoing",BA103,IF(RIGHT($K103,2)=RIGHT(BW$39,2),SUM($AX103:BA103),0)+IF(RIGHT(BW$39,2)>RIGHT($K103,2),BA103,0)) -> 0 | BX103: =+IF($K103="Ongoing",BB103,IF(RIGHT($K103,2)=RIGHT(BX$39,2),SUM($AX103:BB103),0)+IF(RIGHT(BX$39,2)>RIGHT($K103,2),BB103,0)) -> 0 | BY103: =+IF($K103="Ongoing",BC103,IF(RIGHT($K103,2)=RIGHT(BY$39,2),SUM($AX103:BC103),0)+IF(RIGHT(BY$39,2)>RIGHT($K103,2),BC103,0)) -> 0 | BZ103: =+IF($K103="Ongoing",BD103,IF(RIGHT($K103,2)=RIGHT(BZ$39,2),SUM($AX103:BD103),0)+IF(RIGHT(BZ$39,2)>RIGHT($K103,2),BD103,0)) -> 0 | CA103: =+IF($K103="Ongoing",BE103,IF(RIGHT($K103,2)=RIGHT(CA$39,2),SUM($AX103:BE103),0)+IF(RIGHT(CA$39,2)>RIGHT($K103,2),BE103,0)) -> 0 | CB103: =+IF($K103="Ongoing",BF103,IF(RIGHT($K103,2)=RIGHT(CB$39,2),SUM($AX103:BF103),0)+IF(RIGHT(CB$39,2)>RIGHT($K103,2),BF103,0)) -> 0 | CC103: =+IF($K103="Ongoing",BG103,IF(RIGHT($K103,2)=RIGHT(CC$39,2),SUM($AX103:BG103),0)+IF(RIGHT(CC$39,2)>RIGHT($K103,2),BG103,0)) -> 0 | CE103: =+Q103*KeyAssumptionsPriceControl_FO!AC$15 -> 0.0515 | CF103: =+R103*KeyAssumptionsPriceControl_FO!AD$15 -> 0 | CG103: =+S103*KeyAssumptionsPriceControl_FO!AE$15 -> 0 | CH103: =+T103*KeyAssumptionsPriceControl_FO!AF$15 -> 0 | CI103: =+U103*KeyAssumptionsPriceControl_FO!AG$15 -> 0 | CJ103: =+V103*KeyAssumptionsPriceControl_FO!AH$15 -> 0 | CK103: =+W103*KeyAssumptionsPriceControl_FO!AI$15 -> 0 | CL103: =+X103*KeyAssumptionsPriceControl_FO!AJ$15 -> 0 | CM103: =+Y103*KeyAssumptionsPriceControl_FO!AK$15 -> 0 | CN103: =+Z103*KeyAssumptionsPriceControl_FO!AL$15 -> 0 | CP103: 0.002575 | CQ103: 0.00515 | CR103: 0.00515 | CS103: 0.00515 | CT103: 0.00515 | CU103: 0.00515 | CV103: 0.00515 | CW103: 0.00515 | CX103: 0.00515 | CY103: 0.00515
C104: All Areas - Mobility Computing Upgrades (iPad Rollout) | E104: Sewerage | F104: Improvements / Compliance | G104: Corporate | H104: Other Capital expenditure | J104: Straight line | K104: 2023-24 | L104: 10 | M104: 10 | Q104: 0.05 | R104: 0 | S104: 0 | T104: 0 | U104: 0 | V104: 0 | W104: 0 | X104: 0 | Y104: 0 | Z104: 0 | AX104: 0.05 | AY104: 0 | AZ104: 0 | BA104: 0 | BB104: 0 | BC104: 0 | BD104: 0 | BE104: 0 | BF104: 0 | BG104: 0 | BI104: 0.0025 | BJ104: 0.005 | BK104: 0.005 | BL104: 0.005 | BM104: 0.005 | BN104: 0.005 | BO104: 0.005 | BP104: 0.005 | BQ104: 0.005 | BR104: 0.005 | BT104: =+IF($K104="Ongoing",AX104,IF(RIGHT($K104,2)=RIGHT(BT$39,2),SUM($AX104:AX104),0)+IF(RIGHT(BT$39,2)>RIGHT($K104,2),AX104,0)) -> 0.05 | BU104: =+IF($K104="Ongoing",AY104,IF(RIGHT($K104,2)=RIGHT(BU$39,2),SUM($AX104:AY104),0)+IF(RIGHT(BU$39,2)>RIGHT($K104,2),AY104,0)) -> 0 | BV104: =+IF($K104="Ongoing",AZ104,IF(RIGHT($K104,2)=RIGHT(BV$39,2),SUM($AX104:AZ104),0)+IF(RIGHT(BV$39,2)>RIGHT($K104,2),AZ104,0)) -> 0 | BW104: =+IF($K104="Ongoing",BA104,IF(RIGHT($K104,2)=RIGHT(BW$39,2),SUM($AX104:BA104),0)+IF(RIGHT(BW$39,2)>RIGHT($K104,2),BA104,0)) -> 0 | BX104: =+IF($K104="Ongoing",BB104,IF(RIGHT($K104,2)=RIGHT(BX$39,2),SUM($AX104:BB104),0)+IF(RIGHT(BX$39,2)>RIGHT($K104,2),BB104,0)) -> 0 | BY104: =+IF($K104="Ongoing",BC104,IF(RIGHT($K104,2)=RIGHT(BY$39,2),SUM($AX104:BC104),0)+IF(RIGHT(BY$39,2)>RIGHT($K104,2),BC104,0)) -> 0 | BZ104: =+IF($K104="Ongoing",BD104,IF(RIGHT($K104,2)=RIGHT(BZ$39,2),SUM($AX104:BD104),0)+IF(RIGHT(BZ$39,2)>RIGHT($K104,2),BD104,0)) -> 0 | CA104: =+IF($K104="Ongoing",BE104,IF(RIGHT($K104,2)=RIGHT(CA$39,2),SUM($AX104:BE104),0)+IF(RIGHT(CA$39,2)>RIGHT($K104,2),BE104,0)) -> 0 | CB104: =+IF($K104="Ongoing",BF104,IF(RIGHT($K104,2)=RIGHT(CB$39,2),SUM($AX104:BF104),0)+IF(RIGHT(CB$39,2)>RIGHT($K104,2),BF104,0)) -> 0 | CC104: =+IF($K104="Ongoing",BG104,IF(RIGHT($K104,2)=RIGHT(CC$39,2),SUM($AX104:BG104),0)+IF(RIGHT(CC$39,2)>RIGHT($K104,2),BG104,0)) -> 0 | CE104: =+Q104*KeyAssumptionsPriceControl_FO!AC$15 -> 0.0515 | CF104: =+R104*KeyAssumptionsPriceControl_FO!AD$15 -> 0 | CG104: =+S104*KeyAssumptionsPriceControl_FO!AE$15 -> 0 | CH104: =+T104*KeyAssumptionsPriceControl_FO!AF$15 -> 0 | CI104: =+U104*KeyAssumptionsPriceControl_FO!AG$15 -> 0 | CJ104: =+V104*KeyAssumptionsPriceControl_FO!AH$15 -> 0 | CK104: =+W104*KeyAssumptionsPriceControl_FO!AI$15 -> 0 | CL104: =+X104*KeyAssumptionsPriceControl_FO!AJ$15 -> 0 | CM104: =+Y104*KeyAssumptionsPriceControl_FO!AK$15 -> 0 | CN104: =+Z104*KeyAssumptionsPriceControl_FO!AL$15 -> 0 | CP104: 0.002575 | CQ104: 0.00515 | CR104: 0.00515 | CS104: 0.00515 | CT104: 0.00515 | CU104: 0.00515 | CV104: 0.00515 | CW104: 0.00515 | CX104: 0.00515 | CY104: 0.00515
C105: All Areas - Data Digitisation (Scanning drawings) | E105: Water | F105: Improvements / Compliance | G105: Corporate | H105: Other Capital expenditure | J105: Straight line | K105: 2024-25 | L105: 10 | M105: 10 | Q105: 0.02 | R105: 0.02 | S105: 0 | T105: 0 | U105: 0 | V105: 0 | W105: 0 | X105: 0 | Y105: 0 | Z105: 0 | AX105: 0.02 | AY105: 0.02 | AZ105: 0 | BA105: 0 | BB105: 0 | BC105: 0 | BD105: 0 | BE105: 0 | BF105: 0 | BG105: 0 | BI105: 0 | BJ105: 0.002 | BK105: 0.004 | BL105: 0.004 | BM105: 0.004 | BN105: 0.004 | BO105: 0.004 | BP105: 0.004 | BQ105: 0.004 | BR105: 0.004 | BT105: =+IF($K105="Ongoing",AX105,IF(RIGHT($K105,2)=RIGHT(BT$39,2),SUM($AX105:AX105),0)+IF(RIGHT(BT$39,2)>RIGHT($K105,2),AX105,0)) -> 0 | BU105: =+IF($K105="Ongoing",AY105,IF(RIGHT($K105,2)=RIGHT(BU$39,2),SUM($AX105:AY105),0)+IF(RIGHT(BU$39,2)>RIGHT($K105,2),AY105,0)) -> 0.04 | BV105: =+IF($K105="Ongoing",AZ105,IF(RIGHT($K105,2)=RIGHT(BV$39,2),SUM($AX105:AZ105),0)+IF(RIGHT(BV$39,2)>RIGHT($K105,2),AZ105,0)) -> 0 | BW105: =+IF($K105="Ongoing",BA105,IF(RIGHT($K105,2)=RIGHT(BW$39,2),SUM($AX105:BA105),0)+IF(RIGHT(BW$39,2)>RIGHT($K105,2),BA105,0)) -> 0 | BX105: =+IF($K105="Ongoing",BB105,IF(RIGHT($K105,2)=RIGHT(BX$39,2),SUM($AX105:BB105),0)+IF(RIGHT(BX$39,2)>RIGHT($K105,2),BB105,0)) -> 0 | BY105: =+IF($K105="Ongoing",BC105,IF(RIGHT($K105,2)=RIGHT(BY$39,2),SUM($AX105:BC105),0)+IF(RIGHT(BY$39,2)>RIGHT($K105,2),BC105,0)) -> 0 | BZ105: =+IF($K105="Ongoing",BD105,IF(RIGHT($K105,2)=RIGHT(BZ$39,2),SUM($AX105:BD105),0)+IF(RIGHT(BZ$39,2)>RIGHT($K105,2),BD105,0)) -> 0 | CA105: =+IF($K105="Ongoing",BE105,IF(RIGHT($K105,2)=RIGHT(CA$39,2),SUM($AX105:BE105),0)+IF(RIGHT(CA$39,2)>RIGHT($K105,2),BE105,0)) -> 0 | CB105: =+IF($K105="Ongoing",BF105,IF(RIGHT($K105,2)=RIGHT(CB$39,2),SUM($AX105:BF105),0)+IF(RIGHT(CB$39,2)>RIGHT($K105,2),BF105,0)) -> 0 | CC105: =+IF($K105="Ongoing",BG105,IF(RIGHT($K105,2)=RIGHT(CC$39,2),SUM($AX105:BG105),0)+IF(RIGHT(CC$39,2)>RIGHT($K105,2),BG105,0)) -> 0 | CE105: =+Q105*KeyAssumptionsPriceControl_FO!AC$15 -> 0.0206 | CF105: =+R105*KeyAssumptionsPriceControl_FO!AD$15 -> 0.021218 | CG105: =+S105*KeyAssumptionsPriceControl_FO!AE$15 -> 0 | CH105: =+T105*KeyAssumptionsPriceControl_FO!AF$15 -> 0 | CI105: =+U105*KeyAssumptionsPriceControl_FO!AG$15 -> 0 | CJ105: =+V105*KeyAssumptionsPriceControl_FO!AH$15 -> 0 | CK105: =+W105*KeyAssumptionsPriceControl_FO!AI$15 -> 0 | CL105: =+X105*KeyAssumptionsPriceControl_FO!AJ$15 -> 0 | CM105: =+Y105*KeyAssumptionsPriceControl_FO!AK$15 -> 0 | CN105: =+Z105*KeyAssumptionsPriceControl_FO!AL$15 -> 0 | CP105: 0.00103 | CQ105: 0.0031209 | CR105: 0.0041818 | CS105: 0.0041818 | CT105: 0.0041818 | CU105: 0.0041818 | CV105: 0.0041818 | CW105: 0.0041818 | CX105: 0.0041818 | CY105: 0.0041818
C106: All Areas - Data Digitisation (Scanning drawings) | E106: Sewerage | F106: Improvements / Compliance | G106: Corporate | H106: Other Capital expenditure | J106: Straight line | K106: 2024-24 | L106: 10 | M106: 10 | Q106: 0.02 | R106: 0.02 | S106: 0 | T106: 0 | U106: 0 | V106: 0 | W106: 0 | X106: 0 | Y106: 0 | Z106: 0 | AX106: 0.02 | AY106: 0.02 | AZ106: 0 | BA106: 0 | BB106: 0 | BC106: 0 | BD106: 0 | BE106: 0 | BF106: 0 | BG106: 0 | BI106: 0.001 | BJ106: 0.003 | BK106: 0.004 | BL106: 0.004 | BM106: 0.004 | BN106: 0.004 | BO106: 0.004 | BP106: 0.004 | BQ106: 0.004 | BR106: 0.004 | BT106: =+IF($K106="Ongoing",AX106,IF(RIGHT($K106,2)=RIGHT(BT$39,2),SUM($AX106:AX106),0)+IF(RIGHT(BT$39,2)>RIGHT($K106,2),AX106,0)) -> 0.02 | BU106: =+IF($K106="Ongoing",AY106,IF(RIGHT($K106,2)=RIGHT(BU$39,2),SUM($AX106:AY106),0)+IF(RIGHT(BU$39,2)>RIGHT($K106,2),AY106,0)) -> 0.02 | BV106: =+IF($K106="Ongoing",AZ106,IF(RIGHT($K106,2)=RIGHT(BV$39,2),SUM($AX106:AZ106),0)+IF(RIGHT(BV$39,2)>RIGHT($K106,2),AZ106,0)) -> 0 | BW106: =+IF($K106="Ongoing",BA106,IF(RIGHT($K106,2)=RIGHT(BW$39,2),SUM($AX106:BA106),0)+IF(RIGHT(BW$39,2)>RIGHT($K106,2),BA106,0)) -> 0 | BX106: =+IF($K106="Ongoing",BB106,IF(RIGHT($K106,2)=RIGHT(BX$39,2),SUM($AX106:BB106),0)+IF(RIGHT(BX$39,2)>RIGHT($K106,2),BB106,0)) -> 0 | BY106: =+IF($K106="Ongoing",BC106,IF(RIGHT($K106,2)=RIGHT(BY$39,2),SUM($AX106:BC106),0)+IF(RIGHT(BY$39,2)>RIGHT($K106,2),BC106,0)) -> 0 | BZ106: =+IF($K106="Ongoing",BD106,IF(RIGHT($K106,2)=RIGHT(BZ$39,2),SUM($AX106:BD106),0)+IF(RIGHT(BZ$39,2)>RIGHT($K106,2),BD106,0)) -> 0 | CA106: =+IF($K106="Ongoing",BE106,IF(RIGHT($K106,2)=RIGHT(CA$39,2),SUM($AX106:BE106),0)+IF(RIGHT(CA$39,2)>RIGHT($K106,2),BE106,0)) -> 0 | CB106: =+IF($K106="Ongoing",BF106,IF(RIGHT($K106,2)=RIGHT(CB$39,2),SUM($AX106:BF106),0)+IF(RIGHT(CB$39,2)>RIGHT($K106,2),BF106,0)) -> 0 | CC106: =+IF($K106="Ongoing",BG106,IF(RIGHT($K106,2)=RIGHT(CC$39,2),SUM($AX106:BG106),0)+IF(RIGHT(CC$39,2)>RIGHT($K106,2),BG106,0)) -> 0 | CE106: =+Q106*KeyAssumptionsPriceControl_FO!AC$15 -> 0.0206 | CF106: =+R106*KeyAssumptionsPriceControl_FO!AD$15 -> 0.021218 | CG106: =+S106*KeyAssumptionsPriceControl_FO!AE$15 -> 0 | CH106: =+T106*KeyAssumptionsPriceControl_FO!AF$15 -> 0 | CI106: =+U106*KeyAssumptionsPriceControl_FO!AG$15 -> 0 | CJ106: =+V106*KeyAssumptionsPriceControl_FO!AH$15 -> 0 | CK106: =+W106*KeyAssumptionsPriceControl_FO!AI$15 -> 0 | CL106: =+X106*KeyAssumptionsPriceControl_FO!AJ$15 -> 0 | CM106: =+Y106*KeyAssumptionsPriceControl_FO!AK$15 -> 0 | CN106: =+Z106*KeyAssumptionsPriceControl_FO!AL$15 -> 0 | CP106: 0.00103 | CQ106: 0.0031209 | CR106: 0.0041818 | CS106: 0.0041818 | CT106: 0.0041818 | CU106: 0.0041818 | CV106: 0.0041818 | CW106: 0.0041818 | CX106: 0.0041818 | CY106: 0.0041818
C107: All Areas - Organisational Process Automation (leverage RPA and integration between systems) | E107: Water | F107: Improvements / Compliance | G107: Corporate | H107: Other Capital expenditure | J107: Straight line | K107: 2024-25 | L107: 10 | M107: 10 | Q107: 0.035 | R107: 0.005 | S107: 0 | T107: 0 | U107: 0 | V107: 0 | W107: 0 | X107: 0 | Y107: 0 | Z107: 0 | AX107: 0.035 | AY107: 0.005 | AZ107: 0 | BA107: 0 | BB107: 0 | BC107: 0 | BD107: 0 | BE107: 0 | BF107: 0 | BG107: 0 | BI107: 0 | BJ107: 0.002 | BK107: 0.004 | BL107: 0.004 | BM107: 0.004 | BN107: 0.004 | BO107: 0.004 | BP107: 0.004 | BQ107: 0.004 | BR107: 0.004 | BT107: =+IF($K107="Ongoing",AX107,IF(RIGHT($K107,2)=RIGHT(BT$39,2),SUM($AX107:AX107),0)+IF(RIGHT(BT$39,2)>RIGHT($K107,2),AX107,0)) -> 0 | BU107: =+IF($K107="Ongoing",AY107,IF(RIGHT($K107,2)=RIGHT(BU$39,2),SUM($AX107:AY107),0)+IF(RIGHT(BU$39,2)>RIGHT($K107,2),AY107,0)) -> 0.04 | BV107: =+IF($K107="Ongoing",AZ107,IF(RIGHT($K107,2)=RIGHT(BV$39,2),SUM($AX107:AZ107),0)+IF(RIGHT(BV$39,2)>RIGHT($K107,2),AZ107,0)) -> 0 | BW107: =+IF($K107="Ongoing",BA107,IF(RIGHT($K107,2)=RIGHT(BW$39,2),SUM($AX107:BA107),0)+IF(RIGHT(BW$39,2)>RIGHT($K107,2),BA107,0)) -> 0 | BX107: =+IF($K107="Ongoing",BB107,IF(RIGHT($K107,2)=RIGHT(BX$39,2),SUM($AX107:BB107),0)+IF(RIGHT(BX$39,2)>RIGHT($K107,2),BB107,0)) -> 0 | BY107: =+IF($K107="Ongoing",BC107,IF(RIGHT($K107,2)=RIGHT(BY$39,2),SUM($AX107:BC107),0)+IF(RIGHT(BY$39,2)>RIGHT($K107,2),BC107,0)) -> 0 | BZ107: =+IF($K107="Ongoing",BD107,IF(RIGHT($K107,2)=RIGHT(BZ$39,2),SUM($AX107:BD107),0)+IF(RIGHT(BZ$39,2)>RIGHT($K107,2),BD107,0)) -> 0 | CA107: =+IF($K107="Ongoing",BE107,IF(RIGHT($K107,2)=RIGHT(CA$39,2),SUM($AX107:BE107),0)+IF(RIGHT(CA$39,2)>RIGHT($K107,2),BE107,0)) -> 0 | CB107: =+IF($K107="Ongoing",BF107,IF(RIGHT($K107,2)=RIGHT(CB$39,2),SUM($AX107:BF107),0)+IF(RIGHT(CB$39,2)>RIGHT($K107,2),BF107,0)) -> 0 | CC107: =+IF($K107="Ongoing",BG107,IF(RIGHT($K107,2)=RIGHT(CC$39,2),SUM($AX107:BG107),0)+IF(RIGHT(CC$39,2)>RIGHT($K107,2),BG107,0)) -> 0 | CE107: =+Q107*KeyAssumptionsPriceControl_FO!AC$15 -> 0.03605 | CF107: =+R107*KeyAssumptionsPriceControl_FO!AD$15 -> 0.0053045 | CG107: =+S107*KeyAssumptionsPriceControl_FO!AE$15 -> 0 | CH107: =+T107*KeyAssumptionsPriceControl_FO!AF$15 -> 0 | CI107: =+U107*KeyAssumptionsPriceControl_FO!AG$15 -> 0 | CJ107: =+V107*KeyAssumptionsPriceControl_FO!AH$15 -> 0 | CK107: =+W107*KeyAssumptionsPriceControl_FO!AI$15 -> 0 | CL107: =+X107*KeyAssumptionsPriceControl_FO!AJ$15 -> 0 | CM107: =+Y107*KeyAssumptionsPriceControl_FO!AK$15 -> 0 | CN107: =+Z107*KeyAssumptionsPriceControl_FO!AL$15 -> 0 | CP107: 0.0018025 | CQ107: 0.003870225 | CR107: 0.00413545 | CS107: 0.00413545 | CT107: 0.00413545 | CU107: 0.00413545 | CV107: 0.00413545 | CW107: 0.00413545 | CX107: 0.00413545 | CY107: 0.00413545
